Workbook

Sheet PNB BDD
C2: A sélectionner dans menu déroulant | V2: Légende
B3: Direction commerciale | V3: Réalisations > objectif proraté
B4: Secteur | V4: Réalisations < 50% de objectif proraté
B5: Agence | V5: Taux / durée lié a une convention
B7: =IF(C3="","CEGEE",IF(AND(C5="",C4=""),C3,IF(AND(C5="",C4<>""),C4,IF(C5="","""Sélectionneragence",C5)))) -> CEGEE | E7: PNB sur Activité Nouvelle 2019
B9: Données arrêtées au : | C9: ='Indicateurs Cumulés'!$E$4 -> 2019-06-30
B10: Taux de réalisation attendu : | C10: =MONTH(C9)/12 -> 50% | E10: Réalisations Mensuelles | J10: Réalisations Annuelles | P10: OBJECTIFS | V10: TAUX Réal. Objectif
E11: Volume | F11: Taux | G11: Durée | H11: PNB | J11: Volume | K11: Taux | L11: Durée | M11: PNB | N11: PNB / ETP perf. | P11: Volume | Q11: Taux | R11: Durée | S11: PNB | T11: PNB / ETP Cible | V11: Volume | W11: PNB annuel | X11: Ecart /obj. PNB/ETP
B12: Montants en k€
B14: COLLECTE (yc DAV) - Excédents | E14: =E15+E16+E17+E32 -> -37,307 | H14: =H15+H16+H32 -> 1,236 | J14: =J15+J16+J17+J32 -> 117,910 | M14: =M15+M16+M32 -> 10,908 | N14: =IF(ISERROR(M14/VLOOKUP($B$7,'Indicateurs Cumulés'!$D$3:$MX$391,223,FALSE)),"nc",M14/VLOOKUP($B$7,'Indicateurs Cumulés'!$D$3:$MX$391,223,FALSE)) -> 8.0 | P14: =P15+P16+P32 -> 180,000 | S14: =S15+S16+S32 -> 24,756 | T14: =IF(ISERROR(S14/VLOOKUP($B$7,objectifs!$D$4:$IA$373,232,FALSE)),"nc",S14/VLOOKUP($B$7,objectifs!$D$4:$IA$373,232,FALSE)) -> 16.3 | V14: =IF(ISERROR(J14/P14),0,J14/P14) -> 66% | W14: =IF(ISERROR(M14/S14),0,M14/S14) -> 44% | X14: =IF(ISERROR(N14-(T14/12*MONTH($C$9))),"nc",N14-(T14/12*MONTH($C$9))) -> -0.2
B15: DAV Créditeurs - Variation d'EMJ mensuel | E15: =VLOOKUP($B$7,'Indicateurs mensuels'!$D$3:$ZZ$391,211,FALSE)/12 -> 7,263 | F15: =VLOOKUP($B$7,'Indicateurs mensuels'!$D$3:$KI$391,178,FALSE) -> 1.00% | G15: =VLOOKUP($B$7,'Indicateurs mensuels'!$D$3:$KI$391,179,FALSE) -> 5.37 | H15: =E15*F15*G15 -> 390 | J15: =VLOOKUP($B$7,'Indicateurs Cumulés'!$D$3:$MX$391,220,FALSE) -> 18,501 | K15: =VLOOKUP($B$7,'Indicateurs Cumulés'!$D$3:$MX$391,186,FALSE) -> 1.00% | L15: =VLOOKUP($B$7,'Indicateurs Cumulés'!$D$3:$MX$391,187,FALSE) -> 5.37 | M15: =J15*K15*L15 -> 994 | N15: =IF(ISERROR(M15/VLOOKUP($B$7,'Indicateurs Cumulés'!$D$3:$MX$391,223,FALSE)),"nc",M15/VLOOKUP($B$7,'Indicateurs Cumulés'!$D$3:$MX$391,223,FALSE)) -> 0.7 | P15: =VLOOKUP($B$7,objectifs!$D$3:$ZZ$391,157,FALSE) -> 130,000 | Q15: =VLOOKUP($B$7,objectifs!$D$3:$ZZ$391,158,FALSE) -> 1.00% | R15: =VLOOKUP($B$7,objectifs!$D$3:$ZZ$391,159,FALSE) -> 5.37 | S15: =P15*Q15*R15 -> 6,981 | T15: =IF(ISERROR(S15/VLOOKUP($B$7,objectifs!$D$4:$IA$373,232,FALSE)),"nc",S15/VLOOKUP($B$7,objectifs!$D$4:$IA$373,232,FALSE)) -> 4.6 | V15: =IF(ISERROR(J15/P15),0,J15/P15) -> 14% | W15: =IF(ISERROR(M15/S15),0,M15/S15) -> 14% | X15: =IF(ISERROR(N15-(T15/12*MONTH($C$9))),"nc",N15-(T15/12*MONTH($C$9))) -> -1.6
B16: Epargne Bilan | E16: =VLOOKUP($B$7,'Indicateurs mensuels'!$D$3:$KI$391,173,FALSE) -> -85,939 | H16: =VLOOKUP($B$7,'Indicateurs mensuels'!$D$3:$KI$391,174,FALSE) -> -1,385 | J16: =VLOOKUP($B$7,'Indicateurs Cumulés'!$D$3:$MX$391,181,FALSE) -> -76,323 | M16: =VLOOKUP($B$7,'Indicateurs Cumulés'!$D$3:$MX$391,182,FALSE) -> 1,195 | N16: =IF(ISERROR(M16/VLOOKUP($B$7,'Indicateurs Cumulés'!$D$3:$MX$391,223,FALSE)),"nc",M16/VLOOKUP($B$7,'Indicateurs Cumulés'!$D$3:$MX$391,223,FALSE)) -> 0.9 | P16: =VLOOKUP($B$7,objectifs!$D$3:$ZZ$391,153,FALSE)+VLOOKUP($B$7,objectifs!$D$3:$ZZ$391,81,FALSE) -> -120,000 | S16: =VLOOKUP($B$7,objectifs!$D$3:$ZZ$391,154,FALSE)+S17 -> 2,792 | T16: =IF(ISERROR(S16/VLOOKUP($B$7,objectifs!$D$4:$IA$373,232,FALSE)),"nc",S16/VLOOKUP($B$7,objectifs!$D$4:$IA$373,232,FALSE)) -> 1.8 | V16: =IF(ISERROR(J16/P16),0,J16/P16) -> 64% | W16: =IF(ISERROR(M16/S16),0,M16/S16) -> 43% | X16: =IF(ISERROR(N16-(T16/12*MONTH($C$9))),"nc",N16-(T16/12*MONTH($C$9))) -> -0.0
B17: Livret A | E17: =VLOOKUP($B$7,'Indicateurs mensuels'!$D$3:$KI$391,101,FALSE) -> 5,620 | F17: =VLOOKUP($B$7,'Indicateurs mensuels'!$D$3:$KI$391,102,FALSE) -> 0.70% | G17: =VLOOKUP($B$7,'Indicateurs mensuels'!$D$3:$KI$391,103,FALSE) -> 5.33 | H17: =E17*F17*G17 -> 210 | J17: =VLOOKUP($B$7,'Indicateurs Cumulés'!$D$3:$MX$391,109,FALSE) -> 53,917 | K17: =VLOOKUP($B$7,'Indicateurs Cumulés'!$D$3:$MX$391,110,FALSE) -> 0.70% | L17: =VLOOKUP($B$7,'Indicateurs Cumulés'!$D$3:$MX$391,111,FALSE) -> 5.33 | M17: =J17*K17*L17 -> 2,012 | N17: =IF(ISERROR(M17/VLOOKUP($B$7,'Indicateurs Cumulés'!$D$3:$MX$391,223,FALSE)),"nc",M17/VLOOKUP($B$7,'Indicateurs Cumulés'!$D$3:$MX$391,223,FALSE)) -> 1.5 | P17: =VLOOKUP($B$7,objectifs!$D$3:$ZZ$391,81,FALSE) -> 30,000 | Q17: =VLOOKUP($B$7,objectifs!$D$3:$ZZ$391,82,FALSE) -> 0.70% | R17: =VLOOKUP($B$7,objectifs!$D$3:$ZZ$391,83,FALSE) -> 5.37 | S17: =P17*Q17*R17 -> 1,128 | T17: =IF(ISERROR(S17/VLOOKUP($B$7,objectifs!$D$4:$IA$373,232,FALSE)),"nc",S17/VLOOKUP($B$7,objectifs!$D$4:$IA$373,232,FALSE)) -> 0.7 | V17: =IF(ISERROR(J17/P17),0,J17/P17) -> 180% | W17: =IF(ISERROR(M17/S17),0,M17/S17) -> 178% | X17: 1.1
B18: LDDS | E18: =VLOOKUP($B$7,'Indicateurs mensuels'!$D$3:$KI$391,121,FALSE) -> 3,756 | F18: =VLOOKUP($B$7,'Indicateurs mensuels'!$D$3:$KI$391,122,FALSE) -> 0.20% | G18: =VLOOKUP($B$7,'Indicateurs mensuels'!$D$3:$KI$391,123,FALSE) -> 5.37 | H18: 40 | J18: =VLOOKUP($B$7,'Indicateurs Cumulés'!$D$3:$MX$391,129,FALSE) -> 17,255 | K18: =VLOOKUP($B$7,'Indicateurs Cumulés'!$D$3:$MX$391,130,FALSE) -> 0.20% | L18: =VLOOKUP($B$7,'Indicateurs Cumulés'!$D$3:$MX$391,131,FALSE) -> 5.37 | M18: =VLOOKUP($B$7,'Indicateurs Cumulés'!$D$3:$MX$391,132,FALSE) -> 185 | N18: =IF(ISERROR(M18/VLOOKUP($B$7,'Indicateurs Cumulés'!$D$3:$MX$391,223,FALSE)),"nc",M18/VLOOKUP($B$7,'Indicateurs Cumulés'!$D$3:$MX$391,223,FALSE)) -> 0.1 | P18: =VLOOKUP($B$7,objectifs!$D$3:$ZZ$391,101,FALSE) -> 10,000 | Q18: =VLOOKUP($B$7,objectifs!$D$3:$ZZ$391,102,FALSE) -> 0.20% | R18: =VLOOKUP($B$7,objectifs!$D$3:$ZZ$391,103,FALSE) -> 5.37 | S18: =P18*Q18*R18 -> 107 | T18: =IF(ISERROR(S18/VLOOKUP($B$7,objectifs!$D$4:$IA$373,232,FALSE)),"nc",S18/VLOOKUP($B$7,objectifs!$D$4:$IA$373,232,FALSE)) -> 0.1 | V18: =IF(ISERROR(J18/P18),0,J18/P18) -> 173% | W18: =IF(ISERROR(M18/S18),0,M18/S18) -> 173% | X18: 0.1
B19: LEP | E19: =VLOOKUP($B$7,'Indicateurs mensuels'!$D$3:$KI$391,117,FALSE) -> -1,329 | F19: =VLOOKUP($B$7,'Indicateurs mensuels'!$D$3:$KI$391,118,FALSE) -> 0.20% | G19: =VLOOKUP($B$7,'Indicateurs mensuels'!$D$3:$KI$391,119,FALSE) -> 5.37 | H19: -14 | J19: =VLOOKUP($B$7,'Indicateurs Cumulés'!$D$3:$MX$391,125,FALSE) -> -79,041 | K19: =VLOOKUP($B$7,'Indicateurs Cumulés'!$D$3:$MX$391,126,FALSE) -> 0.20% | L19: =VLOOKUP($B$7,'Indicateurs Cumulés'!$D$3:$MX$391,127,FALSE) -> 5.37 | M19: =VLOOKUP($B$7,'Indicateurs Cumulés'!$D$3:$MX$391,128,FALSE) -> -849 | N19: =IF(ISERROR(M19/VLOOKUP($B$7,'Indicateurs Cumulés'!$D$3:$MX$391,223,FALSE)),"nc",M19/VLOOKUP($B$7,'Indicateurs Cumulés'!$D$3:$MX$391,223,FALSE)) -> -0.6 | P19: =VLOOKUP($B$7,objectifs!$D$3:$ZZ$391,97,FALSE) -> -40,000 | Q19: =VLOOKUP($B$7,objectifs!$D$3:$ZZ$391,98,FALSE) -> 0.20% | R19: =VLOOKUP($B$7,objectifs!$D$3:$ZZ$391,99,FALSE) -> 5.37 | S19: -430 | T19: =IF(ISERROR(S19/VLOOKUP($B$7,objectifs!$D$4:$IA$373,232,FALSE)),"nc",S19/VLOOKUP($B$7,objectifs!$D$4:$IA$373,232,FALSE)) -> -0.3 | V19: 198% | W19: 198% | X19: -0.5
B20: Livret B | E20: =VLOOKUP($B$7,'Indicateurs mensuels'!$D$3:$KI$391,105,FALSE) -> 1,292 | F20: =VLOOKUP($B$7,'Indicateurs mensuels'!$D$3:$KI$391,106,FALSE) -> 0.82% | G20: =VLOOKUP($B$7,'Indicateurs mensuels'!$D$3:$KI$391,107,FALSE) -> 5.33 | H20: 56 | J20: =VLOOKUP($B$7,'Indicateurs Cumulés'!$D$3:$MX$391,113,FALSE) -> -3,278 | K20: =VLOOKUP($B$7,'Indicateurs Cumulés'!$D$3:$MX$391,114,FALSE) -> 0.82% | L20: =VLOOKUP($B$7,'Indicateurs Cumulés'!$D$3:$MX$391,115,FALSE) -> 5.33 | M20: =VLOOKUP($B$7,'Indicateurs Cumulés'!$D$3:$MX$391,116,FALSE) -> -143 | N20: =IF(ISERROR(M20/VLOOKUP($B$7,'Indicateurs Cumulés'!$D$3:$MX$391,223,FALSE)),"nc",M20/VLOOKUP($B$7,'Indicateurs Cumulés'!$D$3:$MX$391,223,FALSE)) -> -0.1 | P20: =VLOOKUP($B$7,objectifs!$D$3:$ZZ$391,85,FALSE) -> 40,000 | Q20: =VLOOKUP($B$7,objectifs!$D$3:$ZZ$391,86,FALSE) -> 0.70% | R20: =VLOOKUP($B$7,objectifs!$D$3:$ZZ$391,87,FALSE) -> 5.37 | S20: 1,504 | T20: =IF(ISERROR(S20/VLOOKUP($B$7,objectifs!$D$4:$IA$373,232,FALSE)),"nc",S20/VLOOKUP($B$7,objectifs!$D$4:$IA$373,232,FALSE)) -> 1.0 | V20: -8% | W20: -10% | X20: -0.6
B21: Livret Jeune / Livret 10-12 | E21: =VLOOKUP($B$7,'Indicateurs mensuels'!$D$3:$KI$391,125,FALSE) -> -414 | F21: =VLOOKUP($B$7,'Indicateurs mensuels'!$D$3:$KI$391,126,FALSE) -> 0.20% | G21: =VLOOKUP($B$7,'Indicateurs mensuels'!$D$3:$KI$391,127,FALSE) -> 5.37 | H21: -4 | J21: =VLOOKUP($B$7,'Indicateurs Cumulés'!$D$3:$MX$391,133,FALSE) -> -5,577 | K21: =VLOOKUP($B$7,'Indicateurs Cumulés'!$D$3:$MX$391,134,FALSE) -> 0.20% | L21: =VLOOKUP($B$7,'Indicateurs Cumulés'!$D$3:$MX$391,135,FALSE) -> 5.37 | M21: =VLOOKUP($B$7,'Indicateurs Cumulés'!$D$3:$MX$391,136,FALSE) -> -60 | N21: =IF(ISERROR(M21/VLOOKUP($B$7,'Indicateurs Cumulés'!$D$3:$MX$391,223,FALSE)),"nc",M21/VLOOKUP($B$7,'Indicateurs Cumulés'!$D$3:$MX$391,223,FALSE)) -> -0.0 | P21: =VLOOKUP($B$7,objectifs!$D$3:$ZZ$391,105,FALSE) -> 1,000 | Q21: =VLOOKUP($B$7,objectifs!$D$3:$ZZ$391,106,FALSE) -> 0.20% | R21: =VLOOKUP($B$7,objectifs!$D$3:$ZZ$391,107,FALSE) -> 5.37 | S21: 11 | T21: =IF(ISERROR(S21/VLOOKUP($B$7,objectifs!$D$4:$IA$373,232,FALSE)),"nc",S21/VLOOKUP($B$7,objectifs!$D$4:$IA$373,232,FALSE)) -> 0.0 | V21: -558% | W21: -558% | X21: -0.0
B22: Livret Grand prix | E22: =VLOOKUP($B$7,'Indicateurs mensuels'!$D$3:$KI$391,113,FALSE) -> -37,147 | F22: =VLOOKUP($B$7,'Indicateurs mensuels'!$D$3:$KI$391,114,FALSE) -> 0.40% | G22: =VLOOKUP($B$7,'Indicateurs mensuels'!$D$3:$KI$391,115,FALSE) -> 1.82 | H22: -270 | J22: =VLOOKUP($B$7,'Indicateurs Cumulés'!$D$3:$MX$391,121,FALSE) -> 86,639 | K22: =VLOOKUP($B$7,'Indicateurs Cumulés'!$D$3:$MX$391,122,FALSE) -> 0.40% | L22: =VLOOKUP($B$7,'Indicateurs Cumulés'!$D$3:$MX$391,123,FALSE) -> 1.82 | M22: =VLOOKUP($B$7,'Indicateurs Cumulés'!$D$3:$MX$391,124,FALSE) -> 630 | N22: =IF(ISERROR(M22/VLOOKUP($B$7,'Indicateurs Cumulés'!$D$3:$MX$391,223,FALSE)),"nc",M22/VLOOKUP($B$7,'Indicateurs Cumulés'!$D$3:$MX$391,223,FALSE)) -> 0.5 | P22: =VLOOKUP($B$7,objectifs!$D$3:$ZZ$391,93,FALSE) -> 0 | Q22: =VLOOKUP($B$7,objectifs!$D$3:$ZZ$391,94,FALSE) -> 0.70% | R22: =VLOOKUP($B$7,objectifs!$D$3:$ZZ$391,95,FALSE) -> 5.37 | S22: 0 | T22: =IF(ISERROR(S22/VLOOKUP($B$7,objectifs!$D$4:$IA$373,232,FALSE)),"nc",S22/VLOOKUP($B$7,objectifs!$D$4:$IA$373,232,FALSE)) -> 0.0
B23: Livret Grand Format | E23: =VLOOKUP($B$7,'Indicateurs mensuels'!$D$3:$KI$391,109,FALSE) -> -1,219 | F23: =VLOOKUP($B$7,'Indicateurs mensuels'!$D$3:$KI$391,110,FALSE) -> 0.91% | G23: =VLOOKUP($B$7,'Indicateurs mensuels'!$D$3:$KI$391,111,FALSE) -> 5.33 | H23: -59 | J23: =VLOOKUP($B$7,'Indicateurs Cumulés'!$D$3:$MX$391,117,FALSE) -> -8,981 | K23: =VLOOKUP($B$7,'Indicateurs Cumulés'!$D$3:$MX$391,118,FALSE) -> 0.91% | L23: =VLOOKUP($B$7,'Indicateurs Cumulés'!$D$3:$MX$391,119,FALSE) -> 5.33 | M23: =VLOOKUP($B$7,'Indicateurs Cumulés'!$D$3:$MX$391,120,FALSE) -> -438 | N23: =IF(ISERROR(M23/VLOOKUP($B$7,'Indicateurs Cumulés'!$D$3:$MX$391,223,FALSE)),"nc",M23/VLOOKUP($B$7,'Indicateurs Cumulés'!$D$3:$MX$391,223,FALSE)) -> -0.3 | P23: 0 | Q23: 0.00% | R23: 0.00 | S23: 0 | T23: =IF(ISERROR(S23/VLOOKUP($B$7,objectifs!$D$4:$IA$373,232,FALSE)),"nc",S23/VLOOKUP($B$7,objectifs!$D$4:$IA$373,232,FALSE)) -> 0.0
B24: Compte Excédent Pro | E24: =VLOOKUP($B$7,'Indicateurs mensuels'!$D$3:$KI$391,222,FALSE) -> 5,707 | F24: =H24/E24/G24 -> 0.60% | G24: =VLOOKUP($B$7,'Indicateurs mensuels'!$D$3:$KI$391,111,FALSE) -> 5.33 | H24: =VLOOKUP($B$7,'Indicateurs mensuels'!$D$3:$KI$391,223,FALSE) -> 184 | J24: =VLOOKUP($B$7,'Indicateurs Cumulés'!$D$3:$MX$391,273,FALSE) -> 30,308 | K24: =M24/J24/L24 -> 0.60% | L24: ='Indicateurs Cumulés'!$JW$3 -> 5.37 | M24: =VLOOKUP($B$7,'Indicateurs Cumulés'!$D$3:$MX$391,280,FALSE) -> 977 | N24: =IF(ISERROR(M24/VLOOKUP($B$7,'Indicateurs Cumulés'!$D$3:$MX$391,223,FALSE)),"nc",M24/VLOOKUP($B$7,'Indicateurs Cumulés'!$D$3:$MX$391,223,FALSE)) -> 0.7 | P24: =VLOOKUP($B$7,objectifs!$D$3:$ZZ$391,89,FALSE) -> 19,000 | Q24: =VLOOKUP($B$7,objectifs!$D$3:$ZZ$391,90,FALSE) -> 0.60% | R24: =VLOOKUP($B$7,objectifs!$D$3:$ZZ$391,91,FALSE) -> 5.37 | S24: 612 | T24: =IF(ISERROR(S24/VLOOKUP($B$7,objectifs!$D$4:$IA$373,232,FALSE)),"nc",S24/VLOOKUP($B$7,objectifs!$D$4:$IA$373,232,FALSE)) -> 0.4 | V24: 160% | W24: 160% | X24: 0.5
B25: PEL | E25: =VLOOKUP($B$7,'Indicateurs mensuels'!$D$3:$KI$391,141,FALSE) -> -7,184 | F25: =VLOOKUP($B$7,'Indicateurs mensuels'!$D$3:$KI$391,142,FALSE) -> 0.00% | G25: =VLOOKUP($B$7,'Indicateurs mensuels'!$D$3:$KI$391,143,FALSE) -> 5.10 | H25: 0 | J25: =VLOOKUP($B$7,'Indicateurs Cumulés'!$D$3:$MX$391,149,FALSE) -> -21,243 | K25: =VLOOKUP($B$7,'Indicateurs Cumulés'!$D$3:$MX$391,150,FALSE) -> 0.00% | L25: =VLOOKUP($B$7,'Indicateurs Cumulés'!$D$3:$MX$391,151,FALSE) -> 8.44 | M25: =VLOOKUP($B$7,'Indicateurs Cumulés'!$D$3:$MX$391,152,FALSE) -> 0 | N25: =IF(ISERROR(M25/VLOOKUP($B$7,'Indicateurs Cumulés'!$D$3:$MX$391,223,FALSE)),"nc",M25/VLOOKUP($B$7,'Indicateurs Cumulés'!$D$3:$MX$391,223,FALSE)) -> 0.0 | P25: =VLOOKUP($B$7,objectifs!$D$3:$ZZ$391,121,FALSE) -> -20,000 | Q25: =VLOOKUP($B$7,objectifs!$D$3:$ZZ$391,122,FALSE) -> 0.00% | R25: =VLOOKUP($B$7,objectifs!$D$3:$ZZ$391,123,FALSE) -> 8.50 | S25: 0 | T25: =IF(ISERROR(S25/VLOOKUP($B$7,objectifs!$D$4:$IA$373,232,FALSE)),"nc",S25/VLOOKUP($B$7,objectifs!$D$4:$IA$373,232,FALSE)) -> 0.0 | V25: 106% | W25: 0% | X25: 0
B26: CEL | E26: =VLOOKUP($B$7,'Indicateurs mensuels'!$D$3:$KI$391,129,FALSE) -> -58 | F26: =VLOOKUP($B$7,'Indicateurs mensuels'!$D$3:$KI$391,130,FALSE) -> 0.44% | G26: =VLOOKUP($B$7,'Indicateurs mensuels'!$D$3:$KI$391,131,FALSE) -> 5.33 | H26: -1 | J26: =VLOOKUP($B$7,'Indicateurs Cumulés'!$D$3:$MX$391,137,FALSE) -> -2,144 | K26: =VLOOKUP($B$7,'Indicateurs Cumulés'!$D$3:$MX$391,138,FALSE) -> 0.44% | L26: =VLOOKUP($B$7,'Indicateurs Cumulés'!$D$3:$MX$391,139,FALSE) -> 5.33 | M26: =VLOOKUP($B$7,'Indicateurs Cumulés'!$D$3:$MX$391,140,FALSE) -> -50 | N26: =IF(ISERROR(M26/VLOOKUP($B$7,'Indicateurs Cumulés'!$D$3:$MX$391,223,FALSE)),"nc",M26/VLOOKUP($B$7,'Indicateurs Cumulés'!$D$3:$MX$391,223,FALSE)) -> -0.0 | P26: =VLOOKUP($B$7,objectifs!$D$3:$ZZ$391,109,FALSE) -> 0 | Q26: =VLOOKUP($B$7,objectifs!$D$3:$ZZ$391,110,FALSE) -> 0.30% | R26: =VLOOKUP($B$7,objectifs!$D$3:$ZZ$391,111,FALSE) -> 5.37 | S26: 0 | T26: =IF(ISERROR(S26/VLOOKUP($B$7,objectifs!$D$4:$IA$373,232,FALSE)),"nc",S26/VLOOKUP($B$7,objectifs!$D$4:$IA$373,232,FALSE)) -> 0.0
B27: PEP | E27: =VLOOKUP($B$7,'Indicateurs mensuels'!$D$3:$KI$391,145,FALSE) -> -81 | F27: =VLOOKUP($B$7,'Indicateurs mensuels'!$D$3:$KI$391,146,FALSE) -> -0.18% | G27: =VLOOKUP($B$7,'Indicateurs mensuels'!$D$3:$KI$391,147,FALSE) -> 0.78 | H27: 0 | J27: =VLOOKUP($B$7,'Indicateurs Cumulés'!$D$3:$MX$391,153,FALSE) -> -613 | K27: =VLOOKUP($B$7,'Indicateurs Cumulés'!$D$3:$MX$391,154,FALSE) -> -0.18% | L27: =VLOOKUP($B$7,'Indicateurs Cumulés'!$D$3:$MX$391,155,FALSE) -> 0.78 | M27: =VLOOKUP($B$7,'Indicateurs Cumulés'!$D$3:$MX$391,156,FALSE) -> 1 | N27: =IF(ISERROR(M27/VLOOKUP($B$7,'Indicateurs Cumulés'!$D$3:$MX$391,223,FALSE)),"nc",M27/VLOOKUP($B$7,'Indicateurs Cumulés'!$D$3:$MX$391,223,FALSE)) -> 0.0 | P27: 0 | Q27: 0.00% | R27: 0.00 | S27: 0 | T27: =IF(ISERROR(S27/VLOOKUP($B$7,objectifs!$D$4:$IA$373,232,FALSE)),"nc",S27/VLOOKUP($B$7,objectifs!$D$4:$IA$373,232,FALSE)) -> 0.0
B28: SLR | E28: =VLOOKUP($B$7,'Indicateurs mensuels'!$D$3:$KI$391,133,FALSE) -> -437 | F28: =VLOOKUP($B$7,'Indicateurs mensuels'!$D$3:$KI$391,134,FALSE) -> 0.10% | G28: =VLOOKUP($B$7,'Indicateurs mensuels'!$D$3:$KI$391,135,FALSE) -> 0.00 | H28: 0 | J28: =VLOOKUP($B$7,'Indicateurs Cumulés'!$D$3:$MX$391,141,FALSE) -> -2,107 | K28: =VLOOKUP($B$7,'Indicateurs Cumulés'!$D$3:$MX$391,142,FALSE) -> 0.10% | L28: =VLOOKUP($B$7,'Indicateurs Cumulés'!$D$3:$MX$391,143,FALSE) -> 7.27 | M28: =VLOOKUP($B$7,'Indicateurs Cumulés'!$D$3:$MX$391,144,FALSE) -> -15 | N28: =IF(ISERROR(M28/VLOOKUP($B$7,'Indicateurs Cumulés'!$D$3:$MX$391,223,FALSE)),"nc",M28/VLOOKUP($B$7,'Indicateurs Cumulés'!$D$3:$MX$391,223,FALSE)) -> -0.0 | P28: =VLOOKUP($B$7,objectifs!$D$3:$ZZ$391,117,FALSE) -> 0 | Q28: =VLOOKUP($B$7,objectifs!$D$3:$ZZ$391,118,FALSE) -> 0.10% | R28: =VLOOKUP($B$7,objectifs!$D$3:$ZZ$391,119,FALSE) -> 7.00 | S28: 0 | T28: =IF(ISERROR(S28/VLOOKUP($B$7,objectifs!$D$4:$IA$373,232,FALSE)),"nc",S28/VLOOKUP($B$7,objectifs!$D$4:$IA$373,232,FALSE)) -> 0.0
B29: DAT (Bons, CDN, CAT, TCN, …) | E29: =VLOOKUP($B$7,'Indicateurs mensuels'!$D$3:$KI$391,137,FALSE) -> -39 | F29: =VLOOKUP($B$7,'Indicateurs mensuels'!$D$3:$KI$391,138,FALSE) -> 0.20% | G29: =VLOOKUP($B$7,'Indicateurs mensuels'!$D$3:$KI$391,139,FALSE) -> 9.00 | H29: -1 | J29: =VLOOKUP($B$7,'Indicateurs Cumulés'!$D$3:$MX$391,145,FALSE) -> -13,503 | K29: =VLOOKUP($B$7,'Indicateurs Cumulés'!$D$3:$MX$391,146,FALSE) -> 0.20% | L29: =VLOOKUP($B$7,'Indicateurs Cumulés'!$D$3:$MX$391,147,FALSE) -> 9.00 | M29: =VLOOKUP($B$7,'Indicateurs Cumulés'!$D$3:$MX$391,148,FALSE) -> -243 | N29: =IF(ISERROR(M29/VLOOKUP($B$7,'Indicateurs Cumulés'!$D$3:$MX$391,223,FALSE)),"nc",M29/VLOOKUP($B$7,'Indicateurs Cumulés'!$D$3:$MX$391,223,FALSE)) -> -0.2 | P29: =VLOOKUP($B$7,objectifs!$D$3:$ZZ$391,113,FALSE) -> 20,000 | Q29: =VLOOKUP($B$7,objectifs!$D$3:$ZZ$391,114,FALSE) -> 0.20% | R29: =VLOOKUP($B$7,objectifs!$D$3:$ZZ$391,115,FALSE) -> 9.00 | S29: 360 | T29: =IF(ISERROR(S29/VLOOKUP($B$7,objectifs!$D$4:$IA$373,232,FALSE)),"nc",S29/VLOOKUP($B$7,objectifs!$D$4:$IA$373,232,FALSE)) -> 0.2 | V29: -68% | W29: -68% | X29: -0.3
B30: Emprunt CTO | E30: =VLOOKUP($B$7,'Indicateurs mensuels'!$D$3:$KI$391,165,FALSE) -> -35,142 | F30: =VLOOKUP($B$7,'Indicateurs mensuels'!$D$3:$KI$391,166,FALSE) -> 0.20% | G30: =VLOOKUP($B$7,'Indicateurs mensuels'!$D$3:$KI$391,167,FALSE) -> 8.00 | H30: -562 | J30: =VLOOKUP($B$7,'Indicateurs Cumulés'!$D$3:$MX$391,173,FALSE) -> -164,284 | K30: =VLOOKUP($B$7,'Indicateurs Cumulés'!$D$3:$MX$391,174,FALSE) -> 0.20% | L30: =VLOOKUP($B$7,'Indicateurs Cumulés'!$D$3:$MX$391,175,FALSE) -> 8.00 | M30: =VLOOKUP($B$7,'Indicateurs Cumulés'!$D$3:$MX$391,176,FALSE) -> -2629 | N30: =IF(ISERROR(M30/VLOOKUP($B$7,'Indicateurs Cumulés'!$D$3:$MX$391,223,FALSE)),"nc",M30/VLOOKUP($B$7,'Indicateurs Cumulés'!$D$3:$MX$391,223,FALSE)) -> -1.9 | P30: =VLOOKUP($B$7,objectifs!$D$3:$ZZ$391,145,FALSE) -> -250,000 | Q30: =VLOOKUP($B$7,objectifs!$D$3:$ZZ$391,146,FALSE) -> 0.20% | R30: =VLOOKUP($B$7,objectifs!$D$3:$ZZ$391,147,FALSE) -> 8.00 | S30: -4,000 | T30: =IF(ISERROR(S30/VLOOKUP($B$7,objectifs!$D$4:$IA$373,232,FALSE)),"nc",S30/VLOOKUP($B$7,objectifs!$D$4:$IA$373,232,FALSE)) -> -2.6 | V30: 66% | W30: 66% | X30: -0.6
B31: Parts sociales | E31: =VLOOKUP($B$7,'Indicateurs mensuels'!$D$3:$KI$391,169,FALSE) -> -19,264 | F31: =VLOOKUP($B$7,'Indicateurs mensuels'!$D$3:$KI$391,170,FALSE) -> 1.00% | G31: =VLOOKUP($B$7,'Indicateurs mensuels'!$D$3:$KI$391,171,FALSE) -> 5.00 | H31: -963 | J31: =VLOOKUP($B$7,'Indicateurs Cumulés'!$D$3:$MX$391,177,FALSE) -> 36,330 | K31: =VLOOKUP($B$7,'Indicateurs Cumulés'!$D$3:$MX$391,178,FALSE) -> 1.00% | L31: =VLOOKUP($B$7,'Indicateurs Cumulés'!$D$3:$MX$391,179,FALSE) -> 5.00 | M31: =VLOOKUP($B$7,'Indicateurs Cumulés'!$D$3:$MX$391,180,FALSE) -> 1816 | N31: =IF(ISERROR(M31/VLOOKUP($B$7,'Indicateurs Cumulés'!$D$3:$MX$391,223,FALSE)),"nc",M31/VLOOKUP($B$7,'Indicateurs Cumulés'!$D$3:$MX$391,223,FALSE)) -> 1.3 | P31: =VLOOKUP($B$7,objectifs!$D$3:$ZZ$391,149,FALSE) -> 70,000 | Q31: =VLOOKUP($B$7,objectifs!$D$3:$ZZ$391,150,FALSE) -> 1.00% | R31: =VLOOKUP($B$7,objectifs!$D$3:$ZZ$391,151,FALSE) -> 5.00 | S31: 3,500 | T31: =IF(ISERROR(S31/VLOOKUP($B$7,objectifs!$D$4:$IA$373,232,FALSE)),"nc",S31/VLOOKUP($B$7,objectifs!$D$4:$IA$373,232,FALSE)) -> 2.3 | V31: 52% | W31: 52% | X31: 0.2
B32: Epargne Financière (Ass. vie - OPCVM - Autres val. mob.) | E32: =VLOOKUP($B$7,'Indicateurs mensuels'!$D$3:$KI$391,175,FALSE) -> 35,748 | H32: =VLOOKUP($B$7,'Indicateurs mensuels'!$D$3:$KI$391,176,FALSE) -> 2,232 | J32: =VLOOKUP($B$7,'Indicateurs Cumulés'!$D$3:$MX$391,183,FALSE) -> 121,815 | M32: =VLOOKUP($B$7,'Indicateurs Cumulés'!$D$3:$MX$391,184,FALSE) -> 8,720 | N32: =IF(ISERROR(M32/VLOOKUP($B$7,'Indicateurs Cumulés'!$D$3:$MX$391,223,FALSE)),"nc",M32/VLOOKUP($B$7,'Indicateurs Cumulés'!$D$3:$MX$391,223,FALSE)) -> 6.4 | P32: =VLOOKUP($B$7,objectifs!$D$3:$ZZ$391,155,FALSE) -> 170,000 | S32: =VLOOKUP($B$7,objectifs!$D$3:$ZZ$391,156,FALSE) -> 14,983 | T32: =IF(ISERROR(S32/VLOOKUP($B$7,objectifs!$D$4:$IA$373,232,FALSE)),"nc",S32/VLOOKUP($B$7,objectifs!$D$4:$IA$373,232,FALSE)) -> 9.9 | V32: 72% | W32: 58% | X32: 1.4
B33: Ass. Vie sur flux (versements) | E33: =VLOOKUP($B$7,'Indicateurs mensuels'!$D$3:$KI$391,153,FALSE)+VLOOKUP($B$7,'Indicateurs mensuels'!$D$3:$ZZ$391,193,FALSE) -> 86,011 | F33: =H33/E33 -> 0.33% | G33: =VLOOKUP($B$7,'Indicateurs mensuels'!$D$3:$KI$391,155,FALSE) -> 1.00 | H33: =(VLOOKUP($B$7,'Indicateurs mensuels'!$D$3:$KI$391,156,FALSE)+VLOOKUP($B$7,'Indicateurs mensuels'!$D$3:$ZZ$391,196,FALSE)) -> 284 | J33: =VLOOKUP($B$7,'Indicateurs Cumulés'!$D$3:$MX$391,161,FALSE)+VLOOKUP($B$7,'Indicateurs Cumulés'!$D$3:$MX$391,201,FALSE) -> 476,003 | K33: =M33/J33 -> 0.38% | L33: =VLOOKUP($B$7,'Indicateurs Cumulés'!$D$3:$MX$391,163,FALSE) -> 1.00 | M33: =(VLOOKUP($B$7,'Indicateurs Cumulés'!$D$3:$MX$391,164,FALSE)+VLOOKUP($B$7,'Indicateurs Cumulés'!$D$3:$MX$391,204,FALSE)) -> 1,786 | N33: =IF(ISERROR(M33/VLOOKUP($B$7,'Indicateurs Cumulés'!$D$3:$MX$391,223,FALSE)),"nc",M33/VLOOKUP($B$7,'Indicateurs Cumulés'!$D$3:$MX$391,223,FALSE)) -> 1.3 | P33: =VLOOKUP($B$7,objectifs!$D$3:$ZZ$391,133,FALSE) -> 1,000,000 | Q33: =VLOOKUP($B$7,objectifs!$D$3:$ZZ$391,134,FALSE) -> 0.40% | R33: =VLOOKUP($B$7,objectifs!$D$3:$ZZ$391,135,FALSE) -> 1.00 | S33: =P33*Q33*R33 -> 4,000 | T33: =IF(ISERROR(S33/VLOOKUP($B$7,objectifs!$D$4:$IA$373,232,FALSE)),"nc",S33/VLOOKUP($B$7,objectifs!$D$4:$IA$373,232,FALSE)) -> 2.6 | V33: 48% | W33: 45% | X33: -0.0
B34: Ass. Vie sur encours (excédents) | E34: =VLOOKUP($B$7,'Indicateurs mensuels'!$D$3:$KI$391,149,FALSE)+VLOOKUP($B$7,'Indicateurs mensuels'!$D$3:$ZZ$391,189,FALSE) -> 30,802 | F34: =VLOOKUP($B$7,'Indicateurs mensuels'!$D$3:$KI$391,150,FALSE) -> 0.45% | G34: =VLOOKUP($B$7,'Indicateurs mensuels'!$D$3:$KI$391,151,FALSE) -> 8.00 | H34: =E34*F34*G34 -> 1,109 | J34: =VLOOKUP($B$7,'Indicateurs Cumulés'!$D$3:$MX$391,157,FALSE)+VLOOKUP($B$7,'Indicateurs Cumulés'!$D$3:$MX$391,197,FALSE) -> 131,603 | K34: =VLOOKUP($B$7,'Indicateurs Cumulés'!$D$3:$MX$391,158,FALSE) -> 0.45% | L34: =VLOOKUP($B$7,'Indicateurs Cumulés'!$D$3:$MX$391,159,FALSE) -> 8.00 | M34: =J34*K34*L34 -> 4,738 | N34: =IF(ISERROR(M34/VLOOKUP($B$7,'Indicateurs Cumulés'!$D$3:$MX$391,223,FALSE)),"nc",M34/VLOOKUP($B$7,'Indicateurs Cumulés'!$D$3:$MX$391,223,FALSE)) -> 3.5 | P34: =VLOOKUP($B$7,objectifs!$D$3:$ZZ$391,129,FALSE) -> 165,000 | Q34: =VLOOKUP($B$7,objectifs!$D$3:$ZZ$391,130,FALSE) -> 0.45% | R34: =VLOOKUP($B$7,objectifs!$D$3:$ZZ$391,131,FALSE) -> 8.00 | S34: =P34*Q34*R34 -> 5,940 | T34: =IF(ISERROR(S34/VLOOKUP($B$7,objectifs!$D$4:$IA$373,232,FALSE)),"nc",S34/VLOOKUP($B$7,objectifs!$D$4:$IA$373,232,FALSE)) -> 3.9 | V34: 80% | W34: 80% | X34: 1.5
B35: Arbitrage (fonds € vers UC) | E35: =VLOOKUP($B$7,'Indicateurs mensuels'!$D$3:$KI$391,64,FALSE) -> 1,272 | F35: =K35 -> 0.25% | G35: =L35 -> 8.00 | H35: =E35*F35*G35 -> 25 | J35: =VLOOKUP($B$7,'Indicateurs Cumulés'!$D$3:$MX$391,64,FALSE) -> 23,501 | K35: =VLOOKUP($B$7,objectifs!$D$3:$ZZ$391,126,FALSE) -> 0.25% | L35: =VLOOKUP($B$7,objectifs!$D$3:$ZZ$391,127,FALSE) -> 8.00 | M35: =J35*K35*L35 -> 470 | N35: =IF(ISERROR(M35/VLOOKUP($B$7,'Indicateurs Cumulés'!$D$3:$MX$391,223,FALSE)),"nc",M35/VLOOKUP($B$7,'Indicateurs Cumulés'!$D$3:$MX$391,223,FALSE)) -> 0.3 | P35: =VLOOKUP($B$7,objectifs!$D$3:$ZZ$391,125,FALSE) -> 135,000 | Q35: =VLOOKUP($B$7,objectifs!$D$3:$ZZ$391,126,FALSE) -> 0.25% | R35: =VLOOKUP($B$7,objectifs!$D$3:$ZZ$391,127,FALSE) -> 8.00 | S35: =P35*Q35*R35 -> 2,700 | T35: =IF(ISERROR(S35/VLOOKUP($B$7,objectifs!$D$4:$IA$373,232,FALSE)),"nc",S35/VLOOKUP($B$7,objectifs!$D$4:$IA$373,232,FALSE)) -> 1.8 | V35: 17% | W35: 17% | X35: -0.5
B36: OPCVM sur flux (versements) | E36: =VLOOKUP($B$7,'Indicateurs mensuels'!$D$3:$KI$391,161,FALSE)+VLOOKUP($B$7,'Indicateurs mensuels'!$D$3:$KI$391,201,FALSE) -> 1,768 | F36: =VLOOKUP($B$7,'Indicateurs mensuels'!$D$3:$KI$391,162,FALSE) -> 0.40% | G36: =VLOOKUP($B$7,'Indicateurs mensuels'!$D$3:$KI$391,163,FALSE) -> 1.00 | H36: =E36*F36*G36 -> 7 | J36: =VLOOKUP($B$7,'Indicateurs Cumulés'!$D$3:$MX$391,169,FALSE)+VLOOKUP($B$7,'Indicateurs Cumulés'!$D$3:$MX$391,209,FALSE) -> 8,842 | K36: =VLOOKUP($B$7,'Indicateurs Cumulés'!$D$3:$MX$391,170,FALSE) -> 0.40% | L36: =VLOOKUP($B$7,'Indicateurs Cumulés'!$D$3:$MX$391,171,FALSE) -> 1.00 | M36: =VLOOKUP($B$7,'Indicateurs Cumulés'!$D$3:$MX$391,172,FALSE)+VLOOKUP($B$7,'Indicateurs Cumulés'!$D$3:$MX$391,212,FALSE) -> 35 | N36: =IF(ISERROR(M36/VLOOKUP($B$7,'Indicateurs Cumulés'!$D$3:$MX$391,223,FALSE)),"nc",M36/VLOOKUP($B$7,'Indicateurs Cumulés'!$D$3:$MX$391,223,FALSE)) -> 0.0 | P36: =VLOOKUP($B$7,objectifs!$D$3:$ZZ$391,141,FALSE) -> 20,000 | Q36: =VLOOKUP($B$7,objectifs!$D$3:$ZZ$391,142,FALSE) -> 0.40% | R36: =VLOOKUP($B$7,objectifs!$D$3:$ZZ$391,143,FALSE) -> 1.00 | S36: =P36*Q36*R36 -> 80 | T36: =IF(ISERROR(S36/VLOOKUP($B$7,objectifs!$D$4:$IA$373,232,FALSE)),"nc",S36/VLOOKUP($B$7,objectifs!$D$4:$IA$373,232,FALSE)) -> 0.1 | V36: 44% | W36: 44% | X36: -0.0
B37: OPCVM sur encours (excédents) | E37: =VLOOKUP($B$7,'Indicateurs mensuels'!$D$3:$KI$391,157,FALSE)+VLOOKUP($B$7,'Indicateurs mensuels'!$D$3:$KI$391,197,FALSE) -> -4,939 | F37: =H37/E37/G37 -> 0.65% | G37: =VLOOKUP($B$7,'Indicateurs mensuels'!$D$3:$KI$391,159,FALSE) -> 5.00 | H37: =VLOOKUP($B$7,'Indicateurs mensuels'!$D$3:$KI$391,160,FALSE)+VLOOKUP($B$7,'Indicateurs mensuels'!$D$3:$KI$391,200,FALSE) -> -161 | J37: =VLOOKUP($B$7,'Indicateurs Cumulés'!$D$3:$MX$391,165,FALSE)+VLOOKUP($B$7,'Indicateurs Cumulés'!$D$3:$MX$391,205,FALSE) -> -27,349 | K37: =M37/J37/L37 -> 0.65% | L37: =VLOOKUP($B$7,'Indicateurs Cumulés'!$D$3:$MX$391,167,FALSE) -> 5.00 | M37: =VLOOKUP($B$7,'Indicateurs Cumulés'!$D$3:$MX$391,168,FALSE)+VLOOKUP($B$7,'Indicateurs Cumulés'!$D$3:$MX$391,208,FALSE) -> -889 | N37: =IF(ISERROR(M37/VLOOKUP($B$7,'Indicateurs Cumulés'!$D$3:$MX$391,223,FALSE)),"nc",M37/VLOOKUP($B$7,'Indicateurs Cumulés'!$D$3:$MX$391,223,FALSE)) -> -0.6 | P37: =VLOOKUP($B$7,objectifs!$D$3:$ZZ$391,137,FALSE) -> 5,000 | Q37: =VLOOKUP($B$7,objectifs!$D$3:$ZZ$391,138,FALSE) -> 0.65% | R37: =VLOOKUP($B$7,objectifs!$D$3:$ZZ$391,139,FALSE) -> 5.00 | S37: 163 | T37: =IF(ISERROR(S37/VLOOKUP($B$7,objectifs!$D$4:$IA$373,232,FALSE)),"nc",S37/VLOOKUP($B$7,objectifs!$D$4:$IA$373,232,FALSE)) -> 0.1 | V37: -547% | W37: -547% | X37: -0.7
B38: FCP structurés (versements) | E38: =VLOOKUP($B$7,'Indicateurs mensuels'!$D$3:$ZZ$391,66,FALSE) -> 16,870 | F38: =K38 -> 2.80% | G38: =L38 -> 1.00 | H38: =E38*F38*G38 -> 472 | J38: =VLOOKUP($B$7,'Indicateurs Cumulés'!$D$3:$MX$391,66,FALSE) -> 60,771 | K38: =VLOOKUP($B$7,objectifs!$D$3:$ZZ$391,68,FALSE) -> 2.80% | L38: =VLOOKUP($B$7,'Indicateurs Cumulés'!$D$3:$MX$391,163,FALSE) -> 1.00 | M38: =J38*K38*L38 -> 1,702 | N38: =IF(ISERROR(M38/VLOOKUP($B$7,'Indicateurs Cumulés'!$D$3:$MX$391,223,FALSE)),"nc",M38/VLOOKUP($B$7,'Indicateurs Cumulés'!$D$3:$MX$391,223,FALSE)) -> 1.2 | P38: =VLOOKUP($B$7,objectifs!$D$3:$ZZ$391,67,FALSE) -> 75,000 | Q38: =VLOOKUP($B$7,objectifs!$D$3:$ZZ$391,68,FALSE) -> 2.80% | R38: =VLOOKUP($B$7,objectifs!$D$3:$ZZ$391,69,FALSE) -> 1.00 | S38: =P38*Q38*R38 -> 2,100 | T38: =IF(ISERROR(S38/VLOOKUP($B$7,objectifs!$D$4:$IA$373,232,FALSE)),"nc",S38/VLOOKUP($B$7,objectifs!$D$4:$IA$373,232,FALSE)) -> 1.4 | V38: 81% | W38: 81% | X38: 0.6
B39: Autres Valeurs mobilières (excédents) | E39: =VLOOKUP($B$7,'Indicateurs mensuels'!$D$3:$ZZ$391,205,FALSE) -> 9,885 | F39: =VLOOKUP($B$7,'Indicateurs mensuels'!$D$3:$KI$391,206,FALSE) -> 1.00% | G39: =VLOOKUP($B$7,'Indicateurs mensuels'!$D$3:$KI$391,207,FALSE) -> 5.00 | H39: =E39*F39*G39 -> 494 | J39: =VLOOKUP($B$7,'Indicateurs Cumulés'!$D$3:$MX$391,213,FALSE) -> 17,560 | K39: =VLOOKUP($B$7,'Indicateurs Cumulés'!$D$3:$MX$391,214,FALSE) -> 1.00% | L39: =VLOOKUP($B$7,'Indicateurs Cumulés'!$D$3:$MX$391,215,FALSE) -> 5.00 | M39: =J39*K39*L39 -> 878 | N39: =IF(ISERROR(M39/VLOOKUP($B$7,'Indicateurs Cumulés'!$D$3:$MX$391,223,FALSE)),"nc",M39/VLOOKUP($B$7,'Indicateurs Cumulés'!$D$3:$MX$391,223,FALSE)) -> 0.6 | P39: =VLOOKUP($B$7,objectifs!$D$3:$ZZ$391,165,FALSE) -> 0 | Q39: =VLOOKUP($B$7,objectifs!$D$3:$ZZ$391,166,FALSE) -> 1.00% | R39: =VLOOKUP($B$7,objectifs!$D$3:$ZZ$391,167,FALSE) -> 5.00 | S39: =P39*Q39*R39 -> 0 | T39: =IF(ISERROR(S39/VLOOKUP($B$7,objectifs!$D$4:$IA$373,232,FALSE)),"nc",S39/VLOOKUP($B$7,objectifs!$D$4:$IA$373,232,FALSE)) -> 0.0
B41: CREDIT à la CONSOMMATION - Eng. Nets (yc accessoires) | E41: =E42+E43 -> 69,638 | F41: =IF(ISERROR(H41/(E41*G41)),0,H41/(E41*G41)) -> 4.02% | G41: =SUMPRODUCT(G42:G43,E42:E43)/(E42+E43) -> 2.46 | H41: =H42+H43+H44+H45 -> 6,897 | J41: =J42+J43 -> 356,234 | K41: =IF(ISERROR(M41/(J41*L41)),0,M41/(J41*L41)) -> 4.22% | L41: =SUMPRODUCT(L42:L43,J42:J43)/(J42+J43) -> 2.40 | M41: =M42+M43+M44+M45 -> 36,187 | N41: =IF(ISERROR(M41/VLOOKUP($B$7,'Indicateurs Cumulés'!$D$3:$MX$391,223,FALSE)),"nc",M41/VLOOKUP($B$7,'Indicateurs Cumulés'!$D$3:$MX$391,223,FALSE)) -> 26.5 | P41: =P42+P43 -> 710,000 | Q41: =IF(ISERROR(S41/(P41*R41)),0,S41/(P41*R41)) -> 4.32% | R41: =SUMPRODUCT(R42:R43,P42:P43)/(P42+P43) -> 2.42 | S41: =S42+S43+S44+S45 -> 74,348 | T41: =IF(ISERROR(S41/VLOOKUP($B$7,objectifs!$D$4:$IA$373,232,FALSE)),"nc",S41/VLOOKUP($B$7,objectifs!$D$4:$IA$373,232,FALSE)) -> 48.9 | V41: =IF(ISERROR(J41/P41),0,J41/P41) -> 50% | W41: =IF(ISERROR(M41/S41),0,M41/S41) -> 49% | X41: =IF(ISERROR(N41-(T41/12*MONTH($C$9))),"nc",N41-(T41/12*MONTH($C$9))) -> 2.0
B42: Crédit à la Consommation (marge hors accessoires) | E42: =VLOOKUP($B$7,'Indicateurs mensuels'!$D$3:$KI$391,7,FALSE) -> 65,490 | F42: =VLOOKUP($B$7,'Indicateurs mensuels'!$D$3:$KI$391,8,FALSE) -> 3.05% | G42: =VLOOKUP($B$7,'Indicateurs mensuels'!$D$3:$KI$391,9,FALSE) -> 2.52 | H42: =E42*F42*G42 -> 5,036 | J42: =VLOOKUP($B$7,'Indicateurs Cumulés'!$D$3:$MX$391,7,FALSE) -> 330,876 | K42: =VLOOKUP($B$7,'Indicateurs Cumulés'!$D$3:$MX$391,8,FALSE) -> 3.22% | L42: =VLOOKUP($B$7,'Indicateurs Cumulés'!$D$3:$MX$391,9,FALSE) -> 2.47 | M42: =J42*K42*L42 -> 26,280 | N42: =IF(ISERROR(M42/VLOOKUP($B$7,'Indicateurs Cumulés'!$D$3:$MX$391,223,FALSE)),"nc",M42/VLOOKUP($B$7,'Indicateurs Cumulés'!$D$3:$MX$391,223,FALSE)) -> 19.2 | P42: =VLOOKUP($B$7,objectifs!$D$3:$ZZ$391,7,FALSE) -> 650,000 | Q42: =VLOOKUP($B$7,objectifs!$D$3:$ZZ$391,8,FALSE) -> 3.05% | R42: =VLOOKUP($B$7,objectifs!$D$3:$ZZ$391,9,FALSE) -> 2.50 | S42: =P42*Q42*R42 -> 49,563 | T42: =IF(ISERROR(S42/VLOOKUP($B$7,objectifs!$D$4:$IA$373,232,FALSE)),"nc",S42/VLOOKUP($B$7,objectifs!$D$4:$IA$373,232,FALSE)) -> 32.6 | V42: 51% | W42: 53% | X42: 2.9
B43: Crédit Revolving | E43: =VLOOKUP($B$7,'Indicateurs mensuels'!$D$3:$KI$391,3,FALSE) -> 4,147 | F43: =VLOOKUP($B$7,'Indicateurs mensuels'!$D$3:$KI$391,4,FALSE) -> 4.32% | G43: =VLOOKUP($B$7,'Indicateurs mensuels'!$D$3:$KI$391,5,FALSE) -> 1.57 | H43: =E43*F43*G43 -> 281 | J43: =VLOOKUP($B$7,'Indicateurs Cumulés'!$D$3:$MX$391,3,FALSE) -> 25,358 | K43: =VLOOKUP($B$7,'Indicateurs Cumulés'!$D$3:$MX$391,4,FALSE) -> 4.32% | L43: =VLOOKUP($B$7,'Indicateurs Cumulés'!$D$3:$MX$391,5,FALSE) -> 1.57 | M43: =J43*K43*L43 -> 1,720 | N43: =IF(ISERROR(M43/VLOOKUP($B$7,'Indicateurs Cumulés'!$D$3:$MX$391,223,FALSE)),"nc",M43/VLOOKUP($B$7,'Indicateurs Cumulés'!$D$3:$MX$391,223,FALSE)) -> 1.3 | P43: =VLOOKUP($B$7,objectifs!$D$3:$ZZ$391,3,FALSE) -> 60,000 | Q43: =VLOOKUP($B$7,objectifs!$D$3:$ZZ$391,4,FALSE) -> 4.32% | R43: =VLOOKUP($B$7,objectifs!$D$3:$ZZ$391,5,FALSE) -> 1.60 | S43: =P43*Q43*R43 -> 4,147 | T43: =IF(ISERROR(S43/VLOOKUP($B$7,objectifs!$D$4:$IA$373,232,FALSE)),"nc",S43/VLOOKUP($B$7,objectifs!$D$4:$IA$373,232,FALSE)) -> 2.7 | V43: 42% | W43: 41% | X43: -0.1
B44: Frais de dossier | H44: =VLOOKUP($B$7,'Indicateurs mensuels'!$D$3:$KI$391,95,FALSE) -> 288 | M44: =VLOOKUP($B$7,'Indicateurs Cumulés'!$D$3:$MX$391,96,FALSE) -> 1,315 | N44: =IF(ISERROR(M44/VLOOKUP($B$7,'Indicateurs Cumulés'!$D$3:$MX$391,223,FALSE)),"nc",M44/VLOOKUP($B$7,'Indicateurs Cumulés'!$D$3:$MX$391,223,FALSE)) -> 1.0 | S44: =VLOOKUP($B$7,objectifs!$D$3:$ZZ$391,62,FALSE) -> 3,900 | T44: =IF(ISERROR(S44/VLOOKUP($B$7,objectifs!$D$4:$IA$373,232,FALSE)),"nc",S44/VLOOKUP($B$7,objectifs!$D$4:$IA$373,232,FALSE)) -> 2.6 | W44: 34% | X44: -0.3
B45: Commissions ADE | E45: =VLOOKUP($B$7,'Indicateurs mensuels'!$D$3:$KI$391,216,FALSE) -> 138.0% | F45: =VLOOKUP($B$7,'Indicateurs mensuels'!$D$3:$KI$391,215,FALSE) -> 89.8% | H45: =VLOOKUP($B$7,'Indicateurs mensuels'!$D$3:$ZZ$391,217,FALSE) -> 1,291 | J45: =VLOOKUP($B$7,'Indicateurs Cumulés'!$D$3:$MX$391,103,FALSE) -> 139.3% | K45: =VLOOKUP($B$7,'Indicateurs Cumulés'!$D$3:$MX$391,102,FALSE) -> 92.4% | M45: =VLOOKUP($B$7,'Indicateurs Cumulés'!$D$3:$MX$391,104,FALSE) -> 6,873 | N45: =IF(ISERROR(M45/VLOOKUP($B$7,'Indicateurs Cumulés'!$D$3:$MX$391,223,FALSE)),"nc",M45/VLOOKUP($B$7,'Indicateurs Cumulés'!$D$3:$MX$391,223,FALSE)) -> 5.0 | P45: =VLOOKUP($B$7,objectifs!$D$3:$ZZ$391,58,FALSE) -> 135% | Q45: =VLOOKUP($B$7,objectifs!$D$3:$ZZ$391,57,FALSE) -> 95% | S45: =VLOOKUP($B$7,objectifs!$D$3:$ZZ$391,72,FALSE) -> 16,738 | T45: =IF(ISERROR(S45/VLOOKUP($B$7,objectifs!$D$4:$IA$373,232,FALSE)),"nc",S45/VLOOKUP($B$7,objectifs!$D$4:$IA$373,232,FALSE)) -> 11.0 | W45: 41% | X45: -0.5
B47: CREDIT IMMOBILIER - Eng. Nets (yc accessoires) | E47: =E48 -> 167,772 | F47: =IF(ISERROR(H47/(E47*G47)),0,H47/(E47*G47)) -> 0.50% | G47: =G48 -> 7.71 | H47: =SUM(H48:H53) -> 6,414 | J47: =J48 -> 774,669 | K47: =IF(ISERROR(M47/(J47*L47)),0,M47/(J47*L47)) -> 0.38% | L47: =L48 -> 7.50 | M47: =SUM(M48:M53) -> 22,175 | N47: =IF(ISERROR(M47/VLOOKUP($B$7,'Indicateurs Cumulés'!$D$3:$MX$391,223,FALSE)),"nc",M47/VLOOKUP($B$7,'Indicateurs Cumulés'!$D$3:$MX$391,223,FALSE)) -> 16.2 | P47: =P48 -> 1,664,000 | Q47: =IF(ISERROR(S47/(P47*R47)),0,S47/(P47*R47)) -> 0.49% | R47: =R48 -> 7.50 | S47: =SUM(S48:S53) -> 60,661 | T47: =IF(ISERROR(S47/VLOOKUP($B$7,objectifs!$D$4:$IA$373,232,FALSE)),"nc",S47/VLOOKUP($B$7,objectifs!$D$4:$IA$373,232,FALSE)) -> 39.9 | V47: =IF(ISERROR(J47/P47),0,J47/P47) -> 47% | W47: =IF(ISERROR(M47/S47),0,M47/S47) -> 37% | X47: =IF(ISERROR(N47-(T47/12*MONTH($C$9))),"nc",N47-(T47/12*MONTH($C$9))) -> -3.8
B48: Crédit Immobilier (marge hors accessoires) | E48: =VLOOKUP($B$7,'Indicateurs mensuels'!$D$3:$KI$391,11,FALSE) -> 167,772 | F48: =VLOOKUP($B$7,'Indicateurs mensuels'!$D$3:$KI$391,13,FALSE) -> 0.17% | G48: =VLOOKUP($B$7,'Indicateurs mensuels'!$D$3:$KI$391,14,FALSE) -> 7.71 | H48: =E48*F48*G48 -> 2,210 | J48: =VLOOKUP($B$7,'Indicateurs Cumulés'!$D$3:$MX$391,11,FALSE) -> 774,669 | K48: =VLOOKUP($B$7,'Indicateurs Cumulés'!$D$3:$MX$391,13,FALSE) -> 0.03% | L48: =VLOOKUP($B$7,'Indicateurs Cumulés'!$D$3:$MX$391,14,FALSE) -> 7.50 | M48: =J48*K48*L48 -> 1,788 | N48: =IF(ISERROR(M48/VLOOKUP($B$7,'Indicateurs Cumulés'!$D$3:$MX$391,223,FALSE)),"nc",M48/VLOOKUP($B$7,'Indicateurs Cumulés'!$D$3:$MX$391,223,FALSE)) -> 1.3 | P48: =VLOOKUP($B$7,objectifs!$D$3:$ZZ$391,10,FALSE) -> 1,664,000 | Q48: =VLOOKUP($B$7,objectifs!$D$3:$ZZ$391,12,FALSE) -> 0.20% | R48: =VLOOKUP($B$7,objectifs!$D$3:$ZZ$391,13,FALSE) -> 7.50 | S48: =P48*Q48*R48 -> 24,960 | T48: =IF(ISERROR(S48/VLOOKUP($B$7,objectifs!$D$4:$IA$373,232,FALSE)),"nc",S48/VLOOKUP($B$7,objectifs!$D$4:$IA$373,232,FALSE)) -> 16.4 | V48: 47% | W48: 7% | X48: -6.9
B49: Commissions ADE (coefficient multiplicateur de 1,3 X) | E49: =VLOOKUP($B$7,'Indicateurs mensuels'!$D$3:$KI$391,87,FALSE) -> 139.8% | F49: =VLOOKUP($B$7,'Indicateurs mensuels'!$D$3:$KI$391,86,FALSE) -> 63.9% | H49: =VLOOKUP($B$7,'Indicateurs mensuels'!$D$3:$KI$391,88,FALSE) -> 3,611 | J49: =VLOOKUP($B$7,'Indicateurs Cumulés'!$D$3:$MX$391,100,FALSE) -> 141.0% | K49: =VLOOKUP($B$7,'Indicateurs Cumulés'!$D$3:$MX$391,99,FALSE) -> 68.4% | M49: =VLOOKUP($B$7,'Indicateurs Cumulés'!$D$3:$MX$391,101,FALSE) -> 17,619 | N49: =IF(ISERROR(M49/VLOOKUP($B$7,'Indicateurs Cumulés'!$D$3:$MX$391,223,FALSE)),"nc",M49/VLOOKUP($B$7,'Indicateurs Cumulés'!$D$3:$MX$391,223,FALSE)) -> 12.9 | P49: =VLOOKUP($B$7,objectifs!$D$3:$ZZ$391,56,FALSE) -> 145% | Q49: =VLOOKUP($B$7,objectifs!$D$3:$ZZ$391,55,FALSE) -> 70% | S49: =VLOOKUP($B$7,objectifs!$D$3:$ZZ$391,71,FALSE) -> 27,130 | T49: =IF(ISERROR(S49/VLOOKUP($B$7,objectifs!$D$4:$IA$373,232,FALSE)),"nc",S49/VLOOKUP($B$7,objectifs!$D$4:$IA$373,232,FALSE)) -> 17.9 | W49: 65% | X49: 3.9
B50: Frais de dossier | H50: =VLOOKUP($B$7,'Indicateurs mensuels'!$D$3:$KI$391,96,FALSE) -> 478 | M50: =VLOOKUP($B$7,'Indicateurs Cumulés'!$D$3:$MX$391,98,FALSE) -> 2,307 | N50: =IF(ISERROR(M50/VLOOKUP($B$7,'Indicateurs Cumulés'!$D$3:$MX$391,223,FALSE)),"nc",M50/VLOOKUP($B$7,'Indicateurs Cumulés'!$D$3:$MX$391,223,FALSE)) -> 1.7 | S50: =VLOOKUP($B$7,objectifs!$D$3:$ZZ$391,63,FALSE) -> 4,992 | T50: =IF(ISERROR(S50/VLOOKUP($B$7,objectifs!$D$4:$IA$373,232,FALSE)),"nc",S50/VLOOKUP($B$7,objectifs!$D$4:$IA$373,232,FALSE)) -> 3.3 | W50: 46% | X50: =IF(ISERROR(N50-(T50/12*MONTH($C$9))),"nc",N50-(T50/12*MONTH($C$9))) -> 0.0
B51: Commissions SACCEF | H51: =VLOOKUP($B$7,'Indicateurs mensuels'!$D$3:$KI$391,30,FALSE) -> 312 | M51: =VLOOKUP($B$7,'Indicateurs Cumulés'!$D$3:$MX$391,30,FALSE) -> 1,401 | N51: =IF(ISERROR(M51/VLOOKUP($B$7,'Indicateurs Cumulés'!$D$3:$MX$391,223,FALSE)),"nc",M51/VLOOKUP($B$7,'Indicateurs Cumulés'!$D$3:$MX$391,223,FALSE)) -> 1.0 | S51: =VLOOKUP($B$7,objectifs!$D$3:$ZZ$391,74,FALSE) -> 3,578
B52: Bonus clients devenus BPe / JBPe via le crédit immobilier | E52: =VLOOKUP($B$7,'Indicateurs Cumulés'!$D$3:$MX$391,84,FALSE)-VLOOKUP($B$7,'Indicateurs Cumulés M-1'!$D$3:$MX$390,84,FALSE) -> 357 | F52: =K52 -> 1,000 € | G52: =L52 -> 1.00 | H52: =E52*F52*G52/1000 -> 357 | J52: =VLOOKUP($B$7,'Indicateurs Cumulés'!$D$3:$MX$391,84,FALSE) -> 1,318 | K52: =IF(ISERROR(M52/(J52*L52)*1000),0,M52/(J52*L52)*1000) -> 1,000 € | L52: 1.00 | M52: =VLOOKUP($B$7,'Indicateurs Cumulés'!$D$3:$MX$391,85,FALSE) -> 1,318 | N52: =IF(ISERROR(M52/VLOOKUP($B$7,'Indicateurs Cumulés'!$D$3:$MX$391,223,FALSE)),"nc",M52/VLOOKUP($B$7,'Indicateurs Cumulés'!$D$3:$MX$391,223,FALSE)) -> 1.0
B53: Commissions apporteurs d'affaires | H53: =VLOOKUP($B$7,'Indicateurs mensuels'!$D$3:$KI$391,70,FALSE) -> -553 | M53: =VLOOKUP($B$7,'Indicateurs Cumulés'!$D$3:$MX$391,70,FALSE) -> -2,258 | N53: =IF(ISERROR(M53/VLOOKUP($B$7,'Indicateurs Cumulés'!$D$3:$MX$391,223,FALSE)),"nc",M53/VLOOKUP($B$7,'Indicateurs Cumulés'!$D$3:$MX$391,223,FALSE)) -> -1.7
B55: CREDIT MLT PRO - Eng. Nets (yc accessoires) | E55: =E56+E57 -> 23,269 | F55: =IF(ISERROR(H55/(E55*G55)),0,H55/(E55*G55)) -> 0.85% | G55: =SUMPRODUCT(G56:G57,E56:E57)/(E56+E57) -> 4.33 | H55: =H56+H57+H58+H59 -> 853 | J55: =J56+J57 -> 143,077 | K55: =IF(ISERROR(M55/(J55*L55)),0,M55/(J55*L55)) -> 0.66% | L55: =SUMPRODUCT(L56:L57,J56:J57)/(J56+J57) -> 4.44 | M55: =M56+M57+M58+M59 -> 4,209 | N55: =IF(ISERROR(M55/VLOOKUP($B$7,'Indicateurs Cumulés'!$D$3:$MX$391,223,FALSE)),"nc",M55/VLOOKUP($B$7,'Indicateurs Cumulés'!$D$3:$MX$391,223,FALSE)) -> 3.1 | P55: =P56+P57 -> 250,000 | Q55: =IF(ISERROR(S55/(P55*R55)),0,S55/(P55*R55)) -> 0.70% | R55: =SUMPRODUCT(R56:R57,P56:P57)/(P56+P57) -> 4.39 | S55: =S56+S57+S58+S59 -> 7,646 | T55: =IF(ISERROR(S55/VLOOKUP($B$7,objectifs!$D$4:$IA$373,232,FALSE)),"nc",S55/VLOOKUP($B$7,objectifs!$D$4:$IA$373,232,FALSE)) -> 5.0 | V55: =IF(ISERROR(J55/P55),0,J55/P55) -> 57% | W55: =IF(ISERROR(M55/S55),0,M55/S55) -> 55% | X55: =IF(ISERROR(N55-(T55/12*MONTH($C$9))),"nc",N55-(T55/12*MONTH($C$9))) -> 0.6
B56: Crédit MLT (marge hors accessoires) | E56: =VLOOKUP($B$7,'Indicateurs mensuels'!$D$3:$KI$391,22,FALSE) -> 21,643 | F56: =VLOOKUP($B$7,'Indicateurs mensuels'!$D$3:$KI$391,23,FALSE) -> 0.69% | G56: =VLOOKUP($B$7,'Indicateurs mensuels'!$D$3:$KI$391,24,FALSE) -> 4.49 | H56: =E56*F56*G56 -> 674 | J56: =VLOOKUP($B$7,'Indicateurs Cumulés'!$D$3:$MX$391,22,FALSE) -> 136,318 | K56: =VLOOKUP($B$7,'Indicateurs Cumulés'!$D$3:$MX$391,23,FALSE) -> 0.49% | L56: =VLOOKUP($B$7,'Indicateurs Cumulés'!$D$3:$MX$391,24,FALSE) -> 4.55 | M56: =J56*K56*L56 -> 3,045 | N56: =IF(ISERROR(M56/VLOOKUP($B$7,'Indicateurs Cumulés'!$D$3:$MX$391,223,FALSE)),"nc",M56/VLOOKUP($B$7,'Indicateurs Cumulés'!$D$3:$MX$391,223,FALSE)) -> 2.2 | P56: =VLOOKUP($B$7,objectifs!$D$3:$ZZ$391,20,FALSE) -> 238,000 | Q56: =VLOOKUP($B$7,objectifs!$D$3:$ZZ$391,21,FALSE) -> 0.40% | R56: =VLOOKUP($B$7,objectifs!$D$3:$ZZ$391,22,FALSE) -> 4.50 | S56: =P56*Q56*R56 -> 4,284 | T56: =IF(ISERROR(S56/VLOOKUP($B$7,objectifs!$D$4:$IA$373,232,FALSE)),"nc",S56/VLOOKUP($B$7,objectifs!$D$4:$IA$373,232,FALSE)) -> 2.8 | V56: 57% | W56: 71% | X56: 0.8
B57: Crédit Bail Mobilier | E57: =VLOOKUP($B$7,'Indicateurs mensuels'!$D$3:$GI$391,185,FALSE) -> 1,626 | F57: =VLOOKUP($B$7,'Indicateurs mensuels'!$D$3:$GI$391,186,FALSE) -> 0.83% | G57: =VLOOKUP($B$7,'Indicateurs mensuels'!$D$3:$GI$391,187,FALSE) -> 2.21 | H57: =E57*F57*G57 -> 30 | J57: =VLOOKUP($B$7,'Indicateurs Cumulés'!$D$3:$MX$391,193,FALSE) -> 6,759 | K57: =VLOOKUP($B$7,'Indicateurs Cumulés'!$D$3:$MX$391,194,FALSE) -> 0.90% | L57: =VLOOKUP($B$7,'Indicateurs Cumulés'!$D$3:$MX$391,195,FALSE) -> 2.21 | M57: =J57*K57*L57 -> 134 | N57: =IF(ISERROR(M57/VLOOKUP($B$7,'Indicateurs Cumulés'!$D$3:$MX$391,223,FALSE)),"nc",M57/VLOOKUP($B$7,'Indicateurs Cumulés'!$D$3:$MX$391,223,FALSE)) -> 0.1 | P57: =VLOOKUP($B$7,objectifs!$D$3:$ZZ$391,14,FALSE) -> 12,000 | Q57: =VLOOKUP($B$7,objectifs!$D$3:$ZZ$391,15,FALSE) -> 0.40% | R57: =VLOOKUP($B$7,objectifs!$D$3:$ZZ$391,16,FALSE) -> 2.30 | S57: =P57*Q57*R57 -> 110 | T57: =IF(ISERROR(S57/VLOOKUP($B$7,objectifs!$D$4:$IA$373,232,FALSE)),"nc",S57/VLOOKUP($B$7,objectifs!$D$4:$IA$373,232,FALSE)) -> 0.1 | V57: 56% | W57: 121% | X57: 0.1
B58: Frais de dossier (yc CBM) | H58: =VLOOKUP($B$7,'Indicateurs mensuels'!$D$3:$KI$391,92,FALSE)+VLOOKUP($B$7,'Indicateurs mensuels'!$D$3:$KI$391,97,FALSE) -> 70 | M58: =VLOOKUP($B$7,'Indicateurs Cumulés'!$D$3:$MX$391,92,FALSE)+VLOOKUP($B$7,'Indicateurs Cumulés'!$D$3:$MX$391,94,FALSE) -> 414 | N58: =IF(ISERROR(M58/VLOOKUP($B$7,'Indicateurs Cumulés'!$D$3:$MX$391,223,FALSE)),"nc",M58/VLOOKUP($B$7,'Indicateurs Cumulés'!$D$3:$MX$391,223,FALSE)) -> 0.3 | S58: =VLOOKUP($B$7,objectifs!$D$3:$ZZ$391,66,FALSE) -> 750 | T58: =IF(ISERROR(S58/VLOOKUP($B$7,objectifs!$D$4:$IA$373,232,FALSE)),"nc",S58/VLOOKUP($B$7,objectifs!$D$4:$IA$373,232,FALSE)) -> 0.5 | W58: 55% | X58: 0.1
B59: Commissions ADE | E59: =VLOOKUP($B$7,'Indicateurs mensuels'!$D$3:$KI$391,219,FALSE) -> 107.7% | F59: =VLOOKUP($B$7,'Indicateurs mensuels'!$D$3:$KI$391,218,FALSE) -> 70.9% | H59: =VLOOKUP($B$7,'Indicateurs mensuels'!$D$3:$ZZ$391,220,FALSE) -> 79 | J59: =VLOOKUP($B$7,'Indicateurs Cumulés'!$D$3:$MX$391,107,FALSE) -> 108.9% | K59: =VLOOKUP($B$7,'Indicateurs Cumulés'!$D$3:$MX$391,106,FALSE) -> 64.6% | M59: =VLOOKUP($B$7,'Indicateurs Cumulés'!$D$3:$MX$391,108,FALSE) -> 616 | N59: =IF(ISERROR(M59/VLOOKUP($B$7,'Indicateurs Cumulés'!$D$3:$MX$391,223,FALSE)),"nc",M59/VLOOKUP($B$7,'Indicateurs Cumulés'!$D$3:$MX$391,223,FALSE)) -> 0.5 | P59: =VLOOKUP($B$7,objectifs!$D$3:$ZZ$391,60,FALSE) -> 110% | Q59: =VLOOKUP($B$7,objectifs!$D$3:$ZZ$391,59,FALSE) -> 70% | S59: =VLOOKUP($B$7,objectifs!$D$3:$ZZ$391,75,FALSE) -> 2,501 | T59: =IF(ISERROR(S59/VLOOKUP($B$7,objectifs!$D$4:$IA$373,232,FALSE)),"nc",S59/VLOOKUP($B$7,objectifs!$D$4:$IA$373,232,FALSE)) -> 1.6 | W59: 25% | X59: -0.4
B61: BANCA - Ventes nettes | H61: =H62+H68+H75+H76+H77+H78+H82 -> 5,193 | M61: =M62+M68+M75+M76+M77+M78+M82 -> 15,847 | N61: =IF(ISERROR(M61/VLOOKUP($B$7,'Indicateurs Cumulés'!$D$3:$MX$391,223,FALSE)),"nc",M61/VLOOKUP($B$7,'Indicateurs Cumulés'!$D$3:$MX$391,223,FALSE)) -> 11.6 | P61: =P62+P68+P78+P77 -> 59,265 | Q61: =IF(ISERROR(S61/(P61*R61)*1000),0,S61/(P61*R61)*1000) -> 114 € | R61: 5.00 | S61: =S62+S68+S78+S77 -> 33,763 | T61: =IF(ISERROR(S61/VLOOKUP($B$7,objectifs!$D$4:$IA$373,232,FALSE)),"nc",S61/VLOOKUP($B$7,objectifs!$D$4:$IA$373,232,FALSE)) -> 22.2 | V61: =IF(ISERROR(J61/P61),0,J61/P61) -> 0% | W61: =IF(ISERROR(M61/S61),0,M61/S61) -> 47% | X61: =IF(ISERROR(N61-(T61/12*MONTH($C$9))),"nc",N61-(T61/12*MONTH($C$9))) -> 0.5
B62: Forfaits - Tarification | E62: =SUM(E63:E67) -> 2,358 | H62: =SUM(H63:H67) -> 1,780 | J62: =SUM(J63:J67) -> 3,596 | M62: =SUM(M63:M67) -> 4,216 | N62: =IF(ISERROR(M62/VLOOKUP($B$7,'Indicateurs Cumulés'!$D$3:$MX$391,223,FALSE)),"nc",M62/VLOOKUP($B$7,'Indicateurs Cumulés'!$D$3:$MX$391,223,FALSE)) -> 3.1 | P62: =VLOOKUP($B$7,objectifs!$D$3:$ZZ$391,181,FALSE)*95% -> 21,280 | Q62: =objectifs!$GB$3 -> 137 € | R62: =objectifs!$GC$3 -> 5.00 | S62: =P62*Q62*R62/1000 -> 14,602 | T62: =IF(ISERROR(S62/VLOOKUP($B$7,objectifs!$D$4:$IA$373,232,FALSE)),"nc",S62/VLOOKUP($B$7,objectifs!$D$4:$IA$373,232,FALSE)) -> 9.6 | V62: 17% | W62: 29% | X62: -1.7
B63: Bouquet liberté HDG | E63: =J63-VLOOKUP($B$7,'Indicateurs Cumulés M-1'!$D$3:$MX$390,308,FALSE) -> 3,167 | F63: =K63 -> 140 € | G63: =L63 -> 5.00 | H63: =E63*F63*G63/1000 -> 2,209 | J63: =VLOOKUP($B$7,'Indicateurs Cumulés'!$D$3:$MX$391,308,FALSE) -> 13,106 | K63: ='Indicateurs Cumulés'!$KY$3 -> 140 € | L63: ='Indicateurs Cumulés'!$KZ$3 -> 5.00 | M63: =J63*K63*L63/1000 -> 9,141 | N63: =IF(ISERROR(M63/VLOOKUP($B$7,'Indicateurs Cumulés'!$D$3:$MX$391,223,FALSE)),"nc",M63/VLOOKUP($B$7,'Indicateurs Cumulés'!$D$3:$MX$391,223,FALSE)) -> 6.7
B64: Bouquet liberté Autres | E64: =J64-VLOOKUP($B$7,'Indicateurs Cumulés M-1'!$D$3:$MX$390,235,FALSE) -> -68 | F64: =K64 -> 87 € | G64: 5.00 | H64: =E64*F64*G64/1000 -> -30 | J64: =VLOOKUP($B$7,'Indicateurs Cumulés'!$D$3:$MX$391,235,FALSE) -> -4,324 | K64: ='Indicateurs Cumulés'!$ID$3 -> 87 € | L64: ='Indicateurs Cumulés'!$IT$3 -> 5.00 | M64: =J64*K64*L64/1000 -> -1,884 | N64: =IF(ISERROR(M64/VLOOKUP($B$7,'Indicateurs Cumulés'!$D$3:$MX$391,223,FALSE)),"nc",M64/VLOOKUP($B$7,'Indicateurs Cumulés'!$D$3:$MX$391,223,FALSE)) -> -1.4
B65: Futéo / SOL 16-17 | E65: =J65-VLOOKUP($B$7,'Indicateurs Cumulés M-1'!$D$3:$MX$390,236,FALSE) -> -174 | F65: 12 € | G65: 5.00 | H65: -10 | J65: =VLOOKUP($B$7,'Indicateurs Cumulés'!$D$3:$MX$391,236,FALSE) -> -803 | K65: ='Indicateurs Cumulés'!$IE$3 -> 12 € | L65: ='Indicateurs Cumulés'!$IU$3 -> 5.00 | M65: -48 | N65: =IF(ISERROR(M65/VLOOKUP($B$7,'Indicateurs Cumulés'!$D$3:$MX$391,223,FALSE)),"nc",M65/VLOOKUP($B$7,'Indicateurs Cumulés'!$D$3:$MX$391,223,FALSE)) -> -0.0
B66: Satellis Essentiel / Essentiel + | E66: =J66-VLOOKUP($B$7,'Indicateurs Cumulés M-1'!$D$3:$MX$390,237,FALSE) -> -485 | F66: 125 € | G66: 5.00 | H66: -303 | J66: =VLOOKUP($B$7,'Indicateurs Cumulés'!$D$3:$MX$391,237,FALSE) -> -3,776 | K66: ='Indicateurs Cumulés'!$IF$3 -> 125 € | L66: ='Indicateurs Cumulés'!$IV$3 -> 5.00 | M66: -2,356 | N66: =IF(ISERROR(M66/VLOOKUP($B$7,'Indicateurs Cumulés'!$D$3:$MX$391,223,FALSE)),"nc",M66/VLOOKUP($B$7,'Indicateurs Cumulés'!$D$3:$MX$391,223,FALSE)) -> -1.7
B67: Satellis Intégral | E67: =J67-VLOOKUP($B$7,'Indicateurs Cumulés M-1'!$D$3:$MX$390,238,FALSE) -> -82 | F67: 210 € | G67: 5.00 | H67: -86 | J67: =VLOOKUP($B$7,'Indicateurs Cumulés'!$D$3:$MX$391,238,FALSE) -> -607 | K67: ='Indicateurs Cumulés'!$IG$3 -> 210 € | L67: ='Indicateurs Cumulés'!$IW$3 -> 5.00 | M67: -637 | N67: =IF(ISERROR(M67/VLOOKUP($B$7,'Indicateurs Cumulés'!$D$3:$MX$391,223,FALSE)),"nc",M67/VLOOKUP($B$7,'Indicateurs Cumulés'!$D$3:$MX$391,223,FALSE)) -> -0.5
B68: Cartes - Tarification | E68: =SUM(E69:E74) -> 2,170 | H68: =SUM(H69:H74) -> 1,926 | J68: =SUM(J69:J74) -> 573 | M68: =SUM(M69:M74) -> 6,168 | N68: =IF(ISERROR(M68/VLOOKUP($B$7,'Indicateurs Cumulés'!$D$3:$MX$391,223,FALSE)),"nc",M68/VLOOKUP($B$7,'Indicateurs Cumulés'!$D$3:$MX$391,223,FALSE)) -> 4.5 | P68: =VLOOKUP($B$7,objectifs!$D$3:$ZZ$391,183,FALSE)*95% -> 11,400 | Q68: =objectifs!$GD$3 -> 289 € | R68: =objectifs!$GE$3 -> 5.00 | S68: =P68*Q68*R68/1000 -> 16,484 | T68: =IF(ISERROR(S68/VLOOKUP($B$7,objectifs!$D$4:$IA$373,232,FALSE)),"nc",S68/VLOOKUP($B$7,objectifs!$D$4:$IA$373,232,FALSE)) -> 10.9 | V68: 5% | W68: 37% | X68: =IF(ISERROR(N68-(T68/12*MONTH($C$9))),"nc",N68-(T68/12*MONTH($C$9))) -> -0.9
B69: Carte Infinite | E69: =J69-VLOOKUP($B$7,'Indicateurs Cumulés M-1'!$D$3:$MX$390,239,FALSE) -> 19 | F69: =K69 -> 315 € | G69: =L69 -> 5.00 | H69: =E69*F69*G69/1000 -> 30 | J69: =VLOOKUP($B$7,'Indicateurs Cumulés'!$D$3:$MX$391,239,FALSE) -> 80 | K69: ='Indicateurs Cumulés'!$IH$3 -> 315 € | L69: ='Indicateurs Cumulés'!$IX$3 -> 5.00 | M69: =J69*K69*L69/1000 -> 126 | N69: =IF(ISERROR(M69/VLOOKUP($B$7,'Indicateurs Cumulés'!$D$3:$MX$391,223,FALSE)),"nc",M69/VLOOKUP($B$7,'Indicateurs Cumulés'!$D$3:$MX$391,223,FALSE)) -> 0.1
B70: Carte Platinum (yc izicarte) | E70: =J70-VLOOKUP($B$7,'Indicateurs Cumulés M-1'!$D$3:$MX$390,240,FALSE) -> 162 | F70: =K70 -> 200 € | G70: 5.00 | H70: =E70*F70*G70/1000 -> 162 | J70: =VLOOKUP($B$7,'Indicateurs Cumulés'!$D$3:$MX$391,240,FALSE) -> 617 | K70: ='Indicateurs Cumulés'!$II$3 -> 200 € | L70: ='Indicateurs Cumulés'!$IY$3 -> 5.00 | M70: =J70*K70*L70/1000 -> 617 | N70: =IF(ISERROR(M70/VLOOKUP($B$7,'Indicateurs Cumulés'!$D$3:$MX$391,223,FALSE)),"nc",M70/VLOOKUP($B$7,'Indicateurs Cumulés'!$D$3:$MX$391,223,FALSE)) -> 0.5
B71: Carte visa premier (yc izicarte) | E71: =J71-VLOOKUP($B$7,'Indicateurs Cumulés M-1'!$D$3:$MX$390,241,FALSE) -> 2,986 | F71: 130 € | G71: 5.00 | H71: 1,941 | J71: =VLOOKUP($B$7,'Indicateurs Cumulés'!$D$3:$MX$391,241,FALSE) -> 12,409 | K71: ='Indicateurs Cumulés'!$IJ$3 -> 130 € | L71: ='Indicateurs Cumulés'!$IZ$3 -> 5.00 | M71: 8,066 | N71: =IF(ISERROR(M71/VLOOKUP($B$7,'Indicateurs Cumulés'!$D$3:$MX$391,223,FALSE)),"nc",M71/VLOOKUP($B$7,'Indicateurs Cumulés'!$D$3:$MX$391,223,FALSE)) -> 5.9
B72: Carte visa classique (yc izicarte) | E72: =J72-VLOOKUP($B$7,'Indicateurs Cumulés M-1'!$D$3:$MX$390,242,FALSE) -> -1,080 | F72: 43 € | G72: 5.00 | H72: -232 | J72: =VLOOKUP($B$7,'Indicateurs Cumulés'!$D$3:$MX$391,242,FALSE) -> -11,364 | K72: ='Indicateurs Cumulés'!$IK$3 -> 43 € | L72: ='Indicateurs Cumulés'!$JA$3 -> 5.00 | M72: -2,443 | N72: =IF(ISERROR(M72/VLOOKUP($B$7,'Indicateurs Cumulés'!$D$3:$MX$391,223,FALSE)),"nc",M72/VLOOKUP($B$7,'Indicateurs Cumulés'!$D$3:$MX$391,223,FALSE)) -> -1.8
B73: Carte Sensea | E73: =J73-VLOOKUP($B$7,'Indicateurs Cumulés M-1'!$D$3:$MX$390,82,FALSE) -> 136 | F73: 43 € | G73: 5.00 | H73: 29 | J73: =VLOOKUP($B$7,'Indicateurs Cumulés'!$D$3:$MX$391,82,FALSE) -> -839 | K73: ='Indicateurs Cumulés'!$CG$3 -> 43 € | L73: ='Indicateurs Cumulés'!$CH$3 -> 5.00 | M73: -178 | N73: =IF(ISERROR(M73/VLOOKUP($B$7,'Indicateurs Cumulés'!$D$3:$MX$391,223,FALSE)),"nc",M73/VLOOKUP($B$7,'Indicateurs Cumulés'!$D$3:$MX$391,223,FALSE)) -> -0.1
B74: Autres Cartes | E74: =J74-VLOOKUP($B$7,'Indicateurs Cumulés M-1'!$D$3:$MX$390,243,FALSE) -> -53 | F74: 12 € | G74: 5.00 | H74: -3 | J74: =VLOOKUP($B$7,'Indicateurs Cumulés'!$D$3:$MX$391,243,FALSE) -> -330 | K74: ='Indicateurs Cumulés'!$IL$3 -> 12 € | L74: ='Indicateurs Cumulés'!$JB$3 -> 5.00 | M74: -20 | N74: =IF(ISERROR(M74/VLOOKUP($B$7,'Indicateurs Cumulés'!$D$3:$MX$391,223,FALSE)),"nc",M74/VLOOKUP($B$7,'Indicateurs Cumulés'!$D$3:$MX$391,223,FALSE)) -> -0.0
B75: Booster Cartes débit différé | E75: =J75-VLOOKUP($B$7,'Indicateurs Cumulés M-1'!$D$3:$MX$390,305,FALSE) -> 1,504 | F75: =K75 -> 40 € | G75: 5.00 | H75: =E75*F75*G75/1000 -> 301 | J75: =VLOOKUP($B$7,'Indicateurs Cumulés'!$D$3:$MX$391,305,FALSE) -> 5,638 | K75: =IF(ISERROR(M75/(J75*L75)*1000),0,M75/(J75*L75)*1000) -> 40 € | L75: =objectifs!$GE$3 -> 5.00 | M75: =VLOOKUP($B$7,'Indicateurs Cumulés'!$D$3:$MX$391,306,FALSE) -> 1,128 | N75: =IF(ISERROR(M75/VLOOKUP($B$7,'Indicateurs Cumulés'!$D$3:$MX$391,223,FALSE)),"nc",M75/VLOOKUP($B$7,'Indicateurs Cumulés'!$D$3:$MX$391,223,FALSE)) -> 0.8
B76: Bonus Mobilité bancaire | E76: =VLOOKUP($B$7,'Indicateurs mensuels'!$D$3:$GI$391,68,FALSE) -> 714 | F76: =K76 -> 200 € | G76: =L76 -> 1.00 | H76: =E76*F76*G76/1000 -> 143 | J76: =(VLOOKUP($B$7,'Indicateurs Cumulés'!$D$3:$MX$391,80,FALSE)) -> 3,094 | K76: =IF(ISERROR(M76/(J76*L76)*1000),0,M76/(J76*L76)*1000) -> 200 € | L76: 1.00 | M76: =VLOOKUP($B$7,'Indicateurs Cumulés'!$D$3:$JB$391,81,FALSE) -> 619 | N76: =IF(ISERROR(M76/VLOOKUP($B$7,'Indicateurs Cumulés'!$D$3:$MX$391,223,FALSE)),"nc",M76/VLOOKUP($B$7,'Indicateurs Cumulés'!$D$3:$MX$391,223,FALSE)) -> 0.5
B77: Options complémentaires sur Bouquet Liberté | E77: =J77-VLOOKUP($B$7,'Indicateurs Cumulés M-1'!$D$3:$MX$390,190,FALSE) -> -91 | F77: =K77 -> 15 € | G77: =L77 -> 5.00 | H77: =E77*F77*G77/1000 -> -7 | J77: =VLOOKUP($B$7,'Indicateurs Cumulés'!$D$3:$MX$391,190,FALSE) -> 167 | K77: =IF(ISERROR(M77/(J77*L77)*1000),0,M77/(J77*L77)*1000) -> 15 € | L77: ='Indicateurs Cumulés'!$IT$3 -> 5.00 | M77: =VLOOKUP($B$7,'Indicateurs Cumulés'!$D$3:$MX$391,191,FALSE) -> 13 | N77: =IF(ISERROR(M77/VLOOKUP($B$7,'Indicateurs Cumulés'!$D$3:$MX$391,223,FALSE)),"nc",M77/VLOOKUP($B$7,'Indicateurs Cumulés'!$D$3:$MX$391,223,FALSE)) -> 0.0 | P77: =VLOOKUP($B$7,objectifs!$D$3:$ZZ$391,163,FALSE) -> 1,600 | Q77: =objectifs!$FJ$3 -> 15 € | R77: =objectifs!$FK$3 -> 5.00 | S77: =P77*Q77*R77/1000 -> 120 | T77: =IF(ISERROR(S77/VLOOKUP($B$7,objectifs!$D$4:$IA$373,232,FALSE)),"nc",S77/VLOOKUP($B$7,objectifs!$D$4:$IA$373,232,FALSE)) -> 0.1 | V77: =IF(ISERROR(J77/P77),0,J77/P77) -> 10% | W77: =IF(ISERROR(M77/S77),0,M77/S77) -> 10% | X77: -0.0
B78: IARD & Prévoyance - Commissions | E78: =J78-(VLOOKUP($B$7,'Indicateurs Cumulés M-1'!$D$3:$MX$390,228,FALSE) +VLOOKUP($B$7,'Indicateurs Cumulés M-1'!$D$3:$MX$390,229,FALSE) +VLOOKUP($B$7,'Indicateurs Cumulés M-1'!$D$3:$MX$390,230,FALSE) +VLOOKUP($B$7,'Indicateurs Cumulés M-1'!$D$3:$MX$390,231,FALSE) +VLOOKUP($B$7,'Indicateurs Cumulés M-1'!$D$3:$MX$390,232,FALSE) +VLOOKUP($B$7,'Indicateurs Cumulés M-1'!$D$3:$MX$390,233,FALSE) +VLOOKUP($B$7,'Indicateurs Cumulés M-1'!$D$3:$MX$390,234,FALSE) +VLOOKUP($B$7,'Indicateurs Cumulés M-1'!$D$3:$MX$390,266,FALSE) +VLOOKUP($B$7,'Indicateurs Cumulés M-1'!$D$3:$MX$390,310,FALSE)) -> 4,700 | F78: =IF(ISERROR(H78/(E78*G78)*1000),0,H78/(E78*G78)*1000) -> 25 € | G78: 5.00 | H78: =M78- (VLOOKUP($B$7,'Indicateurs Cumulés M-1'!$D$3:$JB$390,244,FALSE)+VLOOKUP($B$7,'Indicateurs Cumulés M-1'!$D$3:$JB$390,245,FALSE)+VLOOKUP($B$7,'Indicateurs Cumulés M-1'!$D$3:$JB$390,246,FALSE)+VLOOKUP($B$7,'Indicateurs Cumulés M-1'!$D$3:$JB$390,247,FALSE)+VLOOKUP($B$7,'Indicateurs Cumulés M-1'!$D$3:$JB$390,248,FALSE)+VLOOKUP($B$7,'Indicateurs Cumulés M-1'!$D$3:$JB$390,249,FALSE)+VLOOKUP($B$7,'Indicateurs Cumulés M-1'!$D$3:$JB$390,250,FALSE)+VLOOKUP($B$7,'Indicateurs Cumulés M-1'!$D$3:$MX$390,267,FALSE)+VLOOKUP($B$7,'Indicateurs Cumulés M-1'!$D$3:$MX$390,311,FALSE)) -> 577 | J78: =(VLOOKUP($B$7,'Indicateurs Cumulés'!$D$3:$MX$391,228,FALSE) +VLOOKUP($B$7,'Indicateurs Cumulés'!$D$3:$MX$391,229,FALSE) +VLOOKUP($B$7,'Indicateurs Cumulés'!$D$3:$MX$391,230,FALSE) +VLOOKUP($B$7,'Indicateurs Cumulés'!$D$3:$MX$391,231,FALSE) +VLOOKUP($B$7,'Indicateurs Cumulés'!$D$3:$MX$391,232,FALSE) +VLOOKUP($B$7,'Indicateurs Cumulés'!$D$3:$MX$391,233,FALSE) +VLOOKUP($B$7,'Indicateurs Cumulés'!$D$3:$MX$391,234,FALSE) +VLOOKUP($B$7,'Indicateurs Cumulés'!$D$3:$MX$391,266,FALSE) +VLOOKUP($B$7,'Indicateurs Cumulés'!$D$3:$MX$391,310,FALSE)) -> 19,110 | K78: 22 € | L78: =objectifs!$GG$3 -> 5.00 | M78: =(VLOOKUP($B$7,'Indicateurs Cumulés'!$D$3:$JB$391,244,FALSE)+VLOOKUP($B$7,'Indicateurs Cumulés'!$D$3:$JB$391,245,FALSE)+VLOOKUP($B$7,'Indicateurs Cumulés'!$D$3:$JB$391,246,FALSE)+VLOOKUP($B$7,'Indicateurs Cumulés'!$D$3:$JB$391,247,FALSE)+VLOOKUP($B$7,'Indicateurs Cumulés'!$D$3:$JB$391,248,FALSE)+VLOOKUP($B$7,'Indicateurs Cumulés'!$D$3:$JB$391,249,FALSE)+VLOOKUP($B$7,'Indicateurs Cumulés'!$D$3:$JB$391,250,FALSE)+VLOOKUP($B$7,'Indicateurs Cumulés'!$D$3:$MX$391,267,FALSE)+VLOOKUP($B$7,'Indicateurs Cumulés'!$D$3:$MX$391,311,FALSE)) -> 2,068 | N78: =IF(ISERROR(M78/VLOOKUP($B$7,'Indicateurs Cumulés'!$D$3:$MX$391,223,FALSE)),"nc",M78/VLOOKUP($B$7,'Indicateurs Cumulés'!$D$3:$MX$391,223,FALSE)) -> 1.5 | P78: =VLOOKUP($B$7,objectifs!$D$3:$ZZ$391,185,FALSE)*95% -> 24,985 | Q78: =objectifs!$GF$3 -> 20 € | R78: =objectifs!$GG$3 -> 5.00 | S78: =P78*Q78*R78/1000 -> 2,558 | T78: =IF(ISERROR(S78/VLOOKUP($B$7,objectifs!$D$4:$IA$373,232,FALSE)),"nc",S78/VLOOKUP($B$7,objectifs!$D$4:$IA$373,232,FALSE)) -> 1.7 | V78: 76% | W78: 81% | X78: 0.7
B79: dont AUTO | E79: =J79-VLOOKUP($B$7,'Indicateurs Cumulés M-1'!$D$3:$MX$390,228,FALSE) -> 1,107 | F79: =K79 -> 43 € | G79: 2.75 | H79: =E79*F79*G79/1000 -> 130 | J79: =VLOOKUP($B$7,'Indicateurs Cumulés'!$D$3:$MX$391,228,FALSE) -> 4,785 | K79: 43 € | L79: =objectifs!$HR$3 -> 2.75 | M79: =VLOOKUP($B$7,'Indicateurs Cumulés'!$D$3:$JB$391,244,FALSE) -> 564 | N79: =IF(ISERROR(M79/VLOOKUP($B$7,'Indicateurs Cumulés'!$D$3:$MX$391,223,FALSE)),"nc",M79/VLOOKUP($B$7,'Indicateurs Cumulés'!$D$3:$MX$391,223,FALSE)) -> 0.4 | P79: =VLOOKUP($B$7,objectifs!$D$3:$ZZ$391,222,FALSE) -> 6,400 | Q79: =objectifs!$HQ$3 -> 43 € | R79: =objectifs!$HR$3 -> 2.75 | S79: =P79*Q79*R79/1000 -> 754 | T79: =IF(ISERROR(S79/VLOOKUP($B$7,objectifs!$D$4:$IA$373,232,FALSE)),"nc",S79/VLOOKUP($B$7,objectifs!$D$4:$IA$373,232,FALSE)) -> 0.5 | V79: 75% | W79: 75% | X79: 0.2
B80: dont MRH | E80: =J80-VLOOKUP($B$7,'Indicateurs Cumulés M-1'!$D$3:$MX$390,229,FALSE) -> 1,254 | F80: 25 € | G80: 3.96 | H80: =E80*F80*G80/1000 -> 124 | J80: =VLOOKUP($B$7,'Indicateurs Cumulés'!$D$3:$MX$391,229,FALSE) -> 3,396 | K80: 25 € | L80: =objectifs!$HT$3 -> 3.96 | M80: =VLOOKUP($B$7,'Indicateurs Cumulés'!$D$3:$JB$391,245,FALSE) -> 337 | N80: =IF(ISERROR(M80/VLOOKUP($B$7,'Indicateurs Cumulés'!$D$3:$MX$391,223,FALSE)),"nc",M80/VLOOKUP($B$7,'Indicateurs Cumulés'!$D$3:$MX$391,223,FALSE)) -> 0.2 | P80: =VLOOKUP($B$7,objectifs!$D$3:$ZZ$391,224,FALSE) -> 4,600 | Q80: =objectifs!$HS$3 -> 25 € | R80: =objectifs!$HT$3 -> 3.96 | S80: =P80*Q80*R80/1000 -> 456 | T80: =IF(ISERROR(S80/VLOOKUP($B$7,objectifs!$D$4:$IA$373,232,FALSE)),"nc",S80/VLOOKUP($B$7,objectifs!$D$4:$IA$373,232,FALSE)) -> 0.3 | V80: 74% | W80: 74% | X80: 0.1
B81: dont Sécur Famille | E81: =J81-VLOOKUP($B$7,'Indicateurs Cumulés M-1'!$D$3:$MX$390,234,FALSE) -> 2,108 | F81: 19 € | G81: 6.00 | H81: =M81-VLOOKUP($B$7,'Indicateurs Cumulés M-1'!$D$3:$JB$390,250,FALSE) -> 243 | J81: =VLOOKUP($B$7,'Indicateurs Cumulés'!$D$3:$MX$391,234,FALSE) -> 7,316 | K81: =+objectifs!$IB$3 -> 19 € | L81: =+objectifs!$IC$3 -> 6.00 | M81: =VLOOKUP($B$7,'Indicateurs Cumulés'!$D$3:$JB$391,250,FALSE) -> 843 | N81: =IF(ISERROR(M81/VLOOKUP($B$7,'Indicateurs Cumulés'!$D$3:$MX$391,223,FALSE)),"nc",M81/VLOOKUP($B$7,'Indicateurs Cumulés'!$D$3:$MX$391,223,FALSE)) -> 0.6 | P81: =VLOOKUP($B$7,objectifs!$D$3:$ZZ$391,233,FALSE) -> 10,000 | Q81: =+objectifs!$IB$3 -> 19 € | R81: =+objectifs!$IC$3 -> 6.00 | S81: =P81*Q81*R81/1000 -> 1,152 | T81: =IF(ISERROR(S81/VLOOKUP($B$7,objectifs!$D$4:$IA$373,232,FALSE)),"nc",S81/VLOOKUP($B$7,objectifs!$D$4:$IA$373,232,FALSE)) -> 0.8 | V81: 73% | W81: 73% | X81: 0.2
B82: Booster AUTO & MRH | E82: =E79+E80 -> 2,361 | F82: =K82 -> 40 € | G82: 5.00 | H82: =E82*F82*G82/1000 -> 472 | J82: =J79+J80 -> 8,181 | K82: 40 € | L82: =objectifs!$GE$3 -> 5.00 | M82: =VLOOKUP($B$7,'Indicateurs Cumulés'!$D$3:$MX$391,68,FALSE)+VLOOKUP($B$7,'Indicateurs Cumulés'!$D$3:$MX$391,69,FALSE) -> 1,636 | N82: =IF(ISERROR(M82/VLOOKUP($B$7,'Indicateurs Cumulés'!$D$3:$MX$391,223,FALSE)),"nc",M82/VLOOKUP($B$7,'Indicateurs Cumulés'!$D$3:$MX$391,223,FALSE)) -> 1.2
B84: BANCA PRO - Ventes nettes | E84: =SUM(E85:E91) -> 329 | H84: =SUM(H85:H91) -> 863 | J84: =SUM(J85:J90) -> 2,023 | M84: =SUM(M85:M91) -> 2,744 | N84: =IF(ISERROR(M84/VLOOKUP($B$7,'Indicateurs Cumulés'!$D$3:$MX$391,223,FALSE)),"nc",M84/VLOOKUP($B$7,'Indicateurs Cumulés'!$D$3:$MX$391,223,FALSE)) -> 2.0 | P84: =SUM(P85:P91) -> 4,570 | S84: =SUM(S85:S91) -> 4,913 | T84: =IF(ISERROR(S84/VLOOKUP($B$7,objectifs!$D$4:$IA$373,232,FALSE)),"nc",S84/VLOOKUP($B$7,objectifs!$D$4:$IA$373,232,FALSE)) -> 3.2 | V84: =IF(ISERROR(J84/P84),0,J84/P84) -> 44% | W84: =IF(ISERROR(M84/S84),0,M84/S84) -> 56% | X84: =IF(ISERROR(N84-(T84/12*MONTH($C$9))),"nc",N84-(T84/12*MONTH($C$9))) -> 0.4
B85: Forfaits PRO - Tarification | E85: =J85-(VLOOKUP($B$7,'Indicateurs Cumulés M-1'!$D$3:$MX$390,284,FALSE)+VLOOKUP($B$7,'Indicateurs Cumulés M-1'!$D$3:$MX$390,286,FALSE)) -> 131 | F85: =K85 -> 265 € | G85: =L85 -> 5.00 | H85: =E85*F85*G85/1000 -> 174 | J85: =VLOOKUP($B$7,'Indicateurs Cumulés'!$D$3:$MX$391,284,FALSE)+VLOOKUP($B$7,'Indicateurs Cumulés'!$D$3:$MX$391,286,FALSE) -> 830 | K85: =IF(ISERROR(M85/(J85*L85)*1000),0,M85/(J85*L85)*1000) -> 265 € | L85: =objectifs!$HD$3 -> 5.00 | M85: =(VLOOKUP($B$7,'Indicateurs Cumulés'!$D$3:$MX$391,290,FALSE)+VLOOKUP($B$7,'Indicateurs Cumulés'!$D$3:$MX$391,292,FALSE)) -> 1,101 | N85: =IF(ISERROR(M85/VLOOKUP($B$7,'Indicateurs Cumulés'!$D$3:$MX$391,223,FALSE)),"nc",M85/VLOOKUP($B$7,'Indicateurs Cumulés'!$D$3:$MX$391,223,FALSE)) -> 0.8 | P85: =VLOOKUP($B$7,objectifs!$D$3:$ZZ$391,203,FALSE)+VLOOKUP($B$7,objectifs!$D$3:$ZZ$391,205,FALSE) -> 1,500 | Q85: =IF(ISERROR(S85/(P85*R85)*1000),0,S85/(P85*R85)*1000) -> 204 € | R85: =objectifs!$HD$3 -> 5.00 | S85: =VLOOKUP($B$7,objectifs!$D$3:$ZZ$391,209,FALSE)+VLOOKUP($B$7,objectifs!$D$3:$ZZ$391,211,FALSE) -> 1,529 | T85: =IF(ISERROR(S85/VLOOKUP($B$7,objectifs!$D$4:$IA$373,232,FALSE)),"nc",S85/VLOOKUP($B$7,objectifs!$D$4:$IA$373,232,FALSE)) -> 1.0 | V85: 55% | W85: 72% | X85: 0.3
B86: Cartes PRO - Tarification | E86: =J86-(VLOOKUP($B$7,'Indicateurs Cumulés M-1'!$D$3:$MX$390,287,FALSE)+VLOOKUP($B$7,'Indicateurs Cumulés M-1'!$D$3:$MX$390,288,FALSE)+VLOOKUP($B$7,'Indicateurs Cumulés M-1'!$D$3:$MX$390,285,FALSE)) -> 76 | F86: 96 € | G86: 5.00 | H86: =E86*F86*G86/1000 -> 36 | J86: =VLOOKUP($B$7,'Indicateurs Cumulés'!$D$3:$MX$391,287,FALSE)+VLOOKUP($B$7,'Indicateurs Cumulés'!$D$3:$MX$391,288,FALSE)+VLOOKUP($B$7,'Indicateurs Cumulés'!$D$3:$MX$391,285,FALSE) -> 595 | K86: =IF(ISERROR(M86/(J86*L86)*1000),0,M86/(J86*L86)*1000) -> 96 € | L86: =objectifs!$HE$3 -> 5.00 | M86: =(VLOOKUP($B$7,'Indicateurs Cumulés'!$D$3:$MX$391,293,FALSE)+VLOOKUP($B$7,'Indicateurs Cumulés'!$D$3:$MX$391,291,FALSE)+VLOOKUP($B$7,'Indicateurs Cumulés'!$D$3:$MX$391,294,FALSE)) -> 285 | N86: =IF(ISERROR(M86/VLOOKUP($B$7,'Indicateurs Cumulés'!$D$3:$MX$391,223,FALSE)),"nc",M86/VLOOKUP($B$7,'Indicateurs Cumulés'!$D$3:$MX$391,223,FALSE)) -> 0.2 | P86: =VLOOKUP($B$7,objectifs!$D$3:$ZZ$391,204,FALSE)+VLOOKUP($B$7,objectifs!$D$3:$ZZ$391,206,FALSE)+VLOOKUP($B$7,objectifs!$D$3:$ZZ$391,207,FALSE) -> 1,000 | Q86: =IF(ISERROR(S86/(P86*R86)*1000),0,S86/(P86*R86)*1000) -> 150 € | R86: =objectifs!$HE$3 -> 5.00 | S86: =VLOOKUP($B$7,objectifs!$D$3:$ZZ$391,210,FALSE)+VLOOKUP($B$7,objectifs!$D$3:$ZZ$391,212,FALSE)+VLOOKUP($B$7,objectifs!$D$3:$ZZ$391,213,FALSE) -> 748 | T86: =IF(ISERROR(S86/VLOOKUP($B$7,objectifs!$D$4:$IA$373,232,FALSE)),"nc",S86/VLOOKUP($B$7,objectifs!$D$4:$IA$373,232,FALSE)) -> 0.5 | V86: 60% | W86: 38% | X86: -0.0
B87: AUTO PRO (ventes brutes) - Commissions | E87: =J87-VLOOKUP($B$7,'Indicateurs Cumulés M-1'!$D$3:$MX$390,74,FALSE) -> 21 | F87: 100 € | G87: 2.75 | H87: =E87*F87*G87/1000 -> 6 | J87: =VLOOKUP($B$7,'Indicateurs Cumulés'!$D$3:$MX$391,74,FALSE) -> 101 | K87: =IF(ISERROR(M87/(J87*L87)*1000),0,M87/(J87*L87)*1000) -> 100 € | L87: =objectifs!$HX$3 -> 2.75 | M87: =VLOOKUP($B$7,'Indicateurs Cumulés'!$D$3:$MX$391,75,FALSE) -> 28 | N87: =IF(ISERROR(M87/VLOOKUP($B$7,'Indicateurs Cumulés'!$D$3:$MX$391,223,FALSE)),"nc",M87/VLOOKUP($B$7,'Indicateurs Cumulés'!$D$3:$MX$391,223,FALSE)) -> 0.0 | P87: =VLOOKUP($B$7,objectifs!$D$3:$ZZ$391,226,FALSE) -> 340 | Q87: =IF(ISERROR(S87/(P87*R87)*1000),0,S87/(P87*R87)*1000) -> 100 € | R87: =objectifs!$HX$3 -> 2.75 | S87: =VLOOKUP($B$7,objectifs!$D$3:$ZZ$391,229,FALSE) -> 94 | T87: =IF(ISERROR(S87/VLOOKUP($B$7,objectifs!$D$4:$IA$373,232,FALSE)),"nc",S87/VLOOKUP($B$7,objectifs!$D$4:$IA$373,232,FALSE)) -> 0.1 | V87: 30% | W87: 30% | X87: -0.0
B88: Multirisque PRO (ventes brutes) - Commissions | E88: =J88-VLOOKUP($B$7,'Indicateurs Cumulés M-1'!$D$3:$MX$390,76,FALSE) -> 26 | F88: 30 € | G88: 3.96 | H88: 3 | J88: =VLOOKUP($B$7,'Indicateurs Cumulés'!$D$3:$MX$391,76,FALSE) -> 99 | K88: 30 € | L88: =objectifs!$HY$3 -> 3.96 | M88: =VLOOKUP($B$7,'Indicateurs Cumulés'!$D$3:$MX$391,77,FALSE) -> 12 | N88: =IF(ISERROR(M88/VLOOKUP($B$7,'Indicateurs Cumulés'!$D$3:$MX$391,223,FALSE)),"nc",M88/VLOOKUP($B$7,'Indicateurs Cumulés'!$D$3:$MX$391,223,FALSE)) -> 0.0 | P88: =VLOOKUP($B$7,objectifs!$D$3:$ZZ$391,227,FALSE) -> 510 | Q88: 30 € | R88: =objectifs!$HY$3 -> 3.96 | S88: =VLOOKUP($B$7,objectifs!$D$3:$ZZ$391,230,FALSE) -> 61 | T88: =IF(ISERROR(S88/VLOOKUP($B$7,objectifs!$D$4:$IA$373,232,FALSE)),"nc",S88/VLOOKUP($B$7,objectifs!$D$4:$IA$373,232,FALSE)) -> 0.0 | V88: 19% | W88: 19% | X88: -0.0
B89: PAP - Commissions | E89: =J89-VLOOKUP($B$7,'Indicateurs Cumulés M-1'!$D$3:$MX$390,289,FALSE) -> 63 | F89: 18 € | G89: 5.00 | H89: 6 | J89: =VLOOKUP($B$7,'Indicateurs Cumulés'!$D$3:$MX$391,289,FALSE) -> 259 | K89: 18 € | L89: =objectifs!$HI$3 -> 5.00 | M89: =VLOOKUP($B$7,'Indicateurs Cumulés'!$D$3:$MX$391,295,FALSE) -> 23 | N89: =IF(ISERROR(M89/VLOOKUP($B$7,'Indicateurs Cumulés'!$D$3:$MX$391,223,FALSE)),"nc",M89/VLOOKUP($B$7,'Indicateurs Cumulés'!$D$3:$MX$391,223,FALSE)) -> 0.0 | P89: =VLOOKUP($B$7,objectifs!$D$3:$ZZ$391,208,FALSE) -> 480 | Q89: 18 € | R89: =objectifs!$HI$3 -> 5.00 | S89: =VLOOKUP($B$7,objectifs!$D$3:$ZZ$391,214,FALSE) -> 42 | T89: =IF(ISERROR(S89/VLOOKUP($B$7,objectifs!$D$4:$IA$373,232,FALSE)),"nc",S89/VLOOKUP($B$7,objectifs!$D$4:$IA$373,232,FALSE)) -> 0.0 | V89: 54% | W89: 54% | X89: 0.0
B90: Contrats monétiques actifs - Commissions | E90: =J90-VLOOKUP($B$7,'Indicateurs Cumulés M-1'!$D$3:$MX$390,78,FALSE) -> 12 | F90: 100 € | G90: 5.00 | H90: 6 | J90: =VLOOKUP($B$7,'Indicateurs Cumulés'!$D$3:$MX$391,78,FALSE) -> 139 | K90: =IF(ISERROR(M90/(J90*L90)*1000),0,M90/(J90*L90)*1000) -> 100 € | L90: =objectifs!$HZ$3 -> 5.00 | M90: =VLOOKUP($B$7,'Indicateurs Cumulés'!$D$3:$MX$391,79,FALSE) -> 70 | N90: =IF(ISERROR(M90/VLOOKUP($B$7,'Indicateurs Cumulés'!$D$3:$MX$391,223,FALSE)),"nc",M90/VLOOKUP($B$7,'Indicateurs Cumulés'!$D$3:$MX$391,223,FALSE)) -> 0.1 | P90: =VLOOKUP($B$7,objectifs!$D$3:$ZZ$391,228,FALSE) -> 740 | Q90: =IF(ISERROR(S90/(P90*R90)*1000),0,S90/(P90*R90)*1000) -> 100 € | R90: =objectifs!$HZ$3 -> 5.00 | S90: =VLOOKUP($B$7,objectifs!$D$3:$ZZ$391,231,FALSE) -> 370 | T90: =IF(ISERROR(S90/VLOOKUP($B$7,objectifs!$D$4:$IA$373,232,FALSE)),"nc",S90/VLOOKUP($B$7,objectifs!$D$4:$IA$373,232,FALSE)) -> 0.2 | V90: 19% | W90: 19% | X90: -0.1
B91: Commisions de mouvement | H91: =VLOOKUP($B$7,'Indicateurs Cumulés'!$D$3:$MX$391,297,FALSE)-VLOOKUP($B$7,'Indicateurs Cumulés M-1'!$D$3:$MX$391,297,FALSE) -> 633 | M91: =VLOOKUP($B$7,'Indicateurs Cumulés'!$D$3:$MX$391,297,FALSE) -> 1,226 | N91: =IF(ISERROR(M91/VLOOKUP($B$7,'Indicateurs Cumulés'!$D$3:$MX$391,223,FALSE)),"nc",M91/VLOOKUP($B$7,'Indicateurs Cumulés'!$D$3:$MX$391,223,FALSE)) -> 0.9 | S91: =VLOOKUP($B$7,objectifs!$D$3:$ZZ$391,216,FALSE) -> 2,069 | T91: =IF(ISERROR(S91/VLOOKUP($B$7,objectifs!$D$4:$IA$373,232,FALSE)),"nc",S91/VLOOKUP($B$7,objectifs!$D$4:$IA$373,232,FALSE)) -> 1.4 | V91: 0% | W91: 59% | X91: 0.2
B93: BANCA PRO Relation privée - Ventes nettes | E93: =SUM(E94:E96) -> 238 | H93: =SUM(H94:H96) -> 206 | J93: =SUM(J94:J96) -> 328 | M93: =SUM(M94:M96) -> 31 | N93: =IF(ISERROR(M93/VLOOKUP($B$7,'Indicateurs Cumulés'!$D$3:$MX$391,223,FALSE)),"nc",M93/VLOOKUP($B$7,'Indicateurs Cumulés'!$D$3:$MX$391,223,FALSE)) -> 0.0 | P93: =SUM(P94:P96) -> 3,035 | Q93: =IF(ISERROR(S93/(P93*R93)*1000),0,S93/(P93*R93)*1000) -> 117 € | R93: =IF(ISERROR(SUMPRODUCT(R94:R96,P94:P96)/SUMPRODUCT(P94:P96)),0,SUMPRODUCT(R94:R96,P94:P96)/SUMPRODUCT(P94:P96)) -> 5.00 | S93: =SUM(S94:S96) -> 1,771 | T93: =IF(ISERROR(S93/VLOOKUP($B$7,objectifs!$D$4:$IA$373,232,FALSE)),"nc",S93/VLOOKUP($B$7,objectifs!$D$4:$IA$373,232,FALSE)) -> 1.2 | V93: =IF(ISERROR(J93/P93),0,J93/P93) -> 11% | W93: =IF(ISERROR(M93/S93),0,M93/S93) -> 2% | X93: =IF(ISERROR(N93-(T93/12*MONTH($C$9))),"nc",N93-(T93/12*MONTH($C$9))) -> -0.6
B94: Forfaits - Tarification | E94: =J94-VLOOKUP($B$7,'Indicateurs Cumulés M-1'!$D$3:$MX$390,314,FALSE) -> 71 | F94: =K94 -> 137 € | G94: 5.00 | H94: =E94*F94*G94/1000 -> 49 | J94: =VLOOKUP($B$7,'Indicateurs Cumulés'!$D$3:$MX$391,314,FALSE) -> 53 | K94: =objectifs!$GB$3 -> 137 € | L94: =objectifs!$GC$3 -> 5.00 | M94: =VLOOKUP($B$7,'Indicateurs Cumulés'!$D$3:$MX$391,315,FALSE) -> 36 | N94: =IF(ISERROR(M94/VLOOKUP($B$7,'Indicateurs Cumulés'!$D$3:$MX$391,223,FALSE)),"nc",M94/VLOOKUP($B$7,'Indicateurs Cumulés'!$D$3:$MX$391,223,FALSE)) -> 0.0 | P94: =VLOOKUP($B$7,objectifs!$D$3:$ZZ$391,181,FALSE)*5% -> 1,120 | Q94: =objectifs!$GB$3 -> 137 € | R94: =objectifs!$GC$3 -> 5.00 | S94: =P94*Q94*R94/1000 -> 769 | T94: =IF(ISERROR(S94/VLOOKUP($B$7,objectifs!$D$4:$IA$373,232,FALSE)),"nc",S94/VLOOKUP($B$7,objectifs!$D$4:$IA$373,232,FALSE)) -> 0.5 | V94: 5% | W94: 5% | X94: -0.2
B95: Cartes - Tarification | E95: =J95-VLOOKUP($B$7,'Indicateurs Cumulés M-1'!$D$3:$MX$390,316,FALSE) -> 104 | F95: 289 € | G95: 5.00 | H95: =E95*F95*G95/1000 -> 150 | J95: =VLOOKUP($B$7,'Indicateurs Cumulés'!$D$3:$MX$391,316,FALSE) -> -25 | K95: =objectifs!$GD$3 -> 289 € | L95: =objectifs!$GE$3 -> 5.00 | M95: =VLOOKUP($B$7,'Indicateurs Cumulés'!$D$3:$MX$391,317,FALSE) -> -36 | N95: =IF(ISERROR(M95/VLOOKUP($B$7,'Indicateurs Cumulés'!$D$3:$MX$391,223,FALSE)),"nc",M95/VLOOKUP($B$7,'Indicateurs Cumulés'!$D$3:$MX$391,223,FALSE)) -> -0.0 | P95: =VLOOKUP($B$7,objectifs!$D$3:$ZZ$391,183,FALSE)*5% -> 600 | Q95: =objectifs!$GD$3 -> 289 € | R95: =objectifs!$GE$3 -> 5.00 | S95: =P95*Q95*R95/1000 -> 868 | T95: =IF(ISERROR(S95/VLOOKUP($B$7,objectifs!$D$4:$IA$373,232,FALSE)),"nc",S95/VLOOKUP($B$7,objectifs!$D$4:$IA$373,232,FALSE)) -> 0.6 | V95: -4% | W95: -4% | X95: -0.3
B96: IARD & Prévoyance - Commissions | E96: =J96-VLOOKUP($B$7,'Indicateurs Cumulés M-1'!$D$3:$MX$390,318,FALSE) -> 63 | F96: 20 € | G96: 5.00 | H96: 6 | J96: =VLOOKUP($B$7,'Indicateurs Cumulés'!$D$3:$MX$391,318,FALSE) -> 300 | K96: =objectifs!$GF$3 -> 20 € | L96: =objectifs!$GG$3 -> 5.00 | M96: =VLOOKUP($B$7,'Indicateurs Cumulés'!$D$3:$MX$391,319,FALSE) -> 31 | N96: =IF(ISERROR(M96/VLOOKUP($B$7,'Indicateurs Cumulés'!$D$3:$MX$391,223,FALSE)),"nc",M96/VLOOKUP($B$7,'Indicateurs Cumulés'!$D$3:$MX$391,223,FALSE)) -> 0.0 | P96: =VLOOKUP($B$7,objectifs!$D$3:$ZZ$391,185,FALSE)*5% -> 1,315 | Q96: =objectifs!$GF$3 -> 20 € | R96: =objectifs!$GG$3 -> 5.00 | S96: =P96*Q96*R96/1000 -> 135 | T96: =IF(ISERROR(S96/VLOOKUP($B$7,objectifs!$D$4:$IA$373,232,FALSE)),"nc",S96/VLOOKUP($B$7,objectifs!$D$4:$IA$373,232,FALSE)) -> 0.1 | V96: 23% | W96: 23% | X96: -0.0
B98: AUTRES | H98: =H99+H103 -> -237 | M98: =M99+M103 -> -2,453 | N98: =IF(ISERROR(M98/VLOOKUP($B$7,'Indicateurs Cumulés'!$D$3:$MX$391,223,FALSE)),"nc",M98/VLOOKUP($B$7,'Indicateurs Cumulés'!$D$3:$MX$391,223,FALSE)) -> -1.8 | S98: =S99+S103 -> -3,348 | T98: =IF(ISERROR(S98/VLOOKUP($B$7,objectifs!$D$4:$IA$373,232,FALSE)),"nc",S98/VLOOKUP($B$7,objectifs!$D$4:$IA$373,232,FALSE)) -> -2.2 | W98: =IF(ISERROR(M98/S98),0,M98/S98) -> 73% | X98: =IF(ISERROR(N98-(T98/12*MONTH($C$9))),"nc",N98-(T98/12*MONTH($C$9))) -> -0.7
B99: Remises commerciales | H99: =M99-VLOOKUP($B$7,'Indicateurs Cumulés M-1'!$D$3:$MX$390,217,FALSE) -> -409 | M99: =VLOOKUP($B$7,'Indicateurs Cumulés'!$D$3:$MX$391,217,FALSE) -> -3,068 | N99: =IF(ISERROR(M99/VLOOKUP($B$7,'Indicateurs Cumulés'!$D$3:$MX$391,223,FALSE)),"nc",M99/VLOOKUP($B$7,'Indicateurs Cumulés'!$D$3:$MX$391,223,FALSE)) -> -2.2 | S99: =VLOOKUP($B$7,objectifs!$D$3:$ZZ$391,172,FALSE) -> -5,200 | T99: =IF(ISERROR(S99/VLOOKUP($B$7,objectifs!$D$4:$IA$373,232,FALSE)),"nc",S99/VLOOKUP($B$7,objectifs!$D$4:$IA$373,232,FALSE)) -> -3.4 | W99: 59% | X99: -0.5
B100: dont hors MAD | N100: =IF(ISERROR(M100/VLOOKUP($B$7,'Indicateurs Cumulés'!$D$3:$MX$391,223,FALSE)),"nc",M100/VLOOKUP($B$7,'Indicateurs Cumulés'!$D$3:$MX$391,223,FALSE)) -> 0.0 | S100: -2,800 | T100: =IF(ISERROR(S100/VLOOKUP($B$7,objectifs!$D$4:$IA$373,232,FALSE)),"nc",S100/VLOOKUP($B$7,objectifs!$D$4:$IA$373,232,FALSE)) -> -1.8 | W100: 0% | X100: 0.9
B101: dont MAD | N101: =IF(ISERROR(M101/VLOOKUP($B$7,'Indicateurs Cumulés'!$D$3:$MX$391,223,FALSE)),"nc",M101/VLOOKUP($B$7,'Indicateurs Cumulés'!$D$3:$MX$391,223,FALSE)) -> 0.0 | S101: -1,700 | T101: =IF(ISERROR(S101/VLOOKUP($B$7,objectifs!$D$4:$IA$373,232,FALSE)),"nc",S101/VLOOKUP($B$7,objectifs!$D$4:$IA$373,232,FALSE)) -> -1.1 | W101: 0% | X101: 0.6
B102: dont PRO | H102: =M102 -> 0 | M102: =VLOOKUP($B$7,'Indicateurs Cumulés'!$D$3:$MX$391,73,FALSE) -> 0 | N102: =IF(ISERROR(M102/VLOOKUP($B$7,'Indicateurs Cumulés'!$D$3:$MX$391,223,FALSE)),"nc",M102/VLOOKUP($B$7,'Indicateurs Cumulés'!$D$3:$MX$391,223,FALSE)) -> 0.0 | S102: -700 | T102: =IF(ISERROR(S102/VLOOKUP($B$7,objectifs!$D$4:$IA$373,232,FALSE)),"nc",S102/VLOOKUP($B$7,objectifs!$D$4:$IA$373,232,FALSE)) -> -0.5 | W102: 0% | X102: 0.2
B103: Commissions immobilières | H103: =M103-(VLOOKUP($B$7,'Indicateurs Cumulés M-1'!$D$3:$MX$390,221,FALSE)*'Indicateurs Cumulés M-1'!$HP$3 +VLOOKUP($B$7,'Indicateurs Cumulés M-1'!$D$3:$MX$390,307,FALSE)*'Indicateurs Cumulés M-1'!$KX$3 +VLOOKUP($B$7,'Indicateurs Cumulés M-1'!$D$3:$MX$390,262,FALSE)*'Indicateurs Cumulés M-1'!$JE$3) -> 173 | M103: =VLOOKUP($B$7,'Indicateurs Cumulés'!$D$3:$MX$391,221,FALSE)*'Indicateurs Cumulés'!$HP$3 +VLOOKUP($B$7,'Indicateurs Cumulés'!$D$3:$MX$391,307,FALSE)*'Indicateurs Cumulés'!$KX$3 +VLOOKUP($B$7,'Indicateurs Cumulés'!$D$3:$MX$391,262,FALSE)*'Indicateurs Cumulés'!$JE$3 +VLOOKUP($B$7,'Indicateurs Cumulés'!$D$3:$MX$391,263,FALSE)*'Indicateurs Cumulés'!$JF$3 -> 615 | N103: =IF(ISERROR(M103/VLOOKUP($B$7,'Indicateurs Cumulés'!$D$3:$MX$391,223,FALSE)),"nc",M103/VLOOKUP($B$7,'Indicateurs Cumulés'!$D$3:$MX$391,223,FALSE)) -> 0.4 | S103: =VLOOKUP($B$7,objectifs!$D$3:$ZZ$391,176,FALSE) -> 1,852 | T103: =IF(ISERROR(S103/VLOOKUP($B$7,objectifs!$D$4:$IA$373,232,FALSE)),"nc",S103/VLOOKUP($B$7,objectifs!$D$4:$IA$373,232,FALSE)) -> 1.2 | W103: 33% | X103: -0.2
B105: PNB BDD sur Activité Nouvelle | H105: =H14+H41+H47+H61+H98+H55+H84+H93 -> 21,425 | M105: =M14+M41+M47+M61+M98+M55+M84+M93 -> 89,647 | N105: =IF(ISERROR(M105/VLOOKUP($B$7,'Indicateurs Cumulés'!$D$3:$MX$391,223,FALSE)),"nc",M105/VLOOKUP($B$7,'Indicateurs Cumulés'!$D$3:$MX$391,223,FALSE)) -> 65.5 | S105: =S14+S41+S47+S61+S98+S55+S84+S93 -> 204,509 | T105: =IF(ISERROR(S105/VLOOKUP($B$7,objectifs!$D$4:$IA$373,232,FALSE)),"nc",S105/VLOOKUP($B$7,objectifs!$D$4:$IA$373,232,FALSE)) -> 134.6 | W105: =IF(ISERROR(M105/S105),0,M105/S105) -> 43.8% | X105: =IF(ISERROR(N105-(T105/12*MONTH($C$9))),"nc",N105-(T105/12*MONTH($C$9))) -> -1.8
B107: BONUS DIGITAL | E107: Volume | F107: Montant | G107: Durée | H107: PNB | J107: Volume | K107: Montant | L107: Durée | M107: PNB | N107: PNB / ETP perf. | P107: Volume | Q107: Montant | R107: Durée | S107: PNB | T107: PNB / ETP Cible | V107: Volume | W107: PNB annuel | X107: Ecart /obj. PNB/ETP
B108: Evolution stock clients actifs BAD (1 connexion / mois sur 3 mois) | E108: =VLOOKUP($B$7,'Indicateurs mensuels'!$D$3:$KI$391,230,FALSE) -> -1,604 | F108: 15 € | G108: 5.00 | H108: =VLOOKUP($B$7,'Indicateurs mensuels'!$D$3:$KI$391,236,FALSE) -> 0 | J108: =VLOOKUP($B$7,'Indicateurs Cumulés'!$D$3:$MX$391,327,FALSE) -> 41,276 | K108: 15 € | L108: 5.00 | M108: =VLOOKUP($B$7,'Indicateurs Cumulés'!$D$3:$MX$391,333,FALSE) -> 3,096 | N108: =IF(ISERROR(M108/VLOOKUP($B$7,'Indicateurs Cumulés'!$D$3:$MX$391,223,FALSE)),"nc",M108/VLOOKUP($B$7,'Indicateurs Cumulés'!$D$3:$MX$391,223,FALSE)) -> 2.3
B109: Nombre de SED finalisées (en brut) | E109: =VLOOKUP($B$7,'Indicateurs mensuels'!$D$3:$KI$391,231,FALSE) -> 4,776 | F109: 10 € | G109: 1.00 | H109: =VLOOKUP($B$7,'Indicateurs mensuels'!$D$3:$KI$391,237,FALSE) -> 48 | J109: =VLOOKUP($B$7,'Indicateurs Cumulés'!$D$3:$MX$391,328,FALSE) -> 27,896 | K109: 10 € | L109: 1.00 | M109: =VLOOKUP($B$7,'Indicateurs Cumulés'!$D$3:$MX$391,334,FALSE) -> 279 | N109: =IF(ISERROR(M109/VLOOKUP($B$7,'Indicateurs Cumulés'!$D$3:$MX$391,223,FALSE)),"nc",M109/VLOOKUP($B$7,'Indicateurs Cumulés'!$D$3:$MX$391,223,FALSE)) -> 0.2
B110: Nombre de SAG finalisées (périmètre SAG hors OPC en brut) | E110: =VLOOKUP($B$7,'Indicateurs mensuels'!$D$3:$KI$391,232,FALSE) -> 72,761 | F110: 3 € | G110: 1.00 | H110: =VLOOKUP($B$7,'Indicateurs mensuels'!$D$3:$KI$391,238,FALSE) -> 218 | J110: =VLOOKUP($B$7,'Indicateurs Cumulés'!$D$3:$MX$391,329,FALSE) -> 210,813 | K110: 3 € | L110: 1.00 | M110: =VLOOKUP($B$7,'Indicateurs Cumulés'!$D$3:$MX$391,335,FALSE) -> 632 | N110: =IF(ISERROR(M110/VLOOKUP($B$7,'Indicateurs Cumulés'!$D$3:$MX$391,223,FALSE)),"nc",M110/VLOOKUP($B$7,'Indicateurs Cumulés'!$D$3:$MX$391,223,FALSE)) -> 0.5
B111: Evolution stock de clients équipés E-documents | E111: =VLOOKUP($B$7,'Indicateurs mensuels'!$D$3:$KI$391,233,FALSE) -> 1,196 | F111: 10 € | G111: 5.00 | H111: =VLOOKUP($B$7,'Indicateurs mensuels'!$D$3:$KI$391,239,FALSE) -> 60 | J111: =VLOOKUP($B$7,'Indicateurs Cumulés'!$D$3:$MX$391,330,FALSE) -> 20,386 | K111: 10 € | L111: 5.00 | M111: =VLOOKUP($B$7,'Indicateurs Cumulés'!$D$3:$MX$391,336,FALSE) -> 1,019 | N111: =IF(ISERROR(M111/VLOOKUP($B$7,'Indicateurs Cumulés'!$D$3:$MX$391,223,FALSE)),"nc",M111/VLOOKUP($B$7,'Indicateurs Cumulés'!$D$3:$MX$391,223,FALSE)) -> 0.7
B112: Evolution stock de clients avec Opt-in-mail et tél. | E112: =VLOOKUP($B$7,'Indicateurs mensuels'!$D$3:$KI$391,234,FALSE) -> 3,114 | F112: 5 € | G112: 3.00 | H112: =VLOOKUP($B$7,'Indicateurs mensuels'!$D$3:$KI$391,240,FALSE) -> 47 | J112: =VLOOKUP($B$7,'Indicateurs Cumulés'!$D$3:$MX$391,331,FALSE) -> 10,093 | K112: 5 € | L112: 3.00 | M112: =VLOOKUP($B$7,'Indicateurs Cumulés'!$D$3:$MX$391,337,FALSE) -> 151 | N112: =IF(ISERROR(M112/VLOOKUP($B$7,'Indicateurs Cumulés'!$D$3:$MX$391,223,FALSE)),"nc",M112/VLOOKUP($B$7,'Indicateurs Cumulés'!$D$3:$MX$391,223,FALSE)) -> 0.1
B113: Evolution stock de clients équipés Sécurpass | E113: =VLOOKUP($B$7,'Indicateurs mensuels'!$D$3:$KI$391,235,FALSE) -> 2,501 | F113: 1 € | G113: 5.00 | H113: =VLOOKUP($B$7,'Indicateurs mensuels'!$D$3:$KI$391,241,FALSE) -> 13 | J113: =VLOOKUP($B$7,'Indicateurs Cumulés'!$D$3:$MX$391,332,FALSE) -> 6,600 | K113: 1 € | L113: 5.00 | M113: =VLOOKUP($B$7,'Indicateurs Cumulés'!$D$3:$MX$391,338,FALSE) -> 33 | N113: =IF(ISERROR(M113/VLOOKUP($B$7,'Indicateurs Cumulés'!$D$3:$MX$391,223,FALSE)),"nc",M113/VLOOKUP($B$7,'Indicateurs Cumulés'!$D$3:$MX$391,223,FALSE)) -> 0.0
B115: PNB sur Bonus digital | H115: =SUM(H108:H114) -> 385 | M115: =SUM(M108:M114) -> 5,211 | N115: =IF(ISERROR(M115/VLOOKUP($B$7,'Indicateurs Cumulés'!$D$3:$MX$391,223,FALSE)),"nc",M115/VLOOKUP($B$7,'Indicateurs Cumulés'!$D$3:$MX$391,223,FALSE)) -> 3.8
B117: PNB Part variable | H117: =H115+H105 -> 21,810 | M117: =+M105+M115 -> 94,858 | N117: =IF(ISERROR(M117/VLOOKUP($B$7,'Indicateurs Cumulés'!$D$3:$MX$391,223,FALSE)),"nc",M117/VLOOKUP($B$7,'Indicateurs Cumulés'!$D$3:$MX$391,223,FALSE)) -> 69.3 | S117: =+S105+S115 -> 204,509 | T117: =IF(ISERROR(S117/VLOOKUP($B$7,objectifs!$D$4:$IA$373,232,FALSE)),"nc",S117/VLOOKUP($B$7,objectifs!$D$4:$IA$373,232,FALSE)) -> 134.6 | W117: =IF(ISERROR(M117/S117),0,M117/S117) -> 46.4% | X117: =IF(ISERROR(N117-(T117/12*MONTH($C$9))),"nc",N117-(T117/12*MONTH($C$9))) -> 2.0
B120: COLLECTE PRO (yc DAV) - Excédents | E120: =SUM(E121:E124) -> 4,624 | H120: =SUM(H121:H124) -> 147 | J120: =SUM(J121:J124) -> 39,665 | M120: =SUM(M121:M124) -> 1,444 | N120: =IF(ISERROR(M120/VLOOKUP($B$7,'Indicateurs Cumulés'!$D$3:$MX$391,223,FALSE)),"nc",M120/VLOOKUP($B$7,'Indicateurs Cumulés'!$D$3:$MX$391,223,FALSE)) -> 1.1 | P120: =SUM(P121:P124) -> 40,000 | S120: =SUM(S121:S124) -> 1,601 | T120: =IF(ISERROR(S120/VLOOKUP($B$7,objectifs!$D$4:$IA$373,232,FALSE)),"nc",S120/VLOOKUP($B$7,objectifs!$D$4:$IA$373,232,FALSE)) -> 1.1 | V120: =IF(ISERROR(J120/P120),0,J120/P120) -> 99% | W120: =IF(ISERROR(M120/S120),0,M120/S120) -> 90% | X120: =IF(ISERROR(N120-(T120/12*MONTH($C$9))),"nc",N120-(T120/12*MONTH($C$9))) -> 0.5
B121: DAV Créditeurs PRO - Variation d'EMJ mensuel | E121: =VLOOKUP($B$7,'Indicateurs mensuels'!$D$3:$KI$391,221,FALSE)/12 -> 548 | F121: =K121 -> 1.00% | G121: 5.37 | H121: =E121*F121*G121 -> 29 | J121: =VLOOKUP($B$7,'Indicateurs Cumulés'!$D$3:$MX$391,275,FALSE) -> 1,461 | K121: =VLOOKUP($B$7,'Indicateurs Cumulés'!$D$3:$MX$391,186,FALSE) -> 1.00% | L121: =VLOOKUP($B$7,'Indicateurs Cumulés'!$D$3:$MX$391,187,FALSE) -> 5.37 | M121: =J121*K121*L121 -> 78 | N121: =IF(ISERROR(M121/VLOOKUP($B$7,'Indicateurs Cumulés'!$D$3:$MX$391,223,FALSE)),"nc",M121/VLOOKUP($B$7,'Indicateurs Cumulés'!$D$3:$MX$391,223,FALSE)) -> 0.1 | P121: =VLOOKUP($B$7,objectifs!$D$3:$ZZ$391,194,FALSE) -> 15,000 | Q121: =VLOOKUP($B$7,objectifs!$D$3:$ZZ$391,158,FALSE) -> 1.00% | R121: =VLOOKUP($B$7,objectifs!$D$3:$ZZ$391,159,FALSE) -> 5.37 | S121: =P121*Q121*R121 -> 806 | T121: =IF(ISERROR(S121/VLOOKUP($B$7,objectifs!$D$4:$IA$373,232,FALSE)),"nc",S121/VLOOKUP($B$7,objectifs!$D$4:$IA$373,232,FALSE)) -> 0.5 | V121: 10% | W121: 10% | X121: -0.2
B122: Compte Excédent Pro | E122: =VLOOKUP($B$7,'Indicateurs mensuels'!$D$3:$KI$391,222,FALSE) -> 5,707 | F122: 0.60% | G122: 5.37 | H122: =E122*F122*G122 -> 184 | J122: =VLOOKUP($B$7,'Indicateurs Cumulés'!$D$3:$MX$391,273,FALSE) -> 30,308 | K122: ='Indicateurs Cumulés'!$JP$3 -> 0.60% | L122: ='Indicateurs Cumulés'!$JW$3 -> 5.37 | M122: =J122*K122*L122 -> 977 | N122: =IF(ISERROR(M122/VLOOKUP($B$7,'Indicateurs Cumulés'!$D$3:$MX$391,223,FALSE)),"nc",M122/VLOOKUP($B$7,'Indicateurs Cumulés'!$D$3:$MX$391,223,FALSE)) -> 0.7 | P122: =VLOOKUP($B$7,objectifs!$D$3:$ZZ$391,192,FALSE) -> 25,000 | Q122: =VLOOKUP($B$7,objectifs!$D$3:$ZZ$391,90,FALSE) -> 0.60% | R122: =VLOOKUP($B$7,objectifs!$D$3:$ZZ$391,91,FALSE) -> 5.37 | S122: =P122*Q122*R122 -> 806 | T122: =IF(ISERROR(S122/VLOOKUP($B$7,objectifs!$D$4:$IA$373,232,FALSE)),"nc",S122/VLOOKUP($B$7,objectifs!$D$4:$IA$373,232,FALSE)) -> 0.5 | V122: 121% | W122: 121% | X122: 0.4
B123: Assurance Vie | E123: =VLOOKUP($B$7,'Indicateurs mensuels'!$D$3:$KI$391,71,FALSE) -> 2,216 | F123: 0.45% | G123: 8.00 | H123: =E123*F123*G123 -> 80 | J123: =VLOOKUP($B$7,'Indicateurs Cumulés'!$D$3:$MX$391,272,FALSE) -> 9,652 | K123: ='Indicateurs Cumulés'!$JO$3 -> 0.45% | L123: ='Indicateurs Cumulés'!$JV$3 -> 8.00 | M123: =J123*K123*L123 -> 347 | N123: =IF(ISERROR(M123/VLOOKUP($B$7,'Indicateurs Cumulés'!$D$3:$MX$391,223,FALSE)),"nc",M123/VLOOKUP($B$7,'Indicateurs Cumulés'!$D$3:$MX$391,223,FALSE)) -> 0.3 | P123: =VLOOKUP($B$7,objectifs!$D$3:$ZZ$391,191,FALSE) -> 6,000 | Q123: =VLOOKUP($B$7,objectifs!$D$3:$ZZ$391,130,FALSE) -> 0.45% | R123: =VLOOKUP($B$7,objectifs!$D$3:$ZZ$391,131,FALSE) -> 8.00 | S123: =P123*Q123*R123 -> 216 | T123: =IF(ISERROR(S123/VLOOKUP($B$7,objectifs!$D$4:$IA$373,232,FALSE)),"nc",S123/VLOOKUP($B$7,objectifs!$D$4:$IA$373,232,FALSE)) -> 0.1 | V123: 161% | W123: 161% | X123: 0.2
B124: Autres | E124: =VLOOKUP($B$7,'Indicateurs mensuels'!$D$3:$HW$391,224,FALSE)+VLOOKUP($B$7,'Indicateurs mensuels'!$D$3:$HW$391,225,FALSE) +VLOOKUP($B$7,'Indicateurs mensuels'!$D$3:$HW$391,226,FALSE)+VLOOKUP($B$7,'Indicateurs mensuels'!$D$3:$HW$391,227,FALSE) -> -3,846 | F124: =H124/E124/G124 -> 0.42% | G124: =L124 -> 9.00 | H124: =VLOOKUP($B$7,'Indicateurs mensuels'!$D$3:$HW$391,228,FALSE) -> -147 | J124: =VLOOKUP($B$7,'Indicateurs Cumulés'!$D$3:$MX$391,268,FALSE)+VLOOKUP($B$7,'Indicateurs Cumulés'!$D$3:$MX$391,270,FALSE) +VLOOKUP($B$7,'Indicateurs Cumulés'!$D$3:$MX$391,274,FALSE)+VLOOKUP($B$7,'Indicateurs Cumulés'!$D$3:$MX$391,303,FALSE) -> -1,756 | K124: =M124/J124/L124 -> -0.26% | L124: ='Indicateurs Cumulés'!$JS$3 -> 9.00 | M124: =VLOOKUP($B$7,'Indicateurs Cumulés'!$D$3:$MX$391,276,FALSE)+VLOOKUP($B$7,'Indicateurs Cumulés'!$D$3:$MX$391,277,FALSE) +VLOOKUP($B$7,'Indicateurs Cumulés'!$D$3:$MX$391,281,FALSE)+VLOOKUP($B$7,'Indicateurs Cumulés'!$D$3:$MX$391,304,FALSE) -> 42 | N124: =IF(ISERROR(M124/VLOOKUP($B$7,'Indicateurs Cumulés'!$D$3:$MX$391,223,FALSE)),"nc",M124/VLOOKUP($B$7,'Indicateurs Cumulés'!$D$3:$MX$391,223,FALSE)) -> 0.0 | P124: =VLOOKUP($B$7,objectifs!$D$3:$ZZ$391,193,FALSE) -> -6,000 | Q124: =VLOOKUP($B$7,objectifs!$D$3:$ZZ$391,86,FALSE) -> 0.70% | R124: =VLOOKUP($B$7,objectifs!$D$3:$ZZ$391,87,FALSE) -> 5.37 | S124: =P124*Q124*R124 -> -226 | T124: =IF(ISERROR(S124/VLOOKUP($B$7,objectifs!$D$4:$IA$373,232,FALSE)),"nc",S124/VLOOKUP($B$7,objectifs!$D$4:$IA$373,232,FALSE)) -> -0.1 | V124: 29% | W124: -18% | X124: 0.1
B126: CREDIT à la CONSOMMATION PRO - Eng. Nets (yc accessoires) | E126: =E127 -> 6,691 | F126: =IF(ISERROR(H126/(E126*G126)),0,H126/(E126*G126)) -> 2.16% | G126: =G127 -> 3.12 | H126: =H127+H128+H129 -> 451 | J126: =J127 -> 22,861 | K126: =IF(ISERROR(M126/(J126*L126)),0,M126/(J126*L126)) -> 3.30% | L126: =L127 -> 2.76 | M126: =M127+M128+M129 -> 2,081 | N126: =IF(ISERROR(M126/VLOOKUP($B$7,'Indicateurs Cumulés'!$D$3:$MX$391,223,FALSE)),"nc",M126/VLOOKUP($B$7,'Indicateurs Cumulés'!$D$3:$MX$391,223,FALSE)) -> 1.5 | P126: =P127 -> 45,000 | Q126: =IF(ISERROR(S126/(P126*R126)),0,S126/(P126*R126)) -> 4.32% | R126: =R127 -> 2.50 | S126: =S127+S128+S129 -> 4,860 | T126: =IF(ISERROR(S126/VLOOKUP($B$7,objectifs!$D$4:$IA$373,232,FALSE)),"nc",S126/VLOOKUP($B$7,objectifs!$D$4:$IA$373,232,FALSE)) -> 3.2 | V126: =IF(ISERROR(J126/P126),0,J126/P126) -> 51% | W126: =IF(ISERROR(M126/S126),0,M126/S126) -> 43% | X126: =IF(ISERROR(N126-(T126/12*MONTH($C$9))),"nc",N126-(T126/12*MONTH($C$9))) -> -0.1
B127: Crédit à la Consommation (marge hors accessoires) | E127: =VLOOKUP($B$7,'Indicateurs mensuels'!$D$3:$KI$391,16,FALSE) -> 6,691 | F127: =VLOOKUP($B$7,'Indicateurs mensuels'!$D$3:$KI$391,17,FALSE) -> 1.79% | G127: =VLOOKUP($B$7,'Indicateurs mensuels'!$D$3:$KI$391,18,FALSE) -> 3.12 | H127: =E127*F127*G127 -> 374 | J127: =VLOOKUP($B$7,'Indicateurs Cumulés'!$D$3:$MX$391,16,FALSE) -> 22,861 | K127: =VLOOKUP($B$7,'Indicateurs Cumulés'!$D$3:$MX$391,17,FALSE) -> 2.53% | L127: =VLOOKUP($B$7,'Indicateurs Cumulés'!$D$3:$MX$391,18,FALSE) -> 2.76 | M127: =J127*K127*L127 -> 1,591 | N127: =IF(ISERROR(M127/VLOOKUP($B$7,'Indicateurs Cumulés'!$D$3:$MX$391,223,FALSE)),"nc",M127/VLOOKUP($B$7,'Indicateurs Cumulés'!$D$3:$MX$391,223,FALSE)) -> 1.2 | P127: =VLOOKUP($B$7,objectifs!$D$3:$ZZ$391,7,FALSE)*objectifs!$J$375/objectifs!$J$373 -> 45,000 | Q127: =VLOOKUP($B$7,objectifs!$D$3:$ZZ$391,8,FALSE) -> 3.05% | R127: =VLOOKUP($B$7,objectifs!$D$3:$ZZ$391,9,FALSE) -> 2.50 | S127: =P127*Q127*R127 -> 3,431 | T127: =IF(ISERROR(S127/VLOOKUP($B$7,objectifs!$D$4:$IA$373,232,FALSE)),"nc",S127/VLOOKUP($B$7,objectifs!$D$4:$IA$373,232,FALSE)) -> 2.3 | V127: 51% | W127: 46% | X127: 0.0
B128: Frais de dossier | H128: =VLOOKUP($B$7,'Indicateurs mensuels'!$D$3:$ZZ$391,94,FALSE) -> 14 | M128: =VLOOKUP($B$7,'Indicateurs Cumulés'!$D$3:$MX$391,95,FALSE) -> 71 | N128: =IF(ISERROR(M128/VLOOKUP($B$7,'Indicateurs Cumulés'!$D$3:$MX$391,223,FALSE)),"nc",M128/VLOOKUP($B$7,'Indicateurs Cumulés'!$D$3:$MX$391,223,FALSE)) -> 0.1 | S128: =VLOOKUP($B$7,objectifs!$D$3:$ZZ$391,62,FALSE)*objectifs!$J$375/objectifs!$J$373 -> 270 | T128: =IF(ISERROR(S128/VLOOKUP($B$7,objectifs!$D$4:$IA$373,232,FALSE)),"nc",S128/VLOOKUP($B$7,objectifs!$D$4:$IA$373,232,FALSE)) -> 0.2 | W128: 26% | X128: -0.0
B129: Commissions ADE | E129: =VLOOKUP($B$7,'Indicateurs mensuels'!$D$3:$KI$391,90,FALSE) -> 140.7% | F129: =VLOOKUP($B$7,'Indicateurs mensuels'!$D$3:$KI$391,89,FALSE) -> 41.8% | H129: =VLOOKUP($B$7,'Indicateurs mensuels'!$D$3:$ZZ$391,91,FALSE) -> 63 | J129: =VLOOKUP($B$7,'Indicateurs Cumulés'!$D$3:$MX$391,87,FALSE) -> 143.6% | K129: =VLOOKUP($B$7,'Indicateurs Cumulés'!$D$3:$MX$391,86,FALSE) -> 78.6% | M129: =+VLOOKUP($B$7,'Indicateurs Cumulés'!$D$3:$MX$391,88,FALSE) -> 418 | N129: =IF(ISERROR(M129/VLOOKUP($B$7,'Indicateurs Cumulés'!$D$3:$MX$391,223,FALSE)),"nc",M129/VLOOKUP($B$7,'Indicateurs Cumulés'!$D$3:$MX$391,223,FALSE)) -> 0.3 | P129: =P45 -> 135% | Q129: =Q45 -> 95% | S129: =VLOOKUP($B$7,objectifs!$D$3:$ZZ$391,72,FALSE)*objectifs!$J$375/objectifs!$J$373 -> 1,159 | T129: =IF(ISERROR(S129/VLOOKUP($B$7,objectifs!$D$4:$IA$373,232,FALSE)),"nc",S129/VLOOKUP($B$7,objectifs!$D$4:$IA$373,232,FALSE)) -> 0.8 | W129: 36% | X129: -0.1
B131: CREDIT IMMOBILIER PRO - Eng. Nets (yc accessoires) | E131: =E132 -> 14,996 | F131: =IF(ISERROR(H131/(E131*G131)),0,H131/(E131*G131)) -> 0.34% | G131: =G132 -> 7.28 | H131: =H132+H133+H134+H135 -> 376 | J131: =J132 -> 62,316 | K131: =IF(ISERROR(M131/(J131*L131)),0,M131/(J131*L131)) -> 0.28% | L131: =L132 -> 7.09 | M131: =M132+M133+M134+M135 -> 1,257 | N131: =IF(ISERROR(M131/VLOOKUP($B$7,'Indicateurs Cumulés'!$D$3:$MX$391,223,FALSE)),"nc",M131/VLOOKUP($B$7,'Indicateurs Cumulés'!$D$3:$MX$391,223,FALSE)) -> 0.9 | P131: =P132 -> 120,000 | Q131: =IF(ISERROR(S131/(P131*R131)),0,S131/(P131*R131)) -> 0.49% | R131: =R132 -> 7.50 | S131: =S132+S133+S134+S135 -> 4,375 | T131: =IF(ISERROR(S131/VLOOKUP($B$7,objectifs!$D$4:$IA$373,232,FALSE)),"nc",S131/VLOOKUP($B$7,objectifs!$D$4:$IA$373,232,FALSE)) -> 2.9 | V131: =IF(ISERROR(J131/P131),0,J131/P131) -> 52% | W131: =IF(ISERROR(M131/S131),0,M131/S131) -> 29% | X131: =IF(ISERROR(N131-(T131/12*MONTH($C$9))),"nc",N131-(T131/12*MONTH($C$9))) -> -0.5
B132: Crédit Immobilier (marge hors accessoires) | E132: =VLOOKUP($B$7,'Indicateurs mensuels'!$D$3:$KI$391,19,FALSE) -> 14,996 | F132: =VLOOKUP($B$7,'Indicateurs mensuels'!$D$3:$KI$391,20,FALSE) -> 0.09% | G132: =VLOOKUP($B$7,'Indicateurs mensuels'!$D$3:$KI$391,21,FALSE) -> 7.28 | H132: =E132*F132*G132 -> 101 | J132: =VLOOKUP($B$7,'Indicateurs Cumulés'!$D$3:$MX$391,19,FALSE) -> 62,316 | K132: =VLOOKUP($B$7,'Indicateurs Cumulés'!$D$3:$MX$391,20,FALSE) -> -0.03% | L132: =VLOOKUP($B$7,'Indicateurs Cumulés'!$D$3:$MX$391,21,FALSE) -> 7.09 | M132: =J132*K132*L132 -> -144 | N132: =IF(ISERROR(M132/VLOOKUP($B$7,'Indicateurs Cumulés'!$D$3:$MX$391,223,FALSE)),"nc",M132/VLOOKUP($B$7,'Indicateurs Cumulés'!$D$3:$MX$391,223,FALSE)) -> -0.1 | P132: =VLOOKUP($B$7,objectifs!$D$3:$ZZ$391,10,FALSE)*objectifs!$M$375/objectifs!$M$373 -> 120,000 | Q132: =VLOOKUP($B$7,objectifs!$D$3:$ZZ$391,12,FALSE) -> 0.20% | R132: =VLOOKUP($B$7,objectifs!$D$3:$ZZ$391,13,FALSE) -> 7.50 | S132: =P132*Q132*R132 -> 1,800 | T132: =IF(ISERROR(S132/VLOOKUP($B$7,objectifs!$D$4:$IA$373,232,FALSE)),"nc",S132/VLOOKUP($B$7,objectifs!$D$4:$IA$373,232,FALSE)) -> 1.2 | V132: 52% | W132: -8% | X132: -0.7
B133: Frais de dossier | H133: =VLOOKUP($B$7,'Indicateurs mensuels'!$D$3:$ZZ$391,93,FALSE) -> 35 | M133: =+VLOOKUP($B$7,'Indicateurs Cumulés'!$D$3:$MX$391,97,FALSE) -> 167 | N133: =IF(ISERROR(M133/VLOOKUP($B$7,'Indicateurs Cumulés'!$D$3:$MX$391,223,FALSE)),"nc",M133/VLOOKUP($B$7,'Indicateurs Cumulés'!$D$3:$MX$391,223,FALSE)) -> 0.1 | S133: =VLOOKUP($B$7,objectifs!$D$3:$ZZ$391,63,FALSE)*objectifs!$M$375/objectifs!$M$373 -> 360 | T133: =IF(ISERROR(S133/VLOOKUP($B$7,objectifs!$D$4:$IA$373,232,FALSE)),"nc",S133/VLOOKUP($B$7,objectifs!$D$4:$IA$373,232,FALSE)) -> 0.2 | W133: 46% | X133: 0.0
B134: Commissions ADE (coefficient multiplicateur de 1,3 X) | E134: =VLOOKUP($B$7,'Indicateurs mensuels'!$D$3:$KI$391,84,FALSE) -> 126.1% | F134: =VLOOKUP($B$7,'Indicateurs mensuels'!$D$3:$KI$391,83,FALSE) -> 51.3% | H134: =VLOOKUP($B$7,'Indicateurs mensuels'!$D$3:$ZZ$391,85,FALSE) -> 216 | J134: =VLOOKUP($B$7,'Indicateurs Cumulés'!$D$3:$MX$391,90,FALSE) -> 132.4% | K134: =VLOOKUP($B$7,'Indicateurs Cumulés'!$D$3:$MX$391,89,FALSE) -> 62.7% | M134: =+VLOOKUP($B$7,'Indicateurs Cumulés'!$D$3:$MX$391,91,FALSE) -> 1,146 | N134: =IF(ISERROR(M134/VLOOKUP($B$7,'Indicateurs Cumulés'!$D$3:$MX$391,223,FALSE)),"nc",M134/VLOOKUP($B$7,'Indicateurs Cumulés'!$D$3:$MX$391,223,FALSE)) -> 0.8 | P134: =P49 -> 145% | Q134: =Q49 -> 70% | S134: =VLOOKUP($B$7,objectifs!$D$3:$ZZ$391,71,FALSE)*objectifs!$M$375/objectifs!$M$373 -> 1,956 | T134: =IF(ISERROR(S134/VLOOKUP($B$7,objectifs!$D$4:$IA$373,232,FALSE)),"nc",S134/VLOOKUP($B$7,objectifs!$D$4:$IA$373,232,FALSE)) -> 1.3 | W134: 59% | X134: 0.2
B135: Commissions SACCEF | H135: =VLOOKUP($B$7,'Indicateurs mensuels'!$D$3:$ZZ$391,98,FALSE) -> 23 | M135: =+VLOOKUP($B$7,'Indicateurs Cumulés'!$D$3:$MX$391,93,FALSE) -> 88 | N135: =IF(ISERROR(M135/VLOOKUP($B$7,'Indicateurs Cumulés'!$D$3:$MX$391,223,FALSE)),"nc",M135/VLOOKUP($B$7,'Indicateurs Cumulés'!$D$3:$MX$391,223,FALSE)) -> 0.1 | S135: =VLOOKUP($B$7,objectifs!$D$3:$ZZ$391,74,FALSE)*objectifs!$M$375/objectifs!$M$373 -> 258 | T135: =IF(ISERROR(S135/VLOOKUP($B$7,objectifs!$D$4:$IA$373,232,FALSE)),"nc",S135/VLOOKUP($B$7,objectifs!$D$4:$IA$373,232,FALSE)) -> 0.2 | W135: 34% | X135: -0.0
B137: CREDIT MLT PRO - Eng. Nets (yc accessoires) | E137: =E138+E139 -> 23,269 | F137: =IF(ISERROR(H137/(E137*G137)),0,H137/(E137*G137)) -> 0.85% | G137: =SUMPRODUCT(G138:G139,E138:E139)/(E138+E139) -> 4.33 | H137: =H138+H139+H140+H141 -> 853 | J137: =J138+J139 -> 143,077 | K137: =IF(ISERROR(M137/(J137*L137)),0,M137/(J137*L137)) -> 0.66% | L137: =SUMPRODUCT(L138:L139,J138:J139)/(J138+J139) -> 4.44 | M137: =M138+M139+M140+M141 -> 4,209 | N137: =IF(ISERROR(M137/VLOOKUP($B$7,'Indicateurs Cumulés'!$D$3:$MX$391,223,FALSE)),"nc",M137/VLOOKUP($B$7,'Indicateurs Cumulés'!$D$3:$MX$391,223,FALSE)) -> 3.1 | P137: =P138+P139 -> 250,000 | Q137: =IF(ISERROR(S137/(P137*R137)),0,S137/(P137*R137)) -> 0.70% | R137: =SUMPRODUCT(R138:R139,P138:P139)/(P138+P139) -> 4.39 | S137: =S138+S139+S140+S141 -> 7,646 | T137: =IF(ISERROR(S137/VLOOKUP($B$7,objectifs!$D$4:$IA$373,232,FALSE)),"nc",S137/VLOOKUP($B$7,objectifs!$D$4:$IA$373,232,FALSE)) -> 5.0 | V137: =IF(ISERROR(J137/P137),0,J137/P137) -> 57% | W137: =IF(ISERROR(M137/S137),0,M137/S137) -> 55% | X137: =IF(ISERROR(N137-(T137/12*MONTH($C$9))),"nc",N137-(T137/12*MONTH($C$9))) -> 0.6
B138: Crédit MLT (marge hors accessoires) | E138: =VLOOKUP($B$7,'Indicateurs mensuels'!$D$3:$KI$391,22,FALSE) -> 21,643 | F138: =VLOOKUP($B$7,'Indicateurs mensuels'!$D$3:$KI$391,23,FALSE) -> 0.69% | G138: =VLOOKUP($B$7,'Indicateurs mensuels'!$D$3:$KI$391,24,FALSE) -> 4.49 | H138: =E138*F138*G138 -> 674 | J138: =VLOOKUP($B$7,'Indicateurs Cumulés'!$D$3:$MX$391,22,FALSE) -> 136,318 | K138: =VLOOKUP($B$7,'Indicateurs Cumulés'!$D$3:$MX$391,23,FALSE) -> 0.49% | L138: =VLOOKUP($B$7,'Indicateurs Cumulés'!$D$3:$MX$391,24,FALSE) -> 4.55 | M138: =J138*K138*L138 -> 3,045 | N138: =IF(ISERROR(M138/VLOOKUP($B$7,'Indicateurs Cumulés'!$D$3:$MX$391,223,FALSE)),"nc",M138/VLOOKUP($B$7,'Indicateurs Cumulés'!$D$3:$MX$391,223,FALSE)) -> 2.2 | P138: =VLOOKUP($B$7,objectifs!$D$3:$ZZ$391,20,FALSE) -> 238,000 | Q138: =VLOOKUP($B$7,objectifs!$D$3:$ZZ$391,21,FALSE) -> 0.40% | R138: =VLOOKUP($B$7,objectifs!$D$3:$ZZ$391,22,FALSE) -> 4.50 | S138: =P138*Q138*R138 -> 4,284 | T138: =IF(ISERROR(S138/VLOOKUP($B$7,objectifs!$D$4:$IA$373,232,FALSE)),"nc",S138/VLOOKUP($B$7,objectifs!$D$4:$IA$373,232,FALSE)) -> 2.8 | V138: 57% | W138: 71% | X138: 0.8
B139: Crédit Bail Mobilier | E139: =VLOOKUP($B$7,'Indicateurs mensuels'!$D$3:$GI$391,185,FALSE) -> 1,626 | F139: =VLOOKUP($B$7,'Indicateurs mensuels'!$D$3:$GI$391,186,FALSE) -> 0.83% | G139: =VLOOKUP($B$7,'Indicateurs mensuels'!$D$3:$GI$391,187,FALSE) -> 2.21 | H139: =E139*F139*G139 -> 30 | J139: =VLOOKUP($B$7,'Indicateurs Cumulés'!$D$3:$MX$391,193,FALSE) -> 6,759 | K139: =VLOOKUP($B$7,'Indicateurs Cumulés'!$D$3:$MX$391,194,FALSE) -> 0.90% | L139: =VLOOKUP($B$7,'Indicateurs Cumulés'!$D$3:$MX$391,195,FALSE) -> 2.21 | M139: =J139*K139*L139 -> 134 | N139: =IF(ISERROR(M139/VLOOKUP($B$7,'Indicateurs Cumulés'!$D$3:$MX$391,223,FALSE)),"nc",M139/VLOOKUP($B$7,'Indicateurs Cumulés'!$D$3:$MX$391,223,FALSE)) -> 0.1 | P139: =VLOOKUP($B$7,objectifs!$D$3:$ZZ$391,14,FALSE) -> 12,000 | Q139: =VLOOKUP($B$7,objectifs!$D$3:$ZZ$391,15,FALSE) -> 0.40% | R139: =VLOOKUP($B$7,objectifs!$D$3:$ZZ$391,16,FALSE) -> 2.30 | S139: =P139*Q139*R139 -> 110.40 | T139: =IF(ISERROR(S139/VLOOKUP($B$7,objectifs!$D$4:$IA$373,232,FALSE)),"nc",S139/VLOOKUP($B$7,objectifs!$D$4:$IA$373,232,FALSE)) -> 0.1 | V139: 56% | W139: 121% | X139: 0.1
B140: Frais de dossier (yc CBM) | H140: =VLOOKUP($B$7,'Indicateurs mensuels'!$D$3:$KI$391,92,FALSE)+VLOOKUP($B$7,'Indicateurs mensuels'!$D$3:$KI$391,97,FALSE) -> 70 | M140: =VLOOKUP($B$7,'Indicateurs Cumulés'!$D$3:$MX$391,92,FALSE)+VLOOKUP($B$7,'Indicateurs Cumulés'!$D$3:$MX$391,94,FALSE) -> 414 | N140: =IF(ISERROR(M140/VLOOKUP($B$7,'Indicateurs Cumulés'!$D$3:$MX$391,223,FALSE)),"nc",M140/VLOOKUP($B$7,'Indicateurs Cumulés'!$D$3:$MX$391,223,FALSE)) -> 0.3 | S140: =VLOOKUP($B$7,objectifs!$D$3:$ZZ$391,66,FALSE) -> 750 | T140: =IF(ISERROR(S140/VLOOKUP($B$7,objectifs!$D$4:$IA$373,232,FALSE)),"nc",S140/VLOOKUP($B$7,objectifs!$D$4:$IA$373,232,FALSE)) -> 0.5 | W140: 55% | X140: 0.1
B141: Commissions ADE | E141: =VLOOKUP($B$7,'Indicateurs mensuels'!$D$3:$KI$391,219,FALSE) -> 107.7% | F141: =VLOOKUP($B$7,'Indicateurs mensuels'!$D$3:$KI$391,218,FALSE) -> 70.9% | H141: =VLOOKUP($B$7,'Indicateurs mensuels'!$D$3:$ZZ$391,220,FALSE) -> 79 | J141: =VLOOKUP($B$7,'Indicateurs Cumulés'!$D$3:$MX$391,107,FALSE) -> 108.9% | K141: =VLOOKUP($B$7,'Indicateurs Cumulés'!$D$3:$MX$391,106,FALSE) -> 64.6% | M141: =VLOOKUP($B$7,'Indicateurs Cumulés'!$D$3:$MX$391,108,FALSE) -> 616 | N141: =IF(ISERROR(M141/VLOOKUP($B$7,'Indicateurs Cumulés'!$D$3:$MX$391,223,FALSE)),"nc",M141/VLOOKUP($B$7,'Indicateurs Cumulés'!$D$3:$MX$391,223,FALSE)) -> 0.5 | P141: =P59 -> 110% | Q141: =Q59 -> 70% | S141: =VLOOKUP($B$7,objectifs!$D$3:$ZZ$391,75,FALSE) -> 2,501 | T141: =IF(ISERROR(S141/VLOOKUP($B$7,objectifs!$D$4:$IA$373,232,FALSE)),"nc",S141/VLOOKUP($B$7,objectifs!$D$4:$IA$373,232,FALSE)) -> 1.6 | W141: 25% | X141: -0.4
B143: BANCA PRO - Ventes nettes | E143: =SUM(E144:E150) -> 329 | H143: =SUM(H144:H150) -> 863 | J143: =SUM(J144:J150) -> 2,023 | M143: =SUM(M144:M150) -> 2,744 | N143: =IF(ISERROR(M143/VLOOKUP($B$7,'Indicateurs Cumulés'!$D$3:$MX$391,223,FALSE)),"nc",M143/VLOOKUP($B$7,'Indicateurs Cumulés'!$D$3:$MX$391,223,FALSE)) -> 2.0 | P143: =SUM(P144:P150) -> 4,570 | S143: =SUM(S144:S150) -> 4,913 | T143: =IF(ISERROR(S143/VLOOKUP($B$7,objectifs!$D$4:$IA$373,232,FALSE)),"nc",S143/VLOOKUP($B$7,objectifs!$D$4:$IA$373,232,FALSE)) -> 3.2 | V143: =IF(ISERROR(J143/P143),0,J143/P143) -> 44% | W143: =IF(ISERROR(M143/S143),0,M143/S143) -> 56% | X143: =IF(ISERROR(N143-(T143/12*MONTH($C$9))),"nc",N143-(T143/12*MONTH($C$9))) -> 0.4
B144: Forfaits PRO - Tarification | E144: =J144-(VLOOKUP($B$7,'Indicateurs Cumulés M-1'!$D$3:$MX$390,284,FALSE)+VLOOKUP($B$7,'Indicateurs Cumulés M-1'!$D$3:$MX$390,286,FALSE)) -> 131 | F144: =K144 -> 265 € | G144: 5.00 | H144: =E144*F144*G144/1000 -> 174 | J144: =VLOOKUP($B$7,'Indicateurs Cumulés'!$D$3:$MX$391,284,FALSE)+VLOOKUP($B$7,'Indicateurs Cumulés'!$D$3:$MX$391,286,FALSE) -> 830 | K144: =IF(ISERROR(M144/(J144*L144)*1000),0,M144/(J144*L144)*1000) -> 265 € | L144: =objectifs!$HD$3 -> 5.00 | M144: =(VLOOKUP($B$7,'Indicateurs Cumulés'!$D$3:$MX$391,290,FALSE)+VLOOKUP($B$7,'Indicateurs Cumulés'!$D$3:$MX$391,292,FALSE)) -> 1,101 | N144: =IF(ISERROR(M144/VLOOKUP($B$7,'Indicateurs Cumulés'!$D$3:$MX$391,223,FALSE)),"nc",M144/VLOOKUP($B$7,'Indicateurs Cumulés'!$D$3:$MX$391,223,FALSE)) -> 0.8 | P144: =VLOOKUP($B$7,objectifs!$D$3:$ZZ$391,203,FALSE)+VLOOKUP($B$7,objectifs!$D$3:$ZZ$391,205,FALSE) -> 1,500 | Q144: =IF(ISERROR(S144/(P144*R144)*1000),0,S144/(P144*R144)*1000) -> 204 € | R144: =objectifs!$HD$3 -> 5.00 | S144: =VLOOKUP($B$7,objectifs!$D$3:$ZZ$391,209,FALSE)+VLOOKUP($B$7,objectifs!$D$3:$ZZ$391,211,FALSE) -> 1,529 | T144: =IF(ISERROR(S144/VLOOKUP($B$7,objectifs!$D$4:$IA$373,232,FALSE)),"nc",S144/VLOOKUP($B$7,objectifs!$D$4:$IA$373,232,FALSE)) -> 1.0 | V144: 55% | W144: 72% | X144: 0.3
B145: Cartes PRO - Tarification | E145: =J145-(VLOOKUP($B$7,'Indicateurs Cumulés M-1'!$D$3:$MX$390,287,FALSE)+VLOOKUP($B$7,'Indicateurs Cumulés M-1'!$D$3:$MX$390,288,FALSE)+VLOOKUP($B$7,'Indicateurs Cumulés M-1'!$D$3:$MX$390,285,FALSE)) -> 76 | F145: 96 € | G145: 5.00 | H145: =E145*F145*G145/1000 -> 36 | J145: =VLOOKUP($B$7,'Indicateurs Cumulés'!$D$3:$MX$391,287,FALSE)+VLOOKUP($B$7,'Indicateurs Cumulés'!$D$3:$MX$391,288,FALSE)+VLOOKUP($B$7,'Indicateurs Cumulés'!$D$3:$MX$391,285,FALSE) -> 595 | K145: =IF(ISERROR(M145/(J145*L145)*1000),0,M145/(J145*L145)*1000) -> 96 € | L145: =objectifs!$HE$3 -> 5.00 | M145: =(VLOOKUP($B$7,'Indicateurs Cumulés'!$D$3:$MX$391,293,FALSE)+VLOOKUP($B$7,'Indicateurs Cumulés'!$D$3:$MX$391,291,FALSE)+VLOOKUP($B$7,'Indicateurs Cumulés'!$D$3:$MX$391,294,FALSE)) -> 285 | N145: =IF(ISERROR(M145/VLOOKUP($B$7,'Indicateurs Cumulés'!$D$3:$MX$391,223,FALSE)),"nc",M145/VLOOKUP($B$7,'Indicateurs Cumulés'!$D$3:$MX$391,223,FALSE)) -> 0.2 | P145: =VLOOKUP($B$7,objectifs!$D$3:$ZZ$391,204,FALSE)+VLOOKUP($B$7,objectifs!$D$3:$ZZ$391,206,FALSE)+VLOOKUP($B$7,objectifs!$D$3:$ZZ$391,207,FALSE) -> 1,000 | Q145: =IF(ISERROR(S145/(P145*R145)*1000),0,S145/(P145*R145)*1000) -> 150 € | R145: =objectifs!$HE$3 -> 5.00 | S145: =VLOOKUP($B$7,objectifs!$D$3:$ZZ$391,210,FALSE)+VLOOKUP($B$7,objectifs!$D$3:$ZZ$391,212,FALSE)+VLOOKUP($B$7,objectifs!$D$3:$ZZ$391,213,FALSE) -> 748 | T145: =IF(ISERROR(S145/VLOOKUP($B$7,objectifs!$D$4:$IA$373,232,FALSE)),"nc",S145/VLOOKUP($B$7,objectifs!$D$4:$IA$373,232,FALSE)) -> 0.5 | V145: 60% | W145: 38% | X145: -0.0
B146: AUTO PRO (ventes brutes) - Commissions | E146: =J146-VLOOKUP($B$7,'Indicateurs Cumulés M-1'!$D$3:$MX$390,74,FALSE) -> 21 | F146: 100 € | G146: 2.75 | H146: 6 | J146: =VLOOKUP($B$7,'Indicateurs Cumulés'!$D$3:$MX$391,74,FALSE) -> 101 | K146: =IF(ISERROR(M146/(J146*L146)*1000),0,M146/(J146*L146)*1000) -> 100 € | L146: =objectifs!$HX$3 -> 2.75 | M146: =VLOOKUP($B$7,'Indicateurs Cumulés'!$D$3:$MX$391,75,FALSE) -> 28 | N146: =IF(ISERROR(M146/VLOOKUP($B$7,'Indicateurs Cumulés'!$D$3:$MX$391,223,FALSE)),"nc",M146/VLOOKUP($B$7,'Indicateurs Cumulés'!$D$3:$MX$391,223,FALSE)) -> 0.0 | P146: =VLOOKUP($B$7,objectifs!$D$3:$ZZ$391,226,FALSE) -> 340 | Q146: =IF(ISERROR(S146/(P146*R146)*1000),0,S146/(P146*R146)*1000) -> 100 € | R146: =objectifs!$HX$3 -> 2.75 | S146: =VLOOKUP($B$7,objectifs!$D$3:$ZZ$391,229,FALSE) -> 94 | T146: =IF(ISERROR(S146/VLOOKUP($B$7,objectifs!$D$4:$IA$373,232,FALSE)),"nc",S146/VLOOKUP($B$7,objectifs!$D$4:$IA$373,232,FALSE)) -> 0.1 | V146: 30% | W146: 30% | X146: -0.0
B147: Multirisque PRO (ventes brutes) - Commissions | E147: =J147-VLOOKUP($B$7,'Indicateurs Cumulés M-1'!$D$3:$MX$390,76,FALSE) -> 26 | F147: 30 € | G147: 3.96 | H147: 3 | J147: =VLOOKUP($B$7,'Indicateurs Cumulés'!$D$3:$MX$391,76,FALSE) -> 99 | K147: 30 € | L147: =objectifs!$HY$3 -> 3.96 | M147: =VLOOKUP($B$7,'Indicateurs Cumulés'!$D$3:$MX$391,77,FALSE) -> 12 | N147: =IF(ISERROR(M147/VLOOKUP($B$7,'Indicateurs Cumulés'!$D$3:$MX$391,223,FALSE)),"nc",M147/VLOOKUP($B$7,'Indicateurs Cumulés'!$D$3:$MX$391,223,FALSE)) -> 0.0 | P147: =VLOOKUP($B$7,objectifs!$D$3:$ZZ$391,227,FALSE) -> 510 | Q147: 30 € | R147: =objectifs!$HY$3 -> 3.96 | S147: =VLOOKUP($B$7,objectifs!$D$3:$ZZ$391,230,FALSE) -> 61 | T147: =IF(ISERROR(S147/VLOOKUP($B$7,objectifs!$D$4:$IA$373,232,FALSE)),"nc",S147/VLOOKUP($B$7,objectifs!$D$4:$IA$373,232,FALSE)) -> 0.0 | V147: 19% | W147: 19% | X147: -0.0
B148: PAP - Commissions | E148: =J148-VLOOKUP($B$7,'Indicateurs Cumulés M-1'!$D$3:$MX$390,289,FALSE) -> 63 | F148: 18 € | G148: 5.00 | H148: 6 | J148: =VLOOKUP($B$7,'Indicateurs Cumulés'!$D$3:$MX$391,289,FALSE) -> 259 | K148: 18 € | L148: =objectifs!$HI$3 -> 5.00 | M148: =VLOOKUP($B$7,'Indicateurs Cumulés'!$D$3:$MX$391,295,FALSE) -> 23 | N148: =IF(ISERROR(M148/VLOOKUP($B$7,'Indicateurs Cumulés'!$D$3:$MX$391,223,FALSE)),"nc",M148/VLOOKUP($B$7,'Indicateurs Cumulés'!$D$3:$MX$391,223,FALSE)) -> 0.0 | P148: =VLOOKUP($B$7,objectifs!$D$3:$ZZ$391,208,FALSE) -> 480 | Q148: 18 € | R148: =objectifs!$HI$3 -> 5.00 | S148: =VLOOKUP($B$7,objectifs!$D$3:$ZZ$391,214,FALSE) -> 42 | T148: =IF(ISERROR(S148/VLOOKUP($B$7,objectifs!$D$4:$IA$373,232,FALSE)),"nc",S148/VLOOKUP($B$7,objectifs!$D$4:$IA$373,232,FALSE)) -> 0.0 | V148: 54% | W148: 54% | X148: 0.0
B149: Contrats monétiques actifs - Commissions | E149: =J149-VLOOKUP($B$7,'Indicateurs Cumulés M-1'!$D$3:$MX$390,78,FALSE) -> 12 | F149: 100 € | G149: 5.00 | H149: 6 | J149: =VLOOKUP($B$7,'Indicateurs Cumulés'!$D$3:$MX$391,78,FALSE) -> 139 | K149: =IF(ISERROR(M149/(J149*L149)*1000),0,M149/(J149*L149)*1000) -> 100 € | L149: =objectifs!$HZ$3 -> 5.00 | M149: =VLOOKUP($B$7,'Indicateurs Cumulés'!$D$3:$MX$391,79,FALSE) -> 70 | N149: =IF(ISERROR(M149/VLOOKUP($B$7,'Indicateurs Cumulés'!$D$3:$MX$391,223,FALSE)),"nc",M149/VLOOKUP($B$7,'Indicateurs Cumulés'!$D$3:$MX$391,223,FALSE)) -> 0.1 | P149: =VLOOKUP($B$7,objectifs!$D$3:$ZZ$391,228,FALSE) -> 740 | Q149: =IF(ISERROR(S149/(P149*R149)*1000),0,S149/(P149*R149)*1000) -> 100 € | R149: =objectifs!$HZ$3 -> 5.00 | S149: =VLOOKUP($B$7,objectifs!$D$3:$ZZ$391,231,FALSE) -> 370 | T149: =IF(ISERROR(S149/VLOOKUP($B$7,objectifs!$D$4:$IA$373,232,FALSE)),"nc",S149/VLOOKUP($B$7,objectifs!$D$4:$IA$373,232,FALSE)) -> 0.2 | V149: 19% | W149: 19% | X149: -0.1
B150: Commisions de mouvement | H150: =VLOOKUP($B$7,'Indicateurs Cumulés'!$D$3:$MX$391,297,FALSE)-VLOOKUP($B$7,'Indicateurs Cumulés M-1'!$D$3:$MX$391,297,FALSE) -> 633 | M150: =VLOOKUP($B$7,'Indicateurs Cumulés'!$D$3:$MX$391,297,FALSE) -> 1,226 | N150: =IF(ISERROR(M150/VLOOKUP($B$7,'Indicateurs Cumulés'!$D$3:$MX$391,223,FALSE)),"nc",M150/VLOOKUP($B$7,'Indicateurs Cumulés'!$D$3:$MX$391,223,FALSE)) -> 0.9 | S150: =VLOOKUP($B$7,objectifs!$D$3:$ZZ$391,216,FALSE) -> 2,069 | T150: =IF(ISERROR(S150/VLOOKUP($B$7,objectifs!$D$4:$IA$373,232,FALSE)),"nc",S150/VLOOKUP($B$7,objectifs!$D$4:$IA$373,232,FALSE)) -> 1.4 | V150: 0% | W150: 59% | X150: 0.2
B152: BANCA PRO Relation privée - Ventes nettes | E152: =SUM(E153:E155) -> 238 | H152: =SUM(H153:H155) -> 206 | J152: =SUM(J153:J155) -> 328 | M152: =SUM(M153:M155) -> 31 | N152: =IF(ISERROR(M152/VLOOKUP($B$7,'Indicateurs Cumulés'!$D$3:$MX$391,223,FALSE)),"nc",M152/VLOOKUP($B$7,'Indicateurs Cumulés'!$D$3:$MX$391,223,FALSE)) -> 0.0 | P152: =SUM(P153:P155) -> 3,035 | Q152: =IF(ISERROR(S152/(P152*R152)*1000),0,S152/(P152*R152)*1000) -> 117 € | R152: =IF(ISERROR(SUMPRODUCT(R153:R155,P153:P155)/SUMPRODUCT(P153:P155)),0,SUMPRODUCT(R153:R155,P153:P155)/SUMPRODUCT(P153:P155)) -> 5.00 | S152: =SUM(S153:S155) -> 1,771 | T152: =IF(ISERROR(S152/VLOOKUP($B$7,objectifs!$D$4:$IA$373,232,FALSE)),"nc",S152/VLOOKUP($B$7,objectifs!$D$4:$IA$373,232,FALSE)) -> 1.2 | V152: =IF(ISERROR(J152/P152),0,J152/P152) -> 11% | W152: =IF(ISERROR(M152/S152),0,M152/S152) -> 2% | X152: =IF(ISERROR(N152-(T152/12*MONTH($C$9))),"nc",N152-(T152/12*MONTH($C$9))) -> -0.6
B153: Forfaits - Tarification | E153: =J153-VLOOKUP($B$7,'Indicateurs Cumulés M-1'!$D$3:$MX$390,314,FALSE) -> 71 | F153: =K153 -> 137 € | G153: 5.00 | H153: =E153*F153*G153/1000 -> 49 | J153: =VLOOKUP($B$7,'Indicateurs Cumulés'!$D$3:$MX$391,314,FALSE) -> 53 | K153: =IF(ISERROR(M153/(J153*L153)*1000),0,M153/(J153*L153)*1000) -> 137 € | L153: =objectifs!$GC$3 -> 5.00 | M153: =VLOOKUP($B$7,'Indicateurs Cumulés'!$D$3:$MX$391,315,FALSE) -> 36 | N153: =IF(ISERROR(M153/VLOOKUP($B$7,'Indicateurs Cumulés'!$D$3:$MX$391,223,FALSE)),"nc",M153/VLOOKUP($B$7,'Indicateurs Cumulés'!$D$3:$MX$391,223,FALSE)) -> 0.0 | P153: =VLOOKUP($B$7,objectifs!$D$3:$ZZ$391,181,FALSE)*5% -> 1,120 | Q153: =objectifs!$GB$3 -> 137 € | R153: =objectifs!$GC$3 -> 5.00 | S153: =P153*Q153*R153/1000 -> 769 | T153: =IF(ISERROR(S153/VLOOKUP($B$7,objectifs!$D$4:$IA$373,232,FALSE)),"nc",S153/VLOOKUP($B$7,objectifs!$D$4:$IA$373,232,FALSE)) -> 0.5 | V153: 5% | W153: 5% | X153: -0.2
B154: Cartes - Tarification | E154: =J154-VLOOKUP($B$7,'Indicateurs Cumulés M-1'!$D$3:$MX$390,316,FALSE) -> 104 | F154: 289 € | G154: 5.00 | H154: =E154*F154*G154/1000 -> 150 | J154: =VLOOKUP($B$7,'Indicateurs Cumulés'!$D$3:$MX$391,316,FALSE) -> -25 | K154: 289 € | L154: =objectifs!$GE$3 -> 5.00 | M154: =VLOOKUP($B$7,'Indicateurs Cumulés'!$D$3:$MX$391,317,FALSE) -> -36 | N154: =IF(ISERROR(M154/VLOOKUP($B$7,'Indicateurs Cumulés'!$D$3:$MX$391,223,FALSE)),"nc",M154/VLOOKUP($B$7,'Indicateurs Cumulés'!$D$3:$MX$391,223,FALSE)) -> -0.0 | P154: =VLOOKUP($B$7,objectifs!$D$3:$ZZ$391,183,FALSE)*5% -> 600 | Q154: =objectifs!$GD$3 -> 289 € | R154: =objectifs!$GE$3 -> 5.00 | S154: =P154*Q154*R154/1000 -> 868 | T154: =IF(ISERROR(S154/VLOOKUP($B$7,objectifs!$D$4:$IA$373,232,FALSE)),"nc",S154/VLOOKUP($B$7,objectifs!$D$4:$IA$373,232,FALSE)) -> 0.6 | V154: -4% | W154: -4% | X154: -0.3
B155: IARD & Prévoyance - Commissions | E155: =J155-VLOOKUP($B$7,'Indicateurs Cumulés M-1'!$D$3:$MX$390,318,FALSE) -> 63 | F155: 20 € | G155: 5.00 | H155: 6 | J155: =VLOOKUP($B$7,'Indicateurs Cumulés'!$D$3:$MX$391,318,FALSE) -> 300 | K155: 20 € | L155: =objectifs!$GG$3 -> 5.00 | M155: =VLOOKUP($B$7,'Indicateurs Cumulés'!$D$3:$MX$391,319,FALSE) -> 31 | N155: =IF(ISERROR(M155/VLOOKUP($B$7,'Indicateurs Cumulés'!$D$3:$MX$391,223,FALSE)),"nc",M155/VLOOKUP($B$7,'Indicateurs Cumulés'!$D$3:$MX$391,223,FALSE)) -> 0.0 | P155: =VLOOKUP($B$7,objectifs!$D$3:$ZZ$391,185,FALSE)*5% -> 1,315 | Q155: =objectifs!$GF$3 -> 20 € | R155: =objectifs!$GG$3 -> 5.00 | S155: =P155*Q155*R155/1000 -> 135 | T155: =IF(ISERROR(S155/VLOOKUP($B$7,objectifs!$D$4:$IA$373,232,FALSE)),"nc",S155/VLOOKUP($B$7,objectifs!$D$4:$IA$373,232,FALSE)) -> 0.1 | V155: 23% | W155: 23% | X155: -0.0
B157: AUTRES | H157: =M157 -> 0 | M157: =VLOOKUP($B$7,'Indicateurs Cumulés'!$D$3:$MX$391,73,FALSE) -> 0 | N157: =IF(ISERROR(M157/VLOOKUP($B$7,'Indicateurs Cumulés'!$D$3:$MX$391,223,FALSE)),"nc",M157/VLOOKUP($B$7,'Indicateurs Cumulés'!$D$3:$MX$391,223,FALSE)) -> 0.0 | S157: =VLOOKUP($B$7,objectifs!$D$3:$ZZ$391,172,FALSE)*objectifs!$FS$375/objectifs!$FS$373 -> -700 | T157: =IF(ISERROR(S157/VLOOKUP($B$7,objectifs!$D$4:$IA$373,232,FALSE)),"nc",S157/VLOOKUP($B$7,objectifs!$D$4:$IA$373,232,FALSE)) -> -0.5 | W157: =IF(ISERROR(M157/S157),0,M157/S157) -> 0% | X157: =IF(ISERROR(N157-(T157/12*MONTH($C$9))),"nc",N157-(T157/12*MONTH($C$9))) -> 0.2
B159: ZOOM PNB PRO* sur Activité Nouvelle | H159: =H152+H120+H126+H131+H137+H143+H157 -> 2,895 | M159: =M152+M120+M126+M131+M137+M143+M157 -> 11,766 | N159: =IF(ISERROR(M159/VLOOKUP($B$7,'Indicateurs Cumulés'!$D$3:$MX$391,223,FALSE)),"nc",M159/VLOOKUP($B$7,'Indicateurs Cumulés'!$D$3:$MX$391,223,FALSE)) -> 8.6 | S159: =S152+S120+S126+S131+S137+S143+S157 -> 24,465 | T159: =IF(ISERROR(S159/VLOOKUP($B$7,objectifs!$D$4:$IA$373,232,FALSE)),"nc",S159/VLOOKUP($B$7,objectifs!$D$4:$IA$373,232,FALSE)) -> 16.1 | W159: =IF(ISERROR(M159/S159),0,M159/S159) -> 48.1% | X159: =IF(ISERROR(N159-(T159/12*MONTH($C$9))),"nc",N159-(T159/12*MONTH($C$9))) -> 0.5
B160: * y compris relation privée du pro

Sheet Lexique
B4: INDICATEURS
A5: Structure
B6: •Mise en place d’une synthèse BDD et d’un zoom Pro (yc relation privée du pro)
B7: •Application des taux réels sur la majorité des lignes de produits Collecte | C7: Les marges de certains produits sont adaptées au niveau local (marges figées) pour être en phase avec la politique commerciale de la CEGEE.
B8: •Ajout de l’indicateur PNB/ETP sur chaque ligne
B9: •Intégration d’un suivi bancarisation « relation privée » du Pro dans la synthèse BDD
A11: ETP
B12: •Le PNB par ETP sur objectifs est déterminé à partir des ETP cible. | C12: Déterminé lors de la fixation des objectifs, il ne change pas
B13: •Le PNB par ETP sur réalisations est calculé à partir de la moyenne des ETP performance. | C13: Mis a jour mensuellement en moyennant les ETP depuis le début d'année
A15: Collecte
B16: •Taux de marge figé à 0,20% sur les produits LEP, LDD, LJ, DAT, Emprunt Ecureuil
B17: •Taux du LGP | C17: Les taux boostés bénéficient d'un mode de calcul adapté a la politique commerciale de la CEGEE
B18: •Ajout des versements FCP structurés (objectif : 75 M€ de versements et 2,1 M€ de PNB)
B19: •Mise en place d'un cap / floor a 150% de l'objectif sur les comptes créditeurs en cas de forte variation
A21: Crédits
B22: •Commissions ADE | C22: Ajout d'un coefficient multiplicateur de 1,3 X sur le montant généré
B23: •Ajout d’un bonus de 1000€ pour chaque client devenu Bpe / JBPe via un crédit immobilier
B24: •Intégration des commissions apporteurs d’affaires venant en déduction du PNB crédit
A26: Bancarisation
B27: •Ajout d’un Booster Cartes à débit différé (40€ par carte à débit différé sur 5 ans) | C27: Sur chaque vente nette de carte à débit différé yc cartes PRO
B28: •Ajout d’un Bonus Mobilité bancaire | C28: 200€ pour chaque client sur la base de la mobilité réglementaire brute
B29: •Ajout d’un Booster sur IARD Auto et MRH (40€ par vente sur 5 ans) | C29: Bonus s'appliquant sur chaque vente nette Auto ou MRH
B30: •Mise en place d’un suivi sur options sur Bouquet Liberté (comptabilisé a partir de la 3e option) | C30: 15€ supplémentaires comptabilisés à compter de la 3e option sur un BL. Pas de pénalité pour les BL ayant moins de 2 options
A32: Autres
B33: •Mise a jour du taux sur commissions immobilières à 4%
B34: •Mise a jour du taux sur remises commerciales à 4%
A36: Bonus digital
B37: •Mise en place d'un floor à 0 sur le PNB lorsque les réalisations sont négatives | C37: Floor mis en place sur les données agrégées pour les secteurs et Dirco

Sheet Liste agences mai 2019
A1: CEGEE | B1: AUBE_HAUTE_MARNE | C1: BAS_RHIN | D1: HAUT_RHIN | E1: MARNE_ARDENNES | F1: MEURTHE_ET_MOSELLE_MEUSE | G1: MOSELLE | H1: VOSGES | I1: AGENCE_PERSONNEL | J1: MESANGE | K1: MBL | L1: BANQUE_DIRIGEANT
A2: AUBE_HAUTE_MARNE | B2: Territoire_TROYES | C2: Territoire_CHAUMONT
A3: BAS_RHIN | B3: Territoire_STRASBOURG | C3: Territoire_HAGUENAU | D3: Territoire_SELESTAT
A4: HAUT_RHIN | B4: Territoire_COLMAR | C4: Territoire_MULHOUSE
A5: MARNE_ARDENNES | B5: Territoire_CHARLEVILLE_MEZIERES | C5: Territoire_CHALONS_EN_CHAMPAGNE | D5: Territoire_REIMS
A6: MEURTHE_ET_MOSELLE_MEUSE | B6: Territoire_PONT_A_MOUSSON | C6: Territoire_NANCY | D6: Territoire_VERDUN
A7: MOSELLE | B7: Territoire_MOSELLE_EST | C7: Territoire_METZ | D7: Territoire_MOSELLE_NORD
A8: VOSGES | B8: Territoire_EPINAL | C8: Territoire_SAINT_DIE
A9: Territoire_TROYES | B9: AIX EN OTHE | C9: ARCIS SUR AUBE | D9: BAR SUR AUBE | E9: BAR SUR SEINE | F9: BRIENNE LE CHATEAU | G9: LA CHAPELLE ST LUC | H9: NOGENT SUR SEINE | I9: ROMILLY SUR SEINE | J9: SAINT ANDRE LES VERGERS | K9: SAINT JULIEN LES VILLAS | L9: SAINTE SAVINE | M9: TROYES 1ER MAI | N9: TROYES BROSSOLETTE | O9: TROYES CHARTREUX | P9: TROYES GAMBETTA | Q9: TROYES ZOLA
A10: Territoire_CHAUMONT | B10: BOURBONNE LES BAINS | C10: CHALINDREY | D10: CHATEAUVILLAIN | E10: CHAUMONT HOTEL DE VILLE | F10: CHAUMONT REPUBLIQUE | G10: JOINVILLE | H10: LANGRES | I10: NOGENT EN BASSIGNY | J10: SAINT DIZIER CENTRE | K10: SAINT DIZIER EUROPE | L10: WASSY
A11: Territoire_STRASBOURG | B11: BISCHHEIM | C11: ECKBOLSHEIM | D11: ESPACE MESANGE | E11: LA WANTZENAU | F11: MUNDOLSHEIM | G11: OBERHAUSBERGEN | H11: REICHSTETT | I11: SCHILTIGHEIM CENTRE | J11: SCHILTIGHEIM KLEBER | K11: STRASBOURG ANVERS | L11: STRASBOURG AUSTERLITZ | M11: STRASBOURG CRONENBOURG | N11: STRASBOURG DANUBE | O11: STRASBOURG ESPLANADE | P11: STRASBOURG FRANCS BOURGEOIS | Q11: STRASBOURG GARE | R11: STRASBOURG HALLES (yc Mésange) | S11: STRASBOURG KOENIGSHOFFEN | T11: STRASBOURG MEINAU | U11: STRASBOURG MONTAGNE VERTE | V11: STRASBOURG NEUDORF | W11: STRASBOURG ROBERTSAU | X11: STRASBOURG STOCKFELD | Y11: STRASBOURG VOSGES | Z11: VENDENHEIM
A12: Territoire_HAGUENAU | B12: BETSCHDORF | C12: BISCHWILLER | D12: BOUXWILLER | E12: BRUMATH | F12: DIEMERINGEN | G12: DRUSENHEIM | H12: GUNDERSHOFFEN | I12: HAGUENAU HOUBLON | J12: HAGUENAU MUSAU | K12: HERRLISHEIM | L12: HOCHFELDEN | M12: HOERDT | N12: INGWILLER | O12: LAUTERBOURG | P12: MARMOUTIER | Q12: NIEDERBRONN LES BAINS | R12: PFAFFENHOFFEN | S12: REICHSHOFFEN | T12: SARRE UNION | U12: SAVERNE | V12: SCHWEIGHOUSE SUR MODER | W12: SELTZ | X12: SOUFFLENHEIM | Y12: SOULTZ SOUS FORETS | Z12: TRUCHTERSHEIM | AA12: WEITBRUCH | AB12: WINGEN SUR MODER | AC12: WISSEMBOURG | AD12: WOERTH
A13: Territoire_SELESTAT | B13: BARR | C13: BENFELD | D13: CHATENOIS | E13: ERSTEIN | F13: FEGERSHEIM | G13: ILLKIRCH CENTRE | H13: ILLKIRCH NORD | I13: LINGOLSHEIM | J13: MARCKOLSHEIM | K13: MARLENHEIM | L13: MOLSHEIM | M13: MUTZIG | N13: OBERNAI | O13: OSTWALD | P13: ROSHEIM | Q13: SCHIRMECK | R13: SELESTAT CENTRE | S13: SELESTAT OUEST | T13: VILLE | U13: WASSELONNE
A14: Territoire_COLMAR | B14: COLMAR MARAICHERS | C14: COLMAR REPUBLIQUE | D14: COLMAR SAINT JOSEPH | E14: COLMAR SAINTE MARIE | F14: COLMAR VAUBAN | G14: ENSISHEIM | H14: GUEBWILLER | I14: HORBOURG WIHR | J14: INGERSHEIM | K14: KAYSERSBERG | L14: LAPOUTROIE | M14: LIEPVRE | N14: MUNSTER | O14: MUNTZENHEIM | P14: NEUF BRISACH | Q14: ORBEY | R14: PULVERSHEIM | S14: RIBEAUVILLE | T14: ROUFFACH | U14: SAINTE MARIE AUX MINES | V14: SOULTZ | W14: SOULTZMATT | X14: WINTZENHEIM
A15: Territoire_MULHOUSE | B15: ALTKIRCH | C15: BRUNSTATT | D15: CERNAY | E15: DANNEMARIE | F15: FERRETTE | G15: HUNINGUE | H15: ILLZACH | I15: MASEVAUX | J15: MULHOUSE DORNACH | K15: MULHOUSE REUNION | L15: MULHOUSE ROOSEVELT | M15: PFASTATT | N15: RIEDISHEIM | O15: RIXHEIM | P15: SAINT AMARIN | Q15: SAINT LOUIS | R15: SEPPOIS LE BAS | S15: SIERENTZ | T15: THANN | U15: WITTELSHEIM | V15: WITTENHEIM
A16: Territoire_CHARLEVILLE_MEZIERES | B16: CARIGNAN | C16: CHARLEVILLE JEAN JAURES | D16: CHARLEVILLE MEZIERES | E16: CHARLEVILLE MOHON | F16: CHARLEVILLE NEVERS | G16: GIVET | H16: MOUZON | I16: RETHEL | J16: REVIN | K16: ROCROI | L16: SEDAN | M16: VILLERS SEMEUSE CORA | N16: VOUZIERS | O16: VRIGNE AUX BOIS
A17: Territoire_CHALONS_EN_CHAMPAGNE | B17: CHALONS ROOSEVELT | C17: CHALONS VIVIERS | D17: FAGNIERES LECLERC | E17: MONTMIRAIL | F17: MOURMELON SUIPPES | G17: SAINTE MENEHOULD | H17: SARRY | I17: SEZANNE | J17: VERTUS | K17: VITRY LE FRANCOIS
A18: Territoire_REIMS | B18: AY CHAMPAGNE | C18: BETHENY | D18: DAMERY | E18: DORMANS | F18: EPERNAY | G18: FISMES | H18: PIERRY LECLERC | I18: REIMS CENTRE VILLE | J18: REIMS CHATILLONS | K18: REIMS EUROPE | L18: REIMS HIPPODROME | M18: REIMS HOTEL DE VILLE | N18: REIMS JEAN JAURES | O18: REIMS SAINT MARCEAUX | P18: REIMS SAINT REMI | Q18: REIMS SAINT THOMAS | R18: REIMS SAINTE ANNE | S18: TINQUEUX | T18: VERZY
A19: Territoire_PONT_A_MOUSSON | B19: BRIEY | C19: CHALIGNY NEUVES MAISONS | D19: CHAMPIGNEULLES | E19: DIEULOUARD | F19: FROUARD | G19: JARNY | H19: JOEUF | I19: LAXOU ARISTIDE BRIAND | J19: LAXOU LA SAPINIERE | K19: LUDRES | L19: NANCY PLATEAU DE HAYE | M19: NANCY TROIS MAISONS | N19: PAGNY SUR MOSELLE | O19: PIENNES | P19: POMPEY | Q19: PONT A MOUSSON BREUIL | R19: PONT A MOUSSON CENTRALE | S19: TOUL REPUBLIQUE | T19: VEZELISE | U19: VILLERS GENERAL LECLERC
A20: Territoire_NANCY | B20: BACCARAT | C20: BAYON | D20: BLAINVILLE | E20: BLAMONT | F20: DOMBASLE SUR MEURTHE | G20: ESSEY LES NANCY | H20: JARVILLE LA MALGRANGE | I20: LUNEVILLE CARNOT | J20: LUNEVILLE CHATEAU | K20: NANCY ARTEM | L20: NANCY JEAN JAURES | M20: NANCY PLACE DOMBASLE | N20: NANCY POINT CENTRAL | O20: NANCY SAINT SEBASTIEN | P20: SAINT MAX | Q20: SAINT NICOLAS DE PORT | R20: TOMBLAINE | S20: VANDOEUVRE LES NANCY
A21: Territoire_VERDUN | B21: BAR LE DUC | C21: COMMERCY | D21: ETAIN | E21: LIGNY EN BARROIS | F21: LONGUYON | G21: LONGWY BAS | H21: LONGWY HAUT | I21: MONTMEDY | J21: REVIGNY SUR ORNAIN | K21: SAINT MIHIEL | L21: STENAY | M21: VAUCOULEURS | N21: VERDUN CENTRALE | O21: VERDUN MAZEL | P21: VILLERUPT
A22: Territoire_MOSELLE_EST | B22: BEHREN LES FORBACH | C22: BITCHE | D22: CHATEAU SALINS | E22: CREUTZWALD | F22: DIEUZE | G22: FAULQUEMONT | H22: FORBACH CENTRALE | I22: GROSBLIEDERSTROFF | J22: HOMBOURG HAUT | K22: MERLEBACH | L22: MORHANGE | M22: NEUNKIRCH | N22: PHALSBOURG | O22: PUTTELANGE AUX LACS | P22: SAINT AVOLD | Q22: SARREBOURG | R22: SARREGUEMINES | S22: STIRING WENDEL | T22: VALMONT
A23: Territoire_METZ | B23: ARS SUR MOSELLE | C23: BOULAY | D23: CLOUANGE | E23: MAIZIERES LES METZ | F23: MARANGE SILVANGE | G23: MARLY | H23: METZ CATHEDRALE | I23: METZ MOZART | J23: METZ PLAPPEVILLE | K23: METZ POMPIDOU | L23: METZ REPUBLIQUE | M23: METZ SAINT LIVIER | N23: METZ SAINT LOUIS | O23: METZ SAINT MAXIMIN | P23: METZ SARRE | Q23: MONTIGNY LES METZ | R23: MOULINS LES METZ | S23: REMILLY | T23: ROMBAS | U23: SAINT JULIEN LES METZ | V23: SAINTE MARIE AUX CHENES | W23: WOIPPY
A24: Territoire_MOSELLE_NORD | B24: AUDUN LE TICHE | C24: BOUSSE | D24: BOUZONVILLE | E24: CATTENOM | F24: FAMECK | G24: FLORANGE | H24: FONTOY | I24: GUENANGE | J24: HAGONDANGE | K24: HAYANGE | L24: HETTANGE GRANDE | M24: METZERVISSE | N24: NILVANGE | O24: SIERCK LES BAINS | P24: TERVILLE | Q24: THIONVILLE CENTRALE | R24: THIONVILLE COTE DES ROSES | S24: THIONVILLE LA MILLIAIRE | T24: UCKANGE | U24: YUTZ
A25: Territoire_EPINAL | B25: CHANTRAINE | C25: CHARMES | D25: CHATENOIS VOSGES | E25: DARNEY | F25: DOCELLES | G25: ELOYES | H25: EPINAL ARISTIDE BRIAND | I25: EPINAL AVRINSART | J25: EPINAL LEOPOLD BOURG | K25: GOLBEY | L25: LE VAL D AJOL | M25: MIRECOURT | N25: NEUFCHATEAU | O25: NOMEXY | P25: REMIREMONT | Q25: THAON LES VOSGES | R25: VITTEL | S25: XERTIGNY
A26: Territoire_SAINT_DIE | B26: BRUYERES | C26: CORNIMONT LA BRESSE | D26: FRAIZE | E26: GERARDMER | F26: GRANGES AUMONTZEY | G26: LE THILLOT | H26: MOYENMOUTIER | I26: RAMBERVILLERS | J26: RAON L ETAPE | K26: SAINT DIE | L26: SAINT DIE CATHEDRALE | M26: SENONES | N26: VAGNEY

Sheet Indicateurs Cumulés
C1: 1 | D1: 2 | E1: 3 | F1: 4 | G1: 5 | H1: 6 | I1: 7 | J1: 8 | K1: 9 | L1: 10 | M1: 11 | N1: 12 | O1: 13 | P1: 14 | Q1: 15 | R1: 16 | S1: 17 | T1: 18 | U1: 19 | V1: 20 | W1: 21 | X1: 22 | Y1: 23 | Z1: 24 | AA1: 25 | AB1: 26 | AC1: 27 | AD1: 28 | AE1: 29 | AF1: 30 | AG1: 31 | AH1: 32 | AI1: 33 | AJ1: 34 | AK1: 35 | AL1: 36 | AM1: 37 | AN1: 38 | AO1: 39 | AP1: 40 | AQ1: 41 | AR1: 42 | AS1: 43 | AT1: 44 | AU1: 45 | AV1: 46 | AW1: 47 | AX1: 48 | AY1: 49 | AZ1: 50 | BA1: 51 | BB1: 52 | BC1: 53 | BD1: 54 | BE1: 55 | BF1: 56 | BG1: 57 | BH1: 58 | BI1: 59 | BJ1: 60 | BK1: 61 | BL1: 62 | BM1: 63 | BN1: 64 | BO1: 65 | BP1: 66 | BQ1: 67 | BR1: 68 | BS1: 69 | BT1: 70 | BU1: 71 | BV1: 72 | BW1: 73 | BX1: 74 | BY1: 75 | BZ1: 76 | CA1: 77 | CB1: 78 | CC1: 79 | CD1: 80 | CE1: 81 | CF1: 82 | CG1: 83 | CH1: 84 | CI1: 85 | CJ1: 86 | CK1: 87 | CL1: 88 | CM1: 89 | CN1: 90 | CO1: 91 | CP1: 92 | CQ1: 93 | CR1: 94 | CS1: 95 | CT1: 96 | CU1: 97 | CV1: 98 | CW1: 99 | CX1: 100 | CY1: 101 | CZ1: 102 | DA1: 103 | DB1: 104 | DC1: 105 | DD1: 106 | DE1: 107 | DF1: 108 | DG1: 109 | DH1: 110 | DI1: 111 | DJ1: 112 | DK1: 113 | DL1: 114 | DM1: 115 | DN1: 116 | DO1: 117 | DP1: 118 | DQ1: 119 | DR1: 120 | DS1: 121 | DT1: 122 | DU1: 123 | DV1: 124 | DW1: 125 | DX1: 126 | DY1: 127 | DZ1: 128 | EA1: 129 | EB1: 130 | EC1: 131 | ED1: 132 | EE1: 133 | EF1: 134 | EG1: 135 | EH1: 136 | EI1: 137 | EJ1: 138 | EK1: 139 | EL1: 140 | EM1: 141 | EN1: 142 | EO1: 143 | EP1: 144 | EQ1: 145 | ER1: 146 | ES1: 147 | ET1: 148 | EU1: 149 | EV1: 150 | EW1: 151 | EX1: 152 | EY1: 153 | EZ1: 154 | FA1: 155 | FB1: 156 | FC1: 157 | FD1: 158 | FE1: 159 | FF1: 160 | FG1: 161 | FH1: 162 | FI1: 163 | FJ1: 164 | FK1: 165 | FL1: 166 | FM1: 167 | FN1: 168 | FO1: 169 | FP1: 170 | FQ1: 171 | FR1: 172 | FS1: 173 | FT1: 174 | FU1: 175 | FV1: 176 | FW1: 177 | FX1: 178 | FY1: 179 | FZ1: 180 | GA1: 181 | GB1: 182 | GC1: 183 | GD1: 184 | GE1: 185 | GF1: 186 | GG1: 187 | GH1: 188 | GI1: 189 | GJ1: 190 | GK1: 191 | GL1: 192 | GM1: 193 | GN1: 194 | GO1: 195 | GP1: 196 | GQ1: 197 | GR1: 198 | GS1: 199 | GT1: 200 | GU1: 201 | GV1: 202 | GW1: 203 | GX1: 204 | GY1: 205 | GZ1: 206 | HA1: 207 | HB1: 208 | HC1: 209 | HD1: 210 | HE1: 211 | HF1: 212 | HG1: 213 | HH1: 214 | HI1: 215 | HJ1: 216 | HK1: 217 | HL1: 218 | HM1: 219 | HN1: 220 | HO1: 221 | HP1: 222 | HQ1: 223 | HR1: 224 | HS1: 225 | HT1: 226 | HU1: 227 | HV1: 228 | HW1: 229 | HX1: 230 | HY1: 231 | HZ1: 232 | IA1: 233 | IB1: 234 | IC1: 235 | ID1: 236 | IE1: 237 | IF1: 238 | IG1: 239 | IH1: 240 | II1: 241 | IJ1: 242 | IK1: 243 | IL1: 244 | IM1: 245 | IN1: 246 | IO1: 247 | IP1: 248 | IQ1: 249 | IR1: 250 | IS1: 251 | IT1: 252 | IU1: 253 | IV1: 254 | IW1: 255 | IX1: 256 | IY1: 257 | IZ1: 258 | JA1: 259 | JB1: 260 | JC1: 261 | JD1: 262 | JE1: 263 | JF1: 264 | JG1: 265 | JH1: 266 | JI1: 267 | JJ1: 268 | JK1: 269 | JL1: 270 | JM1: 271 | JN1: 272 | JO1: 273 | JP1: 274 | JQ1: 275 | JR1: 276 | JS1: 277 | JT1: 278 | JU1: 279 | JV1: 280 | JW1: 281 | JX1: 282 | JY1: 283 | JZ1: 284 | KA1: 285 | KB1: 286 | KC1: 287 | KD1: 288 | KE1: 289 | KF1: 290 | KG1: 291 | KH1: 292 | KI1: 293 | KJ1: 294 | KK1: 295 | KL1: 296 | KM1: 297 | KN1: 298 | KO1: 299 | KP1: 300 | KQ1: 301 | KR1: 302 | KS1: 303 | KT1: 304 | KU1: 305 | KV1: 306 | KW1: 307 | KX1: 308 | KY1: 309 | KZ1: 310 | LA1: 311 | LB1: 312 | LC1: 313 | LD1: 314 | LE1: 315 | LF1: 316 | LG1: 317 | LH1: 318 | LI1: 319 | LJ1: 320 | LK1: 321 | LL1: 322 | LM1: 323 | LN1: 324 | LO1: 325 | LP1: 326 | LQ1: 327 | LR1: 328 | LS1: 329 | LT1: 330 | LU1: 331 | LV1: 332 | LW1: 333 | LX1: 334 | LY1: 335 | LZ1: 336 | MA1: 337 | MB1: 338 | MC1: 339
A2: Id_UC | B2: Id_groupe | C2: Id_Agence | D2: Lib_Agence | E2: DATE Financements Revolving | F2: Fin Revolving | G2: Tx marg Revolving | H2: DVMA Revolving | I2: DATE CRED | J2: volumes conso BDD | K2: Tx marg conso BDD | L2: DVMA Conso BDD | M2: DVMA IF Conso BDD | N2: volumes immo BDD | O2: Durée initiale Immo BDD | P2: Tx marg immo BDD | Q2: DVMA Immo BDD | R2: DVMA IF Immo BDD | S2: volumes conso PRO | T2: Tx marg conso PRO | U2: DVMA Conso PRO | V2: volumes immo PRO | W2: Tx marg immo PRO | X2: DVMA Immo PRO | Y2: volumes Equip | Z2: Tx marg Equip | AA2: DVMA EQUIP | AB2: FDD Immo BDD | AC2: FDD conso BDD | AD2: FDD Equip PRO | AE2: ADE Immo BDD | AF2: ADE Conso BDD | AG2: CAUTION Immo BDD | AH2: DATE ASSVIE | AI2: Flux IT | AJ2: com IT | AK2: Tx com IT | AL2: Flux N3D | AM2: dont Flux N3D UC | AN2: % flux N3D en UC | AO2: com N3D | AP2: Tx com N3D | AQ2: Flux N+ et NP | AR2: dont Flux N+ et NP UC | AS2: %Flux N+ et NP en UC | AT2: com N+ et NP | AU2: Tx com N+ et NP | AV2: Flux Autres Ecu Vie | AW2: dont Flux Autres Ecu Vie UC | AX2: % Flux Autres Ecu Vie UC | AY2: com Autres Ecu Vie | AZ2: Tx com Autres Ecu Vie | BA2: Flux total ECUVIE | BB2: dont total ECUVIE en UC | BC2: % total ECUVIE en UC | BD2: com total ECUVIE | BE2: TX com total ECUVIE | BF2: DVMA | BG2: zoom PNB Crédit CONSO PRO | BH2: zoom PNB Crédit IMMO PRO | BI2: PNB Crédit CONSO (yc revolving) | BJ2: PNB Crédit IMMO | BK2: PNB Crédit MLT | BL2: TCA IMMO BDD | BM2: TCI IMMO BDD | BN2: Id Ecureuil Vie | BO2: Arbitrage fonds € vers UC Volume | BP2: Arbitrage fonds € vers UC PNB | BQ2: FCP structurés (versements) | BR2: FCP structurés PNB | BS2: Booster IARD Auto | BT2: Booster IARD MRH | BU2: Comm apporteurs d'affaires BDD | BV2: Remises commerciales dont Hors MAD | BW2: Remises commerciales dont MAD | BX2: Remises commerciales dont PRO | BY2: Auto PRO Volume | BZ2: Auto PRO PNB | CA2: MRH PRO Volume | CB2: MRH PRO PNB | CC2: Contrats monétiques actif PRO | CD2: Contrats monétiques actif PRO PNB | CE2: Contrats Mobilité bancaire | CF2: Bonus Mobilité bancaire | CG2: Carte Senséa | CH2: PNB cartes Senséa | CI2: Bonus Bancarisation Crédit Immo | CJ2: Bonus Bancarisation PNB Crédit Immo | CK2: taux de pénétration DES PRET CONSO PRO | CL2: QUOTITE ASSUREE CONSO PRO | CM2: PNB CNP CONSO PRO | CN2: QUOTITE ASSUREE IMMO PRO | CO2: PNB CNP IMMO PRO | CP2: PNB CNP IMMO PRO | CQ2: FDD EQUIP MARCHE BDD | CR2: CAUTION IMMO PRO | CS2: FDD CB Marché PRO | CT2: FDD CONSO MARCHE PRO | CU2: FDD CONSO MARCHE BDD | CV2: FDD IMMO MARCHE PRO | CW2: FDD IMMO MARCHE BDD | CX2: taux de pénétration DES PRET IMMO | CY2: QUOTITE ASSUREE IMMO | CZ2: PNB CNP IMMO BDD | DA2: taux de pénétration DES PRET CONSO BDD | DB2: QUOTITE ASSUREE CONSO BDD | DC2: PNB CNP CONSO BDD | DD2: Taux de conso de l'enveloppe dérogatoire CNP IMMO | DE2: taux de pénétration DES PRET MLT agences | DF2: QUOTITE ASSUREE MLT agences | DG2: PNB CNP MLT agences | DH2: Volumes LA BDD | DI2: Tx marg LA BDD | DJ2: DVMA LA BDD | DK2: PNB LA BDD | DL2: Volumes LB BDD | DM2: Tx marg LB BDD | DN2: DVMA LB BDD | DO2: PNB LB BDD | DP2: Volumes LGF BDD | DQ2: Tx marg LGF BDD | DR2: DVMA LGF BDD | DS2: PNB LGF BDD | DT2: Volumes LGP BDD | DU2: Tx marg LGP BDD | DV2: DVMA LGP BDD | DW2: PNB LGP BDD | DX2: Volumes LEP BDD | DY2: Tx marg LEP BDD | DZ2: DVMA LEP BDD | EA2: PNB LEP BDD | EB2: Volumes LDD BDD | EC2: Tx marg LDD BDD | ED2: DVMA LDD BDD | EE2: PNB LDD BDD | EF2: Volumes LJ (yc 10-12) BDD | EG2: Tx marg LJ (yc 10-12) BDD | EH2: DVMA LJ (yc 10-12) BDD | EI2: PNB LJ (yc 10-12) BDD | EJ2: Volumes CEL BDD | EK2: Tx marg CEL BDD | EL2: DVMA CEL BDD | EM2: PNB CEL BDD | EN2: Volumes SLR BDD | EO2: Tx marg SLR BDD | EP2: DVMA SLR BDD | EQ2: PNB SLR BDD | ER2: Volumes DAT BDD | ES2: Tx marg DAT BDD | ET2: DVMA DAT BDD | EU2: PNB DAT BDD | EV2: Volumes PEL BDD | EW2: Tx marg PEL BDD | EX2: DVMA PEL BDD | EY2: PNB PEL BDD | EZ2: Volumes PEP BDD | FA2: Tx marg PEP BDD | FB2: DVMA PEP BDD | FC2: PNB PEP BDD | FD2: Volumes Ass Vie encours BDD | FE2: Tx marg Ass Vie encours BDD | FF2: DVMA Ass Vie encours BDD | FG2: PNB Ass Vie encours BDD | FH2: Volumes Ass Vie flux BDD | FI2: Tx marg Ass Vie flux BDD | FJ2: DVMA Ass Vie flux BDD | FK2: PNB Ass Vie flux BDD | FL2: Volumes OPCVM encours BDD | FM2: Tx marg OPCVM encours BDD | FN2: DVMA OPCVM encours BDD | FO2: PNBOPCVM encours BDD | FP2: Volumes OPCVM flux BDD | FQ2: Tx marg OPCVM flux BDD | FR2: DVMA OPCVM flux BDD | FS2: PNB OPCVM flux BDD | FT2: Volumes Emprunt BDD | FU2: Tx marg Emprunt BDD | FV2: DVMA Emprunt BDD | FW2: PNB Emprunt BDD | FX2: Volumes PS BDD | FY2: Tx marg PS BDD | FZ2: DVMA PS BDD | GA2: PNB PS BDD | GB2: Volumes Epargne Bilan BDD | GC2: PNB Epargne Bilan BDD | GD2: Volumes Epargne Financière BDD | GE2: PNB Epargne Financière BDD | GF2: Volumes CDD créditeurs BDD hors plafond | GG2: Tx marg CDD créditeurs BDD | GH2: DVMA CDD créditeurs BDD | GI2: PNB CDD créditeurs BDD | GJ2: Volumes CDD créditeurs PRO hors plafond | GK2: Options complémentaires BL > 2e | GL2: PNB option | GN2: Volumes Crédit Bail BDD | GO2: Tx marg Crédit Bail BDD | GP2: DVMA Crédit Bail BDD | GQ2: PNB Crédit Bail BDD | GR2: Volumes Ass Vie BP1818 encours | GS2: Tx marg Ass Vie BP1818 encours | GT2: DVMA Ass Vie BP1818 encours | GU2: PNB Ass Vie BP1818 encours | GV2: Volumes Ass Vie BP1818 flux | GW2: Tx marg Ass Vie BP1818 flux | GX2: DVMA Ass Vie BP1818 flux | GY2: PNB Ass Vie BP1818 flux | GZ2: Volumes OPCVM BP1818 encours | HA2: Tx marg OPCVM BP1818 encours | HB2: DVMA OPCVM BP1818 encours | HC2: PNB OPCVM BP1818 encours | HD2: Volumes OPCVM BP1818 flux | HE2: Tx marg OPCVM BP1818 flux | HF2: DVMA OPCVM BP1818 flux | HG2: PNB OPCVM BP1818 flux | HH2: Volumes Autres Val MOB | HI2: Tx marg Autres Val MOB | HJ2: DVMA Autres Val MOB | HK2: PNB Autres Val MOB | HL2: Volumes Remises | HM2: Volumes Facturé | HN2: PNB TOTAL (tous produits hors banca pro) | HO2: Volumes CDD créditeurs BDD plafond (+150% et -50%) | HP2: I selection Volumes (taux pour calcul PNB) | HR2: ETP Performance | HS2: PNB ADE Autres | HT2: Marge CONSO yc access. | HU2: Marge IMMO yc access. | HV2: Marge MLT yc access. | HW2: Auto Part | HX2: MRH Part | HY2: Santé Part | HZ2: GAV Part | IA2: PJ-GU Part | IB2: ESO Part | IC2: GF Part | ID2: Bouquet liberté Autres | IE2: Futéo / SOL 16-17 / Jeune / Autonomie | IF2: Satellis Essentiel / Essentiel + | IG2: Satellis Intégral | IH2: Carte Infinite | II2: Carte Platinum (yc izicarte) | IJ2: Carte visa premier (yc izicarte) | IK2: Carte visa classique (yc izicarte) | IL2: Autres Cartes | IM2: Auto | IN2: MRH | IO2: Santé | IP2: GAV | IQ2: PJ GU | IR2: ESO | IS2: GF | IT2: Bouquet liberté Autres | IU2: Futéo / SOL 16-17 / Jeune / Autonomie | IV2: Satellis Essentiel / Essentiel + | IW2: Satellis Intégral | IX2: Carte Infinite | IY2: Carte Platinum (yc izicarte) | IZ2: Carte visa premier (yc izicarte) | JA2: Carte visa classique (yc izicarte) | JB2: Autres Cartes | JC2: PNB BANCA PART | JD2: PNB PRO Crédit MLT | JE2: SCPI Volumes (taux pour calcul PNB) | JF2: STRADIM Volumes (taux pour calcul PNB) | JG2: DVMA | JH2: tarif | JI2: Assistance Vie | JJ2: Assistance Vie | JK2: Volumes DAT PRO | JL2: Tx marg DAT PRO | JM2: Volumes PS PRO | JN2: Volumes Ass Vie flux PRO | JO2: Volumes Ass Vie encours PRO | JP2: Volumes CE PRO | JQ2: Volumes Autre Epargne PRO | JR2: Volumes CDD créditeurs PRO plafond (+150% et -50%) | JS2: PNB DAT PRO | JT2: PNB PS PRO | JU2: PNB Ass Vie flux PRO | JV2: PNB Ass Vie encours PRO | JW2: PNB CE PRO | JX2: PNB Autre Epargne PRO | JY2: PNB CDD créditeurs PRO plafond (+150% et -50%) | JZ2: PNB PRO Collecte yc DAV | KA2: Ventes nettes Libre Convergence Labelis | KB2: Business Platinum | KC2: Auto entrepreneur | KD2: Business | KE2: Business Gold | KF2: PAP | KG2: PNB Libre Convergence | KH2: Business Platinum | KI2: Auto entrepreneur | KJ2: Business | KK2: Business Gold | KL2: PAP | KM2: PNB PRO Banca | KN2: com mouv | KO2: Ventes nettes PV agences | KP2: Ventes nettes PV pros | KQ2: Evol. PROS ACTIFS | KR2: DVMA IARD | KS2: Ventes nettes PRO | KT2: Volumes PEL PRO | KU2: PNB PEL PRO | KV2: CARTE dd ventes nettes | KW2: PNB CARTE débit dif bonus de 40€ x 5 ans par carte nette | KX2: CFF Volumes (taux de 1,00% pour calcul PNB) | KY2: Bouquet liberté HDG | KZ2: Bouquet liberté HDG | LA2: Prévoyance du locataire | LB2: Prévoyance du locataire | LC2: PNB TOTAL | LD2: PNB PRO | LE2: Forfaits Part PRO | LF2: PNB Forfaits Part PRO | LG2: Cartes Part PRO | LH2: PNB Cartes Part PRO | LI2: IARD Part PRO | LJ2: PNB IARD Part PRO | LK2: PNB TOTAL (Hors booster) | LL2: PNB TOTAL (Hors booster) / ETP | LM2: PNB TOTAL COLLECTE | LN2: PNB TOTAL CREDITS | LO2: PNB TOTAL AUTRES | LP2: PNB BANCA part du PRO | LQ2: PNB TOTAL / ETP | LR2: Evolution stock clients actifs BAD (1 connexion / mois sur 3 mois) | LS2: Nombre de SED finalisées (en brut) | LT2: Nombre de SAG finalisées (périmètre SAG hors OPC en brut) | LU2: Evolution stock de clients équipés E-documents | LV2: Evolution stock de clients avec Opt-in-mail et tél. | LW2: Evolution stock de clients équipés Sécurpass | LX2: Evolution stock clients actifs BAD (1 connexion / mois sur 3 mois) PNB | LY2: Nombre de SED finalisées (en brut) PNB | LZ2: Nombre de SAG finalisées (périmètre SAG hors OPC en brut) PNB | MA2: Evolution stock de clients équipés E-documents PNB | MB2: Evolution stock de clients avec Opt-in-mail et tél. PNB | MC2: Evolution stock de clients équipés Sécurpass PNB | MD2: PV Bernard L.
E3: 2019-06-30 | BO3: =objectifs!DY373 -> 0.25% | BP3: =objectifs!DZ373 -> 8.00 | BQ3: 2.80% | BR3: 1.00 | BS3: 40 € | BT3: =BS3 -> 40 € | BY3: 100 € | BZ3: 2.75 | CA3: 30 € | CB3: 3.96 | CC3: 100 € | CD3: 5.00 | CF3: 200 € | CG3: 43 € | CH3: 5.00 | CJ3: 1,000 € | CP3: =CZ3 -> 1.30 | CZ3: 1.30 | EX3: =objectifs!DV373 -> 8.50 | GK3: =objectifs!FJ3 -> 15 € | GL3: =objectifs!FK3 -> 5.00 | HP3: =objectifs!FU373 -> 4.00% | HW3: 43 € | HX3: 25 € | HY3: 65 € | HZ3: 15 € | IA3: 3 € | IB3: 14 € | IC3: 19 € | ID3: 87 € | IE3: 12 € | IF3: 125 € | IG3: 210 € | IH3: 315 € | II3: 200 € | IJ3: 130 € | IK3: 43 € | IL3: 12 € | IM3: 2.75 | IN3: 3.96 | IO3: 3.94 | IP3: 5.37 | IQ3: 6.19 | IR3: 7.00 | IS3: 6.00 | IT3: 5.00 | IU3: 5.00 | IV3: 5.00 | IW3: 5.00 | IX3: 5.00 | IY3: 5.00 | IZ3: 5.00 | JA3: 5.00 | JB3: 5.00 | JE3: =objectifs!FU373 -> 4.00% | JF3: 2.00% | JI3: 45 € | JJ3: 9.50 | JK3: 0.20% | JM3: 1.00% | JO3: 0.45% | JP3: =JQ3 -> 0.60% | JQ3: 0.60% | JR3: 1.00% | JS3: 9.00 | JT3: 5.00 | JV3: 8.00 | JW3: 5.37 | JX3: 5.37 | JY3: 5.37 | KA3: =objectifs!GX3 -> 288 € | KB3: =objectifs!GY3 -> 195 € | KC3: =objectifs!GZ3 -> 120 € | KD3: =objectifs!HA3 -> 47 € | KE3: =objectifs!HB3 -> 130 € | KF3: =objectifs!HC3 -> 18 € | KG3: =objectifs!HD3 -> 5.00 | KH3: =objectifs!HE3 -> 5.00 | KI3: =objectifs!HF3 -> 5.00 | KJ3: =objectifs!HG3 -> 5.00 | KK3: =objectifs!HH3 -> 5.00 | KL3: =objectifs!HI3 -> 5.00 | KT3: =EW374 -> 0.00% | KU3: =JS3 -> 9.00 | KW3: 40 € | KX3: 1.00% | KY3: 140 € | KZ3: 5.00 | LA3: 20 € | LB3: 4.50 | LE3: 137 € | LF3: 5.00 | LG3: 289 € | LH3: 5.00 | LI3: 20 € | LJ3: 5.00 | LR3: 5.00 | LS3: 1.00 | LT3: 1.00 | LU3: 5.00 | LV3: 3.00 | LW3: 5.00 | LX3: 15 € | LY3: 10 € | LZ3: 3 € | MA3: 10 € | MB3: 5 € | MC3: 1 €
A4: 105006 | B4: 200262 | C4: 6 | D4: STRASBOURG NEUDORF | E4: =$E$3 -> 2019-06-30 | F4: 113 | G4: 4.32% | H4: 1.57 | I4: 2019-06-30 | J4: 996 | K4: 3.46% | L4: 2.43 | M4: 4.12 | N4: 2,960 | O4: 0 | P4: 0.04% | Q4: 7.86 | R4: 11.96 | S4: 4 | T4: 6.34% | U4: 5.78 | V4: 837 | W4: -0.03% | X4: 8.07 | Y4: 50 | Z4: 1.17% | AA4: 2.38 | AB4: 8.8 | AC4: 13.2 | AD4: 0.4 | AE4: 557.6 | AF4: 17.8 | AG4: 4.6 | AH4: 201906 | AI4: 3.00 | AJ4: 0.07 | AK4: =IF(ISERROR(AJ4/AI4),0,AJ4/AI4) -> 2.40% | AL4: 264.14 | AM4: 30.75 | AN4: =IF(ISERROR(AM4/AL4),0,AM4/AL4) -> 12% | AO4: 3.87 | AP4: =IF(ISERROR(AO4/AL4),0,AO4/AL4) -> 1.47% | AQ4: 1,287.15 | AR4: 105.99 | AS4: =IF(ISERROR(AR4/AQ4),0,AR4/AQ4) -> 8.2% | AT4: 6.44 | AU4: =IF(ISERROR(AT4/AQ4),0,AT4/AQ4) -> 0.50% | AV4: 77.62 | AW4: 1.40 | AX4: =IF(ISERROR(AW4/AV4),0,AW4/AV4) -> 1.81% | AY4: 1.15 | AZ4: =IF(ISERROR(AY4/AV4),0,AY4/AV4) -> 1.48% | BA4: 1,631.91 | BB4: 138.15 | BC4: =IF(ISERROR(BB4/BA4),0,BB4/BA4) -> 8.5% | BD4: 11.54 | BE4: =IF(ISERROR(BD4/BA4),0,BD4/BA4) -> 0.71% | BG4: =(S4*T4*U4)+CT4+CM4 -> 2 | BH4: =(V4*W4*X4)+CP4+CR4+CV4 -> 7 | BI4: =(F4*G4*H4)+(J4*K4*L4)+CU4+DC4 -> 115 | BJ4: =(N4*P4*Q4)+AB4+AG4+CZ4+CJ4 -> 100 | BK4: =(Y4*Z4*AA4)+CS4+DG4+GQ4+AD4 -> 2 | BL4: 1.44% | BM4: 0.03% | BN4: 6 | BO4: 245 | BP4: =BO4*$BO$3*$BP$3 -> 5 | BQ4: 133 | BR4: =BQ4*$BQ$3*$BR$3 -> 4 | BS4: =HW4*$BS$3*$IT$3/1000 -> 3 | BT4: =HX4*$BT$3*$IT$3/1000 -> 1 | BU4: -5 | BX4: 0 | BY4: 0 | BZ4: =BY4*$BY$3*$BZ$3/1000 -> 0 | CA4: 0 | CB4: =CA4*$CA$3*$CB$3/1000 -> 0 | CC4: 1 | CD4: =CC4*$CC$3*$CD$3/1000 -> 1 | CE4: 10 | CF4: =+CE4*$CF$3/1000 -> 2.0 | CG4: -23 | CH4: =(CG4*$CG$3*$CH$3)/1000 -> -5 | CI4: 1 | CJ4: =CI4*$CJ$3/1000 -> 1 | CK4: 100.00% | CL4: 50.00% | CM4: 0 | CN4: 100.00% | CO4: 0 | CP4: 7 | CQ4: =AD4 -> 0.4 | CR4: 1 | CS4: 0.00 | CT4: 0 | CU4: 3 | CV4: 0 | CW4: =+AB4 -> 9 | CX4: 84.80% | CY4: 129.32% | CZ4: 76 | DA4: 96.91% | DB4: 131.68% | DC4: 20 | DE4: 100.00% | DF4: 100.00% | DG4: 0 | DH4: 50 | DI4: =DI$374 -> 0.70% | DJ4: 5.33 | DK4: =DH4*DI4*DJ4 -> 2 | DL4: -129 | DM4: =DM$374 -> 0.82% | DN4: 5.33 | DO4: =DL4*DM4*DN4 -> -6 | DP4: -56 | DQ4: =DQ$374 -> 0.91% | DR4: 5.33 | DS4: =DP4*DQ4*DR4 -> -3 | DT4: 132 | DU4: =DU$374 -> 0.40% | DV4: 1.82 | DW4: =DT4*DU4*DV4 -> 1 | DX4: -240 | DY4: =DY$374 -> 0.20% | DZ4: 5.37 | EA4: =DX4*DY4*DZ4 -> -3 | EB4: 166 | EC4: =EC$374 -> 0.20% | ED4: 5.37 | EE4: =EB4*EC4*ED4 -> 2 | EF4: -29 | EG4: =EG$374 -> 0.20% | EH4: 5.37 | EI4: =EF4*EG4*EH4 -> -0 | EJ4: 37 | EK4: =EK$374 -> 0.44% | EL4: 5.33 | EM4: =EJ4*EK4*EL4 -> 1 | EN4: -0 | EO4: =EO$374 -> 0.10% | EP4: 8.55 | EQ4: =EN4*EO4*EP4 -> -0 | ER4: 17 | ES4: =ES$374 -> 0.20% | ET4: 9.00 | EU4: =ER4*ES4*ET4 -> 0 | EV4: -311 | EW4: =EW374 -> 0.00% | EX4: 8.59 | EY4: =EV4*EW4*EX4 -> 0 | EZ4: -4 | FA4: =FA$374 -> -0.18% | FB4: 0.78 | FC4: =EZ4*FA4*FB4 -> 0 | FD4: 10 | FE4: =FE$374 -> 0.45% | FF4: 8.00 | FG4: =FD4*FE4*FF4 -> 0 | FH4: 1,808 | FI4: =BE4 -> 0.71% | FJ4: =FJ$374 -> 1.00 | FK4: =FH4*FI4*FJ4 -> 13 | FL4: -52 | FM4: =FM$374 -> 0.65% | FN4: 5.00 | FO4: =FL4*FM4*FN4 -> -2 | FP4: 14 | FQ4: =FQ$374 -> 0.40% | FR4: 1.00 | FS4: =FP4*FQ4*FR4 -> 0 | FT4: -541 | FU4: =FU$374 -> 0.20% | FV4: 8.00 | FW4: =FT4*FU4*FV4 -> -9 | FX4: -11 | FY4: =FY$374 -> 1.00% | FZ4: 5.00 | GA4: =FX4*FY4*FZ4 -> -1 | GB4: =DH4+DL4+DP4+DT4+DX4+EB4+EF4+EJ4+ER4+EV4+EZ4+FT4+FX4+EN4+JP4 -> -429 | GC4: =DK4+DO4+DS4+DW4+EA4+EE4+EI4+EM4+EU4+EY4+FC4+FW4+GA4+EQ4+JW4 -> 1 | GD4: =FD4+FL4+GR4+GZ4+HH4 -> 113 | GE4: =FG4+FK4+FO4+FS4+GU4+GY4+HC4+HG4+HK4+BP4+BR4 -> 28 | GF4: 21 | GG4: =GG$374 -> 1.00% | GH4: 5.37 | GI4: =GF4*GG4*GH4 -> 1 | GJ4: 209 | GK4: 0 | GL4: =GK4*$GK$3*$GL$3/1000 -> 0 | GN4: 0 | GO4: 0.00% | GP4: 0 | GQ4: =GN4*GO4*GP4 -> 0 | GR4: 104 | GS4: =GS$374 -> 0.45% | GT4: 8.00 | GU4: =GR4*GS4*GT4 -> 4 | GV4: 207 | GW4: =FI4 -> 0.71% | GX4: =GX$374 -> 1.00 | GY4: =GV4*GW4*GX4 -> 1 | GZ4: 0 | HA4: =HA$374 -> 0.65% | HB4: 5.00 | HC4: =GZ4*HA4*HB4 -> 0 | HD4: 0 | HE4: =FQ4 -> 0.40% | HF4: =HF$374 -> 1.00 | HG4: =HD4*HE4*HF4 -> 0 | HH4: 51 | HI4: =HI$374 -> 1.00% | HJ4: 5.00 | HK4: =HH4*HI4*HJ4 -> 3 | HL4: -13 | HM4: 339 | HO4: =IF(ISERROR(IF(VLOOKUP($C4,'Indicateurs Cumulés'!$C$3:$HN$560,186,FALSE)/(VLOOKUP($C4,objectifs!$C$3:$ZZ$559,158,FALSE))>=1.5,(VLOOKUP($C4,objectifs!$C$3:$ZZ$559,158,FALSE))*1.5,IF(VLOOKUP($C4,'Indicateurs Cumulés'!$C$3:$HN$560,186,FALSE)/(VLOOKUP($C4,objectifs!$C$3:$ZZ$559,158,FALSE))<=-0.5,(VLOOKUP($C4,objectifs!$C$3:$ZZ$559,158,FALSE))*-0.5,VLOOKUP($C4,'Indicateurs Cumulés'!$C$3:$HN$560,186,FALSE)))),VLOOKUP($C4,'Indicateurs Cumulés'!$C$3:$HN$560,186,FALSE),IF(VLOOKUP($C4,'Indicateurs Cumulés'!$C$3:$HN$560,186,FALSE)/(VLOOKUP($C4,objectifs!$C$3:$ZZ$559,158,FALSE))>=1.5,(VLOOKUP($C4,objectifs!$C$3:$ZZ$559,158,FALSE))*1.5,IF(VLOOKUP($C4,'Indicateurs Cumulés'!$C$3:$HN$560,186,FALSE)/(VLOOKUP($C4,objectifs!$C$3:$ZZ$559,158,FALSE))<=-0.5,(VLOOKUP($C4,objectifs!$C$3:$ZZ$559,158,FALSE))*-0.5,VLOOKUP($C4,'Indicateurs Cumulés'!$C$3:$HN$560,186,FALSE)))) -> 21 | HP4: 0 | HR4: 7.7 | HT4: =IF(ISERROR((J4*K4*L4+F4*G4*H4+CU4+DC4)/((F4*L4+J4*L4))),0,(J4*K4*L4+F4*G4*H4+CU4+DC4)/((F4*L4+J4*L4))) -> 4.27% | HU4: =IF(ISERROR((N4*P4*Q4+CW4+CZ4+AG4)/(N4*Q4)),0,(N4*P4*Q4+CW4+CZ4+AG4)/(N4*Q4)) -> 0.43% | HV4: =IF(ISERROR((Y4*Z4*AA4+GN4*GO4*GP4+CQ4)/((Y4*AA4+GN4*GP4))),0,(Y4*Z4*AA4+GN4*GO4*GP4+CQ4+DG4)/((Y4*AA4+GN4*GP4))) -> 1.59% | HW4: 14 | HX4: 6 | HY4: 1 | HZ4: 15 | IA4: 17 | IB4: 6 | IC4: 22 | ID4: -27 | IE4: -3 | IF4: -49 | IG4: -2 | IH4: 3 | II4: -1 | IJ4: 52 | IK4: -67 | IL4: 0 | IM4: =HW4*IM$3*HW$3/1000 -> 2 | IN4: =HX4*IN$3*HX$3/1000 -> 1 | IO4: 0 | IP4: 1 | IQ4: 0 | IR4: =IB4*IR$3*IB$3/1000 -> 1 | IS4: 3 | IT4: -12 | IU4: -0 | IV4: -31 | IW4: -2 | IX4: 5 | IY4: -1 | IZ4: 34 | JA4: -14 | JB4: 0 | JC4: =SUM(IM4:JB4)+BS4+BT4+GL4+JJ4+KW4+KZ4+LB4+CF4+CH4 -> 34 | JD4: =BG4+BH4+BK4 -> 10 | JE4: 0 | JF4: 0 | JG4: =IF(ISERROR((HW4*$IM$3+HX4*$IN$3+HY4*$IO$3+HZ4*$IP$3+IA4*$IQ$3+IB4*$IR$3+IC4*$IS$3+ID4*$IT$3+IE4*$IU$3+IF4*$IV$3+IG4*$IW$3+IH4*$IX$3+II4*$IY$3+IJ4*$IZ$3+IK4*$JA$3+IL4*$JB$3+JI4*$JJ$3+GK4*$GL$3+KY4*$KZ$3+LA4*$LB$3)/JF4),0,(HW4*$IM$3+HX4*$IN$3+HY4*$IO$3+HZ4*$IP$3+IA4*$IQ$3+IB4*$IR$3+IC4*$IS$3+ID4*$IT$3+IE4*$IU$3+IF4*$IV$3+IG4*$IW$3+IH4*$IX$3+II4*$IY$3+IJ4*$IZ$3+IK4*$JA$3+IL4*$JB$3+JI4*$JJ$3+GK4*$GL$3+KY4*$KZ$3+LA4*$LB$3)/JF4) -> 0.00 | JH4: =IF(ISERROR(JC4/(JF4*JG4)*1000),0,JC4/(JF4*JG4)*1000) -> 0.00 | JI4: 0 | JJ4: =JI4*JI$3*JJ$3/1000 -> 0 | JK4: 0 | JL4: =$ES$374 -> 0.20% | JM4: -3 | JO4: 7 | JP4: 491 | JQ4: 162 | JR4: =IF(ISERROR(IF(VLOOKUP($C4,'Indicateurs Cumulés'!$C$3:$HN$560,190,FALSE)/(VLOOKUP($C4,objectifs!$C$3:$ZZ$559,162,FALSE))>=1.5,(VLOOKUP($C4,objectifs!$C$3:$ZZ$559,162,FALSE))*1.5,IF(VLOOKUP($C4,'Indicateurs Cumulés'!$C$3:$HN$560,190,FALSE)/(VLOOKUP($C4,objectifs!$C$3:$ZZ$559,162,FALSE))<=-0.5,(VLOOKUP($C4,objectifs!$C$3:$ZZ$559,162,FALSE))*-0.5,VLOOKUP($C4,'Indicateurs Cumulés'!$C$3:$HN$560,190,FALSE)))),VLOOKUP($C4,'Indicateurs Cumulés'!$C$3:$HN$560,190,FALSE),IF(VLOOKUP($C4,'Indicateurs Cumulés'!$C$3:$HN$560,190,FALSE)/(VLOOKUP($C4,objectifs!$C$3:$ZZ$559,162,FALSE))>=1.5,(VLOOKUP($C4,objectifs!$C$3:$ZZ$559,162,FALSE))*1.5,IF(VLOOKUP($C4,'Indicateurs Cumulés'!$C$3:$HN$560,190,FALSE)/(VLOOKUP($C4,objectifs!$C$3:$ZZ$559,162,FALSE))<=-0.5,(VLOOKUP($C4,objectifs!$C$3:$ZZ$559,162,FALSE))*-0.5,VLOOKUP($C4,'Indicateurs Cumulés'!$C$3:$HN$560,190,FALSE)))) -> 164 | JS4: =JK4*$JK$3*$JS$3 -> 0 | JT4: =JM4*$JM$3*$JT$3 -> -0 | JV4: =JO4*$JO$3*$JV$3 -> 0 | JW4: =JP4*$JP$3*$JW$3 -> 16 | JX4: =JQ4*$JQ$3*$JX$3 -> 5 | JY4: =JR4*$JR$3*$JY$3 -> 9 | JZ4: =JS4+JT4+JU4+JV4+JW4+JX4+JY4+KU4 -> 30 | KA4: 3 | KB4: 0 | KC4: -1 | KD4: 3 | KE4: 0 | KF4: 0 | KG4: =KA4*KG$3*KA$3/1000 -> 4 | KH4: =KB4*KH$3*KB$3/1000 -> 0 | KI4: -1 | KJ4: 1 | KK4: 0 | KL4: 0 | KM4: =SUM(KG4:KL4)+KN4+BZ4+CB4+CD4 -> 12 | KN4: 7 | KR4: =IF(ISERROR((HW4*$IM$3+HX4*$IN$3+HY4*$IO$3+HZ4*$IP$3+IA4*$IQ$3+IB4*$IR$3+IC4*$IS$3)/(SUM(HW4:IC4))),$KR$374,(HW4*$IM$3+HX4*$IN$3+HY4*$IO$3+HZ4*$IP$3+IA4*$IQ$3+IB4*$IR$3+IC4*$IS$3)/(SUM(HW4:IC4))) -> 5.26 | KS4: =SUM(KA4:KF4) -> 5 | KT4: -6 | KU4: =KT4*$KT$3*$KU$3 -> 0 | KV4: 49 | KW4: =KV4*$KW$3*$IZ$3/1000 -> 10 | KX4: 0 | KY4: =IH4+II4+IJ4 -> 54 | KZ4: =KY4*$KY$3*$KZ$3/1000 -> 38 | LA4: 0 | LB4: =LA4*$LA$3*$LB$3/1000 -> 0 | LC4: =(F4*G4*H4+J4*K4*L4+N4*P4*Q4+Y4*Z4*AA4+AB4+AD4+AG4+CS4+CU4+CZ4+DC4+DG4+GQ4+BU4+CJ4)*1+(GC4+GE4+(HO4*GG4*GH4))*1+(HL4+HP4*$HP$3+JE4*$JE$3+KX4*$KX$3++JF4*$JF$3)*1+(SUM(IM4:JB4)+JJ4+GL4+KW4+KZ4+LB4+SUM(KG4:KL4)+BS4+BT4+BZ4+CB4+CD4+CF4+KN4+LF4+LH4+LJ4+CH4)*1 -> 291.3 | LD4: =(S4*T4*U4+V4*W4*X4+Y4*Z4*AA4+AD4+CS4+CT4+CV4+CM4+CP4+CR4+DG4+GQ4)+(SUM(JS4:JY4)+KU4)+(SUM(KG4:KL4)+KN4+BZ4+CB4+CD4)+(LF4+LH4+LJ4)+BX4 -> 68 | LE4: 6 | LF4: =LE4*$LE$3*$LF$3/1000 -> 4 | LG4: 8 | LH4: =LG4*$LG$3*$LH$3/1000 -> 12 | LI4: 1 | LJ4: =LI4*$LI$3*$LJ$3/1000 -> 0 | LK4: =LC4-KW4-BS4-BT4-CF4-CJ4 -> 274 | LL4: =IF(HR4=0,0,LK4/HR4) -> 35.7 | LM4: =(GC4+GE4)+(HO4*GG4*GH4) -> 30 | LN4: =BJ4+BI4+BK4 -> 217 | LO4: =(HP4*$HP$3)+(KX4*$KX$3)+(JE4*$JE$3)+(JF4*$JF$3)+HL4 -> -13 | LP4: =LF4+LH4+LJ4 -> 16 | LQ4: =IF(HR4=0,0,LC4/HR4) -> 37.85 | LR4: 241 | LS4: 191 | LT4: 846 | LU4: 152 | LV4: 53 | LW4: 58 | LX4: =IF(LR4<0,0,LR4*$LR$3*$LX$3/1000) -> 18.1 | LY4: =IF(LS4<0,0,LS4*$LS$3*$LY$3/1000) -> 1.9 | LZ4: =IF(LT4<0,0,LT4*$LT$3*$LZ$3/1000) -> 2.5 | MA4: =IF(LU4<0,0,LU4*$LU$3*$MA$3/1000) -> 7.6 | MB4: =IF(LV4<0,0,LV4*$LV$3*$MB$3/1000) -> 0.8 | MC4: =IF(LW4<0,0,LW4*$LW$3*$MC$3/1000) -> 0.3 | MD4: =+LC4+SUM(LX4:MC4) -> 322
A5: 105101 | B5: 200262 | C5: 7 | D5: ILLKIRCH CENTRE | E5: =$E$3 -> 2019-06-30 | F5: 116 | G5: 4.32% | H5: 1.57 | I5: 2019-06-30 | J5: 1,897 | K5: 3.03% | L5: 2.68 | M5: 4.43 | N5: 5,807 | O5: 0 | P5: -0.10% | Q5: 5.90 | R5: 8.96 | S5: 197 | T5: 2.56% | U5: 2.36 | V5: 571 | W5: -0.22% | X5: 8.29 | Y5: 65 | Z5: 1.21% | AA5: 2.10 | AB5: 12.4 | AC5: 19.9 | AD5: 0.5 | AE5: 1,350.2 | AF5: 31.8 | AG5: 6.7 | AH5: 201906 | AI5: 20.00 | AJ5: 0.11 | AK5: =IF(ISERROR(AJ5/AI5),0,AJ5/AI5) -> 0.54% | AL5: 636.39 | AM5: 157.66 | AN5: 25% | AO5: 4.05 | AP5: 0.64% | AQ5: 2,055.28 | AR5: 334.31 | AS5: 16.3% | AT5: 5.14 | AU5: 0.25% | AV5: 77.81 | AW5: 10.12 | AX5: 13.00% | AY5: 1.57 | AZ5: 2.01% | BA5: 2,789.48 | BB5: 502.08 | BC5: 18.0% | BD5: 10.86 | BE5: 0.39% | BG5: 15 | BH5: =(V5*W5*X5)+CP5+CR5+CV5 -> -7 | BI5: 216 | BJ5: 84 | BK5: 2 | BL5: 1.34% | BM5: 0.00% | BN5: 7 | BO5: 228 | BP5: =BO5*$BO$3*$BP$3 -> 5 | BQ5: 428 | BR5: =BQ5*$BQ$3*$BR$3 -> 12 | BS5: =HW5*$BS$3*$IT$3/1000 -> 7 | BT5: =HX5*$BT$3*$IT$3/1000 -> 2 | BU5: -9 | BX5: 0 | BY5: 0 | BZ5: =BY5*$BY$3*$BZ$3/1000 -> 0 | CA5: 0 | CB5: =CA5*$CA$3*$CB$3/1000 -> 0 | CC5: 0 | CD5: =CC5*$CC$3*$CD$3/1000 -> 0 | CE5: 20 | CF5: =+CE5*$CF$3/1000 -> 4.0 | CG5: -1 | CH5: =(CG5*$CG$3*$CH$3)/1000 -> -0 | CI5: 7 | CJ5: =CI5*$CJ$3/1000 -> 7 | CK5: 79.65% | CL5: 123.99% | CM5: 3 | CN5: 0.00% | CO5: 3 | CP5: 1 | CQ5: 0.5 | CR5: 1 | CS5: 0.00 | CT5: 0 | CU5: 6 | CV5: 1 | CW5: =+AB5 -> 12 | CX5: 41.37% | CY5: 141.78% | CZ5: 91 | DA5: 95.15% | DB5: 153.01% | DC5: 48 | DE5: 5.66% | DF5: 100.00% | DG5: 0 | DH5: -432 | DI5: 0.70% | DJ5: 5.33 | DK5: =DH5*DI5*DJ5 -> -16 | DL5: 236 | DM5: 0.82% | DN5: 5.33 | DO5: =DL5*DM5*DN5 -> 10 | DP5: -20 | DQ5: 0.91% | DR5: 5.33 | DS5: =DP5*DQ5*DR5 -> -1 | DT5: 489 | DU5: 0.40% | DV5: 1.82 | DW5: =DT5*DU5*DV5 -> 4 | DX5: -247 | DY5: 0.20% | DZ5: 5.37 | EA5: =DX5*DY5*DZ5 -> -3 | EB5: -56 | EC5: 0.20% | ED5: 5.37 | EE5: =EB5*EC5*ED5 -> -1 | EF5: -37 | EG5: 0.20% | EH5: 5.37 | EI5: =EF5*EG5*EH5 -> -0 | EJ5: -67 | EK5: 0.44% | EL5: 5.33 | EM5: =EJ5*EK5*EL5 -> -2 | EN5: -31 | EO5: 0.10% | EP5: 6.30 | EQ5: =EN5*EO5*EP5 -> -0 | ER5: -155 | ES5: 0.20% | ET5: 9.00 | EU5: =ER5*ES5*ET5 -> -3 | EV5: -276 | EW5: =EW375 -> 0.00% | EX5: 7.52 | EY5: =EV5*EW5*EX5 -> 0 | EZ5: 0 | FA5: -0.18% | FB5: 0.78 | FC5: =EZ5*FA5*FB5 -> 0 | FD5: 1,264 | FE5: 0.45% | FF5: 8.00 | FG5: =FD5*FE5*FF5 -> 46 | FH5: 2,867 | FI5: 0.39% | FJ5: 1.00 | FK5: =FH5*FI5*FJ5 -> 11 | FL5: -166 | FM5: 0.65% | FN5: 5.00 | FO5: =FL5*FM5*FN5 -> -5 | FP5: 36 | FQ5: 0.40% | FR5: 1.00 | FS5: =FP5*FQ5*FR5 -> 0 | FT5: -616 | FU5: 0.20% | FV5: 8.00 | FW5: =FT5*FU5*FV5 -> -10 | FX5: 47 | FY5: 1.00% | FZ5: 5.00 | GA5: =FX5*FY5*FZ5 -> 2 | GB5: -1,030 | GC5: -15 | GD5: =FD5+FL5+GR5+GZ5+HH5 -> 1,765 | GE5: 95 | GF5: -621 | GG5: 1.00% | GH5: 5.37 | GI5: =GF5*GG5*GH5 -> -33 | GJ5: -73 | GK5: 0 | GL5: =GK5*$GK$3*$GL$3/1000 -> 0 | GN5: 0 | GO5: 0.00% | GP5: 0 | GQ5: =GN5*GO5*GP5 -> 0 | GR5: 617 | GS5: 0.45% | GT5: 8.00 | GU5: =GR5*GS5*GT5 -> 22 | GV5: 617 | GW5: =FI5 -> 0.39% | GX5: 1.00 | GY5: =GV5*GW5*GX5 -> 2 | GZ5: 0 | HA5: 0.65% | HB5: 5.00 | HC5: =GZ5*HA5*HB5 -> 0 | HD5: 0 | HE5: =FQ5 -> 0.40% | HF5: 1.00 | HG5: 0 | HH5: 51 | HI5: 1.00% | HJ5: 5.00 | HK5: 3 | HL5: -26 | HM5: 302 | HO5: =IF(ISERROR(IF(VLOOKUP($C5,'Indicateurs Cumulés'!$C$3:$HN$560,186,FALSE)/(VLOOKUP($C5,objectifs!$C$3:$ZZ$559,158,FALSE))>=1.5,(VLOOKUP($C5,objectifs!$C$3:$ZZ$559,158,FALSE))*1.5,IF(VLOOKUP($C5,'Indicateurs Cumulés'!$C$3:$HN$560,186,FALSE)/(VLOOKUP($C5,objectifs!$C$3:$ZZ$559,158,FALSE))<=-0.5,(VLOOKUP($C5,objectifs!$C$3:$ZZ$559,158,FALSE))*-0.5,VLOOKUP($C5,'Indicateurs Cumulés'!$C$3:$HN$560,186,FALSE)))),VLOOKUP($C5,'Indicateurs Cumulés'!$C$3:$HN$560,186,FALSE),IF(VLOOKUP($C5,'Indicateurs Cumulés'!$C$3:$HN$560,186,FALSE)/(VLOOKUP($C5,objectifs!$C$3:$ZZ$559,158,FALSE))>=1.5,(VLOOKUP($C5,objectifs!$C$3:$ZZ$559,158,FALSE))*1.5,IF(VLOOKUP($C5,'Indicateurs Cumulés'!$C$3:$HN$560,186,FALSE)/(VLOOKUP($C5,objectifs!$C$3:$ZZ$559,158,FALSE))<=-0.5,(VLOOKUP($C5,objectifs!$C$3:$ZZ$559,158,FALSE))*-0.5,VLOOKUP($C5,'Indicateurs Cumulés'!$C$3:$HN$560,186,FALSE)))) -> -362 | HP5: 0 | HR5: 7.4 | HT5: 4.00% | HU5: 0.22% | HV5: 1.64% | HW5: 37 | HX5: 12 | HY5: 1 | HZ5: 12 | IA5: -21 | IB5: 17 | IC5: 22 | ID5: -18 | IE5: 0 | IF5: -34 | IG5: -8 | IH5: 6 | II5: 2 | IJ5: 32 | IK5: -58 | IL5: -5 | IM5: =HW5*IM$3*HW$3/1000 -> 4 | IN5: =HX5*IN$3*HX$3/1000 -> 1 | IO5: =HY5*IO$3*HY$3/1000 -> 0 | IP5: =HZ5*IP$3*HZ$3/1000 -> 1 | IQ5: =IA5*IQ$3*IA$3/1000 -> -0 | IR5: =IB5*IR$3*IB$3/1000 -> 2 | IS5: =IC5*IS$3*IC$3/1000 -> 3 | IT5: =ID5*IT$3*ID$3/1000 -> -8 | IU5: =IE5*IU$3*IE$3/1000 -> 0 | IV5: =IF5*IV$3*IF$3/1000 -> -21 | IW5: =IG5*IW$3*IG$3/1000 -> -8 | IX5: =IH5*IX$3*IH$3/1000 -> 9 | IY5: =II5*IY$3*II$3/1000 -> 2 | IZ5: =IJ5*IZ$3*IJ$3/1000 -> 21 | JA5: =IK5*JA$3*IK$3/1000 -> -12 | JB5: =IL5*JB$3*IL$3/1000 -> -0 | JC5: 47 | JD5: 10 | JE5: 0 | JF5: 0 | JG5: =IF(ISERROR((HW5*$IM$3+HX5*$IN$3+HY5*$IO$3+HZ5*$IP$3+IA5*$IQ$3+IB5*$IR$3+IC5*$IS$3+ID5*$IT$3+IE5*$IU$3+IF5*$IV$3+IG5*$IW$3+IH5*$IX$3+II5*$IY$3+IJ5*$IZ$3+IK5*$JA$3+IL5*$JB$3+JI5*$JJ$3+GK5*$GL$3+KY5*$KZ$3+LA5*$LB$3)/JF5),0,(HW5*$IM$3+HX5*$IN$3+HY5*$IO$3+HZ5*$IP$3+IA5*$IQ$3+IB5*$IR$3+IC5*$IS$3+ID5*$IT$3+IE5*$IU$3+IF5*$IV$3+IG5*$IW$3+IH5*$IX$3+II5*$IY$3+IJ5*$IZ$3+IK5*$JA$3+IL5*$JB$3+JI5*$JJ$3+GK5*$GL$3+KY5*$KZ$3+LA5*$LB$3)/JF5) -> 0.00 | JH5: =IF(ISERROR(JC5/(JF5*JG5)*1000),0,JC5/(JF5*JG5)*1000) -> 0.00 | JI5: 0 | JJ5: =JI5*JI$3*JJ$3/1000 -> 0 | JK5: -16 | JL5: =$ES$374 -> 0.20% | JM5: 20 | JO5: 13 | JP5: 133 | JQ5: 7 | JR5: =IF(ISERROR(IF(VLOOKUP($C5,'Indicateurs Cumulés'!$C$3:$HN$560,190,FALSE)/(VLOOKUP($C5,objectifs!$C$3:$ZZ$559,162,FALSE))>=1.5,(VLOOKUP($C5,objectifs!$C$3:$ZZ$559,162,FALSE))*1.5,IF(VLOOKUP($C5,'Indicateurs Cumulés'!$C$3:$HN$560,190,FALSE)/(VLOOKUP($C5,objectifs!$C$3:$ZZ$559,162,FALSE))<=-0.5,(VLOOKUP($C5,objectifs!$C$3:$ZZ$559,162,FALSE))*-0.5,VLOOKUP($C5,'Indicateurs Cumulés'!$C$3:$HN$560,190,FALSE)))),VLOOKUP($C5,'Indicateurs Cumulés'!$C$3:$HN$560,190,FALSE),IF(VLOOKUP($C5,'Indicateurs Cumulés'!$C$3:$HN$560,190,FALSE)/(VLOOKUP($C5,objectifs!$C$3:$ZZ$559,162,FALSE))>=1.5,(VLOOKUP($C5,objectifs!$C$3:$ZZ$559,162,FALSE))*1.5,IF(VLOOKUP($C5,'Indicateurs Cumulés'!$C$3:$HN$560,190,FALSE)/(VLOOKUP($C5,objectifs!$C$3:$ZZ$559,162,FALSE))<=-0.5,(VLOOKUP($C5,objectifs!$C$3:$ZZ$559,162,FALSE))*-0.5,VLOOKUP($C5,'Indicateurs Cumulés'!$C$3:$HN$560,190,FALSE)))) -> -52 | JS5: =JK5*$JK$3*$JS$3 -> -0 | JT5: =JM5*$JM$3*$JT$3 -> 1 | JV5: =JO5*$JO$3*$JV$3 -> 0 | JW5: =JP5*$JP$3*$JW$3 -> 4 | JX5: =JQ5*$JQ$3*$JX$3 -> 0 | JY5: =JR5*$JR$3*$JY$3 -> -3 | JZ5: =JS5+JT5+JU5+JV5+JW5+JX5+JY5+KU5 -> 3 | KA5: 9 | KB5: 3 | KC5: 0 | KD5: 1 | KE5: 1 | KF5: 1 | KG5: =KA5*KG$3*KA$3/1000 -> 13 | KH5: =KB5*KH$3*KB$3/1000 -> 3 | KI5: =KC5*KI$3*KC$3/1000 -> 0 | KJ5: =KD5*KJ$3*KD$3/1000 -> 0 | KK5: =KE5*KK$3*KE$3/1000 -> 1 | KL5: =KF5*KL$3*KF$3/1000 -> 0 | KM5: =SUM(KG5:KL5)+KN5+BZ5+CB5+CD5 -> 27 | KN5: 11 | KR5: 4.23 | KS5: =SUM(KA5:KF5) -> 15 | KT5: -1 | KU5: =KT5*$KT$3*$KU$3 -> 0 | KV5: 66 | KW5: =KV5*$KW$3*$IZ$3/1000 -> 13 | KX5: 0 | KY5: =IH5+II5+IJ5 -> 40 | KZ5: =KY5*$KY$3*$KZ$3/1000 -> 28 | LA5: 0 | LB5: =LA5*$LA$3*$LB$3/1000 -> 0 | LC5: =(F5*G5*H5+J5*K5*L5+N5*P5*Q5+Y5*Z5*AA5+AB5+AD5+AG5+CS5+CU5+CZ5+DC5+DG5+GQ5+BU5+CJ5)*1+(GC5+GE5+(HO5*GG5*GH5))*1+(HL5+HP5*$HP$3+JE5*$JE$3+KX5*$KX$3++JF5*$JF$3)*1+(SUM(IM5:JB5)+JJ5+GL5+KW5+KZ5+LB5+SUM(KG5:KL5)+BS5+BT5+BZ5+CB5+CD5+CF5+KN5+LF5+LH5+LJ5+CH5)*1 -> 407.6 | LD5: 46 | LE5: 2 | LF5: =LE5*$LE$3*$LF$3/1000 -> 1 | LG5: 3 | LH5: =LG5*$LG$3*$LH$3/1000 -> 4 | LI5: -3 | LJ5: =LI5*$LI$3*$LJ$3/1000 -> -0 | LK5: =LC5-KW5-BS5-BT5-CF5-CJ5 -> 374 | LL5: 50.6 | LM5: =(GC5+GE5)+(HO5*GG5*GH5) -> 61 | LN5: 302 | LO5: =(HP5*$HP$3)+(KX5*$KX$3)+(JE5*$JE$3)+(JF5*$JF$3)+HL5 -> -26 | LP5: =LF5+LH5+LJ5 -> 5 | LQ5: 55.19 | LR5: 240 | LS5: 107 | LT5: 880 | LU5: 214 | LV5: 76 | LW5: 26 | LX5: =IF(LR5<0,0,LR5*$LR$3*$LX$3/1000) -> 18.0 | LY5: =IF(LS5<0,0,LS5*$LS$3*$LY$3/1000) -> 1.1 | LZ5: =IF(LT5<0,0,LT5*$LT$3*$LZ$3/1000) -> 2.6 | MA5: =IF(LU5<0,0,LU5*$LU$3*$MA$3/1000) -> 10.7 | MB5: =IF(LV5<0,0,LV5*$LV$3*$MB$3/1000) -> 1.1 | MC5: =IF(LW5<0,0,LW5*$LW$3*$MC$3/1000) -> 0.1 | MD5: =+LC5+SUM(LX5:MC5) -> 441
A6: 105101 | B6: 200262 | C6: 8 | D6: FEGERSHEIM | E6: 2019-06-30 | F6: 50 | G6: 4.32% | H6: 1.57 | I6: 2019-06-30 | J6: 926 | K6: 1.97% | L6: 2.77 | M6: 4.30 | N6: 2,942 | O6: 0 | P6: 0.05% | Q6: 7.17 | R6: 11.16 | S6: 147 | T6: 2.37% | U6: 2.48 | V6: 91 | W6: -0.36% | X6: 7.56 | Y6: 40 | Z6: 1.53% | AA6: 1.48 | AB6: 7.8 | AC6: 15.5 | AD6: 0.5 | AE6: 78.9 | AF6: 27.6 | AG6: 4.1 | AH6: 201906 | AI6: 0 | AJ6: 0 | AK6: 0.00% | AL6: 297.90 | AM6: 100.14 | AN6: 34% | AO6: 2.29 | AP6: 0.77% | AQ6: 514.16 | AR6: 171.78 | AS6: 33.4% | AT6: 0.68 | AU6: 0.13% | AV6: 111.51 | AW6: 27.65 | AX6: 24.79% | AY6: 0.91 | AZ6: 0.82% | BA6: 925.17 | BB6: 299.57 | BC6: 32.4% | BD6: 3.92 | BE6: 0.42% | BG6: 12 | BH6: -2 | BI6: 74 | BJ6: 86 | BK6: 7 | BL6: 1.38% | BM6: 0.00% | BN6: 8 | BO6: 57 | BP6: 1 | BQ6: 222 | BR6: 6 | BS6: 0 | BT6: 1 | BU6: 0 | BX6: 0 | BY6: 0 | BZ6: 0 | CA6: 1 | CB6: 0 | CC6: -6 | CD6: -3 | CE6: 2 | CF6: 0.4 | CG6: 0 | CH6: 0 | CI6: 1 | CJ6: 1 | CK6: 100.00% | CL6: 86.39% | CM6: 2 | CN6: 0.00% | CO6: 2 | CP6: 0 | CQ6: 0.5 | CR6: 0 | CS6: 1.65 | CT6: 1 | CU6: 4 | CV6: 0 | CW6: 8 | CX6: 65.60% | CY6: 149.35% | CZ6: 63 | DA6: 100.17% | DB6: 117.26% | DC6: 16 | DE6: 87.50% | DF6: 100.00% | DG6: 0 | DH6: 240 | DI6: 0.70% | DJ6: 5.33 | DK6: 9 | DL6: 495 | DM6: 0.82% | DN6: 5.33 | DO6: 22 | DP6: -56 | DQ6: 0.91% | DR6: 5.33 | DS6: -3 | DT6: 444 | DU6: 0.40% | DV6: 1.82 | DW6: 3 | DX6: -97 | DY6: 0.20% | DZ6: 5.37 | EA6: -1 | EB6: 142 | EC6: 0.20% | ED6: 5.37 | EE6: 2 | EF6: -39 | EG6: 0.20% | EH6: 5.37 | EI6: -0 | EJ6: 3 | EK6: 0.44% | EL6: 5.33 | EM6: 0 | EN6: -1 | EO6: 0.10% | EP6: 6.90 | EQ6: -0 | ER6: -118 | ES6: 0.20% | ET6: 9.00 | EU6: -2 | EV6: 82 | EW6: 0.00% | EX6: 8.59 | EY6: 0 | EZ6: -1 | FA6: -0.18% | FB6: 0.78 | FC6: 0 | FD6: 157 | FE6: 0.45% | FF6: 8.00 | FG6: 6 | FH6: 853 | FI6: 0.42% | FJ6: 1.00 | FK6: 4 | FL6: -29 | FM6: 0.65% | FN6: 5.00 | FO6: -1 | FP6: 6 | FQ6: 0.40% | FR6: 1.00 | FS6: 0 | FT6: -515 | FU6: 0.20% | FV6: 8.00 | FW6: -8 | FX6: 201 | FY6: 1.00% | FZ6: 5.00 | GA6: 10 | GB6: 928 | GC6: 36 | GD6: 299 | GE6: 23 | GF6: -204 | GG6: 1.00% | GH6: 5.37 | GI6: -11 | GJ6: 40 | GK6: 0 | GL6: 0 | GN6: 176 | GO6: 1.10% | GP6: 2.06 | GQ6: 4 | GR6: 136 | GS6: 0.45% | GT6: 8.00 | GU6: 5 | GV6: 200 | GW6: 0.42% | GX6: 1.00 | GY6: 1 | GZ6: 0 | HA6: 0.65% | HB6: 5.00 | HC6: 0 | HD6: 0 | HE6: 0.40% | HF6: 1.00 | HG6: 0 | HH6: 35 | HI6: 1.00% | HJ6: 5.00 | HK6: 2 | HL6: -10 | HM6: 150 | HO6: =IF(ISERROR(IF(VLOOKUP($C6,'Indicateurs Cumulés'!$C$3:$HN$560,186,FALSE)/(VLOOKUP($C6,objectifs!$C$3:$ZZ$559,158,FALSE))>=1.5,(VLOOKUP($C6,objectifs!$C$3:$ZZ$559,158,FALSE))*1.5,IF(VLOOKUP($C6,'Indicateurs Cumulés'!$C$3:$HN$560,186,FALSE)/(VLOOKUP($C6,objectifs!$C$3:$ZZ$559,158,FALSE))<=-0.5,(VLOOKUP($C6,objectifs!$C$3:$ZZ$559,158,FALSE))*-0.5,VLOOKUP($C6,'Indicateurs Cumulés'!$C$3:$HN$560,186,FALSE)))),VLOOKUP($C6,'Indicateurs Cumulés'!$C$3:$HN$560,186,FALSE),IF(VLOOKUP($C6,'Indicateurs Cumulés'!$C$3:$HN$560,186,FALSE)/(VLOOKUP($C6,objectifs!$C$3:$ZZ$559,158,FALSE))>=1.5,(VLOOKUP($C6,objectifs!$C$3:$ZZ$559,158,FALSE))*1.5,IF(VLOOKUP($C6,'Indicateurs Cumulés'!$C$3:$HN$560,186,FALSE)/(VLOOKUP($C6,objectifs!$C$3:$ZZ$559,158,FALSE))<=-0.5,(VLOOKUP($C6,objectifs!$C$3:$ZZ$559,158,FALSE))*-0.5,VLOOKUP($C6,'Indicateurs Cumulés'!$C$3:$HN$560,186,FALSE)))) -> -196 | HP6: 0 | HR6: 3.3 | HT6: 2.74% | HU6: 0.40% | HV6: 1.30% | HW6: 1 | HX6: 7 | HY6: 1 | HZ6: 5 | IA6: -7 | IB6: 0 | IC6: 28 | ID6: -63 | IE6: -2 | IF6: -4 | IG6: 0 | IH6: -1 | II6: -1 | IJ6: 76 | IK6: -74 | IL6: 0 | IM6: 0 | IN6: 1 | IO6: 0 | IP6: 0 | IQ6: -0 | IR6: 0 | IS6: 3 | IT6: -27 | IU6: -0 | IV6: -2 | IW6: 0 | IX6: -2 | IY6: -1 | IZ6: 49 | JA6: -16 | JB6: 0 | JC6: 63 | JD6: 17 | JE6: 0 | JF6: 0 | JG6: 0.00 | JH6: 0.00 | JI6: 0 | JJ6: 0 | JK6: -83 | JL6: 0.20% | JM6: 12 | JO6: 21 | JP6: 146 | JQ6: -57 | JR6: =IF(ISERROR(IF(VLOOKUP($C6,'Indicateurs Cumulés'!$C$3:$HN$560,190,FALSE)/(VLOOKUP($C6,objectifs!$C$3:$ZZ$559,162,FALSE))>=1.5,(VLOOKUP($C6,objectifs!$C$3:$ZZ$559,162,FALSE))*1.5,IF(VLOOKUP($C6,'Indicateurs Cumulés'!$C$3:$HN$560,190,FALSE)/(VLOOKUP($C6,objectifs!$C$3:$ZZ$559,162,FALSE))<=-0.5,(VLOOKUP($C6,objectifs!$C$3:$ZZ$559,162,FALSE))*-0.5,VLOOKUP($C6,'Indicateurs Cumulés'!$C$3:$HN$560,190,FALSE)))),VLOOKUP($C6,'Indicateurs Cumulés'!$C$3:$HN$560,190,FALSE),IF(VLOOKUP($C6,'Indicateurs Cumulés'!$C$3:$HN$560,190,FALSE)/(VLOOKUP($C6,objectifs!$C$3:$ZZ$559,162,FALSE))>=1.5,(VLOOKUP($C6,objectifs!$C$3:$ZZ$559,162,FALSE))*1.5,IF(VLOOKUP($C6,'Indicateurs Cumulés'!$C$3:$HN$560,190,FALSE)/(VLOOKUP($C6,objectifs!$C$3:$ZZ$559,162,FALSE))<=-0.5,(VLOOKUP($C6,objectifs!$C$3:$ZZ$559,162,FALSE))*-0.5,VLOOKUP($C6,'Indicateurs Cumulés'!$C$3:$HN$560,190,FALSE)))) -> 40 | JS6: -1 | JT6: 1 | JV6: 1 | JW6: 5 | JX6: -2 | JY6: 2 | JZ6: 5 | KA6: 2 | KB6: 0 | KC6: 0 | KD6: 0 | KE6: 0 | KF6: 1 | KG6: 3 | KH6: 0 | KI6: 0 | KJ6: 0 | KK6: 0 | KL6: 0 | KM6: 4 | KN6: 4 | KR6: 5.31 | KS6: 3 | KT6: -31 | KU6: 0 | KV6: 21 | KW6: 4 | KX6: 0 | KY6: 74 | KZ6: 52 | LA6: 1 | LB6: 0 | LC6: 276.9 | LD6: 31 | LE6: 3 | LF6: 2 | LG6: 2 | LH6: 3 | LI6: -1 | LJ6: -0 | LK6: 270 | LL6: 80.6 | LM6: 48 | LN6: 167 | LO6: -10 | LP6: 5 | LQ6: 82.77 | LR6: 131 | LS6: 4 | LT6: 506 | LU6: 57 | LV6: -8 | LW6: 9 | LX6: 9.8 | LY6: 0.0 | LZ6: 1.5 | MA6: 2.9 | MB6: 0.0 | MC6: 0.0 | MD6: 291
A7: 105006 | B7: 200262 | C7: 10 | D7: STRASBOURG MEINAU | E7: 2019-06-30 | F7: 71 | G7: 4.32% | H7: 1.57 | I7: 2019-06-30 | J7: 576 | K7: 3.44% | L7: 2.63 | M7: 4.39 | N7: 2,301 | O7: 0 | P7: -0.16% | Q7: 7.92 | R7: 12.29 | S7: 21 | T7: 2.21% | U7: 3.43 | V7: 100 | W7: -0.16% | X7: 6.10 | Y7: 0 | Z7: 0.00% | AA7: 0 | AB7: 8.3 | AC7: 4.6 | AD7: 0 | AE7: 63.0 | AF7: 9.0 | AG7: 4.2 | AH7: 201906 | AI7: 10.50 | AJ7: 0.25 | AK7: 2.40% | AL7: 87.02 | AM7: 9.26 | AN7: 11% | AO7: 1.55 | AP7: 1.78% | AQ7: 488.61 | AR7: 16.55 | AS7: 3.4% | AT7: 1.45 | AU7: 0.30% | AV7: 28.81 | AW7: 2.21 | AX7: 7.66% | AY7: 0.59 | AZ7: 2.06% | BA7: 614.94 | BB7: 28.02 | BC7: 4.6% | BD7: 3.84 | BE7: 0.63% | BG7: 2 | BH7: 2 | BI7: 73 | BJ7: 23 | BK7: 0 | BL7: 1.60% | BM7: 0.00% | BN7: 10 | BO7: 30 | BP7: 1 | BQ7: 51 | BR7: 1 | BS7: -0 | BT7: 1 | BU7: -4 | BX7: 0 | BY7: 0 | BZ7: 0 | CA7: 0 | CB7: 0 | CC7: 0 | CD7: 0 | CE7: 5 | CF7: 1.0 | CG7: 0 | CH7: 0 | CI7: 4 | CJ7: 4 | CK7: 0.00% | CL7: 0.00% | CM7: 0 | CN7: 100.00% | CO7: 0 | CP7: 2 | CQ7: 0 | CR7: 0 | CS7: 0.00 | CT7: 0 | CU7: 3 | CV7: 1 | CW7: 8 | CX7: 48.62% | CY7: 134.70% | CZ7: 35 | DA7: 89.22% | DB7: 149.11% | DC7: 13 | DE7: 0.00% | DF7: 0.00% | DG7: 0 | DH7: 0 | DI7: 0.70% | DJ7: 5.33 | DK7: 0 | DL7: 437 | DM7: 0.82% | DN7: 5.33 | DO7: 19 | DP7: -41 | DQ7: 0.91% | DR7: 5.33 | DS7: -2 | DT7: -187 | DU7: 0.40% | DV7: 1.82 | DW7: -1 | DX7: -118 | DY7: 0.20% | DZ7: 5.37 | EA7: -1 | EB7: 76 | EC7: 0.20% | ED7: 5.37 | EE7: 1 | EF7: -37 | EG7: 0.20% | EH7: 5.37 | EI7: -0 | EJ7: -15 | EK7: 0.44% | EL7: 5.33 | EM7: -0 | EN7: 2 | EO7: 0.10% | EP7: 8.02 | EQ7: 0 | ER7: 92 | ES7: 0.20% | ET7: 9.00 | EU7: 2 | EV7: -38 | EW7: 0.00% | EX7: 8.59 | EY7: 0 | EZ7: 0 | FA7: -0.18% | FB7: 0.78 | FC7: 0 | FD7: -772 | FE7: 0.45% | FF7: 8.00 | FG7: -28 | FH7: 660 | FI7: 0.63% | FJ7: 1.00 | FK7: 4 | FL7: -91 | FM7: 0.65% | FN7: 5.00 | FO7: -3 | FP7: 6 | FQ7: 0.40% | FR7: 1.00 | FS7: 0 | FT7: -296 | FU7: 0.20% | FV7: 8.00 | FW7: -5 | FX7: -28 | FY7: 1.00% | FZ7: 5.00 | GA7: -1 | GB7: -148 | GC7: 10 | GD7: -1,069 | GE7: -32 | GF7: -94 | GG7: 1.00% | GH7: 5.37 | GI7: -5 | GJ7: 4 | GK7: 0 | GL7: 0 | GN7: 0 | GO7: 0.00% | GP7: 0 | GQ7: 0 | GR7: -215 | GS7: 0.45% | GT7: 8.00 | GU7: -8 | GV7: 0 | GW7: 0.63% | GX7: 1.00 | GY7: 0 | GZ7: 0 | HA7: 0.65% | HB7: 5.00 | HC7: 0 | HD7: 0 | HE7: 0.40% | HF7: 1.00 | HG7: 0 | HH7: 10 | HI7: 1.00% | HJ7: 5.00 | HK7: 0 | HL7: -8 | HM7: 187 | HO7: =IF(ISERROR(IF(VLOOKUP($C7,'Indicateurs Cumulés'!$C$3:$HN$560,186,FALSE)/(VLOOKUP($C7,objectifs!$C$3:$ZZ$559,158,FALSE))>=1.5,(VLOOKUP($C7,objectifs!$C$3:$ZZ$559,158,FALSE))*1.5,IF(VLOOKUP($C7,'Indicateurs Cumulés'!$C$3:$HN$560,186,FALSE)/(VLOOKUP($C7,objectifs!$C$3:$ZZ$559,158,FALSE))<=-0.5,(VLOOKUP($C7,objectifs!$C$3:$ZZ$559,158,FALSE))*-0.5,VLOOKUP($C7,'Indicateurs Cumulés'!$C$3:$HN$560,186,FALSE)))),VLOOKUP($C7,'Indicateurs Cumulés'!$C$3:$HN$560,186,FALSE),IF(VLOOKUP($C7,'Indicateurs Cumulés'!$C$3:$HN$560,186,FALSE)/(VLOOKUP($C7,objectifs!$C$3:$ZZ$559,158,FALSE))>=1.5,(VLOOKUP($C7,objectifs!$C$3:$ZZ$559,158,FALSE))*1.5,IF(VLOOKUP($C7,'Indicateurs Cumulés'!$C$3:$HN$560,186,FALSE)/(VLOOKUP($C7,objectifs!$C$3:$ZZ$559,158,FALSE))<=-0.5,(VLOOKUP($C7,objectifs!$C$3:$ZZ$559,158,FALSE))*-0.5,VLOOKUP($C7,'Indicateurs Cumulés'!$C$3:$HN$560,186,FALSE)))) -> -94 | HP7: 360 | HR7: 3.4 | HT7: 4.27% | HU7: 0.10% | HV7: 0.00% | HW7: -1 | HX7: 5 | HY7: 1 | HZ7: 0 | IA7: 4 | IB7: 0 | IC7: 18 | ID7: 4 | IE7: 4 | IF7: -11 | IG7: -1 | IH7: 4 | II7: -1 | IJ7: 11 | IK7: -14 | IL7: -2 | IM7: -0 | IN7: 0 | IO7: 0 | IP7: 0 | IQ7: 0 | IR7: 0 | IS7: 2 | IT7: 2 | IU7: 0 | IV7: -7 | IW7: -1 | IX7: 6 | IY7: -1 | IZ7: 7 | JA7: -3 | JB7: -0 | JC7: 19 | JD7: 4 | JE7: 0 | JF7: 0 | JG7: 0.00 | JH7: 0.00 | JI7: 0 | JJ7: 0 | JK7: -0 | JL7: 0.20% | JM7: 0 | JO7: 0 | JP7: 5 | JQ7: -121 | JR7: =IF(ISERROR(IF(VLOOKUP($C7,'Indicateurs Cumulés'!$C$3:$HN$560,190,FALSE)/(VLOOKUP($C7,objectifs!$C$3:$ZZ$559,162,FALSE))>=1.5,(VLOOKUP($C7,objectifs!$C$3:$ZZ$559,162,FALSE))*1.5,IF(VLOOKUP($C7,'Indicateurs Cumulés'!$C$3:$HN$560,190,FALSE)/(VLOOKUP($C7,objectifs!$C$3:$ZZ$559,162,FALSE))<=-0.5,(VLOOKUP($C7,objectifs!$C$3:$ZZ$559,162,FALSE))*-0.5,VLOOKUP($C7,'Indicateurs Cumulés'!$C$3:$HN$560,190,FALSE)))),VLOOKUP($C7,'Indicateurs Cumulés'!$C$3:$HN$560,190,FALSE),IF(VLOOKUP($C7,'Indicateurs Cumulés'!$C$3:$HN$560,190,FALSE)/(VLOOKUP($C7,objectifs!$C$3:$ZZ$559,162,FALSE))>=1.5,(VLOOKUP($C7,objectifs!$C$3:$ZZ$559,162,FALSE))*1.5,IF(VLOOKUP($C7,'Indicateurs Cumulés'!$C$3:$HN$560,190,FALSE)/(VLOOKUP($C7,objectifs!$C$3:$ZZ$559,162,FALSE))<=-0.5,(VLOOKUP($C7,objectifs!$C$3:$ZZ$559,162,FALSE))*-0.5,VLOOKUP($C7,'Indicateurs Cumulés'!$C$3:$HN$560,190,FALSE)))) -> 4 | JS7: -0 | JT7: 0 | JV7: 0 | JW7: 0 | JX7: -4 | JY7: 0 | JZ7: -3 | KA7: -2 | KB7: 0 | KC7: 0 | KD7: 0 | KE7: -1 | KF7: 0 | KG7: -3 | KH7: 0 | KI7: 0 | KJ7: 0 | KK7: -1 | KL7: 0 | KM7: -2 | KN7: 1 | KR7: 5.69 | KS7: -3 | KT7: 27 | KU7: 0 | KV7: 8 | KW7: 2 | KX7: 0 | KY7: 14 | KZ7: 10 | LA7: 1 | LB7: 0 | LC7: 88.6 | LD7: -2 | LE7: 1 | LF7: 1 | LG7: -1 | LH7: -1 | LI7: 2 | LJ7: 0 | LK7: 81 | LL7: 24.0 | LM7: -27 | LN7: 95 | LO7: 7 | LP7: -1 | LQ7: 26.18 | LR7: 117 | LS7: 74 | LT7: 467 | LU7: 99 | LV7: -28 | LW7: 26 | LX7: 8.8 | LY7: 0.7 | LZ7: 1.4 | MA7: 5.0 | MB7: 0.0 | MC7: 0.1 | MD7: 105
A8: 105006 | B8: 200262 | C8: 12 | D8: STRASBOURG STOCKFELD | E8: 2019-06-30 | F8: 59 | G8: 4.32% | H8: 1.57 | I8: 2019-06-30 | J8: 292 | K8: 4.04% | L8: 2.24 | M8: 3.87 | N8: 210 | O8: 0 | P8: -0.08% | Q8: 8.61 | R8: 12.95 | S8: 0 | T8: 0.00% | U8: 0 | V8: 0 | W8: 0.00% | X8: 0 | Y8: 0 | Z8: 0.00% | AA8: 0 | AB8: 0.5 | AC8: 2.6 | AD8: 0 | AE8: 9.4 | AF8: 4.2 | AG8: 0.4 | AH8: 201906 | AI8: 24.94 | AJ8: 0.60 | AK8: 2.40% | AL8: 140.07 | AM8: 42.50 | AN8: 30% | AO8: 2.04 | AP8: 1.46% | AQ8: 123.22 | AR8: 2.31 | AS8: 1.9% | AT8: 0.09 | AU8: 0.07% | AV8: 35.62 | AW8: 1.12 | AX8: 3.15% | AY8: 0.38 | AZ8: 1.07% | BA8: 323.85 | BB8: 45.93 | BC8: 14.2% | BD8: 3.11 | BE8: 0.96% | BG8: 0 | BH8: 0 | BI8: 37 | BJ8: 8 | BK8: 0 | BL8: 1.83% | BN8: 12 | BO8: 51 | BP8: 1 | BQ8: 63 | BR8: 2 | BS8: 1 | BT8: -1 | BU8: -2 | BX8: 0 | BY8: 0 | BZ8: 0 | CA8: 0 | CB8: 0 | CC8: -2 | CD8: -1 | CE8: 3 | CF8: 0.6 | CG8: 7 | CH8: 1 | CI8: 1 | CJ8: 1 | CK8: 0.00% | CL8: 0.00% | CM8: 0 | CN8: 0.00% | CO8: 0 | CP8: 0 | CQ8: 0 | CR8: 0 | CS8: 0.00 | CT8: 0 | CU8: 1 | CV8: 0 | CW8: 0 | CX8: 100.00% | CY8: 197.62% | CZ8: 7 | DA8: 90.57% | DB8: 121.20% | DC8: 5 | DE8: 0.00% | DF8: 0.00% | DG8: 0 | DH8: -14 | DI8: 0.70% | DJ8: 5.33 | DK8: -1 | DL8: 47 | DM8: 0.82% | DN8: 5.33 | DO8: 2 | DP8: 15 | DQ8: 0.91% | DR8: 5.33 | DS8: 1 | DT8: -5 | DU8: 0.40% | DV8: 1.82 | DW8: -0 | DX8: -52 | DY8: 0.20% | DZ8: 5.37 | EA8: -1 | EB8: 8 | EC8: 0.20% | ED8: 5.37 | EE8: 0 | EF8: -13 | EG8: 0.20% | EH8: 5.37 | EI8: -0 | EJ8: 12 | EK8: 0.44% | EL8: 5.33 | EM8: 0 | EN8: 9 | EO8: 0.10% | EP8: 6.91 | EQ8: 0 | ER8: -6 | ES8: 0.20% | ET8: 9.00 | EU8: -0 | EV8: -267 | EW8: 0.00% | EX8: 8.50 | EY8: 0 | EZ8: 0 | FA8: -0.18% | FB8: 0.78 | FC8: 0 | FD8: -313 | FE8: 0.45% | FF8: 8.00 | FG8: -11 | FH8: 289 | FI8: 0.96% | FJ8: 1.00 | FK8: 3 | FL8: -34 | FM8: 0.65% | FN8: 5.00 | FO8: -1 | FP8: 3 | FQ8: 0.40% | FR8: 1.00 | FS8: 0 | FT8: -243 | FU8: 0.20% | FV8: 8.00 | FW8: -4 | FX8: 24 | FY8: 1.00% | FZ8: 5.00 | GA8: 1 | GB8: -514 | GC8: -2 | GD8: -343 | GE8: -7 | GF8: -75 | GG8: 1.00% | GH8: 5.37 | GI8: -4 | GJ8: 23 | GK8: 0 | GL8: 0 | GN8: 0 | GO8: 0.00% | GP8: 0 | GQ8: 0 | GR8: 0 | GS8: 0.45% | GT8: 8.00 | GU8: 0 | GV8: 0 | GW8: 0.96% | GX8: 1.00 | GY8: 0 | GZ8: 0 | HA8: 0.65% | HB8: 5.00 | HC8: 0 | HD8: 0 | HE8: 0.40% | HF8: 1.00 | HG8: 0 | HH8: 4 | HI8: 1.00% | HJ8: 5.00 | HK8: 0 | HL8: -5 | HM8: 160 | HO8: =IF(ISERROR(IF(VLOOKUP($C8,'Indicateurs Cumulés'!$C$3:$HN$560,186,FALSE)/(VLOOKUP($C8,objectifs!$C$3:$ZZ$559,158,FALSE))>=1.5,(VLOOKUP($C8,objectifs!$C$3:$ZZ$559,158,FALSE))*1.5,IF(VLOOKUP($C8,'Indicateurs Cumulés'!$C$3:$HN$560,186,FALSE)/(VLOOKUP($C8,objectifs!$C$3:$ZZ$559,158,FALSE))<=-0.5,(VLOOKUP($C8,objectifs!$C$3:$ZZ$559,158,FALSE))*-0.5,VLOOKUP($C8,'Indicateurs Cumulés'!$C$3:$HN$560,186,FALSE)))),VLOOKUP($C8,'Indicateurs Cumulés'!$C$3:$HN$560,186,FALSE),IF(VLOOKUP($C8,'Indicateurs Cumulés'!$C$3:$HN$560,186,FALSE)/(VLOOKUP($C8,objectifs!$C$3:$ZZ$559,158,FALSE))>=1.5,(VLOOKUP($C8,objectifs!$C$3:$ZZ$559,158,FALSE))*1.5,IF(VLOOKUP($C8,'Indicateurs Cumulés'!$C$3:$HN$560,186,FALSE)/(VLOOKUP($C8,objectifs!$C$3:$ZZ$559,158,FALSE))<=-0.5,(VLOOKUP($C8,objectifs!$C$3:$ZZ$559,158,FALSE))*-0.5,VLOOKUP($C8,'Indicateurs Cumulés'!$C$3:$HN$560,186,FALSE)))) -> -75 | HP8: 0 | HR8: 2.9 | HT8: 4.66% | HU8: 0.38% | HV8: 0.00% | HW8: 5 | HX8: -5 | HY8: 1 | HZ8: 4 | IA8: 0 | IB8: 4 | IC8: 6 | ID8: 0 | IE8: 2 | IF8: -11 | IG8: -1 | IH8: 0 | II8: -3 | IJ8: 10 | IK8: -23 | IL8: -3 | IM8: 1 | IN8: -0 | IO8: 0 | IP8: 0 | IQ8: 0 | IR8: 0 | IS8: 1 | IT8: 0 | IU8: 0 | IV8: -7 | IW8: -1 | IX8: 0 | IY8: -3 | IZ8: 7 | JA8: -5 | JB8: -0 | JC8: -2 | JD8: 0 | JE8: 0 | JF8: 0 | JG8: 0.00 | JH8: 0.00 | JI8: 0 | JJ8: 0 | JK8: 0 | JL8: 0.20% | JM8: -0 | JO8: 0 | JP8: -31 | JQ8: -45 | JR8: =IF(ISERROR(IF(VLOOKUP($C8,'Indicateurs Cumulés'!$C$3:$HN$560,190,FALSE)/(VLOOKUP($C8,objectifs!$C$3:$ZZ$559,162,FALSE))>=1.5,(VLOOKUP($C8,objectifs!$C$3:$ZZ$559,162,FALSE))*1.5,IF(VLOOKUP($C8,'Indicateurs Cumulés'!$C$3:$HN$560,190,FALSE)/(VLOOKUP($C8,objectifs!$C$3:$ZZ$559,162,FALSE))<=-0.5,(VLOOKUP($C8,objectifs!$C$3:$ZZ$559,162,FALSE))*-0.5,VLOOKUP($C8,'Indicateurs Cumulés'!$C$3:$HN$560,190,FALSE)))),VLOOKUP($C8,'Indicateurs Cumulés'!$C$3:$HN$560,190,FALSE),IF(VLOOKUP($C8,'Indicateurs Cumulés'!$C$3:$HN$560,190,FALSE)/(VLOOKUP($C8,objectifs!$C$3:$ZZ$559,162,FALSE))>=1.5,(VLOOKUP($C8,objectifs!$C$3:$ZZ$559,162,FALSE))*1.5,IF(VLOOKUP($C8,'Indicateurs Cumulés'!$C$3:$HN$560,190,FALSE)/(VLOOKUP($C8,objectifs!$C$3:$ZZ$559,162,FALSE))<=-0.5,(VLOOKUP($C8,objectifs!$C$3:$ZZ$559,162,FALSE))*-0.5,VLOOKUP($C8,'Indicateurs Cumulés'!$C$3:$HN$560,190,FALSE)))) -> 23 | JS8: 0 | JT8: -0 | JV8: 0 | JW8: -1 | JX8: -1 | JY8: 1 | JZ8: -1 | KA8: 0 | KB8: 0 | KC8: -1 | KD8: -2 | KE8: 0 | KF8: 0 | KG8: 0 | KH8: 0 | KI8: -1 | KJ8: -0 | KK8: 0 | KL8: 0 | KM8: -1 | KN8: 1 | KR8: 5.56 | KS8: -3 | KT8: -8 | KU8: 0 | KV8: -6 | KW8: -1 | KX8: 0 | KY8: 7 | KZ8: 5 | LA8: -1 | LB8: -0 | LC8: 15.1 | LD8: -9 | LE8: -2 | LF8: -1 | LG8: -4 | LH8: -6 | LI8: 0 | LJ8: 0 | LK8: 15 | LL8: 5.0 | LM8: -12 | LN8: 44 | LO8: -5 | LP8: -7 | LQ8: 5.12 | LR8: 93 | LS8: 33 | LT8: 469 | LU8: 37 | LV8: -3 | LW8: 16 | LX8: 7.0 | LY8: 0.3 | LZ8: 1.4 | MA8: 1.9 | MB8: 0.0 | MC8: 0.1 | MD8: 26
A9: 105101 | B9: 200262 | C9: 13 | D9: ILLKIRCH NORD | E9: 2019-06-30 | F9: 48 | G9: 4.32% | H9: 1.57 | I9: 2019-06-30 | J9: 415 | K9: 2.91% | L9: 2.32 | M9: 3.95 | N9: 3,739 | O9: 0 | P9: -0.04% | Q9: 7.27 | R9: 11.37 | S9: 0 | T9: 0.00% | U9: 0 | V9: 191 | W9: -0.15% | X9: 7.56 | Y9: 0 | Z9: 0.00% | AA9: 0 | AB9: 9.5 | AC9: 2.9 | AD9: 0 | AE9: 382.9 | AF9: 6.8 | AG9: 7.5 | AH9: 201906 | AI9: 4.60 | AJ9: 0 | AK9: 0.00% | AL9: 191.44 | AM9: 59.36 | AN9: 31% | AO9: 1.11 | AP9: 0.58% | AQ9: 270.89 | AR9: 50.09 | AS9: 18.5% | AT9: 0.62 | AU9: 0.23% | AV9: 49.68 | AW9: 2.40 | AX9: 4.83% | AY9: 0.82 | AZ9: 1.66% | BA9: 516.61 | BB9: 111.84 | BC9: 21.6% | BD9: 2.55 | BE9: 0.49% | BG9: 0 | BH9: -1 | BI9: 40 | BJ9: 67 | BK9: 0 | BL9: 1.41% | BM9: 0.00% | BN9: 13 | BO9: 22 | BP9: 0 | BQ9: 107 | BR9: 3 | BS9: 3 | BT9: 4 | BU9: -7 | BX9: 0 | BY9: 0 | BZ9: 0 | CA9: -2 | CB9: -0 | CC9: 0 | CD9: 0 | CE9: 9 | CF9: 1.8 | CG9: -1 | CH9: -0 | CI9: 6 | CJ9: 6 | CK9: 0.00% | CL9: 0.00% | CM9: 0 | CN9: 0.00% | CO9: 0 | CP9: 0 | CQ9: 0 | CR9: 0 | CS9: 0.00 | CT9: 0 | CU9: 2 | CV9: 1 | CW9: 10 | CX9: 40.46% | CY9: 144.68% | CZ9: 56 | DA9: 74.00% | DB9: 160.03% | DC9: 7 | DE9: 0.00% | DF9: 0.00% | DG9: 0 | DH9: 162 | DI9: 0.70% | DJ9: 5.33 | DK9: 6 | DL9: 94 | DM9: 0.82% | DN9: 5.33 | DO9: 4 | DP9: 5 | DQ9: 0.91% | DR9: 5.33 | DS9: 0 | DT9: 87 | DU9: 0.40% | DV9: 1.82 | DW9: 1 | DX9: -85 | DY9: 0.20% | DZ9: 5.37 | EA9: -1 | EB9: 76 | EC9: 0.20% | ED9: 5.37 | EE9: 1 | EF9: -8 | EG9: 0.20% | EH9: 5.37 | EI9: -0 | EJ9: -73 | EK9: 0.44% | EL9: 5.33 | EM9: -2 | EN9: -2 | EO9: 0.10% | EP9: 6.60 | EQ9: -0 | ER9: -2 | ES9: 0.20% | ET9: 9.00 | EU9: -0 | EV9: -94 | EW9: 0.00% | EX9: 8.59 | EY9: 0 | EZ9: 0 | FA9: -0.18% | FB9: 0.78 | FC9: 0 | FD9: -486 | FE9: 0.45% | FF9: 8.00 | FG9: -18 | FH9: 495 | FI9: 0.49% | FJ9: 1.00 | FK9: 2 | FL9: -43 | FM9: 0.65% | FN9: 5.00 | FO9: -1 | FP9: 11 | FQ9: 0.40% | FR9: 1.00 | FS9: 0 | FT9: -162 | FU9: 0.20% | FV9: 8.00 | FW9: -3 | FX9: 14 | FY9: 1.00% | FZ9: 5.00 | GA9: 1 | GB9: 48 | GC9: 8 | GD9: -428 | GE9: -8 | GF9: -339 | GG9: 1.00% | GH9: 5.37 | GI9: -18 | GJ9: -3 | GK9: 0 | GL9: 0 | GN9: 0 | GO9: 0.00% | GP9: 0 | GQ9: 0 | GR9: 38 | GS9: 0.45% | GT9: 8.00 | GU9: 1 | GV9: 100 | GW9: 0.49% | GX9: 1.00 | GY9: 0 | GZ9: 0 | HA9: 0.65% | HB9: 5.00 | HC9: 0 | HD9: 0 | HE9: 0.40% | HF9: 1.00 | HG9: 0 | HH9: 63 | HI9: 1.00% | HJ9: 5.00 | HK9: 3 | HL9: -7 | HM9: 90 | HO9: =IF(ISERROR(IF(VLOOKUP($C9,'Indicateurs Cumulés'!$C$3:$HN$560,186,FALSE)/(VLOOKUP($C9,objectifs!$C$3:$ZZ$559,158,FALSE))>=1.5,(VLOOKUP($C9,objectifs!$C$3:$ZZ$559,158,FALSE))*1.5,IF(VLOOKUP($C9,'Indicateurs Cumulés'!$C$3:$HN$560,186,FALSE)/(VLOOKUP($C9,objectifs!$C$3:$ZZ$559,158,FALSE))<=-0.5,(VLOOKUP($C9,objectifs!$C$3:$ZZ$559,158,FALSE))*-0.5,VLOOKUP($C9,'Indicateurs Cumulés'!$C$3:$HN$560,186,FALSE)))),VLOOKUP($C9,'Indicateurs Cumulés'!$C$3:$HN$560,186,FALSE),IF(VLOOKUP($C9,'Indicateurs Cumulés'!$C$3:$HN$560,186,FALSE)/(VLOOKUP($C9,objectifs!$C$3:$ZZ$559,158,FALSE))>=1.5,(VLOOKUP($C9,objectifs!$C$3:$ZZ$559,158,FALSE))*1.5,IF(VLOOKUP($C9,'Indicateurs Cumulés'!$C$3:$HN$560,186,FALSE)/(VLOOKUP($C9,objectifs!$C$3:$ZZ$559,158,FALSE))<=-0.5,(VLOOKUP($C9,objectifs!$C$3:$ZZ$559,158,FALSE))*-0.5,VLOOKUP($C9,'Indicateurs Cumulés'!$C$3:$HN$560,186,FALSE)))) -> -107 | HP9: 0 | HR9: 1.3 | HT9: 3.75% | HU9: 0.23% | HV9: 0.00% | HW9: 13 | HX9: 19 | HY9: 2 | HZ9: 0 | IA9: -8 | IB9: 0 | IC9: 4 | ID9: -9 | IE9: 0 | IF9: -3 | IG9: -4 | IH9: 2 | II9: -2 | IJ9: 14 | IK9: -18 | IL9: 0 | IM9: 2 | IN9: 2 | IO9: 1 | IP9: 0 | IQ9: -0 | IR9: 0 | IS9: 0 | IT9: -4 | IU9: 0 | IV9: -2 | IW9: -4 | IX9: 3 | IY9: -2 | IZ9: 9 | JA9: -4 | JB9: 0 | JC9: 19 | JD9: -1 | JE9: 0 | JF9: 0 | JG9: 0.00 | JH9: 0.00 | JI9: 0 | JJ9: 0 | JK9: -1 | JL9: 0.20% | JM9: 0 | JO9: 3 | JP9: 36 | JQ9: 10 | JR9: =IF(ISERROR(IF(VLOOKUP($C9,'Indicateurs Cumulés'!$C$3:$HN$560,190,FALSE)/(VLOOKUP($C9,objectifs!$C$3:$ZZ$559,162,FALSE))>=1.5,(VLOOKUP($C9,objectifs!$C$3:$ZZ$559,162,FALSE))*1.5,IF(VLOOKUP($C9,'Indicateurs Cumulés'!$C$3:$HN$560,190,FALSE)/(VLOOKUP($C9,objectifs!$C$3:$ZZ$559,162,FALSE))<=-0.5,(VLOOKUP($C9,objectifs!$C$3:$ZZ$559,162,FALSE))*-0.5,VLOOKUP($C9,'Indicateurs Cumulés'!$C$3:$HN$560,190,FALSE)))),VLOOKUP($C9,'Indicateurs Cumulés'!$C$3:$HN$560,190,FALSE),IF(VLOOKUP($C9,'Indicateurs Cumulés'!$C$3:$HN$560,190,FALSE)/(VLOOKUP($C9,objectifs!$C$3:$ZZ$559,162,FALSE))>=1.5,(VLOOKUP($C9,objectifs!$C$3:$ZZ$559,162,FALSE))*1.5,IF(VLOOKUP($C9,'Indicateurs Cumulés'!$C$3:$HN$560,190,FALSE)/(VLOOKUP($C9,objectifs!$C$3:$ZZ$559,162,FALSE))<=-0.5,(VLOOKUP($C9,objectifs!$C$3:$ZZ$559,162,FALSE))*-0.5,VLOOKUP($C9,'Indicateurs Cumulés'!$C$3:$HN$560,190,FALSE)))) -> -3 | JS9: -0 | JT9: 0 | JV9: 0 | JW9: 1 | JX9: 0 | JY9: -0 | JZ9: 1 | KA9: 2 | KB9: 0 | KC9: 1 | KD9: 1 | KE9: 0 | KF9: 0 | KG9: 3 | KH9: 0 | KI9: 1 | KJ9: 0 | KK9: 0 | KL9: 0 | KM9: 4 | KN9: 0 | KR9: 3.11 | KS9: 4 | KT9: 3 | KU9: 0 | KV9: 3 | KW9: 1 | KX9: 0 | KY9: 14 | KZ9: 10 | LA9: 0 | LB9: 0 | LC9: 107.4 | LD9: 1 | LE9: -2 | LF9: -1 | LG9: -2 | LH9: -3 | LI9: 6 | LJ9: 1 | LK9: 93 | LL9: 69.7 | LM9: -5 | LN9: 108 | LO9: -7 | LP9: -4 | LQ9: 80.89 | LR9: 64 | LS9: 76 | LT9: 285 | LU9: 60 | LV9: 140 | LW9: 10 | LX9: 4.8 | LY9: 0.8 | LZ9: 0.9 | MA9: 3.0 | MB9: 2.1 | MC9: 0.1 | MD9: 119
A10: 105101 | B10: 200262 | C10: 14 | D10: OSTWALD | E10: 2019-06-30 | F10: 47 | G10: 4.32% | H10: 1.57 | I10: 2019-06-30 | J10: 546 | K10: 2.83% | L10: 2.51 | M10: 4.25 | N10: 1,336 | O10: 0 | P10: 0.08% | Q10: 6.16 | R10: 9.61 | S10: 10 | T10: 2.18% | U10: 0.96 | V10: 212 | W10: -0.06% | X10: 6.34 | Y10: 483 | Z10: -0.16% | AA10: 4.38 | AB10: 5.3 | AC10: 4.0 | AD10: 0.5 | AE10: 31.1 | AF10: 8.5 | AG10: 2.5 | AH10: 201906 | AI10: 0 | AJ10: 0 | AK10: 0.00% | AL10: 107.55 | AM10: 32.87 | AN10: 31% | AO10: 0.83 | AP10: 0.77% | AQ10: 469.79 | AR10: 80.48 | AS10: 17.1% | AT10: 0.06 | AU10: 0.01% | AV10: 43.44 | AW10: 1.25 | AX10: 2.87% | AY10: 0.34 | AZ10: 0.78% | BA10: 620.78 | BB10: 114.60 | BC10: 18.5% | BD10: 1.23 | BE10: 0.20% | BG10: 0 | BH10: 1 | BI10: 54 | BJ10: 44 | BK10: -3 | BL10: 1.39% | BM10: 0.00% | BN10: 14 | BO10: 56 | BP10: 1 | BQ10: 64 | BR10: 2 | BS10: 2 | BT10: 1 | BU10: -3 | BX10: 0 | BY10: 0 | BZ10: 0 | CA10: 0 | CB10: 0 | CC10: -8 | CD10: -4 | CE10: 5 | CF10: 1.0 | CG10: -4 | CH10: -1 | CI10: 0 | CJ10: 0 | CK10: 100.00% | CL10: 100.00% | CM10: 0 | CN10: 0.00% | CO10: 0 | CP10: 1 | CQ10: 0.5 | CR10: 1 | CS10: 0.00 | CT10: 0 | CU10: 1 | CV10: 1 | CW10: 5 | CX10: 73.32% | CY10: 156.58% | CZ10: 29 | DA10: 93.30% | DB10: 123.65% | DC10: 10 | DE10: 0.00% | DF10: 0.00% | DG10: 0 | DH10: 278 | DI10: 0.70% | DJ10: 5.33 | DK10: 10 | DL10: 187 | DM10: 0.82% | DN10: 5.33 | DO10: 8 | DP10: -56 | DQ10: 0.91% | DR10: 5.33 | DS10: -3 | DT10: 122 | DU10: 0.40% | DV10: 1.82 | DW10: 1 | DX10: -116 | DY10: 0.20% | DZ10: 5.37 | EA10: -1 | EB10: 63 | EC10: 0.20% | ED10: 5.37 | EE10: 1 | EF10: -9 | EG10: 0.20% | EH10: 5.37 | EI10: -0 | EJ10: 7 | EK10: 0.44% | EL10: 5.33 | EM10: 0 | EN10: 2 | EO10: 0.10% | EP10: 7.19 | EQ10: 0 | ER10: 194 | ES10: 0.20% | ET10: 9.00 | EU10: 3 | EV10: -106 | EW10: 0.00% | EX10: 2.99 | EY10: 0 | EZ10: 0 | FA10: -0.18% | FB10: 0.78 | FC10: 0 | FD10: 351 | FE10: 0.45% | FF10: 8.00 | FG10: 13 | FH10: 576 | FI10: 0.20% | FJ10: 1.00 | FK10: 1 | FL10: -22 | FM10: 0.65% | FN10: 5.00 | FO10: -1 | FP10: 8 | FQ10: 0.40% | FR10: 1.00 | FS10: 0 | FT10: -142 | FU10: 0.20% | FV10: 8.00 | FW10: -2 | FX10: -51 | FY10: 1.00% | FZ10: 5.00 | GA10: -3 | GB10: 330 | GC10: 13 | GD10: 607 | GE10: 26 | GF10: -81 | GG10: 1.00% | GH10: 5.37 | GI10: -4 | GJ10: -200 | GK10: 0 | GL10: 0 | GN10: 0 | GO10: 0.00% | GP10: 0 | GQ10: 0 | GR10: 300 | GS10: 0.45% | GT10: 8.00 | GU10: 11 | GV10: 300 | GW10: 0.20% | GX10: 1.00 | GY10: 1 | GZ10: 0 | HA10: 0.65% | HB10: 5.00 | HC10: 0 | HD10: 0 | HE10: 0.40% | HF10: 1.00 | HG10: 0 | HH10: -22 | HI10: 1.00% | HJ10: 5.00 | HK10: -1 | HL10: -8 | HM10: 90 | HO10: =IF(ISERROR(IF(VLOOKUP($C10,'Indicateurs Cumulés'!$C$3:$HN$560,186,FALSE)/(VLOOKUP($C10,objectifs!$C$3:$ZZ$559,158,FALSE))>=1.5,(VLOOKUP($C10,objectifs!$C$3:$ZZ$559,158,FALSE))*1.5,IF(VLOOKUP($C10,'Indicateurs Cumulés'!$C$3:$HN$560,186,FALSE)/(VLOOKUP($C10,objectifs!$C$3:$ZZ$559,158,FALSE))<=-0.5,(VLOOKUP($C10,objectifs!$C$3:$ZZ$559,158,FALSE))*-0.5,VLOOKUP($C10,'Indicateurs Cumulés'!$C$3:$HN$560,186,FALSE)))),VLOOKUP($C10,'Indicateurs Cumulés'!$C$3:$HN$560,186,FALSE),IF(VLOOKUP($C10,'Indicateurs Cumulés'!$C$3:$HN$560,186,FALSE)/(VLOOKUP($C10,objectifs!$C$3:$ZZ$559,158,FALSE))>=1.5,(VLOOKUP($C10,objectifs!$C$3:$ZZ$559,158,FALSE))*1.5,IF(VLOOKUP($C10,'Indicateurs Cumulés'!$C$3:$HN$560,186,FALSE)/(VLOOKUP($C10,objectifs!$C$3:$ZZ$559,158,FALSE))<=-0.5,(VLOOKUP($C10,objectifs!$C$3:$ZZ$559,158,FALSE))*-0.5,VLOOKUP($C10,'Indicateurs Cumulés'!$C$3:$HN$560,186,FALSE)))) -> -81 | HP10: 0 | HR10: 1.3 | HT10: 3.61% | HU10: 0.53% | HV10: -0.14% | HW10: 9 | HX10: 7 | HY10: -1 | HZ10: 2 | IA10: -4 | IB10: 1 | IC10: 0 | ID10: 7 | IE10: -2 | IF10: -5 | IG10: -6 | IH10: 2 | II10: 5 | IJ10: -2 | IK10: -8 | IL10: 0 | IM10: 1 | IN10: 1 | IO10: -0 | IP10: 0 | IQ10: -0 | IR10: 0 | IS10: 0 | IT10: 3 | IU10: -0 | IV10: -3 | IW10: -6 | IX10: 3 | IY10: 5 | IZ10: -1 | JA10: -2 | JB10: 0 | JC10: 9 | JD10: -1 | JE10: 0 | JF10: 0 | JG10: 0.00 | JH10: 0.00 | JI10: 0 | JJ10: 0 | JK10: 0 | JL10: 0.20% | JM10: 0 | JO10: -0 | JP10: -42 | JQ10: -27 | JR10: =IF(ISERROR(IF(VLOOKUP($C10,'Indicateurs Cumulés'!$C$3:$HN$560,190,FALSE)/(VLOOKUP($C10,objectifs!$C$3:$ZZ$559,162,FALSE))>=1.5,(VLOOKUP($C10,objectifs!$C$3:$ZZ$559,162,FALSE))*1.5,IF(VLOOKUP($C10,'Indicateurs Cumulés'!$C$3:$HN$560,190,FALSE)/(VLOOKUP($C10,objectifs!$C$3:$ZZ$559,162,FALSE))<=-0.5,(VLOOKUP($C10,objectifs!$C$3:$ZZ$559,162,FALSE))*-0.5,VLOOKUP($C10,'Indicateurs Cumulés'!$C$3:$HN$560,190,FALSE)))),VLOOKUP($C10,'Indicateurs Cumulés'!$C$3:$HN$560,190,FALSE),IF(VLOOKUP($C10,'Indicateurs Cumulés'!$C$3:$HN$560,190,FALSE)/(VLOOKUP($C10,objectifs!$C$3:$ZZ$559,162,FALSE))>=1.5,(VLOOKUP($C10,objectifs!$C$3:$ZZ$559,162,FALSE))*1.5,IF(VLOOKUP($C10,'Indicateurs Cumulés'!$C$3:$HN$560,190,FALSE)/(VLOOKUP($C10,objectifs!$C$3:$ZZ$559,162,FALSE))<=-0.5,(VLOOKUP($C10,objectifs!$C$3:$ZZ$559,162,FALSE))*-0.5,VLOOKUP($C10,'Indicateurs Cumulés'!$C$3:$HN$560,190,FALSE)))) -> -17 | JS10: 0 | JT10: 0 | JV10: -0 | JW10: -1 | JX10: -1 | JY10: -1 | JZ10: -3 | KA10: 0 | KB10: 0 | KC10: 0 | KD10: -2 | KE10: 2 | KF10: 0 | KG10: 0 | KH10: 0 | KI10: 0 | KJ10: -0 | KK10: 1 | KL10: 0 | KM10: -2 | KN10: 1 | KR10: 2.97 | KS10: 0 | KT10: 10 | KU10: 0 | KV10: 11 | KW10: 2 | KX10: 0 | KY10: 5 | KZ10: 3 | LA10: 0 | LB10: 0 | LC10: 126.3 | LD10: -6 | LE10: 0 | LF10: 0 | LG10: 0 | LH10: 0 | LI10: 1 | LJ10: 0 | LK10: 120 | LL10: 91.0 | LM10: 35 | LN10: 95 | LO10: -8 | LP10: 0 | LQ10: 95.81 | LR10: 60 | LS10: 40 | LT10: 327 | LU10: 30 | LV10: 20 | LW10: 8 | LX10: 4.5 | LY10: 0.4 | LZ10: 1.0 | MA10: 1.5 | MB10: 0.3 | MC10: 0.0 | MD10: 134
A11: 105101 | B11: 200262 | C11: 15 | D11: LINGOLSHEIM | E11: 2019-06-30 | F11: 76 | G11: 4.32% | H11: 1.57 | I11: 2019-06-30 | J11: 854 | K11: 3.15% | L11: 2.38 | M11: 4.03 | N11: 866 | O11: 0 | P11: 0.02% | Q11: 6.11 | R11: 10.41 | S11: 36 | T11: 3.36% | U11: 1.67 | V11: 180 | W11: 0.03% | X11: 6.10 | Y11: 209 | Z11: 1.21% | AA11: 2.66 | AB11: 3.9 | AC11: 9.8 | AD11: 1.4 | AE11: 746.8 | AF11: 13.9 | AG11: 1.4 | AH11: 201906 | AI11: 0 | AJ11: 0 | AK11: 0.00% | AL11: 264.22 | AM11: 113.83 | AN11: 43% | AO11: 1.79 | AP11: 0.68% | AQ11: 1,048.39 | AR11: 104.53 | AS11: 10.0% | AT11: 1.17 | AU11: 0.11% | AV11: 60.14 | AW11: 0.90 | AX11: 1.49% | AY11: 1.24 | AZ11: 2.06% | BA11: 1,372.75 | BB11: 219.25 | BC11: 16.0% | BD11: 4.20 | BE11: 0.31% | BG11: 2 | BH11: 2 | BI11: 88 | BJ11: 25 | BK11: 8 | BL11: 1.25% | BM11: 0.00% | BN11: 15 | BO11: 135 | BP11: 3 | BQ11: 131 | BR11: 4 | BS11: 2 | BT11: 1 | BU11: -1 | BX11: 0 | BY11: 0 | BZ11: 0 | CA11: 1 | CB11: 0 | CC11: 2 | CD11: 1 | CE11: 6 | CF11: 1.2 | CG11: -8 | CH11: -2 | CI11: 3 | CJ11: 3 | CK11: 85.71% | CL11: 116.67% | CM11: 0 | CN11: 0.00% | CO11: 0 | CP11: 0 | CQ11: 1.4 | CR11: 0 | CS11: 0.00 | CT11: 0 | CU11: 3 | CV11: 1 | CW11: 4 | CX11: 64.84% | CY11: 148.35% | CZ11: 16 | DA11: 93.73% | DB11: 120.93% | DC11: 16 | DE11: 20.93% | DF11: 100.00% | DG11: 0 | DH11: 298 | DI11: 0.70% | DJ11: 5.33 | DK11: 11 | DL11: -73 | DM11: 0.82% | DN11: 5.33 | DO11: -3 | DP11: -23 | DQ11: 0.91% | DR11: 5.33 | DS11: -1 | DT11: 528 | DU11: 0.40% | DV11: 1.82 | DW11: 4 | DX11: -180 | DY11: 0.20% | DZ11: 5.37 | EA11: -2 | EB11: -6 | EC11: 0.20% | ED11: 5.37 | EE11: -0 | EF11: -27 | EG11: 0.20% | EH11: 5.37 | EI11: -0 | EJ11: -21 | EK11: 0.44% | EL11: 5.33 | EM11: -0 | EN11: -1 | EO11: 0.10% | EP11: 5.33 | EQ11: -0 | ER11: -33 | ES11: 0.20% | ET11: 9.00 | EU11: -1 | EV11: -158 | EW11: 0.00% | EX11: 8.50 | EY11: 0 | EZ11: 0 | FA11: -0.18% | FB11: 0.78 | FC11: 0 | FD11: 523 | FE11: 0.45% | FF11: 8.00 | FG11: 19 | FH11: 1,344 | FI11: 0.31% | FJ11: 1.00 | FK11: 4 | FL11: -8 | FM11: 0.65% | FN11: 5.00 | FO11: -0 | FP11: 40 | FQ11: 0.40% | FR11: 1.00 | FS11: 0 | FT11: -215 | FU11: 0.20% | FV11: 8.00 | FW11: -3 | FX11: -147 | FY11: 1.00% | FZ11: 5.00 | GA11: -7 | GB11: -169 | GC11: -7 | GD11: 600 | GE11: 34 | GF11: -189 | GG11: 1.00% | GH11: 5.37 | GI11: -10 | GJ11: -156 | GK11: 0 | GL11: 0 | GN11: 0 | GO11: 0.00% | GP11: 0 | GQ11: 0 | GR11: -6 | GS11: 0.45% | GT11: 8.00 | GU11: -0 | GV11: 0 | GW11: 0.31% | GX11: 1.00 | GY11: 0 | GZ11: 0 | HA11: 0.65% | HB11: 5.00 | HC11: 0 | HD11: 0 | HE11: 0.40% | HF11: 1.00 | HG11: 0 | HH11: 91 | HI11: 1.00% | HJ11: 5.00 | HK11: 5 | HL11: -7 | HM11: 172 | HO11: =IF(ISERROR(IF(VLOOKUP($C11,'Indicateurs Cumulés'!$C$3:$HN$560,186,FALSE)/(VLOOKUP($C11,objectifs!$C$3:$ZZ$559,158,FALSE))>=1.5,(VLOOKUP($C11,objectifs!$C$3:$ZZ$559,158,FALSE))*1.5,IF(VLOOKUP($C11,'Indicateurs Cumulés'!$C$3:$HN$560,186,FALSE)/(VLOOKUP($C11,objectifs!$C$3:$ZZ$559,158,FALSE))<=-0.5,(VLOOKUP($C11,objectifs!$C$3:$ZZ$559,158,FALSE))*-0.5,VLOOKUP($C11,'Indicateurs Cumulés'!$C$3:$HN$560,186,FALSE)))),VLOOKUP($C11,'Indicateurs Cumulés'!$C$3:$HN$560,186,FALSE),IF(VLOOKUP($C11,'Indicateurs Cumulés'!$C$3:$HN$560,186,FALSE)/(VLOOKUP($C11,objectifs!$C$3:$ZZ$559,158,FALSE))>=1.5,(VLOOKUP($C11,objectifs!$C$3:$ZZ$559,158,FALSE))*1.5,IF(VLOOKUP($C11,'Indicateurs Cumulés'!$C$3:$HN$560,186,FALSE)/(VLOOKUP($C11,objectifs!$C$3:$ZZ$559,158,FALSE))<=-0.5,(VLOOKUP($C11,objectifs!$C$3:$ZZ$559,158,FALSE))*-0.5,VLOOKUP($C11,'Indicateurs Cumulés'!$C$3:$HN$560,186,FALSE)))) -> -189 | HP11: 0 | HR11: 4.1 | HT11: 4.00% | HU11: 0.42% | HV11: 1.52% | HW11: 8 | HX11: 5 | HY11: 0 | HZ11: 5 | IA11: 2 | IB11: 5 | IC11: 9 | ID11: -20 | IE11: -4 | IF11: -10 | IG11: -1 | IH11: 2 | II11: 3 | IJ11: 31 | IK11: -40 | IL11: -1 | IM11: 1 | IN11: 0 | IO11: 0 | IP11: 0 | IQ11: 0 | IR11: 0 | IS11: 1 | IT11: -9 | IU11: -0 | IV11: -6 | IW11: -1 | IX11: 3 | IY11: 3 | IZ11: 20 | JA11: -9 | JB11: -0 | JC11: 43 | JD11: 12 | JE11: 0 | JF11: 0 | JG11: 0.00 | JH11: 0.00 | JI11: 0 | JJ11: 0 | JK11: -2 | JL11: 0.20% | JM11: 1 | JO11: 3 | JP11: -111 | JQ11: -88 | JR11: =IF(ISERROR(IF(VLOOKUP($C11,'Indicateurs Cumulés'!$C$3:$HN$560,190,FALSE)/(VLOOKUP($C11,objectifs!$C$3:$ZZ$559,162,FALSE))>=1.5,(VLOOKUP($C11,objectifs!$C$3:$ZZ$559,162,FALSE))*1.5,IF(VLOOKUP($C11,'Indicateurs Cumulés'!$C$3:$HN$560,190,FALSE)/(VLOOKUP($C11,objectifs!$C$3:$ZZ$559,162,FALSE))<=-0.5,(VLOOKUP($C11,objectifs!$C$3:$ZZ$559,162,FALSE))*-0.5,VLOOKUP($C11,'Indicateurs Cumulés'!$C$3:$HN$560,190,FALSE)))),VLOOKUP($C11,'Indicateurs Cumulés'!$C$3:$HN$560,190,FALSE),IF(VLOOKUP($C11,'Indicateurs Cumulés'!$C$3:$HN$560,190,FALSE)/(VLOOKUP($C11,objectifs!$C$3:$ZZ$559,162,FALSE))>=1.5,(VLOOKUP($C11,objectifs!$C$3:$ZZ$559,162,FALSE))*1.5,IF(VLOOKUP($C11,'Indicateurs Cumulés'!$C$3:$HN$560,190,FALSE)/(VLOOKUP($C11,objectifs!$C$3:$ZZ$559,162,FALSE))<=-0.5,(VLOOKUP($C11,objectifs!$C$3:$ZZ$559,162,FALSE))*-0.5,VLOOKUP($C11,'Indicateurs Cumulés'!$C$3:$HN$560,190,FALSE)))) -> -34 | JS11: -0 | JT11: 0 | JV11: 0 | JW11: -4 | JX11: -3 | JY11: -2 | JZ11: -8 | KA11: 0 | KB11: 0 | KC11: 0 | KD11: -1 | KE11: 1 | KF11: 0 | KG11: 0 | KH11: 0 | KI11: 0 | KJ11: -0 | KK11: 1 | KL11: 0 | KM11: 7 | KN11: 5 | KR11: 5.00 | KS11: 0 | KT11: 4 | KU11: 0 | KV11: 55 | KW11: 11 | KX11: 0 | KY11: 36 | KZ11: 25 | LA11: 1 | LB11: 0 | LC11: 175.3 | LD11: 7 | LE11: 0 | LF11: 0 | LG11: -3 | LH11: -4 | LI11: -2 | LJ11: -0 | LK11: 157 | LL11: 38.0 | LM11: 16 | LN11: 122 | LO11: -7 | LP11: -5 | LQ11: 42.29 | LR11: 112 | LS11: 113 | LT11: 608 | LU11: 115 | LV11: 75 | LW11: 20 | LX11: 8.4 | LY11: 1.1 | LZ11: 1.8 | MA11: 5.8 | MB11: 1.1 | MC11: 0.1 | MD11: 194
A12: 105006 | B12: 200262 | C12: 19 | D12: STRASBOURG ANVERS | E12: 2019-06-30 | F12: 63 | G12: 4.32% | H12: 1.57 | I12: 2019-06-30 | J12: 664 | K12: 2.74% | L12: 2.71 | M12: 4.51 | N12: 5,651 | O12: 0 | P12: -0.05% | Q12: 8.31 | R12: 12.53 | S12: 47 | T12: 2.76% | U12: 1.43 | V12: 1,157 | W12: -0.12% | X12: 7.86 | Y12: 2,613 | Z12: 1.71% | AA12: 6.35 | AB12: 11.5 | AC12: 12.9 | AD12: 7.6 | AE12: 146.1 | AF12: 7.0 | AG12: 8.5 | AH12: 201906 | AI12: 25.00 | AJ12: 0.60 | AK12: 2.40% | AL12: 323.69 | AM12: 64.74 | AN12: 20% | AO12: 2.89 | AP12: 0.89% | AQ12: 828.79 | AR12: 20.27 | AS12: 2.4% | AT12: 1.32 | AU12: 0.16% | AV12: 89.34 | AW12: 3.29 | AX12: 3.68% | AY12: 1.27 | AZ12: 1.42% | BA12: 1,266.81 | BB12: 88.30 | BC12: 7.0% | BD12: 6.08 | BE12: 0.48% | BG12: 4 | BH12: 15 | BI12: 68 | BJ12: 105 | BK12: 300 | BL12: 1.45% | BM12: 0.00% | BN12: 19 | BO12: 273 | BP12: 5 | BQ12: 173 | BR12: 5 | BS12: 3 | BT12: 1 | BU12: -10 | BX12: 0 | BY12: 2 | BZ12: 1 | CA12: -1 | CB12: -0 | CC12: -1 | CD12: -1 | CE12: 16 | CF12: 3.2 | CG12: -1 | CH12: -0 | CI12: 5 | CJ12: 5 | CK12: 100.00% | CL12: 197.87% | CM12: 1 | CN12: 123.44% | CO12: 1 | CP12: 20 | CQ12: 7.6 | CR12: 2 | CS12: 0.00 | CT12: 0 | CU12: 4 | CV12: 4 | CW12: 12 | CX12: 46.91% | CY12: 139.82% | CZ12: 103 | DA12: 46.82% | DB12: 208.68% | DC12: 11 | DE12: 26.84% | DF12: 100.00% | DG12: 7 | DH12: 199 | DI12: 0.70% | DJ12: 5.33 | DK12: 7 | DL12: 11 | DM12: 0.82% | DN12: 5.33 | DO12: 0 | DP12: -60 | DQ12: 0.91% | DR12: 5.33 | DS12: -3 | DT12: 1,594 | DU12: 0.40% | DV12: 1.82 | DW12: 12 | DX12: -160 | DY12: 0.20% | DZ12: 5.37 | EA12: -2 | EB12: -9 | EC12: 0.20% | ED12: 5.37 | EE12: -0 | EF12: -16 | EG12: 0.20% | EH12: 5.37 | EI12: -0 | EJ12: 5 | EK12: 0.44% | EL12: 5.33 | EM12: 0 | EN12: -27 | EO12: 0.10% | EP12: 8.97 | EQ12: -0 | ER12: -208 | ES12: 0.20% | ET12: 9.00 | EU12: -4 | EV12: -124 | EW12: 0.00% | EX12: 8.59 | EY12: 0 | EZ12: 0 | FA12: -0.18% | FB12: 0.78 | FC12: 0 | FD12: -221 | FE12: 0.45% | FF12: 8.00 | FG12: -8 | FH12: 1,444 | FI12: 0.48% | FJ12: 1.00 | FK12: 7 | FL12: -30 | FM12: 0.65% | FN12: 5.00 | FO12: -1 | FP12: 95 | FQ12: 0.40% | FR12: 1.00 | FS12: 0 | FT12: -595 | FU12: 0.20% | FV12: 8.00 | FW12: -10 | FX12: 25 | FY12: 1.00% | FZ12: 5.00 | GA12: 1 | GB12: 1,672 | GC12: 36 | GD12: -264 | GE12: 8 | GF12: -560 | GG12: 1.00% | GH12: 5.37 | GI12: -30 | GJ12: -661 | GK12: 0 | GL12: 0 | GN12: 0 | GO12: 0.00% | GP12: 0 | GQ12: 0 | GR12: -23 | GS12: 0.45% | GT12: 8.00 | GU12: -1 | GV12: 0 | GW12: 0.48% | GX12: 1.00 | GY12: 0 | GZ12: 0 | HA12: 0.65% | HB12: 5.00 | HC12: 0 | HD12: 0 | HE12: 0.40% | HF12: 1.00 | HG12: 0 | HH12: 9 | HI12: 1.00% | HJ12: 5.00 | HK12: 0 | HL12: -17 | HM12: 251 | HO12: =IF(ISERROR(IF(VLOOKUP($C12,'Indicateurs Cumulés'!$C$3:$HN$560,186,FALSE)/(VLOOKUP($C12,objectifs!$C$3:$ZZ$559,158,FALSE))>=1.5,(VLOOKUP($C12,objectifs!$C$3:$ZZ$559,158,FALSE))*1.5,IF(VLOOKUP($C12,'Indicateurs Cumulés'!$C$3:$HN$560,186,FALSE)/(VLOOKUP($C12,objectifs!$C$3:$ZZ$559,158,FALSE))<=-0.5,(VLOOKUP($C12,objectifs!$C$3:$ZZ$559,158,FALSE))*-0.5,VLOOKUP($C12,'Indicateurs Cumulés'!$C$3:$HN$560,186,FALSE)))),VLOOKUP($C12,'Indicateurs Cumulés'!$C$3:$HN$560,186,FALSE),IF(VLOOKUP($C12,'Indicateurs Cumulés'!$C$3:$HN$560,186,FALSE)/(VLOOKUP($C12,objectifs!$C$3:$ZZ$559,158,FALSE))>=1.5,(VLOOKUP($C12,objectifs!$C$3:$ZZ$559,158,FALSE))*1.5,IF(VLOOKUP($C12,'Indicateurs Cumulés'!$C$3:$HN$560,186,FALSE)/(VLOOKUP($C12,objectifs!$C$3:$ZZ$559,158,FALSE))<=-0.5,(VLOOKUP($C12,objectifs!$C$3:$ZZ$559,158,FALSE))*-0.5,VLOOKUP($C12,'Indicateurs Cumulés'!$C$3:$HN$560,186,FALSE)))) -> -307 | HP12: 0 | HR12: 4.0 | HT12: 3.47% | HU12: 0.21% | HV12: 1.80% | HW12: 13 | HX12: 3 | HY12: 6 | HZ12: 7 | IA12: 7 | IB12: 1 | IC12: 21 | ID12: -3 | IE12: -4 | IF12: -7 | IG12: -2 | IH12: 0 | II12: 15 | IJ12: 11 | IK12: -26 | IL12: 2 | IM12: 2 | IN12: 0 | IO12: 2 | IP12: 1 | IQ12: 0 | IR12: 0 | IS12: 2 | IT12: -1 | IU12: -0 | IV12: -4 | IW12: -2 | IX12: 0 | IY12: 15 | IZ12: 7 | JA12: -6 | JB12: 0 | JC12: 49 | JD12: 318 | JE12: 0 | JF12: 0 | JG12: 0.00 | JH12: 0.00 | JI12: 0 | JJ12: 0 | JK12: -38 | JL12: 0.20% | JM12: -53 | JO12: -18 | JP12: 1,039 | JQ12: 194 | JR12: =IF(ISERROR(IF(VLOOKUP($C12,'Indicateurs Cumulés'!$C$3:$HN$560,190,FALSE)/(VLOOKUP($C12,objectifs!$C$3:$ZZ$559,162,FALSE))>=1.5,(VLOOKUP($C12,objectifs!$C$3:$ZZ$559,162,FALSE))*1.5,IF(VLOOKUP($C12,'Indicateurs Cumulés'!$C$3:$HN$560,190,FALSE)/(VLOOKUP($C12,objectifs!$C$3:$ZZ$559,162,FALSE))<=-0.5,(VLOOKUP($C12,objectifs!$C$3:$ZZ$559,162,FALSE))*-0.5,VLOOKUP($C12,'Indicateurs Cumulés'!$C$3:$HN$560,190,FALSE)))),VLOOKUP($C12,'Indicateurs Cumulés'!$C$3:$HN$560,190,FALSE),IF(VLOOKUP($C12,'Indicateurs Cumulés'!$C$3:$HN$560,190,FALSE)/(VLOOKUP($C12,objectifs!$C$3:$ZZ$559,162,FALSE))>=1.5,(VLOOKUP($C12,objectifs!$C$3:$ZZ$559,162,FALSE))*1.5,IF(VLOOKUP($C12,'Indicateurs Cumulés'!$C$3:$HN$560,190,FALSE)/(VLOOKUP($C12,objectifs!$C$3:$ZZ$559,162,FALSE))<=-0.5,(VLOOKUP($C12,objectifs!$C$3:$ZZ$559,162,FALSE))*-0.5,VLOOKUP($C12,'Indicateurs Cumulés'!$C$3:$HN$560,190,FALSE)))) -> -47 | JS12: -1 | JT12: -3 | JV12: -1 | JW12: 33 | JX12: 6 | JY12: -3 | JZ12: 33 | KA12: 3 | KB12: 1 | KC12: -1 | KD12: -1 | KE12: -1 | KF12: 3 | KG12: 4 | KH12: 1 | KI12: -1 | KJ12: -0 | KK12: -1 | KL12: 0 | KM12: 14 | KN12: 10 | KR12: 4.92 | KS12: 4 | KT12: 28 | KU12: 0 | KV12: 49 | KW12: 10 | KX12: 0 | KY12: 26 | KZ12: 18 | LA12: 0 | LB12: 0 | LC12: 538.3 | LD12: 367 | LE12: 2 | LF12: 1 | LG12: 0 | LH12: 0 | LI12: -3 | LJ12: -0 | LK12: 517 | LL12: 128.3 | LM12: 28 | LN12: 473 | LO12: -17 | LP12: 1 | LQ12: 133.56 | LR12: 176 | LS12: 73 | LT12: 499 | LU12: 109 | LV12: 88 | LW12: 10 | LX12: 13.2 | LY12: 0.7 | LZ12: 1.5 | MA12: 5.5 | MB12: 1.3 | MC12: 0.1 | MD12: 561
A13: 105006 | B13: 200262 | C13: 20 | D13: STRASBOURG ROBERTSAU | E13: 2019-06-30 | F13: 67 | G13: 4.32% | H13: 1.57 | I13: 2019-06-30 | J13: 1,339 | K13: 3.09% | L13: 2.54 | M13: 4.21 | N13: 5,003 | O13: 0 | P13: 0.01% | Q13: 7.28 | R13: 11.29 | S13: -29 | T13: 2.85% | U13: 2.01 | V13: 991 | W13: 0.08% | X13: 8.94 | Y13: 128 | Z13: 0.79% | AA13: 2.19 | AB13: 13.2 | AC13: 14.5 | AD13: 0.5 | AE13: 144.7 | AF13: 19.8 | AG13: 8.9 | AH13: 201906 | AI13: 0 | AJ13: 0 | AK13: 0.00% | AL13: 169.51 | AM13: 33.72 | AN13: 20% | AO13: 2.03 | AP13: 1.20% | AQ13: 1,611.67 | AR13: 452.79 | AS13: 28.1% | AT13: 2.69 | AU13: 0.17% | AV13: 62.53 | AW13: 10.59 | AX13: 16.94% | AY13: 0.93 | AZ13: 1.48% | BA13: 1,843.70 | BB13: 497.11 | BC13: 27.0% | BD13: 5.64 | BE13: 0.31% | BG13: -2 | BH13: 37 | BI13: 141 | BJ13: 108 | BK13: 7 | BL13: 1.42% | BM13: 0.00% | BN13: 20 | BO13: 126 | BP13: 3 | BQ13: 107 | BR13: 3 | BS13: 1 | BT13: -3 | BU13: -1 | BX13: 0 | BY13: 0 | BZ13: 0 | CA13: 1 | CB13: 0 | CC13: 1 | CD13: 1 | CE13: 8 | CF13: 1.6 | CG13: -7 | CH13: -1 | CI13: 1 | CJ13: 1 | CK13: 100.00% | CL13: 100.00% | CM13: -0 | CN13: 172.07% | CO13: -0 | CP13: 26 | CQ13: 0.5 | CR13: 2 | CS13: 0.40 | CT13: 0 | CU13: 4 | CV13: 2 | CW13: 13 | CX13: 49.57% | CY13: 142.78% | CZ13: 81 | DA13: 88.52% | DB13: 136.07% | DC13: 27 | DE13: 100.00% | DF13: 100.00% | DG13: 0 | DH13: -22 | DI13: 0.70% | DJ13: 5.33 | DK13: -1 | DL13: -969 | DM13: 0.82% | DN13: 5.33 | DO13: -42 | DP13: 17 | DQ13: 0.91% | DR13: 5.33 | DS13: 1 | DT13: 159 | DU13: 0.40% | DV13: 1.82 | DW13: 1 | DX13: -226 | DY13: 0.20% | DZ13: 5.37 | EA13: -2 | EB13: -42 | EC13: 0.20% | ED13: 5.37 | EE13: -0 | EF13: -31 | EG13: 0.20% | EH13: 5.37 | EI13: -0 | EJ13: -69 | EK13: 0.44% | EL13: 5.33 | EM13: -2 | EN13: -7 | EO13: 0.10% | EP13: 9.12 | EQ13: -0 | ER13: -91 | ES13: 0.20% | ET13: 9.00 | EU13: -2 | EV13: -143 | EW13: 0.00% | EX13: 8.59 | EY13: 0 | EZ13: 0 | FA13: -0.18% | FB13: 0.78 | FC13: 0 | FD13: 36 | FE13: 0.45% | FF13: 8.00 | FG13: 1 | FH13: 1,606 | FI13: 0.31% | FJ13: 1.00 | FK13: 5 | FL13: -56 | FM13: 0.65% | FN13: 5.00 | FO13: -2 | FP13: 51 | FQ13: 0.40% | FR13: 1.00 | FS13: 0 | FT13: -492 | FU13: 0.20% | FV13: 8.00 | FW13: -8 | FX13: -127 | FY13: 1.00% | FZ13: 5.00 | GA13: -6 | GB13: -1,639 | GC13: -49 | GD13: 5 | GE13: 11 | GF13: -265 | GG13: 1.00% | GH13: 5.37 | GI13: -14 | GJ13: -316 | GK13: 0 | GL13: 0 | GN13: 293 | GO13: 0.86% | GP13: 1.48 | GQ13: 4 | GR13: 0 | GS13: 0.45% | GT13: 8.00 | GU13: 0 | GV13: 0 | GW13: 0.31% | GX13: 1.00 | GY13: 0 | GZ13: 4 | HA13: 0.65% | HB13: 5.00 | HC13: 0 | HD13: 4 | HE13: 0.40% | HF13: 1.00 | HG13: 0 | HH13: 21 | HI13: 1.00% | HJ13: 5.00 | HK13: 1 | HL13: -17 | HM13: 237 | HO13: =IF(ISERROR(IF(VLOOKUP($C13,'Indicateurs Cumulés'!$C$3:$HN$560,186,FALSE)/(VLOOKUP($C13,objectifs!$C$3:$ZZ$559,158,FALSE))>=1.5,(VLOOKUP($C13,objectifs!$C$3:$ZZ$559,158,FALSE))*1.5,IF(VLOOKUP($C13,'Indicateurs Cumulés'!$C$3:$HN$560,186,FALSE)/(VLOOKUP($C13,objectifs!$C$3:$ZZ$559,158,FALSE))<=-0.5,(VLOOKUP($C13,objectifs!$C$3:$ZZ$559,158,FALSE))*-0.5,VLOOKUP($C13,'Indicateurs Cumulés'!$C$3:$HN$560,186,FALSE)))),VLOOKUP($C13,'Indicateurs Cumulés'!$C$3:$HN$560,186,FALSE),IF(VLOOKUP($C13,'Indicateurs Cumulés'!$C$3:$HN$560,186,FALSE)/(VLOOKUP($C13,objectifs!$C$3:$ZZ$559,158,FALSE))>=1.5,(VLOOKUP($C13,objectifs!$C$3:$ZZ$559,158,FALSE))*1.5,IF(VLOOKUP($C13,'Indicateurs Cumulés'!$C$3:$HN$560,186,FALSE)/(VLOOKUP($C13,objectifs!$C$3:$ZZ$559,158,FALSE))<=-0.5,(VLOOKUP($C13,objectifs!$C$3:$ZZ$559,158,FALSE))*-0.5,VLOOKUP($C13,'Indicateurs Cumulés'!$C$3:$HN$560,186,FALSE)))) -> -265 | HP13: 0 | HR13: 5.4 | HT13: 3.95% | HU13: 0.29% | HV13: 0.95% | HW13: 7 | HX13: -13 | HY13: -2 | HZ13: -12 | IA13: -1 | IB13: 4 | IC13: 17 | ID13: -30 | IE13: 0 | IF13: -5 | IG13: -5 | IH13: 0 | II13: 2 | IJ13: 58 | IK13: -36 | IL13: -5 | IM13: 1 | IN13: -1 | IO13: -1 | IP13: -1 | IQ13: -0 | IR13: 0 | IS13: 2 | IT13: -13 | IU13: 0 | IV13: -3 | IW13: -5 | IX13: 0 | IY13: 2 | IZ13: 38 | JA13: -8 | JB13: -0 | JC13: 58 | JD13: 43 | JE13: 0 | JF13: 0 | JG13: 0.00 | JH13: 0.00 | JI13: 0 | JJ13: 0 | JK13: 0 | JL13: 0.20% | JM13: 7 | JO13: 203 | JP13: 406 | JQ13: 80 | JR13: =IF(ISERROR(IF(VLOOKUP($C13,'Indicateurs Cumulés'!$C$3:$HN$560,190,FALSE)/(VLOOKUP($C13,objectifs!$C$3:$ZZ$559,162,FALSE))>=1.5,(VLOOKUP($C13,objectifs!$C$3:$ZZ$559,162,FALSE))*1.5,IF(VLOOKUP($C13,'Indicateurs Cumulés'!$C$3:$HN$560,190,FALSE)/(VLOOKUP($C13,objectifs!$C$3:$ZZ$559,162,FALSE))<=-0.5,(VLOOKUP($C13,objectifs!$C$3:$ZZ$559,162,FALSE))*-0.5,VLOOKUP($C13,'Indicateurs Cumulés'!$C$3:$HN$560,190,FALSE)))),VLOOKUP($C13,'Indicateurs Cumulés'!$C$3:$HN$560,190,FALSE),IF(VLOOKUP($C13,'Indicateurs Cumulés'!$C$3:$HN$560,190,FALSE)/(VLOOKUP($C13,objectifs!$C$3:$ZZ$559,162,FALSE))>=1.5,(VLOOKUP($C13,objectifs!$C$3:$ZZ$559,162,FALSE))*1.5,IF(VLOOKUP($C13,'Indicateurs Cumulés'!$C$3:$HN$560,190,FALSE)/(VLOOKUP($C13,objectifs!$C$3:$ZZ$559,162,FALSE))<=-0.5,(VLOOKUP($C13,objectifs!$C$3:$ZZ$559,162,FALSE))*-0.5,VLOOKUP($C13,'Indicateurs Cumulés'!$C$3:$HN$560,190,FALSE)))) -> -49 | JS13: 0 | JT13: 0 | JV13: 7 | JW13: 13 | JX13: 3 | JY13: -3 | JZ13: 21 | KA13: 1 | KB13: 0 | KC13: -1 | KD13: 0 | KE13: 0 | KF13: 0 | KG13: 1 | KH13: 0 | KI13: -1 | KJ13: 0 | KK13: 0 | KL13: 0 | KM13: 8 | KN13: 7 | KR13: 0.00 | KS13: 0 | KT13: -41 | KU13: 0 | KV13: 32 | KW13: 6 | KX13: 0 | KY13: 60 | KZ13: 42 | LA13: 0 | LB13: 0 | LC13: 250.8 | LD13: 71 | LE13: 0 | LF13: 0 | LG13: -1 | LH13: -1 | LI13: 5 | LJ13: 1 | LK13: 243 | LL13: 45.3 | LM13: -52 | LN13: 256 | LO13: -17 | LP13: -1 | LQ13: 46.77 | LR13: 154 | LS13: 115 | LT13: 398 | LU13: 139 | LV13: -14 | LW13: 23 | LX13: 11.6 | LY13: 1.2 | LZ13: 1.2 | MA13: 7.0 | MB13: 0.0 | MC13: 0.1 | MD13: 272
A14: 105006 | B14: 200262 | C14: 23 | D14: STRASBOURG VOSGES | E14: 2019-06-30 | F14: 47 | G14: 4.32% | H14: 1.57 | I14: 2019-06-30 | J14: 500 | K14: 3.36% | L14: 2.38 | M14: 4.06 | N14: 549 | O14: 0 | P14: -0.07% | Q14: 7.83 | R14: 12.21 | S14: 43 | T14: 1.82% | U14: 3.85 | V14: 0 | W14: 0.00% | X14: 0 | Y14: 178 | Z14: 0.15% | AA14: 4.38 | AB14: 2.0 | AC14: 6.1 | AD14: 0.7 | AE14: 15.4 | AF14: 24.0 | AG14: 0.6 | AH14: 201906 | AI14: 3.00 | AJ14: 0.07 | AK14: 2.40% | AL14: 160.46 | AM14: 22.96 | AN14: 14% | AO14: 1.50 | AP14: 0.94% | AQ14: 303.52 | AR14: 61.71 | AS14: 20.3% | AT14: 0.04 | AU14: 0.01% | AV14: 36.05 | AW14: 1.42 | AX14: 3.93% | AY14: 0.57 | AZ14: 1.59% | BA14: 503.03 | BB14: 86.09 | BC14: 17.1% | BD14: 2.19 | BE14: 0.43% | BG14: 4 | BH14: 0 | BI14: 55 | BJ14: 24 | BK14: 3 | BL14: 1.64% | BM14: 0.00% | BN14: 23 | BO14: 58 | BP14: 1 | BQ14: 86 | BR14: 2 | BS14: -0 | BT14: 2 | BU14: -7 | BX14: 0 | BY14: 0 | BZ14: 0 | CA14: 0 | CB14: 0 | CC14: 0 | CD14: 0 | CE14: 5 | CF14: 1.0 | CG14: -5 | CH14: -1 | CI14: 1 | CJ14: 1 | CK14: 58.58% | CL14: 100.00% | CM14: 1 | CN14: 0.00% | CO14: 1 | CP14: 0 | CQ14: 0.7 | CR14: 0 | CS14: 0.00 | CT14: 0 | CU14: 3 | CV14: 0 | CW14: 2 | CX14: 88.53% | CY14: 157.88% | CZ14: 23 | DA14: 96.40% | DB14: 129.16% | DC14: 10 | DE14: 100.00% | DF14: 100.00% | DG14: 1 | DH14: 239 | DI14: 0.70% | DJ14: 5.33 | DK14: 9 | DL14: 218 | DM14: 0.82% | DN14: 5.33 | DO14: 9 | DP14: -21 | DQ14: 0.91% | DR14: 5.33 | DS14: -1 | DT14: 1,516 | DU14: 0.40% | DV14: 1.82 | DW14: 11 | DX14: -167 | DY14: 0.20% | DZ14: 5.37 | EA14: -2 | EB14: 121 | EC14: 0.20% | ED14: 5.37 | EE14: 1 | EF14: -35 | EG14: 0.20% | EH14: 5.37 | EI14: -0 | EJ14: 12 | EK14: 0.44% | EL14: 5.33 | EM14: 0 | EN14: -13 | EO14: 0.10% | EP14: 6.43 | EQ14: -0 | ER14: -248 | ES14: 0.20% | ET14: 9.00 | EU14: -4 | EV14: -71 | EW14: 0.00% | EX14: 8.59 | EY14: 0 | EZ14: 0 | FA14: -0.18% | FB14: 0.78 | FC14: 0 | FD14: -376 | FE14: 0.45% | FF14: 8.00 | FG14: -14 | FH14: 617 | FI14: 0.43% | FJ14: 1.00 | FK14: 3 | FL14: -139 | FM14: 0.65% | FN14: 5.00 | FO14: -5 | FP14: 3 | FQ14: 0.40% | FR14: 1.00 | FS14: 0 | FT14: -404 | FU14: 0.20% | FV14: 8.00 | FW14: -6 | FX14: -66 | FY14: 1.00% | FZ14: 5.00 | GA14: -3 | GB14: 1,213 | GC14: 18 | GD14: -70 | GE14: 6 | GF14: -609 | GG14: 1.00% | GH14: 5.37 | GI14: -33 | GJ14: -6 | GK14: 0 | GL14: 0 | GN14: 0 | GO14: 0.00% | GP14: 0 | GQ14: 0 | GR14: 500 | GS14: 0.45% | GT14: 8.00 | GU14: 18 | GV14: 500 | GW14: 0.43% | GX14: 1.00 | GY14: 2 | GZ14: 0 | HA14: 0.65% | HB14: 5.00 | HC14: 0 | HD14: 0 | HE14: 0.40% | HF14: 1.00 | HG14: 0 | HH14: -55 | HI14: 1.00% | HJ14: 5.00 | HK14: -3 | HL14: -10 | HM14: 158 | HO14: =IF(ISERROR(IF(VLOOKUP($C14,'Indicateurs Cumulés'!$C$3:$HN$560,186,FALSE)/(VLOOKUP($C14,objectifs!$C$3:$ZZ$559,158,FALSE))>=1.5,(VLOOKUP($C14,objectifs!$C$3:$ZZ$559,158,FALSE))*1.5,IF(VLOOKUP($C14,'Indicateurs Cumulés'!$C$3:$HN$560,186,FALSE)/(VLOOKUP($C14,objectifs!$C$3:$ZZ$559,158,FALSE))<=-0.5,(VLOOKUP($C14,objectifs!$C$3:$ZZ$559,158,FALSE))*-0.5,VLOOKUP($C14,'Indicateurs Cumulés'!$C$3:$HN$560,186,FALSE)))),VLOOKUP($C14,'Indicateurs Cumulés'!$C$3:$HN$560,186,FALSE),IF(VLOOKUP($C14,'Indicateurs Cumulés'!$C$3:$HN$560,186,FALSE)/(VLOOKUP($C14,objectifs!$C$3:$ZZ$559,158,FALSE))>=1.5,(VLOOKUP($C14,objectifs!$C$3:$ZZ$559,158,FALSE))*1.5,IF(VLOOKUP($C14,'Indicateurs Cumulés'!$C$3:$HN$560,186,FALSE)/(VLOOKUP($C14,objectifs!$C$3:$ZZ$559,158,FALSE))<=-0.5,(VLOOKUP($C14,objectifs!$C$3:$ZZ$559,158,FALSE))*-0.5,VLOOKUP($C14,'Indicateurs Cumulés'!$C$3:$HN$560,186,FALSE)))) -> -201 | HP14: 0 | HR14: 3.4 | HT14: 4.25% | HU14: 0.54% | HV14: 0.37% | HW14: -1 | HX14: 8 | HY14: 1 | HZ14: -4 | IA14: -9 | IB14: 0 | IC14: -10 | ID14: 0 | IE14: -1 | IF14: -2 | IG14: 0 | IH14: 0 | II14: 1 | IJ14: -12 | IK14: -13 | IL14: -1 | IM14: -0 | IN14: 1 | IO14: 0 | IP14: -0 | IQ14: -0 | IR14: 0 | IS14: -1 | IT14: 0 | IU14: -0 | IV14: -1 | IW14: 0 | IX14: 0 | IY14: 1 | IZ14: -8 | JA14: -3 | JB14: -0 | JC14: -18 | JD14: 7 | JE14: 0 | JF14: 0 | JG14: 0.00 | JH14: 0.00 | JI14: 0 | JJ14: 0 | JK14: -88 | JL14: 0.20% | JM14: 0 | JO14: 9 | JP14: 131 | JQ14: -77 | JR14: =IF(ISERROR(IF(VLOOKUP($C14,'Indicateurs Cumulés'!$C$3:$HN$560,190,FALSE)/(VLOOKUP($C14,objectifs!$C$3:$ZZ$559,162,FALSE))>=1.5,(VLOOKUP($C14,objectifs!$C$3:$ZZ$559,162,FALSE))*1.5,IF(VLOOKUP($C14,'Indicateurs Cumulés'!$C$3:$HN$560,190,FALSE)/(VLOOKUP($C14,objectifs!$C$3:$ZZ$559,162,FALSE))<=-0.5,(VLOOKUP($C14,objectifs!$C$3:$ZZ$559,162,FALSE))*-0.5,VLOOKUP($C14,'Indicateurs Cumulés'!$C$3:$HN$560,190,FALSE)))),VLOOKUP($C14,'Indicateurs Cumulés'!$C$3:$HN$560,190,FALSE),IF(VLOOKUP($C14,'Indicateurs Cumulés'!$C$3:$HN$560,190,FALSE)/(VLOOKUP($C14,objectifs!$C$3:$ZZ$559,162,FALSE))>=1.5,(VLOOKUP($C14,objectifs!$C$3:$ZZ$559,162,FALSE))*1.5,IF(VLOOKUP($C14,'Indicateurs Cumulés'!$C$3:$HN$560,190,FALSE)/(VLOOKUP($C14,objectifs!$C$3:$ZZ$559,162,FALSE))<=-0.5,(VLOOKUP($C14,objectifs!$C$3:$ZZ$559,162,FALSE))*-0.5,VLOOKUP($C14,'Indicateurs Cumulés'!$C$3:$HN$560,190,FALSE)))) -> -6 | JS14: -2 | JT14: 0 | JV14: 0 | JW14: 4 | JX14: -2 | JY14: -0 | JZ14: 0 | KA14: 3 | KB14: 0 | KC14: 0 | KD14: 4 | KE14: 0 | KF14: 0 | KG14: 4 | KH14: 0 | KI14: 0 | KJ14: 1 | KK14: 0 | KL14: 0 | KM14: 8 | KN14: 3 | KR14: 6.95 | KS14: 7 | KT14: 3 | KU14: 0 | KV14: 1 | KW14: 0 | KX14: 0 | KY14: -11 | KZ14: -8 | LA14: 0 | LB14: 0 | LC14: 66.8 | LD14: 13 | LE14: 0 | LF14: 0 | LG14: -1 | LH14: -1 | LI14: 0 | LJ14: 0 | LK14: 63 | LL14: 18.7 | LM14: 13 | LN14: 82 | LO14: -10 | LP14: -1 | LQ14: 19.75 | LR14: 98 | LS14: 62 | LT14: 301 | LU14: 65 | LV14: 12 | LW14: 6 | LX14: 7.4 | LY14: 0.6 | LZ14: 0.9 | MA14: 3.3 | MB14: 0.2 | MC14: 0.0 | MD14: 79
A15: 105006 | B15: 200262 | C15: 24 | D15: STRASBOURG AUSTERLITZ | E15: 2019-06-30 | F15: 58 | G15: 4.32% | H15: 1.57 | I15: 2019-06-30 | J15: 321 | K15: 4.08% | L15: 2.49 | M15: 4.18 | N15: 1,665 | O15: 0 | P15: 0.01% | Q15: 7.37 | R15: 11.64 | S15: 0 | T15: 0.00% | U15: 0 | V15: 113 | W15: 0.06% | X15: 4.38 | Y15: 0 | Z15: 0.00% | AA15: 0 | AB15: 4.5 | AC15: 5.1 | AD15: 0 | AE15: 34.8 | AF15: 5.9 | AG15: 2.0 | AH15: 201906 | AI15: 0 | AJ15: 0 | AK15: 0.00% | AL15: 151.81 | AM15: 31.48 | AN15: 21% | AO15: 1.55 | AP15: 1.02% | AQ15: 575.34 | AR15: 91.61 | AS15: 15.9% | AT15: 0.89 | AU15: 0.15% | AV15: 23.59 | AW15: 1.13 | AX15: 4.81% | AY15: 0.47 | AZ15: 2.01% | BA15: 750.74 | BB15: 124.22 | BC15: 16.5% | BD15: 2.91 | BE15: 0.39% | BG15: 0 | BH15: 1 | BI15: 46 | BJ15: 37 | BK15: 0 | BL15: 1.36% | BM15: 0.00% | BN15: 24 | BO15: 21 | BP15: 0 | BQ15: 89 | BR15: 2 | BS15: -0 | BT15: 1 | BU15: -3 | BX15: 0 | BY15: 0 | BZ15: 0 | CA15: 1 | CB15: 0 | CC15: -1 | CD15: -1 | CE15: 12 | CF15: 2.4 | CG15: -5 | CH15: -1 | CI15: 1 | CJ15: 1 | CK15: 0.00% | CL15: 0.00% | CM15: 0 | CN15: 0.00% | CO15: 0 | CP15: 0 | CQ15: 0 | CR15: 0 | CS15: 0.00 | CT15: 0 | CU15: 3 | CV15: 1 | CW15: 5 | CX15: 42.67% | CY15: 149.84% | CZ15: 28 | DA15: 98.91% | DB15: 130.77% | DC15: 7 | DE15: 0.00% | DF15: 0.00% | DG15: 0 | DH15: 78 | DI15: 0.70% | DJ15: 5.33 | DK15: 3 | DL15: -113 | DM15: 0.82% | DN15: 5.33 | DO15: -5 | DP15: 54 | DQ15: 0.91% | DR15: 5.33 | DS15: 3 | DT15: 17 | DU15: 0.40% | DV15: 1.82 | DW15: 0 | DX15: -123 | DY15: 0.20% | DZ15: 5.37 | EA15: -1 | EB15: 94 | EC15: 0.20% | ED15: 5.37 | EE15: 1 | EF15: -24 | EG15: 0.20% | EH15: 5.37 | EI15: -0 | EJ15: 25 | EK15: 0.44% | EL15: 5.33 | EM15: 1 | EN15: 3 | EO15: 0.10% | EP15: 9.37 | EQ15: 0 | ER15: -108 | ES15: 0.20% | ET15: 9.00 | EU15: -2 | EV15: -452 | EW15: 0.00% | EX15: 8.59 | EY15: 0 | EZ15: 0 | FA15: -0.18% | FB15: 0.78 | FC15: 0 | FD15: 86 | FE15: 0.45% | FF15: 8.00 | FG15: 3 | FH15: 700 | FI15: 0.39% | FJ15: 1.00 | FK15: 3 | FL15: 2 | FM15: 0.65% | FN15: 5.00 | FO15: 0 | FP15: 7 | FQ15: 0.40% | FR15: 1.00 | FS15: 0 | FT15: -178 | FU15: 0.20% | FV15: 8.00 | FW15: -3 | FX15: -262 | FY15: 1.00% | FZ15: 5.00 | GA15: -13 | GB15: -1,315 | GC15: -28 | GD15: 434 | GE15: 23 | GF15: 271 | GG15: 1.00% | GH15: 5.37 | GI15: 15 | GJ15: -106 | GK15: 0 | GL15: 0 | GN15: 0 | GO15: 0.00% | GP15: 0 | GQ15: 0 | GR15: 320 | GS15: 0.45% | GT15: 8.00 | GU15: 12 | GV15: 320 | GW15: 0.39% | GX15: 1.00 | GY15: 1 | GZ15: 0 | HA15: 0.65% | HB15: 5.00 | HC15: 0 | HD15: 0 | HE15: 0.40% | HF15: 1.00 | HG15: 0 | HH15: 25 | HI15: 1.00% | HJ15: 5.00 | HK15: 1 | HL15: -5 | HM15: 163 | HO15: =IF(ISERROR(IF(VLOOKUP($C15,'Indicateurs Cumulés'!$C$3:$HN$560,186,FALSE)/(VLOOKUP($C15,objectifs!$C$3:$ZZ$559,158,FALSE))>=1.5,(VLOOKUP($C15,objectifs!$C$3:$ZZ$559,158,FALSE))*1.5,IF(VLOOKUP($C15,'Indicateurs Cumulés'!$C$3:$HN$560,186,FALSE)/(VLOOKUP($C15,objectifs!$C$3:$ZZ$559,158,FALSE))<=-0.5,(VLOOKUP($C15,objectifs!$C$3:$ZZ$559,158,FALSE))*-0.5,VLOOKUP($C15,'Indicateurs Cumulés'!$C$3:$HN$560,186,FALSE)))),VLOOKUP($C15,'Indicateurs Cumulés'!$C$3:$HN$560,186,FALSE),IF(VLOOKUP($C15,'Indicateurs Cumulés'!$C$3:$HN$560,186,FALSE)/(VLOOKUP($C15,objectifs!$C$3:$ZZ$559,158,FALSE))>=1.5,(VLOOKUP($C15,objectifs!$C$3:$ZZ$559,158,FALSE))*1.5,IF(VLOOKUP($C15,'Indicateurs Cumulés'!$C$3:$HN$560,186,FALSE)/(VLOOKUP($C15,objectifs!$C$3:$ZZ$559,158,FALSE))<=-0.5,(VLOOKUP($C15,objectifs!$C$3:$ZZ$559,158,FALSE))*-0.5,VLOOKUP($C15,'Indicateurs Cumulés'!$C$3:$HN$560,186,FALSE)))) -> 271 | HP15: 0 | HR15: 2.4 | HT15: 4.87% | HU15: 0.29% | HV15: 0.00% | HW15: -1 | HX15: 4 | HY15: 0 | HZ15: 2 | IA15: 5 | IB15: 6 | IC15: 14 | ID15: 20 | IE15: -1 | IF15: -11 | IG15: -3 | IH15: 0 | II15: 4 | IJ15: -1 | IK15: -3 | IL15: 0 | IM15: -0 | IN15: 0 | IO15: 0 | IP15: 0 | IQ15: 0 | IR15: 1 | IS15: 2 | IT15: 9 | IU15: -0 | IV15: -7 | IW15: -3 | IX15: 0 | IY15: 4 | IZ15: -1 | JA15: -1 | JB15: 0 | JC15: 14 | JD15: 1 | JE15: 0 | JF15: 0 | JG15: 0.00 | JH15: 0.00 | JI15: 0 | JJ15: 0 | JK15: 0 | JL15: 0.20% | JM15: 2 | JO15: -31 | JP15: -327 | JQ15: -1 | JR15: =IF(ISERROR(IF(VLOOKUP($C15,'Indicateurs Cumulés'!$C$3:$HN$560,190,FALSE)/(VLOOKUP($C15,objectifs!$C$3:$ZZ$559,162,FALSE))>=1.5,(VLOOKUP($C15,objectifs!$C$3:$ZZ$559,162,FALSE))*1.5,IF(VLOOKUP($C15,'Indicateurs Cumulés'!$C$3:$HN$560,190,FALSE)/(VLOOKUP($C15,objectifs!$C$3:$ZZ$559,162,FALSE))<=-0.5,(VLOOKUP($C15,objectifs!$C$3:$ZZ$559,162,FALSE))*-0.5,VLOOKUP($C15,'Indicateurs Cumulés'!$C$3:$HN$560,190,FALSE)))),VLOOKUP($C15,'Indicateurs Cumulés'!$C$3:$HN$560,190,FALSE),IF(VLOOKUP($C15,'Indicateurs Cumulés'!$C$3:$HN$560,190,FALSE)/(VLOOKUP($C15,objectifs!$C$3:$ZZ$559,162,FALSE))>=1.5,(VLOOKUP($C15,objectifs!$C$3:$ZZ$559,162,FALSE))*1.5,IF(VLOOKUP($C15,'Indicateurs Cumulés'!$C$3:$HN$560,190,FALSE)/(VLOOKUP($C15,objectifs!$C$3:$ZZ$559,162,FALSE))<=-0.5,(VLOOKUP($C15,objectifs!$C$3:$ZZ$559,162,FALSE))*-0.5,VLOOKUP($C15,'Indicateurs Cumulés'!$C$3:$HN$560,190,FALSE)))) -> -29 | JS15: 0 | JT15: 0 | JV15: -1 | JW15: -11 | JX15: -0 | JY15: -2 | JZ15: -13 | KA15: -3 | KB15: 0 | KC15: 0 | KD15: -3 | KE15: 1 | KF15: 0 | KG15: -4 | KH15: 0 | KI15: 0 | KJ15: -1 | KK15: 1 | KL15: 0 | KM15: -2 | KN15: 3 | KR15: 6.03 | KS15: -5 | KT15: -60 | KU15: 0 | KV15: 29 | KW15: 6 | KX15: 0 | KY15: 3 | KZ15: 2 | LA15: 0 | LB15: 0 | LC15: 89.7 | LD15: -20 | LE15: -3 | LF15: -2 | LG15: -3 | LH15: -4 | LI15: -1 | LJ15: -0 | LK15: 80 | LL15: 32.6 | LM15: 10 | LN15: 83 | LO15: -5 | LP15: -6 | LQ15: 36.60 | LR15: 105 | LS15: 66 | LT15: 558 | LU15: 66 | LV15: 54 | LW15: 12 | LX15: 7.9 | LY15: 0.7 | LZ15: 1.7 | MA15: 3.3 | MB15: 0.8 | MC15: 0.1 | MD15: 104
A16: 105006 | B16: 200262 | C16: 25 | D16: STRASBOURG ESPLANADE | E16: 2019-06-30 | F16: 84 | G16: 4.32% | H16: 1.57 | I16: 2019-06-30 | J16: 441 | K16: 3.60% | L16: 2.29 | M16: 3.91 | N16: 1,999 | O16: 0 | P16: -0.01% | Q16: 6.60 | R16: 10.12 | S16: 31 | T16: 2.75% | U16: 2.06 | V16: 571 | W16: 0.03% | X16: 6.09 | Y16: 1,193 | Z16: 0.48% | AA16: 5.19 | AB16: 5.7 | AC16: 3.6 | AD16: 1.6 | AE16: 40.3 | AF16: 7.2 | AG16: 1.9 | AH16: 201906 | AI16: 0 | AJ16: 0 | AK16: 0.00% | AL16: 223.36 | AM16: 94.91 | AN16: 42% | AO16: 1.20 | AP16: 0.54% | AQ16: 551.35 | AR16: 132.20 | AS16: 24.0% | AT16: 0.93 | AU16: 0.17% | AV16: 19.24 | AW16: 1.60 | AX16: 8.31% | AY16: 0.36 | AZ16: 1.85% | BA16: 793.95 | BB16: 228.71 | BC16: 28.8% | BD16: 2.48 | BE16: 0.31% | BG16: 3 | BH16: 16 | BI16: 53 | BJ16: 38 | BK16: 33 | BL16: 1.44% | BM16: 0.00% | BN16: 25 | BO16: 173 | BP16: 3 | BQ16: 68 | BR16: 2 | BS16: -1 | BT16: -6 | BU16: 0 | BX16: 0 | BY16: 1 | BZ16: 0 | CA16: 0 | CB16: 0 | CC16: -4 | CD16: -2 | CE16: 1 | CF16: 0.2 | CG16: -7 | CH16: -1 | CI16: 1 | CJ16: 1 | CK16: 100.00% | CL16: 200.00% | CM16: 1 | CN16: 125.47% | CO16: 1 | CP16: 13 | CQ16: 1.6 | CR16: 1 | CS16: 0.00 | CT16: 0 | CU16: 2 | CV16: 1 | CW16: 6 | CX16: 59.37% | CY16: 135.20% | CZ16: 31 | DA16: 79.18% | DB16: 153.26% | DC16: 9 | DE16: 100.00% | DF16: 140.90% | DG16: 2 | DH16: 10 | DI16: 0.70% | DJ16: 5.33 | DK16: 0 | DL16: -73 | DM16: 0.82% | DN16: 5.33 | DO16: -3 | DP16: -14 | DQ16: 0.91% | DR16: 5.33 | DS16: -1 | DT16: 39 | DU16: 0.40% | DV16: 1.82 | DW16: 0 | DX16: -138 | DY16: 0.20% | DZ16: 5.37 | EA16: -1 | EB16: -107 | EC16: 0.20% | ED16: 5.37 | EE16: -1 | EF16: -22 | EG16: 0.20% | EH16: 5.37 | EI16: -0 | EJ16: -7 | EK16: 0.44% | EL16: 5.33 | EM16: -0 | EN16: -2 | EO16: 0.10% | EP16: 9.11 | EQ16: -0 | ER16: -18 | ES16: 0.20% | ET16: 9.00 | EU16: -0 | EV16: -20 | EW16: 0.00% | EX16: 8.59 | EY16: 0 | EZ16: 0 | FA16: -0.18% | FB16: 0.78 | FC16: 0 | FD16: 68 | FE16: 0.45% | FF16: 8.00 | FG16: 2 | FH16: 750 | FI16: 0.31% | FJ16: 1.00 | FK16: 2 | FL16: -78 | FM16: 0.65% | FN16: 5.00 | FO16: -3 | FP16: 6 | FQ16: 0.40% | FR16: 1.00 | FS16: 0 | FT16: -499 | FU16: 0.20% | FV16: 8.00 | FW16: -8 | FX16: -136 | FY16: 1.00% | FZ16: 5.00 | GA16: -7 | GB16: -1,035 | GC16: -23 | GD16: 498 | GE16: 27 | GF16: -39 | GG16: 1.00% | GH16: 5.37 | GI16: -2 | GJ16: -56 | GK16: 0 | GL16: 0 | GN16: 0 | GO16: 0.00% | GP16: 0 | GQ16: 0 | GR16: 573 | GS16: 0.45% | GT16: 8.00 | GU16: 21 | GV16: 576 | GW16: 0.31% | GX16: 1.00 | GY16: 2 | GZ16: 0 | HA16: 0.65% | HB16: 5.00 | HC16: 0 | HD16: 0 | HE16: 0.40% | HF16: 1.00 | HG16: 0 | HH16: -64 | HI16: 1.00% | HJ16: 5.00 | HK16: -3 | HL16: -10 | HM16: 230 | HO16: =IF(ISERROR(IF(VLOOKUP($C16,'Indicateurs Cumulés'!$C$3:$HN$560,186,FALSE)/(VLOOKUP($C16,objectifs!$C$3:$ZZ$559,158,FALSE))>=1.5,(VLOOKUP($C16,objectifs!$C$3:$ZZ$559,158,FALSE))*1.5,IF(VLOOKUP($C16,'Indicateurs Cumulés'!$C$3:$HN$560,186,FALSE)/(VLOOKUP($C16,objectifs!$C$3:$ZZ$559,158,FALSE))<=-0.5,(VLOOKUP($C16,objectifs!$C$3:$ZZ$559,158,FALSE))*-0.5,VLOOKUP($C16,'Indicateurs Cumulés'!$C$3:$HN$560,186,FALSE)))),VLOOKUP($C16,'Indicateurs Cumulés'!$C$3:$HN$560,186,FALSE),IF(VLOOKUP($C16,'Indicateurs Cumulés'!$C$3:$HN$560,186,FALSE)/(VLOOKUP($C16,objectifs!$C$3:$ZZ$559,158,FALSE))>=1.5,(VLOOKUP($C16,objectifs!$C$3:$ZZ$559,158,FALSE))*1.5,IF(VLOOKUP($C16,'Indicateurs Cumulés'!$C$3:$HN$560,186,FALSE)/(VLOOKUP($C16,objectifs!$C$3:$ZZ$559,158,FALSE))<=-0.5,(VLOOKUP($C16,objectifs!$C$3:$ZZ$559,158,FALSE))*-0.5,VLOOKUP($C16,'Indicateurs Cumulés'!$C$3:$HN$560,186,FALSE)))) -> -39 | HP16: 0 | HR16: 3.7 | HT16: 4.44% | HU16: 0.28% | HV16: 0.54% | HW16: -7 | HX16: -29 | HY16: 1 | HZ16: -9 | IA16: -7 | IB16: -2 | IC16: -15 | ID16: -7 | IE16: -2 | IF16: -6 | IG16: -2 | IH16: 1 | II16: 1 | IJ16: 0 | IK16: -6 | IL16: 2 | IM16: -1 | IN16: -3 | IO16: 0 | IP16: -1 | IQ16: -0 | IR16: -0 | IS16: -2 | IT16: -3 | IU16: -0 | IV16: -4 | IW16: -2 | IX16: 2 | IY16: 1 | IZ16: 0 | JA16: -1 | JB16: 0 | JC16: -22 | JD16: 52 | JE16: 0 | JF16: 0 | JG16: 0.00 | JH16: 0.00 | JI16: 0 | JJ16: 0 | JK16: -1 | JL16: 0.20% | JM16: 0 | JO16: -1 | JP16: -47 | JQ16: -6 | JR16: =IF(ISERROR(IF(VLOOKUP($C16,'Indicateurs Cumulés'!$C$3:$HN$560,190,FALSE)/(VLOOKUP($C16,objectifs!$C$3:$ZZ$559,162,FALSE))>=1.5,(VLOOKUP($C16,objectifs!$C$3:$ZZ$559,162,FALSE))*1.5,IF(VLOOKUP($C16,'Indicateurs Cumulés'!$C$3:$HN$560,190,FALSE)/(VLOOKUP($C16,objectifs!$C$3:$ZZ$559,162,FALSE))<=-0.5,(VLOOKUP($C16,objectifs!$C$3:$ZZ$559,162,FALSE))*-0.5,VLOOKUP($C16,'Indicateurs Cumulés'!$C$3:$HN$560,190,FALSE)))),VLOOKUP($C16,'Indicateurs Cumulés'!$C$3:$HN$560,190,FALSE),IF(VLOOKUP($C16,'Indicateurs Cumulés'!$C$3:$HN$560,190,FALSE)/(VLOOKUP($C16,objectifs!$C$3:$ZZ$559,162,FALSE))>=1.5,(VLOOKUP($C16,objectifs!$C$3:$ZZ$559,162,FALSE))*1.5,IF(VLOOKUP($C16,'Indicateurs Cumulés'!$C$3:$HN$560,190,FALSE)/(VLOOKUP($C16,objectifs!$C$3:$ZZ$559,162,FALSE))<=-0.5,(VLOOKUP($C16,objectifs!$C$3:$ZZ$559,162,FALSE))*-0.5,VLOOKUP($C16,'Indicateurs Cumulés'!$C$3:$HN$560,190,FALSE)))) -> -34 | JS16: -0 | JT16: 0 | JV16: -0 | JW16: -2 | JX16: -0 | JY16: -2 | JZ16: -4 | KA16: -3 | KB16: -3 | KC16: 1 | KD16: 1 | KE16: -1 | KF16: 0 | KG16: -4 | KH16: -3 | KI16: 1 | KJ16: 0 | KK16: -1 | KL16: 0 | KM16: -3 | KN16: 6 | KR16: 4.79 | KS16: -5 | KT16: -1 | KU16: 0 | KV16: -3 | KW16: -1 | KX16: 0 | KY16: 2 | KZ16: 1 | LA16: 0 | LB16: 0 | LC16: 81.4 | LD16: 35 | LE16: -2 | LF16: -1 | LG16: -6 | LH16: -9 | LI16: -1 | LJ16: -0 | LK16: 88 | LL16: 23.8 | LM16: 2 | LN16: 125 | LO16: -10 | LP16: -10 | LQ16: 22.04 | LR16: 142 | LS16: 37 | LT16: 445 | LU16: 61 | LV16: -11 | LW16: 16 | LX16: 10.7 | LY16: 0.4 | LZ16: 1.3 | MA16: 3.1 | MB16: 0.0 | MC16: 0.1 | MD16: 97
A17: 105006 | B17: 200262 | C17: 26 | D17: STRASBOURG DANUBE | E17: 2019-06-30 | F17: 41 | G17: 4.32% | H17: 1.57 | I17: 2019-06-30 | J17: 260 | K17: 2.91% | L17: 2.78 | M17: 4.63 | N17: 1,048 | O17: 0 | P17: -0.11% | Q17: 8.32 | R17: 12.54 | S17: 0 | T17: 0.00% | U17: 0 | V17: 222 | W17: -0.04% | X17: 7.56 | Y17: 0 | Z17: 0.00% | AA17: 0 | AB17: 2.8 | AC17: 4.0 | AD17: 0 | AE17: -187.5 | AF17: 4.7 | AG17: 1.4 | AH17: 201906 | AI17: 0 | AJ17: 0 | AK17: 0.00% | AL17: 72.56 | AM17: 19.49 | AN17: 27% | AO17: 0.64 | AP17: 0.88% | AQ17: 64.83 | AR17: 32.00 | AS17: 49.4% | AT17: 0.06 | AU17: 0.10% | AV17: 24.42 | AW17: 2.94 | AX17: 12.03% | AY17: 0.44 | AZ17: 1.81% | BA17: 161.80 | BB17: 54.43 | BC17: 33.6% | BD17: 1.14 | BE17: 0.71% | BG17: 0 | BH17: 10 | BI17: 32 | BJ17: 25 | BK17: 0 | BL17: 1.69% | BM17: 0.00% | BN17: 26 | BO17: 57 | BP17: 1 | BQ17: 10 | BR17: 0 | BS17: 1 | BT17: 1 | BU17: -2 | BX17: 0 | BY17: 0 | BZ17: 0 | CA17: 1 | CB17: 0 | CC17: 0 | CD17: 0 | CE17: 8 | CF17: 1.6 | CG17: -3 | CH17: -1 | CI17: 0 | CJ17: 0 | CK17: 0.00% | CL17: 0.00% | CM17: 0 | CN17: 200.00% | CO17: 0 | CP17: 11 | CQ17: 0 | CR17: 0 | CS17: 0.00 | CT17: 0 | CU17: 1 | CV17: 0 | CW17: 3 | CX17: 70.87% | CY17: 188.17% | CZ17: 30 | DA17: 93.85% | DB17: 179.23% | DC17: 7 | DE17: 0.00% | DF17: 0.00% | DG17: 0 | DH17: 129 | DI17: 0.70% | DJ17: 5.33 | DK17: 5 | DL17: 41 | DM17: 0.82% | DN17: 5.33 | DO17: 2 | DP17: -21 | DQ17: 0.91% | DR17: 5.33 | DS17: -1 | DT17: 93 | DU17: 0.40% | DV17: 1.82 | DW17: 1 | DX17: -49 | DY17: 0.20% | DZ17: 5.37 | EA17: -1 | EB17: 44 | EC17: 0.20% | ED17: 5.37 | EE17: 0 | EF17: -13 | EG17: 0.20% | EH17: 5.37 | EI17: -0 | EJ17: 62 | EK17: 0.44% | EL17: 5.33 | EM17: 1 | EN17: 4 | EO17: 0.10% | EP17: 7.77 | EQ17: 0 | ER17: -50 | ES17: 0.20% | ET17: 9.00 | EU17: -1 | EV17: 145 | EW17: 0.00% | EX17: 3.56 | EY17: 0 | EZ17: 0 | FA17: -0.18% | FB17: 0.78 | FC17: 0 | FD17: -108 | FE17: 0.45% | FF17: 8.00 | FG17: -4 | FH17: 104 | FI17: 0.71% | FJ17: 1.00 | FK17: 1 | FL17: -14 | FM17: 0.65% | FN17: 5.00 | FO17: -0 | FP17: 6 | FQ17: 0.40% | FR17: 1.00 | FS17: 0 | FT17: -71 | FU17: 0.20% | FV17: 8.00 | FW17: -1 | FX17: 64 | FY17: 1.00% | FZ17: 5.00 | GA17: 3 | GB17: 385 | GC17: 9 | GD17: -139 | GE17: -3 | GF17: -393 | GG17: 1.00% | GH17: 5.37 | GI17: -21 | GJ17: -25 | GK17: 0 | GL17: 0 | GN17: 0 | GO17: 0.00% | GP17: 0 | GQ17: 0 | GR17: 0 | GS17: 0.45% | GT17: 8.00 | GU17: 0 | GV17: 0 | GW17: 0.71% | GX17: 1.00 | GY17: 0 | GZ17: 0 | HA17: 0.65% | HB17: 5.00 | HC17: 0 | HD17: 0 | HE17: 0.40% | HF17: 1.00 | HG17: 0 | HH17: -17 | HI17: 1.00% | HJ17: 5.00 | HK17: -1 | HL17: -7 | HM17: 89 | HO17: =IF(ISERROR(IF(VLOOKUP($C17,'Indicateurs Cumulés'!$C$3:$HN$560,186,FALSE)/(VLOOKUP($C17,objectifs!$C$3:$ZZ$559,158,FALSE))>=1.5,(VLOOKUP($C17,objectifs!$C$3:$ZZ$559,158,FALSE))*1.5,IF(VLOOKUP($C17,'Indicateurs Cumulés'!$C$3:$HN$560,186,FALSE)/(VLOOKUP($C17,objectifs!$C$3:$ZZ$559,158,FALSE))<=-0.5,(VLOOKUP($C17,objectifs!$C$3:$ZZ$559,158,FALSE))*-0.5,VLOOKUP($C17,'Indicateurs Cumulés'!$C$3:$HN$560,186,FALSE)))),VLOOKUP($C17,'Indicateurs Cumulés'!$C$3:$HN$560,186,FALSE),IF(VLOOKUP($C17,'Indicateurs Cumulés'!$C$3:$HN$560,186,FALSE)/(VLOOKUP($C17,objectifs!$C$3:$ZZ$559,158,FALSE))>=1.5,(VLOOKUP($C17,objectifs!$C$3:$ZZ$559,158,FALSE))*1.5,IF(VLOOKUP($C17,'Indicateurs Cumulés'!$C$3:$HN$560,186,FALSE)/(VLOOKUP($C17,objectifs!$C$3:$ZZ$559,158,FALSE))<=-0.5,(VLOOKUP($C17,objectifs!$C$3:$ZZ$559,158,FALSE))*-0.5,VLOOKUP($C17,'Indicateurs Cumulés'!$C$3:$HN$560,186,FALSE)))) -> -100 | HP17: 0 | HR17: 1.8 | HT17: 3.85% | HU17: 0.28% | HV17: 0.00% | HW17: 7 | HX17: 4 | HY17: 0 | HZ17: -4 | IA17: -6 | IB17: 0 | IC17: 0 | ID17: -8 | IE17: -2 | IF17: -1 | IG17: 0 | IH17: 1 | II17: 0 | IJ17: 7 | IK17: -11 | IL17: 3 | IM17: 1 | IN17: 0 | IO17: 0 | IP17: -0 | IQ17: -0 | IR17: 0 | IS17: 0 | IT17: -3 | IU17: -0 | IV17: -1 | IW17: 0 | IX17: 2 | IY17: 0 | IZ17: 5 | JA17: -2 | JB17: 0 | JC17: 9 | JD17: 10 | JE17: 0 | JF17: 0 | JG17: 0.00 | JH17: 0.00 | JI17: 0 | JJ17: 0 | JK17: 0 | JL17: 0.20% | JM17: -0 | JO17: 0 | JP17: 5 | JQ17: -114 | JR17: =IF(ISERROR(IF(VLOOKUP($C17,'Indicateurs Cumulés'!$C$3:$HN$560,190,FALSE)/(VLOOKUP($C17,objectifs!$C$3:$ZZ$559,162,FALSE))>=1.5,(VLOOKUP($C17,objectifs!$C$3:$ZZ$559,162,FALSE))*1.5,IF(VLOOKUP($C17,'Indicateurs Cumulés'!$C$3:$HN$560,190,FALSE)/(VLOOKUP($C17,objectifs!$C$3:$ZZ$559,162,FALSE))<=-0.5,(VLOOKUP($C17,objectifs!$C$3:$ZZ$559,162,FALSE))*-0.5,VLOOKUP($C17,'Indicateurs Cumulés'!$C$3:$HN$560,190,FALSE)))),VLOOKUP($C17,'Indicateurs Cumulés'!$C$3:$HN$560,190,FALSE),IF(VLOOKUP($C17,'Indicateurs Cumulés'!$C$3:$HN$560,190,FALSE)/(VLOOKUP($C17,objectifs!$C$3:$ZZ$559,162,FALSE))>=1.5,(VLOOKUP($C17,objectifs!$C$3:$ZZ$559,162,FALSE))*1.5,IF(VLOOKUP($C17,'Indicateurs Cumulés'!$C$3:$HN$560,190,FALSE)/(VLOOKUP($C17,objectifs!$C$3:$ZZ$559,162,FALSE))<=-0.5,(VLOOKUP($C17,objectifs!$C$3:$ZZ$559,162,FALSE))*-0.5,VLOOKUP($C17,'Indicateurs Cumulés'!$C$3:$HN$560,190,FALSE)))) -> -21 | JS17: 0 | JT17: -0 | JV17: 0 | JW17: 0 | JX17: -4 | JY17: -1 | JZ17: -5 | KA17: 1 | KB17: 0 | KC17: -1 | KD17: 0 | KE17: 0 | KF17: 0 | KG17: 1 | KH17: 0 | KI17: -1 | KJ17: 0 | KK17: 0 | KL17: 0 | KM17: 1 | KN17: 0 | KR17: -23.53 | KS17: 0 | KT17: 1 | KU17: 0 | KV17: 1 | KW17: 0 | KX17: 0 | KY17: 8 | KZ17: 6 | LA17: 0 | LB17: 0 | LC17: 55.4 | LD17: 3 | LE17: -1 | LF17: -1 | LG17: -2 | LH17: -3 | LI17: -1 | LJ17: -0 | LK17: 51 | LL17: 28.3 | LM17: 1 | LN17: 57 | LO17: -7 | LP17: -4 | LQ17: 30.48 | LR17: 64 | LS17: 58 | LT17: 143 | LU17: 57 | LV17: -58 | LW17: 8 | LX17: 4.8 | LY17: 0.6 | LZ17: 0.4 | MA17: 2.9 | MB17: 0.0 | MC17: 0.0 | MD17: 64
A18: 105006 | B18: 200262 | C18: 27 | D18: SCHILTIGHEIM CENTRE | E18: 2019-06-30 | F18: 85 | G18: 4.32% | H18: 1.57 | I18: 2019-06-30 | J18: 1,216 | K18: 3.30% | L18: 2.28 | M18: 3.93 | N18: 2,542 | O18: 0 | P18: -0.01% | Q18: 8.74 | R18: 13.65 | S18: 241 | T18: 2.73% | U18: 2.46 | V18: 67 | W18: -0.12% | X18: 6.10 | Y18: 1,210 | Z18: 0.75% | AA18: 4.02 | AB18: 14.1 | AC18: 11.9 | AD18: 4.1 | AE18: 78.6 | AF18: 16.3 | AG18: 6.5 | AH18: 201906 | AI18: 40.00 | AJ18: 0.48 | AK18: 1.20% | AL18: 203.77 | AM18: 72.19 | AN18: 35% | AO18: 2.11 | AP18: 1.04% | AQ18: 1,292.77 | AR18: 142.69 | AS18: 11.0% | AT18: 2.20 | AU18: 0.17% | AV18: 55.23 | AW18: 1.89 | AX18: 3.42% | AY18: 0.64 | AZ18: 1.17% | BA18: 1,591.76 | BB18: 216.77 | BC18: 13.6% | BD18: 5.44 | BE18: 0.34% | BG18: 20 | BH18: 1 | BI18: 120 | BJ18: 82 | BK18: 43 | BL18: 1.51% | BM18: 0.00% | BN18: 27 | BO18: 50 | BP18: 1 | BQ18: 158 | BR18: 4 | BS18: -0 | BT18: 0 | BU18: -12 | BX18: 0 | BY18: 0 | BZ18: 0 | CA18: 3 | CB18: 0 | CC18: 4 | CD18: 2 | CE18: 22 | CF18: 4.4 | CG18: 1 | CH18: 0 | CI18: 5 | CJ18: 5 | CK18: 86.92% | CL18: 116.12% | CM18: 3 | CN18: 100.00% | CO18: 3 | CP18: 1 | CQ18: 4.1 | CR18: 0 | CS18: 0.00 | CT18: 0 | CU18: 3 | CV18: 0 | CW18: 14 | CX18: 43.38% | CY18: 184.50% | CZ18: 59 | DA18: 90.21% | DB18: 118.35% | DC18: 19 | DE18: 100.00% | DF18: 100.00% | DG18: 3 | DH18: 252 | DI18: 0.70% | DJ18: 5.33 | DK18: 9 | DL18: -237 | DM18: 0.82% | DN18: 5.33 | DO18: -10 | DP18: -4 | DQ18: 0.91% | DR18: 5.33 | DS18: -0 | DT18: 261 | DU18: 0.40% | DV18: 1.82 | DW18: 2 | DX18: -190 | DY18: 0.20% | DZ18: 5.37 | EA18: -2 | EB18: -39 | EC18: 0.20% | ED18: 5.37 | EE18: -0 | EF18: -20 | EG18: 0.20% | EH18: 5.37 | EI18: -0 | EJ18: -12 | EK18: 0.44% | EL18: 5.33 | EM18: -0 | EN18: -15 | EO18: 0.10% | EP18: 9.65 | EQ18: -0 | ER18: -14 | ES18: 0.20% | ET18: 9.00 | EU18: -0 | EV18: -324 | EW18: 0.00% | EX18: 8.59 | EY18: 0 | EZ18: 0 | FA18: -0.18% | FB18: 0.78 | FC18: 0 | FD18: 503 | FE18: 0.45% | FF18: 8.00 | FG18: 18 | FH18: 1,741 | FI18: 0.34% | FJ18: 1.00 | FK18: 6 | FL18: -21 | FM18: 0.65% | FN18: 5.00 | FO18: -1 | FP18: 3 | FQ18: 0.40% | FR18: 1.00 | FS18: 0 | FT18: -297 | FU18: 0.20% | FV18: 8.00 | FW18: -5 | FX18: 67 | FY18: 1.00% | FZ18: 5.00 | GA18: 3 | GB18: -352 | GC18: 3 | GD18: 623 | GE18: 35 | GF18: -44 | GG18: 1.00% | GH18: 5.37 | GI18: -2 | GJ18: 272 | GK18: 0 | GL18: 0 | GN18: 0 | GO18: 0.00% | GP18: 0 | GQ18: 0 | GR18: 100 | GS18: 0.45% | GT18: 8.00 | GU18: 4 | GV18: 100 | GW18: 0.34% | GX18: 1.00 | GY18: 0 | GZ18: 0 | HA18: 0.65% | HB18: 5.00 | HC18: 0 | HD18: 0 | HE18: 0.40% | HF18: 1.00 | HG18: 0 | HH18: 41 | HI18: 1.00% | HJ18: 5.00 | HK18: 2 | HL18: -14 | HM18: 260 | HO18: =IF(ISERROR(IF(VLOOKUP($C18,'Indicateurs Cumulés'!$C$3:$HN$560,186,FALSE)/(VLOOKUP($C18,objectifs!$C$3:$ZZ$559,158,FALSE))>=1.5,(VLOOKUP($C18,objectifs!$C$3:$ZZ$559,158,FALSE))*1.5,IF(VLOOKUP($C18,'Indicateurs Cumulés'!$C$3:$HN$560,186,FALSE)/(VLOOKUP($C18,objectifs!$C$3:$ZZ$559,158,FALSE))<=-0.5,(VLOOKUP($C18,objectifs!$C$3:$ZZ$559,158,FALSE))*-0.5,VLOOKUP($C18,'Indicateurs Cumulés'!$C$3:$HN$560,186,FALSE)))),VLOOKUP($C18,'Indicateurs Cumulés'!$C$3:$HN$560,186,FALSE),IF(VLOOKUP($C18,'Indicateurs Cumulés'!$C$3:$HN$560,186,FALSE)/(VLOOKUP($C18,objectifs!$C$3:$ZZ$559,158,FALSE))>=1.5,(VLOOKUP($C18,objectifs!$C$3:$ZZ$559,158,FALSE))*1.5,IF(VLOOKUP($C18,'Indicateurs Cumulés'!$C$3:$HN$560,186,FALSE)/(VLOOKUP($C18,objectifs!$C$3:$ZZ$559,158,FALSE))<=-0.5,(VLOOKUP($C18,objectifs!$C$3:$ZZ$559,158,FALSE))*-0.5,VLOOKUP($C18,'Indicateurs Cumulés'!$C$3:$HN$560,186,FALSE)))) -> -44 | HP18: 0 | HR18: 4.9 | HT18: 4.03% | HU18: 0.35% | HV18: 0.89% | HW18: -2 | HX18: 2 | HY18: -5 | HZ18: -12 | IA18: -14 | IB18: 6 | IC18: 3 | ID18: -8 | IE18: 0 | IF18: -5 | IG18: 0 | IH18: 1 | II18: -2 | IJ18: 25 | IK18: -16 | IL18: 0 | IM18: -0 | IN18: 0 | IO18: -1 | IP18: -1 | IQ18: -0 | IR18: 1 | IS18: 0 | IT18: -3 | IU18: 0 | IV18: -3 | IW18: 0 | IX18: 2 | IY18: -2 | IZ18: 16 | JA18: -3 | JB18: 0 | JC18: 30 | JD18: 65 | JE18: 0 | JF18: 0 | JG18: 0.00 | JH18: 0.00 | JI18: 0 | JJ18: 0 | JK18: 0 | JL18: 0.20% | JM18: 38 | JO18: 65 | JP18: 221 | JQ18: 50 | JR18: =IF(ISERROR(IF(VLOOKUP($C18,'Indicateurs Cumulés'!$C$3:$HN$560,190,FALSE)/(VLOOKUP($C18,objectifs!$C$3:$ZZ$559,162,FALSE))>=1.5,(VLOOKUP($C18,objectifs!$C$3:$ZZ$559,162,FALSE))*1.5,IF(VLOOKUP($C18,'Indicateurs Cumulés'!$C$3:$HN$560,190,FALSE)/(VLOOKUP($C18,objectifs!$C$3:$ZZ$559,162,FALSE))<=-0.5,(VLOOKUP($C18,objectifs!$C$3:$ZZ$559,162,FALSE))*-0.5,VLOOKUP($C18,'Indicateurs Cumulés'!$C$3:$HN$560,190,FALSE)))),VLOOKUP($C18,'Indicateurs Cumulés'!$C$3:$HN$560,190,FALSE),IF(VLOOKUP($C18,'Indicateurs Cumulés'!$C$3:$HN$560,190,FALSE)/(VLOOKUP($C18,objectifs!$C$3:$ZZ$559,162,FALSE))>=1.5,(VLOOKUP($C18,objectifs!$C$3:$ZZ$559,162,FALSE))*1.5,IF(VLOOKUP($C18,'Indicateurs Cumulés'!$C$3:$HN$560,190,FALSE)/(VLOOKUP($C18,objectifs!$C$3:$ZZ$559,162,FALSE))<=-0.5,(VLOOKUP($C18,objectifs!$C$3:$ZZ$559,162,FALSE))*-0.5,VLOOKUP($C18,'Indicateurs Cumulés'!$C$3:$HN$560,190,FALSE)))) -> 118 | JS18: 0 | JT18: 2 | JV18: 2 | JW18: 7 | JX18: 2 | JY18: 6 | JZ18: 19 | KA18: 8 | KB18: 0 | KC18: 3 | KD18: 1 | KE18: 3 | KF18: 1 | KG18: 12 | KH18: 0 | KI18: 2 | KJ18: 0 | KK18: 2 | KL18: 0 | KM18: 30 | KN18: 12 | KR18: 4.93 | KS18: 16 | KT18: 25 | KU18: 0 | KV18: 23 | KW18: 5 | KX18: 0 | KY18: 24 | KZ18: 17 | LA18: 0 | LB18: 0 | LC18: 331.6 | LD18: 131 | LE18: 8 | LF18: 5 | LG18: 7 | LH18: 10 | LI18: 7 | LJ18: 1 | LK18: 318 | LL18: 65.3 | LM18: 36 | LN18: 245 | LO18: -14 | LP18: 16 | LQ18: 68.23 | LR18: 169 | LS18: 90 | LT18: 578 | LU18: 138 | LV18: 75 | LW18: 34 | LX18: 12.7 | LY18: 0.9 | LZ18: 1.7 | MA18: 6.9 | MB18: 1.1 | MC18: 0.2 | MD18: 355
A19: 105006 | B19: 200262 | C19: 28 | D19: BISCHHEIM | E19: 2019-06-30 | F19: 103 | G19: 4.32% | H19: 1.57 | I19: 2019-06-30 | J19: 707 | K19: 3.21% | L19: 2.38 | M19: 4.06 | N19: 2,743 | O19: 0 | P19: 0.12% | Q19: 7.22 | R19: 10.77 | S19: 12 | T19: 1.97% | U19: 3.43 | V19: 0 | W19: 0.00% | X19: 0 | Y19: 140 | Z19: 0.82% | AA19: 3.29 | AB19: 8.1 | AC19: 5.5 | AD19: 0.7 | AE19: 474.9 | AF19: 14.5 | AG19: 4.7 | AH19: 201906 | AI19: 1.50 | AJ19: 0.04 | AK19: 2.40% | AL19: 204.03 | AM19: 64.61 | AN19: 32% | AO19: 2.43 | AP19: 1.19% | AQ19: 1,293.44 | AR19: 146.10 | AS19: 11.3% | AT19: 0.81 | AU19: 0.06% | AV19: 69.27 | AW19: 13.40 | AX19: 19.34% | AY19: 1.21 | AZ19: 1.74% | BA19: 1,568.25 | BB19: 224.11 | BC19: 14.3% | BD19: 4.48 | BE19: 0.29% | BG19: 1 | BH19: 0 | BI19: 79 | BJ19: 116 | BK19: 6 | BL19: 1.51% | BM19: 0.00% | BN19: 28 | BO19: 216 | BP19: 4 | BQ19: 86 | BR19: 2 | BS19: 3 | BT19: 3 | BU19: -5 | BX19: 0 | BY19: 1 | BZ19: 0 | CA19: -2 | CB19: -0 | CC19: 0 | CD19: 0 | CE19: 7 | CF19: 1.4 | CG19: 5 | CH19: 1 | CI19: 3 | CJ19: 3 | CK19: 100.00% | CL19: 200.00% | CM19: 0 | CN19: 0.00% | CO19: 0 | CP19: 0 | CQ19: 0.7 | CR19: 0 | CS19: 0.20 | CT19: 0 | CU19: 3 | CV19: 0 | CW19: 8 | CX19: 73.83% | CY19: 161.71% | CZ19: 76 | DA19: 97.42% | DB19: 135.95% | DC19: 14 | DE19: 100.00% | DF19: 100.00% | DG19: 0 | DH19: -28 | DI19: 0.70% | DJ19: 5.33 | DK19: -1 | DL19: -96 | DM19: 0.82% | DN19: 5.33 | DO19: -4 | DP19: -19 | DQ19: 0.91% | DR19: 5.33 | DS19: -1 | DT19: 4 | DU19: 0.40% | DV19: 1.82 | DW19: 0 | DX19: -223 | DY19: 0.20% | DZ19: 5.37 | EA19: -2 | EB19: 94 | EC19: 0.20% | ED19: 5.37 | EE19: 1 | EF19: -40 | EG19: 0.20% | EH19: 5.37 | EI19: -0 | EJ19: 33 | EK19: 0.44% | EL19: 5.33 | EM19: 1 | EN19: 4 | EO19: 0.10% | EP19: 5.97 | EQ19: 0 | ER19: -56 | ES19: 0.20% | ET19: 9.00 | EU19: -1 | EV19: 184 | EW19: 0.00% | EX19: 8.59 | EY19: 0 | EZ19: -3 | FA19: -0.18% | FB19: 0.78 | FC19: 0 | FD19: 497 | FE19: 0.45% | FF19: 8.00 | FG19: 18 | FH19: 1,647 | FI19: 0.29% | FJ19: 1.00 | FK19: 5 | FL19: -75 | FM19: 0.65% | FN19: 5.00 | FO19: -2 | FP19: 14 | FQ19: 0.40% | FR19: 1.00 | FS19: 0 | FT19: -399 | FU19: 0.20% | FV19: 8.00 | FW19: -6 | FX19: -81 | FY19: 1.00% | FZ19: 5.00 | GA19: -4 | GB19: -367 | GC19: -10 | GD19: 447 | GE19: 28 | GF19: 304 | GG19: 1.00% | GH19: 5.37 | GI19: 16 | GJ19: 84 | GK19: 0 | GL19: 0 | GN19: 18 | GO19: 1.95% | GP19: 1.93 | GQ19: 1 | GR19: 0 | GS19: 0.45% | GT19: 8.00 | GU19: 0 | GV19: 0 | GW19: 0.29% | GX19: 1.00 | GY19: 0 | GZ19: 0 | HA19: 0.65% | HB19: 5.00 | HC19: 0 | HD19: 0 | HE19: 0.40% | HF19: 1.00 | HG19: 0 | HH19: 25 | HI19: 1.00% | HJ19: 5.00 | HK19: 1 | HL19: -10 | HM19: 216 | HO19: =IF(ISERROR(IF(VLOOKUP($C19,'Indicateurs Cumulés'!$C$3:$HN$560,186,FALSE)/(VLOOKUP($C19,objectifs!$C$3:$ZZ$559,158,FALSE))>=1.5,(VLOOKUP($C19,objectifs!$C$3:$ZZ$559,158,FALSE))*1.5,IF(VLOOKUP($C19,'Indicateurs Cumulés'!$C$3:$HN$560,186,FALSE)/(VLOOKUP($C19,objectifs!$C$3:$ZZ$559,158,FALSE))<=-0.5,(VLOOKUP($C19,objectifs!$C$3:$ZZ$559,158,FALSE))*-0.5,VLOOKUP($C19,'Indicateurs Cumulés'!$C$3:$HN$560,186,FALSE)))),VLOOKUP($C19,'Indicateurs Cumulés'!$C$3:$HN$560,186,FALSE),IF(VLOOKUP($C19,'Indicateurs Cumulés'!$C$3:$HN$560,186,FALSE)/(VLOOKUP($C19,objectifs!$C$3:$ZZ$559,158,FALSE))>=1.5,(VLOOKUP($C19,objectifs!$C$3:$ZZ$559,158,FALSE))*1.5,IF(VLOOKUP($C19,'Indicateurs Cumulés'!$C$3:$HN$560,186,FALSE)/(VLOOKUP($C19,objectifs!$C$3:$ZZ$559,158,FALSE))<=-0.5,(VLOOKUP($C19,objectifs!$C$3:$ZZ$559,158,FALSE))*-0.5,VLOOKUP($C19,'Indicateurs Cumulés'!$C$3:$HN$560,186,FALSE)))) -> 304 | HP19: 0 | HR19: 3.5 | HT19: 4.10% | HU19: 0.57% | HV19: 1.11% | HW19: 14 | HX19: 15 | HY19: 1 | HZ19: 3 | IA19: -6 | IB19: 2 | IC19: 19 | ID19: -19 | IE19: -2 | IF19: -9 | IG19: -3 | IH19: 0 | II19: 3 | IJ19: 29 | IK19: -39 | IL19: 0 | IM19: 2 | IN19: 1 | IO19: 0 | IP19: 0 | IQ19: -0 | IR19: 0 | IS19: 2 | IT19: -8 | IU19: -0 | IV19: -6 | IW19: -3 | IX19: 0 | IY19: 3 | IZ19: 19 | JA19: -8 | JB19: 0 | JC19: 34 | JD19: 7 | JE19: 0 | JF19: 0 | JG19: 0.00 | JH19: 0.00 | JI19: 0 | JJ19: 0 | JK19: -44 | JL19: 0.20% | JM19: 20 | JO19: 0 | JP19: 260 | JQ19: -69 | JR19: =IF(ISERROR(IF(VLOOKUP($C19,'Indicateurs Cumulés'!$C$3:$HN$560,190,FALSE)/(VLOOKUP($C19,objectifs!$C$3:$ZZ$559,162,FALSE))>=1.5,(VLOOKUP($C19,objectifs!$C$3:$ZZ$559,162,FALSE))*1.5,IF(VLOOKUP($C19,'Indicateurs Cumulés'!$C$3:$HN$560,190,FALSE)/(VLOOKUP($C19,objectifs!$C$3:$ZZ$559,162,FALSE))<=-0.5,(VLOOKUP($C19,objectifs!$C$3:$ZZ$559,162,FALSE))*-0.5,VLOOKUP($C19,'Indicateurs Cumulés'!$C$3:$HN$560,190,FALSE)))),VLOOKUP($C19,'Indicateurs Cumulés'!$C$3:$HN$560,190,FALSE),IF(VLOOKUP($C19,'Indicateurs Cumulés'!$C$3:$HN$560,190,FALSE)/(VLOOKUP($C19,objectifs!$C$3:$ZZ$559,162,FALSE))>=1.5,(VLOOKUP($C19,objectifs!$C$3:$ZZ$559,162,FALSE))*1.5,IF(VLOOKUP($C19,'Indicateurs Cumulés'!$C$3:$HN$560,190,FALSE)/(VLOOKUP($C19,objectifs!$C$3:$ZZ$559,162,FALSE))<=-0.5,(VLOOKUP($C19,objectifs!$C$3:$ZZ$559,162,FALSE))*-0.5,VLOOKUP($C19,'Indicateurs Cumulés'!$C$3:$HN$560,190,FALSE)))) -> 84 | JS19: -1 | JT19: 1 | JV19: 0 | JW19: 8 | JX19: -2 | JY19: 5 | JZ19: 11 | KA19: -1 | KB19: 0 | KC19: -1 | KD19: 1 | KE19: -2 | KF19: 0 | KG19: -1 | KH19: 0 | KI19: -1 | KJ19: 0 | KK19: -1 | KL19: 0 | KM19: 2 | KN19: 5 | KR19: 4.35 | KS19: -3 | KT19: 1 | KU19: 0 | KV19: 5 | KW19: 1 | KX19: 0 | KY19: 32 | KZ19: 22 | LA19: 0 | LB19: 0 | LC19: 245.4 | LD19: 10 | LE19: -4 | LF19: -3 | LG19: -5 | LH19: -7 | LI19: -1 | LJ19: -0 | LK19: 234 | LL19: 66.3 | LM19: 34 | LN19: 200 | LO19: -10 | LP19: -10 | LQ19: 69.45 | LR19: 159 | LS19: 72 | LT19: 551 | LU19: 116 | LV19: 140 | LW19: 26 | LX19: 11.9 | LY19: 0.7 | LZ19: 1.7 | MA19: 5.8 | MB19: 2.1 | MC19: 0.1 | MD19: 268
A20: 105006 | B20: 200262 | C20: 29 | D20: SCHILTIGHEIM KLEBER | E20: 2019-06-30 | F20: 84 | G20: 4.32% | H20: 1.57 | I20: 2019-06-30 | J20: 790 | K20: 3.36% | L20: 2.27 | M20: 3.91 | N20: 1,195 | O20: 0 | P20: -0.01% | Q20: 7.75 | R20: 11.75 | S20: 22 | T20: 2.79% | U20: 2.08 | V20: 0 | W20: 0.00% | X20: 0 | Y20: 69 | Z20: 2.07% | AA20: 2.99 | AB20: 3.8 | AC20: 7.7 | AD20: 1.2 | AE20: 42.8 | AF20: 11.9 | AG20: 2.7 | AH20: 201906 | AI20: 32.00 | AJ20: 0.48 | AK20: 1.50% | AL20: 234.62 | AM20: 38.92 | AN20: 17% | AO20: 0.92 | AP20: 0.39% | AQ20: 756.14 | AR20: 138.71 | AS20: 18.3% | AT20: 0.86 | AU20: 0.11% | AV20: 18.07 | AW20: 2.82 | AX20: 15.60% | AY20: 0.35 | AZ20: 1.96% | BA20: 1,040.83 | BB20: 180.44 | BC20: 17.3% | BD20: 2.62 | BE20: 0.25% | BG20: 2 | BH20: 0 | BI20: 81 | BJ20: 37 | BK20: 6 | BL20: 1.55% | BM20: 0.00% | BN20: 29 | BO20: 129 | BP20: 3 | BQ20: 76 | BR20: 2 | BS20: 3 | BT20: 2 | BU20: 0 | BX20: 0 | BY20: 0 | BZ20: 0 | CA20: 1 | CB20: 0 | CC20: 0 | CD20: 0 | CE20: 11 | CF20: 2.2 | CG20: 21 | CH20: 4 | CI20: 2 | CJ20: 2 | CK20: 100.00% | CL20: 100.00% | CM20: 0 | CN20: 0.00% | CO20: 0 | CP20: 0 | CQ20: 1.2 | CR20: 0 | CS20: 0.00 | CT20: 0 | CU20: 0 | CV20: 0 | CW20: 4 | CX20: 85.69% | CY20: 192.95% | CZ20: 29 | DA20: 98.16% | DB20: 122.38% | DC20: 14 | DE20: 100.00% | DF20: 100.00% | DG20: 0 | DH20: 52 | DI20: 0.70% | DJ20: 5.33 | DK20: 2 | DL20: 206 | DM20: 0.82% | DN20: 5.33 | DO20: 9 | DP20: -24 | DQ20: 0.91% | DR20: 5.33 | DS20: -1 | DT20: 320 | DU20: 0.40% | DV20: 1.82 | DW20: 2 | DX20: -101 | DY20: 0.20% | DZ20: 5.37 | EA20: -1 | EB20: 13 | EC20: 0.20% | ED20: 5.37 | EE20: 0 | EF20: -16 | EG20: 0.20% | EH20: 5.37 | EI20: -0 | EJ20: 8 | EK20: 0.44% | EL20: 5.33 | EM20: 0 | EN20: -5 | EO20: 0.10% | EP20: 7.64 | EQ20: -0 | ER20: -4 | ES20: 0.20% | ET20: 9.00 | EU20: -0 | EV20: -271 | EW20: 0.00% | EX20: 8.50 | EY20: 0 | EZ20: 0 | FA20: -0.18% | FB20: 0.78 | FC20: 0 | FD20: 396 | FE20: 0.45% | FF20: 8.00 | FG20: 14 | FH20: 946 | FI20: 0.25% | FJ20: 1.00 | FK20: 2 | FL20: -36 | FM20: 0.65% | FN20: 5.00 | FO20: -1 | FP20: 4 | FQ20: 0.40% | FR20: 1.00 | FS20: 0 | FT20: -457 | FU20: 0.20% | FV20: 8.00 | FW20: -7 | FX20: 49 | FY20: 1.00% | FZ20: 5.00 | GA20: 2 | GB20: 47 | GC20: 15 | GD20: 515 | GE20: 27 | GF20: -2 | GG20: 1.00% | GH20: 5.37 | GI20: -0 | GJ20: 54 | GK20: 0 | GL20: 0 | GN20: 0 | GO20: 0.00% | GP20: 0 | GQ20: 0 | GR20: 100 | GS20: 0.45% | GT20: 8.00 | GU20: 4 | GV20: 100 | GW20: 0.25% | GX20: 1.00 | GY20: 0 | GZ20: 0 | HA20: 0.65% | HB20: 5.00 | HC20: 0 | HD20: 0 | HE20: 0.40% | HF20: 1.00 | HG20: 0 | HH20: 55 | HI20: 1.00% | HJ20: 5.00 | HK20: 3 | HL20: -7 | HM20: 141 | HO20: =IF(ISERROR(IF(VLOOKUP($C20,'Indicateurs Cumulés'!$C$3:$HN$560,186,FALSE)/(VLOOKUP($C20,objectifs!$C$3:$ZZ$559,158,FALSE))>=1.5,(VLOOKUP($C20,objectifs!$C$3:$ZZ$559,158,FALSE))*1.5,IF(VLOOKUP($C20,'Indicateurs Cumulés'!$C$3:$HN$560,186,FALSE)/(VLOOKUP($C20,objectifs!$C$3:$ZZ$559,158,FALSE))<=-0.5,(VLOOKUP($C20,objectifs!$C$3:$ZZ$559,158,FALSE))*-0.5,VLOOKUP($C20,'Indicateurs Cumulés'!$C$3:$HN$560,186,FALSE)))),VLOOKUP($C20,'Indicateurs Cumulés'!$C$3:$HN$560,186,FALSE),IF(VLOOKUP($C20,'Indicateurs Cumulés'!$C$3:$HN$560,186,FALSE)/(VLOOKUP($C20,objectifs!$C$3:$ZZ$559,158,FALSE))>=1.5,(VLOOKUP($C20,objectifs!$C$3:$ZZ$559,158,FALSE))*1.5,IF(VLOOKUP($C20,'Indicateurs Cumulés'!$C$3:$HN$560,186,FALSE)/(VLOOKUP($C20,objectifs!$C$3:$ZZ$559,158,FALSE))<=-0.5,(VLOOKUP($C20,objectifs!$C$3:$ZZ$559,158,FALSE))*-0.5,VLOOKUP($C20,'Indicateurs Cumulés'!$C$3:$HN$560,186,FALSE)))) -> -2 | HP20: 0 | HR20: 3.2 | HT20: 4.06% | HU20: 0.37% | HV20: 2.79% | HW20: 17 | HX20: 9 | HY20: 0 | HZ20: -6 | IA20: 0 | IB20: 6 | IC20: 20 | ID20: 17 | IE20: -2 | IF20: -7 | IG20: 0 | IH20: 0 | II20: 1 | IJ20: 24 | IK20: -13 | IL20: -3 | IM20: 2 | IN20: 1 | IO20: 0 | IP20: -0 | IQ20: 0 | IR20: 1 | IS20: 2 | IT20: 7 | IU20: -0 | IV20: -4 | IW20: 0 | IX20: 0 | IY20: 1 | IZ20: 16 | JA20: -3 | JB20: -0 | JC20: 57 | JD20: 7 | JE20: 0 | JF20: 0 | JG20: 0.00 | JH20: 0.00 | JI20: 0 | JJ20: 0 | JK20: 0 | JL20: 0.20% | JM20: 35 | JO20: 100 | JP20: 276 | JQ20: 18 | JR20: =IF(ISERROR(IF(VLOOKUP($C20,'Indicateurs Cumulés'!$C$3:$HN$560,190,FALSE)/(VLOOKUP($C20,objectifs!$C$3:$ZZ$559,162,FALSE))>=1.5,(VLOOKUP($C20,objectifs!$C$3:$ZZ$559,162,FALSE))*1.5,IF(VLOOKUP($C20,'Indicateurs Cumulés'!$C$3:$HN$560,190,FALSE)/(VLOOKUP($C20,objectifs!$C$3:$ZZ$559,162,FALSE))<=-0.5,(VLOOKUP($C20,objectifs!$C$3:$ZZ$559,162,FALSE))*-0.5,VLOOKUP($C20,'Indicateurs Cumulés'!$C$3:$HN$560,190,FALSE)))),VLOOKUP($C20,'Indicateurs Cumulés'!$C$3:$HN$560,190,FALSE),IF(VLOOKUP($C20,'Indicateurs Cumulés'!$C$3:$HN$560,190,FALSE)/(VLOOKUP($C20,objectifs!$C$3:$ZZ$559,162,FALSE))>=1.5,(VLOOKUP($C20,objectifs!$C$3:$ZZ$559,162,FALSE))*1.5,IF(VLOOKUP($C20,'Indicateurs Cumulés'!$C$3:$HN$560,190,FALSE)/(VLOOKUP($C20,objectifs!$C$3:$ZZ$559,162,FALSE))<=-0.5,(VLOOKUP($C20,objectifs!$C$3:$ZZ$559,162,FALSE))*-0.5,VLOOKUP($C20,'Indicateurs Cumulés'!$C$3:$HN$560,190,FALSE)))) -> 54 | JS20: 0 | JT20: 2 | JV20: 4 | JW20: 9 | JX20: 1 | JY20: 3 | JZ20: 18 | KA20: -1 | KB20: 1 | KC20: 0 | KD20: -1 | KE20: 1 | KF20: 1 | KG20: -1 | KH20: 1 | KI20: 0 | KJ20: -0 | KK20: 1 | KL20: 0 | KM20: 4 | KN20: 4 | KR20: 4.61 | KS20: 1 | KT20: 11 | KU20: 0 | KV20: 31 | KW20: 6 | KX20: 0 | KY20: 25 | KZ20: 17 | LA20: 1 | LB20: 0 | LC20: 215.0 | LD20: 25 | LE20: -2 | LF20: -1 | LG20: -2 | LH20: -3 | LI20: -1 | LJ20: -0 | LK20: 199 | LL20: 62.7 | LM20: 42 | LN20: 123 | LO20: -7 | LP20: -4 | LQ20: 67.63 | LR20: 98 | LS20: 99 | LT20: 479 | LU20: 89 | LV20: 84 | LW20: 23 | LX20: 7.4 | LY20: 1.0 | LZ20: 1.4 | MA20: 4.5 | MB20: 1.3 | MC20: 0.1 | MD20: 231
A21: 105060 | B21: 200262 | C21: 30 | D21: BRUMATH | E21: 2019-06-30 | F21: 95 | G21: 4.32% | H21: 1.57 | I21: 2019-06-30 | J21: 1,329 | K21: 3.25% | L21: 2.48 | M21: 4.20 | N21: 3,432 | O21: 0 | P21: 0.04% | Q21: 8.07 | R21: 12.45 | S21: 58 | T21: 2.43% | U21: 2.37 | V21: 518 | W21: 0.08% | X21: 7.42 | Y21: 1,445 | Z21: 0.52% | AA21: 4.30 | AB21: 14.7 | AC21: 12.8 | AD21: 3.8 | AE21: 482.4 | AF21: 22.1 | AG21: 7.0 | AH21: 201906 | AI21: 0 | AJ21: 0 | AK21: 0.00% | AL21: 393.19 | AM21: 59.95 | AN21: 15% | AO21: 4.26 | AP21: 1.08% | AQ21: 1,695.87 | AR21: 125.01 | AS21: 7.4% | AT21: 3.88 | AU21: 0.23% | AV21: 96.17 | AW21: 7.89 | AX21: 8.20% | AY21: 1.69 | AZ21: 1.75% | BA21: 2,185.23 | BB21: 192.85 | BC21: 8.8% | BD21: 9.83 | BE21: 0.45% | BG21: 4 | BH21: 18 | BI21: 148 | BJ21: 120 | BK21: 47 | BL21: 1.52% | BM21: 0.00% | BN21: 30 | BO21: 123 | BP21: 2 | BQ21: 242 | BR21: 7 | BS21: 4 | BT21: 1 | BU21: -15 | BX21: 0 | BY21: 0 | BZ21: 0 | CA21: 1 | CB21: 0 | CC21: 0 | CD21: 0 | CE21: 10 | CF21: 2.0 | CG21: 1 | CH21: 0 | CI21: 6 | CJ21: 6 | CK21: 100.00% | CL21: 100.00% | CM21: 0 | CN21: 151.51% | CO21: 0 | CP21: 11 | CQ21: 3.8 | CR21: 1 | CS21: 0.28 | CT21: 0 | CU21: 5 | CV21: 2 | CW21: 15 | CX21: 70.91% | CY21: 144.91% | CZ21: 83 | DA21: 97.32% | DB21: 134.07% | DC21: 29 | DE21: 100.00% | DF21: 121.15% | DG21: 9 | DH21: 525 | DI21: 0.70% | DJ21: 5.33 | DK21: 20 | DL21: 66 | DM21: 0.82% | DN21: 5.33 | DO21: 3 | DP21: 7 | DQ21: 0.91% | DR21: 5.33 | DS21: 0 | DT21: 334 | DU21: 0.40% | DV21: 1.82 | DW21: 2 | DX21: -142 | DY21: 0.20% | DZ21: 5.37 | EA21: -2 | EB21: 219 | EC21: 0.20% | ED21: 5.37 | EE21: 2 | EF21: -36 | EG21: 0.20% | EH21: 5.37 | EI21: -0 | EJ21: -68 | EK21: 0.44% | EL21: 5.33 | EM21: -2 | EN21: -30 | EO21: 0.10% | EP21: 8.45 | EQ21: -0 | ER21: -28 | ES21: 0.20% | ET21: 9.00 | EU21: -1 | EV21: -333 | EW21: 0.00% | EX21: 8.59 | EY21: 0 | EZ21: -5 | FA21: -0.18% | FB21: 0.78 | FC21: 0 | FD21: 296 | FE21: 0.45% | FF21: 8.00 | FG21: 11 | FH21: 1,918 | FI21: 0.45% | FJ21: 1.00 | FK21: 9 | FL21: -119 | FM21: 0.65% | FN21: 5.00 | FO21: -4 | FP21: 66 | FQ21: 0.40% | FR21: 1.00 | FS21: 0 | FT21: -479 | FU21: 0.20% | FV21: 8.00 | FW21: -8 | FX21: 113 | FY21: 1.00% | FZ21: 5.00 | GA21: 6 | GB21: 370 | GC21: 29 | GD21: 307 | GE21: 31 | GF21: -135 | GG21: 1.00% | GH21: 5.37 | GI21: -7 | GJ21: -164 | GK21: 0 | GL21: 0 | GN21: 98 | GO21: 0.84% | GP21: 2.37 | GQ21: 2 | GR21: 0 | GS21: 0.45% | GT21: 8.00 | GU21: 0 | GV21: 0 | GW21: 0.45% | GX21: 1.00 | GY21: 0 | GZ21: 0 | HA21: 0.65% | HB21: 5.00 | HC21: 0 | HD21: 0 | HE21: 0.40% | HF21: 1.00 | HG21: 0 | HH21: 130 | HI21: 1.00% | HJ21: 5.00 | HK21: 6 | HL21: -16 | HM21: 257 | HO21: =IF(ISERROR(IF(VLOOKUP($C21,'Indicateurs Cumulés'!$C$3:$HN$560,186,FALSE)/(VLOOKUP($C21,objectifs!$C$3:$ZZ$559,158,FALSE))>=1.5,(VLOOKUP($C21,objectifs!$C$3:$ZZ$559,158,FALSE))*1.5,IF(VLOOKUP($C21,'Indicateurs Cumulés'!$C$3:$HN$560,186,FALSE)/(VLOOKUP($C21,objectifs!$C$3:$ZZ$559,158,FALSE))<=-0.5,(VLOOKUP($C21,objectifs!$C$3:$ZZ$559,158,FALSE))*-0.5,VLOOKUP($C21,'Indicateurs Cumulés'!$C$3:$HN$560,186,FALSE)))),VLOOKUP($C21,'Indicateurs Cumulés'!$C$3:$HN$560,186,FALSE),IF(VLOOKUP($C21,'Indicateurs Cumulés'!$C$3:$HN$560,186,FALSE)/(VLOOKUP($C21,objectifs!$C$3:$ZZ$559,158,FALSE))>=1.5,(VLOOKUP($C21,objectifs!$C$3:$ZZ$559,158,FALSE))*1.5,IF(VLOOKUP($C21,'Indicateurs Cumulés'!$C$3:$HN$560,186,FALSE)/(VLOOKUP($C21,objectifs!$C$3:$ZZ$559,158,FALSE))<=-0.5,(VLOOKUP($C21,objectifs!$C$3:$ZZ$559,158,FALSE))*-0.5,VLOOKUP($C21,'Indicateurs Cumulés'!$C$3:$HN$560,186,FALSE)))) -> -135 | HP21: 0 | HR21: 7.4 | HT21: 4.18% | HU21: 0.41% | HV21: 0.73% | HW21: 18 | HX21: 7 | HY21: -2 | HZ21: 4 | IA21: 1 | IB21: 4 | IC21: 32 | ID21: -28 | IE21: -4 | IF21: -28 | IG21: -7 | IH21: 0 | II21: 1 | IJ21: 70 | IK21: -80 | IL21: 1 | IM21: 2 | IN21: 1 | IO21: -1 | IP21: 0 | IQ21: 0 | IR21: 0 | IS21: 4 | IT21: -12 | IU21: -0 | IV21: -17 | IW21: -7 | IX21: 0 | IY21: 1 | IZ21: 46 | JA21: -17 | JB21: 0 | JC21: 60 | JD21: 69 | JE21: 14 | JF21: 0 | JG21: 0.00 | JH21: 0.00 | JI21: 0 | JJ21: 0 | JK21: -10 | JL21: 0.20% | JM21: 12 | JO21: -5 | JP21: 229 | JQ21: -103 | JR21: =IF(ISERROR(IF(VLOOKUP($C21,'Indicateurs Cumulés'!$C$3:$HN$560,190,FALSE)/(VLOOKUP($C21,objectifs!$C$3:$ZZ$559,162,FALSE))>=1.5,(VLOOKUP($C21,objectifs!$C$3:$ZZ$559,162,FALSE))*1.5,IF(VLOOKUP($C21,'Indicateurs Cumulés'!$C$3:$HN$560,190,FALSE)/(VLOOKUP($C21,objectifs!$C$3:$ZZ$559,162,FALSE))<=-0.5,(VLOOKUP($C21,objectifs!$C$3:$ZZ$559,162,FALSE))*-0.5,VLOOKUP($C21,'Indicateurs Cumulés'!$C$3:$HN$560,190,FALSE)))),VLOOKUP($C21,'Indicateurs Cumulés'!$C$3:$HN$560,190,FALSE),IF(VLOOKUP($C21,'Indicateurs Cumulés'!$C$3:$HN$560,190,FALSE)/(VLOOKUP($C21,objectifs!$C$3:$ZZ$559,162,FALSE))>=1.5,(VLOOKUP($C21,objectifs!$C$3:$ZZ$559,162,FALSE))*1.5,IF(VLOOKUP($C21,'Indicateurs Cumulés'!$C$3:$HN$560,190,FALSE)/(VLOOKUP($C21,objectifs!$C$3:$ZZ$559,162,FALSE))<=-0.5,(VLOOKUP($C21,objectifs!$C$3:$ZZ$559,162,FALSE))*-0.5,VLOOKUP($C21,'Indicateurs Cumulés'!$C$3:$HN$560,190,FALSE)))) -> -49 | JS21: -0 | JT21: 1 | JV21: -0 | JW21: 7 | JX21: -3 | JY21: -3 | JZ21: 2 | KA21: 7 | KB21: 0 | KC21: -1 | KD21: 6 | KE21: -2 | KF21: 3 | KG21: 10 | KH21: 0 | KI21: -1 | KJ21: 1 | KK21: -1 | KL21: 0 | KM21: 24 | KN21: 14 | KR21: 4.95 | KS21: 13 | KT21: 3 | KU21: 0 | KV21: 23 | KW21: 5 | KX21: 0 | KY21: 71 | KZ21: 50 | LA21: 0 | LB21: 0 | LC21: 434.5 | LD21: 108 | LE21: 5 | LF21: 3 | LG21: 6 | LH21: 9 | LI21: 9 | LJ21: 1 | LK21: 417 | LL21: 56.1 | LM21: 53 | LN21: 315 | LO21: -16 | LP21: 13 | LQ21: 58.51 | LR21: 154 | LS21: 190 | LT21: 686 | LU21: 105 | LV21: 15 | LW21: 20 | LX21: 11.6 | LY21: 1.9 | LZ21: 2.1 | MA21: 5.3 | MB21: 0.2 | MC21: 0.1 | MD21: 456
A22: 105060 | B22: 200262 | C22: 31 | D22: TRUCHTERSHEIM | E22: 2019-06-30 | F22: 39 | G22: 4.32% | H22: 1.57 | I22: 2019-06-30 | J22: 637 | K22: 2.61% | L22: 2.21 | M22: 3.85 | N22: 4,193 | O22: 0 | P22: 0.05% | Q22: 7.70 | R22: 11.76 | S22: 50 | T22: 2.27% | U22: 1.70 | V22: 298 | W22: -0.04% | X22: 5.15 | Y22: 74 | Z22: 0.93% | AA22: 3.14 | AB22: 9.4 | AC22: 5.1 | AD22: 1.5 | AE22: 313.0 | AF22: 7.6 | AG22: 7.5 | AH22: 201906 | AI22: 0 | AJ22: 0 | AK22: 0.00% | AL22: 136.67 | AM22: 21.65 | AN22: 16% | AO22: 1.37 | AP22: 1.00% | AQ22: 659.40 | AR22: 31.35 | AS22: 4.8% | AT22: 0.23 | AU22: 0.03% | AV22: 18.47 | AW22: 2.89 | AX22: 15.64% | AY22: 0.43 | AZ22: 2.33% | BA22: 814.54 | BB22: 55.89 | BC22: 6.9% | BD22: 2.02 | BE22: 0.25% | BG22: 3 | BH22: 2 | BI22: 53 | BJ22: 101 | BK22: 4 | BL22: 1.45% | BM22: 0.00% | BN22: 31 | BO22: 59 | BP22: 1 | BQ22: 167 | BR22: 5 | BS22: 2 | BT22: 1 | BU22: -10 | BX22: 0 | BY22: 0 | BZ22: 0 | CA22: 1 | CB22: 0 | CC22: 0 | CD22: 0 | CE22: 13 | CF22: 2.6 | CG22: 3 | CH22: 1 | CI22: 6 | CJ22: 6 | CK22: 110.99% | CL22: 199.01% | CM22: 1 | CN22: 100.00% | CO22: 1 | CP22: 1 | CQ22: 1.5 | CR22: 0 | CS22: 0.00 | CT22: 0 | CU22: 2 | CV22: 1 | CW22: 9 | CX22: 38.97% | CY22: 115.11% | CZ22: 62 | DA22: 88.70% | DB22: 140.42% | DC22: 11 | DE22: 55.78% | DF22: 100.00% | DG22: 0 | DH22: 343 | DI22: 0.70% | DJ22: 5.33 | DK22: 13 | DL22: 41 | DM22: 0.82% | DN22: 5.33 | DO22: 2 | DP22: -40 | DQ22: 0.91% | DR22: 5.33 | DS22: -2 | DT22: 315 | DU22: 0.40% | DV22: 1.82 | DW22: 2 | DX22: -155 | DY22: 0.20% | DZ22: 5.37 | EA22: -2 | EB22: 165 | EC22: 0.20% | ED22: 5.37 | EE22: 2 | EF22: -34 | EG22: 0.20% | EH22: 5.37 | EI22: -0 | EJ22: -40 | EK22: 0.44% | EL22: 5.33 | EM22: -1 | EN22: -3 | EO22: 0.10% | EP22: 7.72 | EQ22: -0 | ER22: -118 | ES22: 0.20% | ET22: 9.00 | EU22: -2 | EV22: 218 | EW22: 0.00% | EX22: 8.50 | EY22: 0 | EZ22: 0 | FA22: -0.18% | FB22: 0.78 | FC22: 0 | FD22: -157 | FE22: 0.45% | FF22: 8.00 | FG22: -6 | FH22: 738 | FI22: 0.25% | FJ22: 1.00 | FK22: 2 | FL22: -2 | FM22: 0.65% | FN22: 5.00 | FO22: -0 | FP22: 7 | FQ22: 0.40% | FR22: 1.00 | FS22: 0 | FT22: -238 | FU22: 0.20% | FV22: 8.00 | FW22: -4 | FX22: 243 | FY22: 1.00% | FZ22: 5.00 | GA22: 12 | GB22: 1,090 | GC22: 33 | GD22: -85 | GE22: 6 | GF22: -382 | GG22: 1.00% | GH22: 5.37 | GI22: -21 | GJ22: -146 | GK22: 0 | GL22: 0 | GN22: 0 | GO22: 0.00% | GP22: 0 | GQ22: 0 | GR22: 0 | GS22: 0.45% | GT22: 8.00 | GU22: 0 | GV22: 0 | GW22: 0.25% | GX22: 1.00 | GY22: 0 | GZ22: 0 | HA22: 0.65% | HB22: 5.00 | HC22: 0 | HD22: 0 | HE22: 0.40% | HF22: 1.00 | HG22: 0 | HH22: 74 | HI22: 1.00% | HJ22: 5.00 | HK22: 4 | HL22: -10 | HM22: 144 | HO22: =IF(ISERROR(IF(VLOOKUP($C22,'Indicateurs Cumulés'!$C$3:$HN$560,186,FALSE)/(VLOOKUP($C22,objectifs!$C$3:$ZZ$559,158,FALSE))>=1.5,(VLOOKUP($C22,objectifs!$C$3:$ZZ$559,158,FALSE))*1.5,IF(VLOOKUP($C22,'Indicateurs Cumulés'!$C$3:$HN$560,186,FALSE)/(VLOOKUP($C22,objectifs!$C$3:$ZZ$559,158,FALSE))<=-0.5,(VLOOKUP($C22,objectifs!$C$3:$ZZ$559,158,FALSE))*-0.5,VLOOKUP($C22,'Indicateurs Cumulés'!$C$3:$HN$560,186,FALSE)))),VLOOKUP($C22,'Indicateurs Cumulés'!$C$3:$HN$560,186,FALSE),IF(VLOOKUP($C22,'Indicateurs Cumulés'!$C$3:$HN$560,186,FALSE)/(VLOOKUP($C22,objectifs!$C$3:$ZZ$559,158,FALSE))>=1.5,(VLOOKUP($C22,objectifs!$C$3:$ZZ$559,158,FALSE))*1.5,IF(VLOOKUP($C22,'Indicateurs Cumulés'!$C$3:$HN$560,186,FALSE)/(VLOOKUP($C22,objectifs!$C$3:$ZZ$559,158,FALSE))<=-0.5,(VLOOKUP($C22,objectifs!$C$3:$ZZ$559,158,FALSE))*-0.5,VLOOKUP($C22,'Indicateurs Cumulés'!$C$3:$HN$560,186,FALSE)))) -> -185 | HP22: 0 | HR22: 3.6 | HT22: 3.51% | HU22: 0.30% | HV22: 1.62% | HW22: 11 | HX22: 7 | HY22: 3 | HZ22: 2 | IA22: 0 | IB22: 3 | IC22: 14 | ID22: -17 | IE22: -5 | IF22: -4 | IG22: -2 | IH22: 1 | II22: -2 | IJ22: 46 | IK22: -40 | IL22: -2 | IM22: 1 | IN22: 1 | IO22: 1 | IP22: 0 | IQ22: 0 | IR22: 0 | IS22: 2 | IT22: -7 | IU22: -0 | IV22: -2 | IW22: -2 | IX22: 2 | IY22: -2 | IZ22: 30 | JA22: -9 | JB22: -0 | JC22: 58 | JD22: 9 | JE22: 0 | JF22: 168 | JG22: 1.70 | JH22: 203.52 | JI22: 0 | JJ22: 0 | JK22: -1 | JL22: 0.20% | JM22: -0 | JO22: 1 | JP22: 394 | JQ22: 12 | JR22: =IF(ISERROR(IF(VLOOKUP($C22,'Indicateurs Cumulés'!$C$3:$HN$560,190,FALSE)/(VLOOKUP($C22,objectifs!$C$3:$ZZ$559,162,FALSE))>=1.5,(VLOOKUP($C22,objectifs!$C$3:$ZZ$559,162,FALSE))*1.5,IF(VLOOKUP($C22,'Indicateurs Cumulés'!$C$3:$HN$560,190,FALSE)/(VLOOKUP($C22,objectifs!$C$3:$ZZ$559,162,FALSE))<=-0.5,(VLOOKUP($C22,objectifs!$C$3:$ZZ$559,162,FALSE))*-0.5,VLOOKUP($C22,'Indicateurs Cumulés'!$C$3:$HN$560,190,FALSE)))),VLOOKUP($C22,'Indicateurs Cumulés'!$C$3:$HN$560,190,FALSE),IF(VLOOKUP($C22,'Indicateurs Cumulés'!$C$3:$HN$560,190,FALSE)/(VLOOKUP($C22,objectifs!$C$3:$ZZ$559,162,FALSE))>=1.5,(VLOOKUP($C22,objectifs!$C$3:$ZZ$559,162,FALSE))*1.5,IF(VLOOKUP($C22,'Indicateurs Cumulés'!$C$3:$HN$560,190,FALSE)/(VLOOKUP($C22,objectifs!$C$3:$ZZ$559,162,FALSE))<=-0.5,(VLOOKUP($C22,objectifs!$C$3:$ZZ$559,162,FALSE))*-0.5,VLOOKUP($C22,'Indicateurs Cumulés'!$C$3:$HN$560,190,FALSE)))) -> -31 | JS22: -0 | JT22: -0 | JV22: 0 | JW22: 13 | JX22: 0 | JY22: -2 | JZ22: 11 | KA22: 1 | KB22: 0 | KC22: 0 | KD22: 1 | KE22: 1 | KF22: 0 | KG22: 1 | KH22: 0 | KI22: 0 | KJ22: 0 | KK22: 1 | KL22: 0 | KM22: 7 | KN22: 5 | KR22: 4.64 | KS22: 3 | KT22: 13 | KU22: 0 | KV22: 33 | KW22: 7 | KX22: 0 | KY22: 45 | KZ22: 31 | LA22: 0 | LB22: 0 | LC22: 250.7 | LD22: 44 | LE22: 7 | LF22: 5 | LG22: 7 | LH22: 10 | LI22: 4 | LJ22: 0 | LK22: 232 | LL22: 64.1 | LM22: 28 | LN22: 158 | LO22: -6 | LP22: 15 | LQ22: 69.27 | LR22: 133 | LS22: 70 | LT22: 440 | LU22: 98 | LV22: 55 | LW22: 10 | LX22: 10.0 | LY22: 0.7 | LZ22: 1.3 | MA22: 4.9 | MB22: 0.8 | MC22: 0.1 | MD22: 268
A23: 105006 | B23: 200262 | C23: 33 | D23: LA WANTZENAU | E23: 2019-06-30 | F23: 25 | G23: 4.32% | H23: 1.57 | I23: 2019-06-30 | J23: 496 | K23: 3.23% | L23: 2.22 | M23: 3.82 | N23: 2,291 | O23: 0 | P23: -0.02% | Q23: 6.70 | R23: 10.52 | S23: 35 | T23: 2.46% | U23: 2.40 | V23: 0 | W23: 0.00% | X23: 0 | Y23: 5 | Z23: 0.46% | AA23: 6.54 | AB23: 5.0 | AC23: 5.2 | AD23: 2.2 | AE23: 43.7 | AF23: 9.1 | AG23: 2.1 | AH23: 201906 | AI23: 0 | AJ23: 0 | AK23: 0.00% | AL23: 349.13 | AM23: 66.17 | AN23: 19% | AO23: 1.90 | AP23: 0.54% | AQ23: 776.18 | AR23: 5.80 | AS23: 0.7% | AT23: 0.77 | AU23: 0.10% | AV23: 34.17 | AW23: 7.16 | AX23: 20.96% | AY23: 0.53 | AZ23: 1.56% | BA23: 1,159.48 | BB23: 79.12 | BC23: 6.8% | BD23: 3.20 | BE23: 0.28% | BG23: 3 | BH23: 0 | BI23: 50 | BJ23: 37 | BK23: 4 | BL23: 1.40% | BM23: 0.00% | BN23: 33 | BO23: 17 | BP23: 0 | BQ23: 116 | BR23: 3 | BS23: 1 | BT23: 1 | BU23: -3 | BX23: 0 | BY23: 0 | BZ23: 0 | CA23: 0 | CB23: 0 | CC23: 3 | CD23: 2 | CE23: 8 | CF23: 1.6 | CG23: -2 | CH23: -0 | CI23: 3 | CJ23: 3 | CK23: 100.00% | CL23: 200.00% | CM23: 1 | CN23: 0.00% | CO23: 1 | CP23: 0 | CQ23: 2.2 | CR23: 0 | CS23: 0.00 | CT23: 0 | CU23: 3 | CV23: 0 | CW23: 5 | CX23: 74.55% | CY23: 81.17% | CZ23: 30 | DA23: 94.96% | DB23: 138.20% | DC23: 10 | DE23: 100.00% | DF23: 102.13% | DG23: 1 | DH23: 115 | DI23: 0.70% | DJ23: 5.33 | DK23: 4 | DL23: 73 | DM23: 0.82% | DN23: 5.33 | DO23: 3 | DP23: -66 | DQ23: 0.91% | DR23: 5.33 | DS23: -3 | DT23: 183 | DU23: 0.40% | DV23: 1.82 | DW23: 1 | DX23: -84 | DY23: 0.20% | DZ23: 5.37 | EA23: -1 | EB23: 79 | EC23: 0.20% | ED23: 5.37 | EE23: 1 | EF23: -30 | EG23: 0.20% | EH23: 5.37 | EI23: -0 | EJ23: 28 | EK23: 0.44% | EL23: 5.33 | EM23: 1 | EN23: -13 | EO23: 0.10% | EP23: 7.18 | EQ23: -0 | ER23: -187 | ES23: 0.20% | ET23: 9.00 | EU23: -3 | EV23: 182 | EW23: 0.00% | EX23: 8.59 | EY23: 0 | EZ23: 0 | FA23: -0.18% | FB23: 0.78 | FC23: 0 | FD23: 607 | FE23: 0.45% | FF23: 8.00 | FG23: 22 | FH23: 1,063 | FI23: 0.28% | FJ23: 1.00 | FK23: 3 | FL23: 12 | FM23: 0.65% | FN23: 5.00 | FO23: 0 | FP23: 23 | FQ23: 0.40% | FR23: 1.00 | FS23: 0 | FT23: -286 | FU23: 0.20% | FV23: 8.00 | FW23: -5 | FX23: 321 | FY23: 1.00% | FZ23: 5.00 | GA23: 16 | GB23: 329 | GC23: 14 | GD23: 588 | GE23: 27 | GF23: -989 | GG23: 1.00% | GH23: 5.37 | GI23: -53 | GJ23: 15 | GK23: 0 | GL23: 0 | GN23: 0 | GO23: 0.00% | GP23: 0 | GQ23: 0 | GR23: 0 | GS23: 0.45% | GT23: 8.00 | GU23: 0 | GV23: 0 | GW23: 0.28% | GX23: 1.00 | GY23: 0 | GZ23: 0 | HA23: 0.65% | HB23: 5.00 | HC23: 0 | HD23: 0 | HE23: 0.40% | HF23: 1.00 | HG23: 0 | HH23: -30 | HI23: 1.00% | HJ23: 5.00 | HK23: -2 | HL23: -5 | HM23: 100 | HO23: =IF(ISERROR(IF(VLOOKUP($C23,'Indicateurs Cumulés'!$C$3:$HN$560,186,FALSE)/(VLOOKUP($C23,objectifs!$C$3:$ZZ$559,158,FALSE))>=1.5,(VLOOKUP($C23,objectifs!$C$3:$ZZ$559,158,FALSE))*1.5,IF(VLOOKUP($C23,'Indicateurs Cumulés'!$C$3:$HN$560,186,FALSE)/(VLOOKUP($C23,objectifs!$C$3:$ZZ$559,158,FALSE))<=-0.5,(VLOOKUP($C23,objectifs!$C$3:$ZZ$559,158,FALSE))*-0.5,VLOOKUP($C23,'Indicateurs Cumulés'!$C$3:$HN$560,186,FALSE)))),VLOOKUP($C23,'Indicateurs Cumulés'!$C$3:$HN$560,186,FALSE),IF(VLOOKUP($C23,'Indicateurs Cumulés'!$C$3:$HN$560,186,FALSE)/(VLOOKUP($C23,objectifs!$C$3:$ZZ$559,158,FALSE))>=1.5,(VLOOKUP($C23,objectifs!$C$3:$ZZ$559,158,FALSE))*1.5,IF(VLOOKUP($C23,'Indicateurs Cumulés'!$C$3:$HN$560,186,FALSE)/(VLOOKUP($C23,objectifs!$C$3:$ZZ$559,158,FALSE))<=-0.5,(VLOOKUP($C23,objectifs!$C$3:$ZZ$559,158,FALSE))*-0.5,VLOOKUP($C23,'Indicateurs Cumulés'!$C$3:$HN$560,186,FALSE)))) -> -146 | HP23: 0 | HR23: 2.9 | HT23: 4.33% | HU23: 0.22% | HV23: 10.11% | HW23: 5 | HX23: 7 | HY23: -1 | HZ23: 3 | IA23: 8 | IB23: 1 | IC23: 14 | ID23: -28 | IE23: -4 | IF23: -3 | IG23: -3 | IH23: 1 | II23: -5 | IJ23: 40 | IK23: -41 | IL23: 2 | IM23: 1 | IN23: 1 | IO23: -0 | IP23: 0 | IQ23: 0 | IR23: 0 | IS23: 2 | IT23: -12 | IU23: -0 | IV23: -2 | IW23: -3 | IX23: 2 | IY23: -5 | IZ23: 26 | JA23: -9 | JB23: 0 | JC23: 29 | JD23: 7 | JE23: 0 | JF23: 0 | JG23: 0.00 | JH23: 0.00 | JI23: 0 | JJ23: 0 | JK23: 0 | JL23: 0.20% | JM23: -2 | JO23: 8 | JP23: 13 | JQ23: 13 | JR23: =IF(ISERROR(IF(VLOOKUP($C23,'Indicateurs Cumulés'!$C$3:$HN$560,190,FALSE)/(VLOOKUP($C23,objectifs!$C$3:$ZZ$559,162,FALSE))>=1.5,(VLOOKUP($C23,objectifs!$C$3:$ZZ$559,162,FALSE))*1.5,IF(VLOOKUP($C23,'Indicateurs Cumulés'!$C$3:$HN$560,190,FALSE)/(VLOOKUP($C23,objectifs!$C$3:$ZZ$559,162,FALSE))<=-0.5,(VLOOKUP($C23,objectifs!$C$3:$ZZ$559,162,FALSE))*-0.5,VLOOKUP($C23,'Indicateurs Cumulés'!$C$3:$HN$560,190,FALSE)))),VLOOKUP($C23,'Indicateurs Cumulés'!$C$3:$HN$560,190,FALSE),IF(VLOOKUP($C23,'Indicateurs Cumulés'!$C$3:$HN$560,190,FALSE)/(VLOOKUP($C23,objectifs!$C$3:$ZZ$559,162,FALSE))>=1.5,(VLOOKUP($C23,objectifs!$C$3:$ZZ$559,162,FALSE))*1.5,IF(VLOOKUP($C23,'Indicateurs Cumulés'!$C$3:$HN$560,190,FALSE)/(VLOOKUP($C23,objectifs!$C$3:$ZZ$559,162,FALSE))<=-0.5,(VLOOKUP($C23,objectifs!$C$3:$ZZ$559,162,FALSE))*-0.5,VLOOKUP($C23,'Indicateurs Cumulés'!$C$3:$HN$560,190,FALSE)))) -> 15 | JS23: 0 | JT23: -0 | JV23: 0 | JW23: 0 | JX23: 0 | JY23: 1 | JZ23: 2 | KA23: -1 | KB23: 0 | KC23: 0 | KD23: 2 | KE23: -1 | KF23: 0 | KG23: -1 | KH23: 0 | KI23: 0 | KJ23: 0 | KK23: -1 | KL23: 0 | KM23: 2 | KN23: 2 | KR23: 5.25 | KS23: 0 | KT23: 3 | KU23: 0 | KV23: 4 | KW23: 1 | KX23: 0 | KY23: 36 | KZ23: 25 | LA23: 0 | LB23: 0 | LC23: 152.4 | LD23: 15 | LE23: 2 | LF23: 1 | LG23: 2 | LH23: 3 | LI23: 1 | LJ23: 0 | LK23: 145 | LL23: 49.8 | LM23: 34 | LN23: 91 | LO23: -5 | LP23: 4 | LQ23: 52.50 | LR23: 92 | LS23: 34 | LT23: 407 | LU23: 70 | LV23: 20 | LW23: 10 | LX23: 6.9 | LY23: 0.3 | LZ23: 1.2 | MA23: 3.5 | MB23: 0.3 | MC23: 0.1 | MD23: 165
A24: 105006 | B24: 200262 | C24: 34 | D24: VENDENHEIM | E24: 2019-06-30 | F24: 28 | G24: 4.32% | H24: 1.57 | I24: 2019-06-30 | J24: 185 | K24: 3.84% | L24: 2.45 | M24: 4.13 | N24: 1,129 | O24: 0 | P24: -0.12% | Q24: 8.49 | R24: 12.79 | S24: 6 | T24: 4.35% | U24: 2.42 | V24: 0 | W24: 0.00% | X24: 0 | Y24: 29 | Z24: 1.43% | AA24: 1.77 | AB24: 4.4 | AC24: 2.3 | AD24: 0.4 | AE24: 26.1 | AF24: 5.4 | AG24: 3.0 | AH24: 201906 | AI24: 53.74 | AJ24: 0 | AK24: 0.00% | AL24: 180.19 | AM24: 33.35 | AN24: 19% | AO24: 1.01 | AP24: 0.56% | AQ24: 330.25 | AR24: 0 | AS24: 0.0% | AT24: 0.68 | AU24: 0.21% | AV24: 22.54 | AW24: 1.78 | AX24: 7.92% | AY24: 0.45 | AZ24: 1.99% | BA24: 590.73 | BB24: 35.14 | BC24: 5.9% | BD24: 2.23 | BE24: 0.38% | BG24: 1 | BH24: 0 | BI24: 25 | BJ24: 9 | BK24: 1 | BL24: 1.44% | BM24: 0.00% | BN24: 34 | BO24: 29 | BP24: 1 | BQ24: 55 | BR24: 2 | BS24: 1 | BT24: 1 | BU24: -2 | BX24: 0 | BY24: 0 | BZ24: 0 | CA24: 0 | CB24: 0 | CC24: 2 | CD24: 1 | CE24: 3 | CF24: 0.6 | CG24: -10 | CH24: -2 | CI24: 0 | CJ24: 0 | CK24: 100.00% | CL24: 200.00% | CM24: 0 | CN24: 0.00% | CO24: 0 | CP24: 0 | CQ24: 0.4 | CR24: 0 | CS24: 0.00 | CT24: 0 | CU24: 1 | CV24: 0 | CW24: 4 | CX24: 38.39% | CY24: 101.90% | CZ24: 13 | DA24: 99.35% | DB24: 158.36% | DC24: 5 | DE24: 100.00% | DF24: 100.00% | DG24: 0 | DH24: 210 | DI24: =DI$374 -> 0.70% | DJ24: 5.33 | DK24: 8 | DL24: 86 | DM24: =DM$374 -> 0.82% | DN24: 5.33 | DO24: 4 | DP24: -35 | DQ24: =DQ$374 -> 0.91% | DR24: 5.33 | DS24: -2 | DT24: 146 | DU24: =DU$374 -> 0.40% | DV24: 1.82 | DW24: 1 | DX24: -110 | DY24: =DY$374 -> 0.20% | DZ24: 5.37 | EA24: -1 | EB24: 12 | EC24: =EC$374 -> 0.20% | ED24: 5.37 | EE24: 0 | EF24: -29 | EG24: =EG$374 -> 0.20% | EH24: 5.37 | EI24: -0 | EJ24: 17 | EK24: =EK$374 -> 0.44% | EL24: 5.33 | EM24: 0 | EN24: -10 | EO24: 0.10% | EP24: 5.13 | EQ24: -0 | ER24: -17 | ES24: =ES$374 -> 0.20% | ET24: 9.00 | EU24: -0 | EV24: 512 | EW24: 0.00% | EX24: 8.59 | EY24: 0 | EZ24: 0 | FA24: =FA$374 -> -0.18% | FB24: 0.78 | FC24: 0 | FD24: -53 | FE24: =FE$374 -> 0.45% | FF24: 8.00 | FG24: -2 | FH24: 565 | FI24: 0.38% | FJ24: 1.00 | FK24: 2 | FL24: -141 | FM24: =FM$374 -> 0.65% | FN24: 5.00 | FO24: -5 | FP24: 5 | FQ24: =FQ$374 -> 0.40% | FR24: 1.00 | FS24: 0 | FT24: -213 | FU24: =FU$374 -> 0.20% | FV24: 8.00 | FW24: -3 | FX24: 216 | FY24: =FY$374 -> 1.00% | FZ24: 5.00 | GA24: 11 | GB24: 835 | GC24: 19 | GD24: -174 | GE24: -1 | GF24: -26 | GG24: =GG$374 -> 1.00% | GH24: 5.37 | GI24: -1 | GJ24: 14 | GK24: 0 | GL24: 0 | GN24: 0 | GO24: 0.00% | GP24: 0 | GQ24: 0 | GR24: 0 | GS24: =GS$374 -> 0.45% | GT24: 8.00 | GU24: 0 | GV24: 0 | GW24: 0.38% | GX24: 1.00 | GY24: 0 | GZ24: 0 | HA24: =HA$374 -> 0.65% | HB24: 5.00 | HC24: 0 | HD24: 0 | HE24: 0.40% | HF24: 1.00 | HG24: 0 | HH24: 20 | HI24: =HI$374 -> 1.00% | HJ24: 5.00 | HK24: 1 | HL24: -6 | HM24: 91 | HO24: =IF(ISERROR(IF(VLOOKUP($C24,'Indicateurs Cumulés'!$C$3:$HN$560,186,FALSE)/(VLOOKUP($C24,objectifs!$C$3:$ZZ$559,158,FALSE))>=1.5,(VLOOKUP($C24,objectifs!$C$3:$ZZ$559,158,FALSE))*1.5,IF(VLOOKUP($C24,'Indicateurs Cumulés'!$C$3:$HN$560,186,FALSE)/(VLOOKUP($C24,objectifs!$C$3:$ZZ$559,158,FALSE))<=-0.5,(VLOOKUP($C24,objectifs!$C$3:$ZZ$559,158,FALSE))*-0.5,VLOOKUP($C24,'Indicateurs Cumulés'!$C$3:$HN$560,186,FALSE)))),VLOOKUP($C24,'Indicateurs Cumulés'!$C$3:$HN$560,186,FALSE),IF(VLOOKUP($C24,'Indicateurs Cumulés'!$C$3:$HN$560,186,FALSE)/(VLOOKUP($C24,objectifs!$C$3:$ZZ$559,158,FALSE))>=1.5,(VLOOKUP($C24,objectifs!$C$3:$ZZ$559,158,FALSE))*1.5,IF(VLOOKUP($C24,'Indicateurs Cumulés'!$C$3:$HN$560,186,FALSE)/(VLOOKUP($C24,objectifs!$C$3:$ZZ$559,158,FALSE))<=-0.5,(VLOOKUP($C24,objectifs!$C$3:$ZZ$559,158,FALSE))*-0.5,VLOOKUP($C24,'Indicateurs Cumulés'!$C$3:$HN$560,186,FALSE)))) -> -26 | HP24: 0 | HR24: 1.3 | HT24: 4.81% | HU24: 0.10% | HV24: 2.27% | HW24: 6 | HX24: 3 | HY24: -2 | HZ24: -2 | IA24: -3 | IB24: 0 | IC24: 3 | ID24: -29 | IE24: -3 | IF24: -4 | IG24: -1 | IH24: 0 | II24: 0 | IJ24: 26 | IK24: -30 | IL24: -2 | IM24: 1 | IN24: 0 | IO24: -1 | IP24: -0 | IQ24: -0 | IR24: 0 | IS24: 0 | IT24: -13 | IU24: -0 | IV24: -2 | IW24: -1 | IX24: 0 | IY24: 0 | IZ24: 17 | JA24: -6 | JB24: -0 | JC24: 15 | JD24: 2 | JE24: 0 | JF24: 0 | JG24: 0.00 | JH24: 0.00 | JI24: 0 | JJ24: 0 | JK24: -2 | JL24: 0.20% | JM24: -8 | JO24: -2 | JP24: 49 | JQ24: 40 | JR24: =IF(ISERROR(IF(VLOOKUP($C24,'Indicateurs Cumulés'!$C$3:$HN$560,190,FALSE)/(VLOOKUP($C24,objectifs!$C$3:$ZZ$559,162,FALSE))>=1.5,(VLOOKUP($C24,objectifs!$C$3:$ZZ$559,162,FALSE))*1.5,IF(VLOOKUP($C24,'Indicateurs Cumulés'!$C$3:$HN$560,190,FALSE)/(VLOOKUP($C24,objectifs!$C$3:$ZZ$559,162,FALSE))<=-0.5,(VLOOKUP($C24,objectifs!$C$3:$ZZ$559,162,FALSE))*-0.5,VLOOKUP($C24,'Indicateurs Cumulés'!$C$3:$HN$560,190,FALSE)))),VLOOKUP($C24,'Indicateurs Cumulés'!$C$3:$HN$560,190,FALSE),IF(VLOOKUP($C24,'Indicateurs Cumulés'!$C$3:$HN$560,190,FALSE)/(VLOOKUP($C24,objectifs!$C$3:$ZZ$559,162,FALSE))>=1.5,(VLOOKUP($C24,objectifs!$C$3:$ZZ$559,162,FALSE))*1.5,IF(VLOOKUP($C24,'Indicateurs Cumulés'!$C$3:$HN$560,190,FALSE)/(VLOOKUP($C24,objectifs!$C$3:$ZZ$559,162,FALSE))<=-0.5,(VLOOKUP($C24,objectifs!$C$3:$ZZ$559,162,FALSE))*-0.5,VLOOKUP($C24,'Indicateurs Cumulés'!$C$3:$HN$560,190,FALSE)))) -> 14 | JS24: -0 | JT24: -0 | JV24: -0 | JW24: 2 | JX24: 1 | JY24: 1 | JZ24: 3 | KA24: 1 | KB24: 0 | KC24: 0 | KD24: 2 | KE24: -1 | KF24: 3 | KG24: 1 | KH24: 0 | KI24: 0 | KJ24: 0 | KK24: -1 | KL24: 0 | KM24: 7 | KN24: 4 | KR24: 1.84 | KS24: 5 | KT24: -23 | KU24: 0 | KV24: 8 | KW24: 2 | KX24: 0 | KY24: 26 | KZ24: 18 | LA24: 0 | LB24: 0 | LC24: 67.6 | LD24: 15 | LE24: 1 | LF24: 1 | LG24: 2 | LH24: 3 | LI24: -5 | LJ24: -1 | LK24: 64 | LL24: 49.8 | LM24: 16 | LN24: 36 | LO24: -6 | LP24: 3 | LQ24: 52.92 | LR24: 68 | LS24: 31 | LT24: 250 | LU24: 60 | LV24: 33 | LW24: 3 | LX24: 5.1 | LY24: 0.3 | LZ24: 0.8 | MA24: 3.0 | MB24: 0.5 | MC24: 0.0 | MD24: 77
A25: 105006 | B25: 200262 | C25: 37 | D25: MUNDOLSHEIM | E25: 2019-06-30 | F25: 41 | G25: 4.32% | H25: 1.57 | I25: 2019-06-30 | J25: 756 | K25: 3.33% | L25: 2.53 | M25: 4.30 | N25: 2,623 | O25: 0 | P25: 0.08% | Q25: 7.83 | R25: 11.85 | S25: 140 | T25: 3.71% | U25: 2.96 | V25: 170 | W25: 0.13% | X25: 4.38 | Y25: 250 | Z25: 0.45% | AA25: 4.61 | AB25: 14.0 | AC25: 11.4 | AD25: 0.8 | AE25: 63.3 | AF25: 11.4 | AG25: 5.8 | AH25: 201906 | AI25: 0 | AJ25: 0 | AK25: 0.00% | AL25: 179.96 | AM25: 59.89 | AN25: 33% | AO25: 0.81 | AP25: 0.45% | AQ25: 829.28 | AR25: 70.51 | AS25: 8.5% | AT25: 0.74 | AU25: 0.09% | AV25: 24.55 | AW25: 4.67 | AX25: 19.02% | AY25: 0.41 | AZ25: 1.68% | BA25: 1,033.79 | BB25: 135.07 | BC25: 13.1% | BD25: 1.97 | BE25: 0.19% | BG25: 19 | BH25: 2 | BI25: 88 | BJ25: 93 | BK25: 8 | BL25: 1.53% | BM25: 0.00% | BN25: 37 | BO25: 3 | BP25: 0 | BQ25: 117 | BR25: 3 | BS25: 1 | BT25: 3 | BU25: 0 | BX25: 0 | BY25: 0 | BZ25: 0 | CA25: 2 | CB25: 0 | CC25: -3 | CD25: -2 | CE25: 18 | CF25: 3.6 | CG25: -1 | CH25: -0 | CI25: 6 | CJ25: 6 | CK25: 100.00% | CL25: 125.00% | CM25: 2 | CN25: 0.00% | CO25: 2 | CP25: 0 | CQ25: 0.8 | CR25: 0 | CS25: 0.00 | CT25: 1 | CU25: 4 | CV25: 0 | CW25: 14 | CX25: 49.94% | CY25: 159.26% | CZ25: 51 | DA25: 98.02% | DB25: 144.33% | DC25: 17 | DE25: 100.00% | DF25: 100.00% | DG25: 2 | DH25: 442 | DI25: 0.70% | DJ25: 5.33 | DK25: 16 | DL25: 44 | DM25: 0.82% | DN25: 5.33 | DO25: 2 | DP25: -24 | DQ25: 0.91% | DR25: 5.33 | DS25: -1 | DT25: 158 | DU25: 0.40% | DV25: 1.82 | DW25: 1 | DX25: -148 | DY25: 0.20% | DZ25: 5.37 | EA25: -2 | EB25: 121 | EC25: 0.20% | ED25: 5.37 | EE25: 1 | EF25: -21 | EG25: 0.20% | EH25: 5.37 | EI25: -0 | EJ25: 64 | EK25: 0.44% | EL25: 5.33 | EM25: 2 | EN25: 2 | EO25: 0.10% | EP25: 8.82 | EQ25: 0 | ER25: -132 | ES25: 0.20% | ET25: 9.00 | EU25: -2 | EV25: -83 | EW25: 0.00% | EX25: 8.50 | EY25: 0 | EZ25: 0 | FA25: -0.18% | FB25: 0.78 | FC25: 0 | FD25: 585 | FE25: 0.45% | FF25: 8.00 | FG25: 21 | FH25: 905 | FI25: 0.19% | FJ25: 1.00 | FK25: 2 | FL25: -17 | FM25: 0.65% | FN25: 5.00 | FO25: -1 | FP25: 5 | FQ25: 0.40% | FR25: 1.00 | FS25: 0 | FT25: -255 | FU25: 0.20% | FV25: 8.00 | FW25: -4 | FX25: 81 | FY25: 1.00% | FZ25: 5.00 | GA25: 4 | GB25: 235 | GC25: 17 | GD25: 555 | GE25: 25 | GF25: 238 | GG25: 1.00% | GH25: 5.37 | GI25: 13 | GJ25: 31 | GK25: 0 | GL25: 0 | GN25: 0 | GO25: 0.00% | GP25: 0 | GQ25: 0 | GR25: 0 | GS25: 0.45% | GT25: 8.00 | GU25: 0 | GV25: 0 | GW25: 0.19% | GX25: 1.00 | GY25: 0 | GZ25: 0 | HA25: 0.65% | HB25: 5.00 | HC25: 0 | HD25: 0 | HE25: 0.40% | HF25: 1.00 | HG25: 0 | HH25: -14 | HI25: 1.00% | HJ25: 5.00 | HK25: -1 | HL25: -8 | HM25: 110 | HO25: =IF(ISERROR(IF(VLOOKUP($C25,'Indicateurs Cumulés'!$C$3:$HN$560,186,FALSE)/(VLOOKUP($C25,objectifs!$C$3:$ZZ$559,158,FALSE))>=1.5,(VLOOKUP($C25,objectifs!$C$3:$ZZ$559,158,FALSE))*1.5,IF(VLOOKUP($C25,'Indicateurs Cumulés'!$C$3:$HN$560,186,FALSE)/(VLOOKUP($C25,objectifs!$C$3:$ZZ$559,158,FALSE))<=-0.5,(VLOOKUP($C25,objectifs!$C$3:$ZZ$559,158,FALSE))*-0.5,VLOOKUP($C25,'Indicateurs Cumulés'!$C$3:$HN$560,186,FALSE)))),VLOOKUP($C25,'Indicateurs Cumulés'!$C$3:$HN$560,186,FALSE),IF(VLOOKUP($C25,'Indicateurs Cumulés'!$C$3:$HN$560,186,FALSE)/(VLOOKUP($C25,objectifs!$C$3:$ZZ$559,158,FALSE))>=1.5,(VLOOKUP($C25,objectifs!$C$3:$ZZ$559,158,FALSE))*1.5,IF(VLOOKUP($C25,'Indicateurs Cumulés'!$C$3:$HN$560,186,FALSE)/(VLOOKUP($C25,objectifs!$C$3:$ZZ$559,158,FALSE))<=-0.5,(VLOOKUP($C25,objectifs!$C$3:$ZZ$559,158,FALSE))*-0.5,VLOOKUP($C25,'Indicateurs Cumulés'!$C$3:$HN$560,186,FALSE)))) -> 238 | HP25: 0 | HR25: 3.4 | HT25: 4.36% | HU25: 0.42% | HV25: 0.69% | HW25: 7 | HX25: 17 | HY25: -3 | HZ25: 2 | IA25: 4 | IB25: 1 | IC25: 10 | ID25: 5 | IE25: -3 | IF25: -12 | IG25: 0 | IH25: 0 | II25: -1 | IJ25: 26 | IK25: -11 | IL25: -1 | IM25: 1 | IN25: 2 | IO25: -1 | IP25: 0 | IQ25: 0 | IR25: 0 | IS25: 1 | IT25: 2 | IU25: -0 | IV25: -7 | IW25: 0 | IX25: 0 | IY25: -1 | IZ25: 17 | JA25: -2 | JB25: -0 | JC25: 40 | JD25: 29 | JE25: 0 | JF25: 289 | JG25: 1.13 | JH25: 122.07 | JI25: 0 | JJ25: 0 | JK25: 1 | JL25: 0.20% | JM25: 10 | JO25: 0 | JP25: -13 | JQ25: 56 | JR25: =IF(ISERROR(IF(VLOOKUP($C25,'Indicateurs Cumulés'!$C$3:$HN$560,190,FALSE)/(VLOOKUP($C25,objectifs!$C$3:$ZZ$559,162,FALSE))>=1.5,(VLOOKUP($C25,objectifs!$C$3:$ZZ$559,162,FALSE))*1.5,IF(VLOOKUP($C25,'Indicateurs Cumulés'!$C$3:$HN$560,190,FALSE)/(VLOOKUP($C25,objectifs!$C$3:$ZZ$559,162,FALSE))<=-0.5,(VLOOKUP($C25,objectifs!$C$3:$ZZ$559,162,FALSE))*-0.5,VLOOKUP($C25,'Indicateurs Cumulés'!$C$3:$HN$560,190,FALSE)))),VLOOKUP($C25,'Indicateurs Cumulés'!$C$3:$HN$560,190,FALSE),IF(VLOOKUP($C25,'Indicateurs Cumulés'!$C$3:$HN$560,190,FALSE)/(VLOOKUP($C25,objectifs!$C$3:$ZZ$559,162,FALSE))>=1.5,(VLOOKUP($C25,objectifs!$C$3:$ZZ$559,162,FALSE))*1.5,IF(VLOOKUP($C25,'Indicateurs Cumulés'!$C$3:$HN$560,190,FALSE)/(VLOOKUP($C25,objectifs!$C$3:$ZZ$559,162,FALSE))<=-0.5,(VLOOKUP($C25,objectifs!$C$3:$ZZ$559,162,FALSE))*-0.5,VLOOKUP($C25,'Indicateurs Cumulés'!$C$3:$HN$560,190,FALSE)))) -> 31 | JS25: 0 | JT25: 1 | JV25: 0 | JW25: -0 | JX25: 2 | JY25: 2 | JZ25: 4 | KA25: 2 | KB25: 0 | KC25: 0 | KD25: 2 | KE25: 0 | KF25: 2 | KG25: 3 | KH25: 0 | KI25: 0 | KJ25: 0 | KK25: 0 | KL25: 0 | KM25: 5 | KN25: 3 | KR25: 4.66 | KS25: 6 | KT25: 6 | KU25: 0 | KV25: 14 | KW25: 3 | KX25: 0 | KY25: 25 | KZ25: 17 | LA25: 2 | LB25: 0 | LC25: 290.9 | LD25: 42 | LE25: 2 | LF25: 1 | LG25: 2 | LH25: 3 | LI25: 2 | LJ25: 0 | LK25: 274 | LL25: 81.6 | LM25: 54 | LN25: 189 | LO25: -2 | LP25: 4 | LQ25: 86.73 | LR25: 88 | LS25: 94 | LT25: 410 | LU25: 69 | LV25: 127 | LW25: 8 | LX25: 6.6 | LY25: 0.9 | LZ25: 1.2 | MA25: 3.5 | MB25: 1.9 | MC25: 0.0 | MD25: 305
A26: 105006 | B26: 200262 | C26: 38 | D26: OBERHAUSBERGEN | E26: 2019-06-30 | F26: 86 | G26: 4.32% | H26: 1.57 | I26: 2019-06-30 | J26: 955 | K26: 3.41% | L26: 2.39 | M26: 4.06 | N26: 3,114 | O26: 0 | P26: -0.03% | Q26: 7.45 | R26: 11.57 | S26: 20 | T26: 4.57% | U26: 2.10 | V26: 131 | W26: 0.06% | X26: 8.80 | Y26: 145 | Z26: 0.47% | AA26: 6.67 | AB26: 8.0 | AC26: 11.4 | AD26: 1.4 | AE26: 284.9 | AF26: 14.8 | AG26: 6.3 | AH26: 201906 | AI26: 16.00 | AJ26: 0.07 | AK26: 0.45% | AL26: 101.42 | AM26: 9.43 | AN26: 9% | AO26: 1.83 | AP26: 1.80% | AQ26: 969.53 | AR26: 74.47 | AS26: 7.7% | AT26: 2.36 | AU26: 0.24% | AV26: 26.97 | AW26: 0.83 | AX26: 3.06% | AY26: 0.57 | AZ26: 2.12% | BA26: 1,113.91 | BB26: 84.72 | BC26: 7.6% | BD26: 4.83 | BE26: 0.43% | BG26: 3 | BH26: 2 | BI26: 105 | BJ26: 73 | BK26: 6 | BL26: 1.51% | BM26: 0.00% | BN26: 38 | BO26: 185 | BP26: 4 | BQ26: 65 | BR26: 2 | BS26: 6 | BT26: 5 | BU26: -4 | BX26: 0 | BY26: 0 | BZ26: 0 | CA26: 0 | CB26: 0 | CC26: -2 | CD26: -1 | CE26: 15 | CF26: 3.0 | CG26: -4 | CH26: -1 | CI26: 5 | CJ26: 5 | CK26: 100.00% | CL26: 171.43% | CM26: 1 | CN26: 100.00% | CO26: 1 | CP26: 1 | CQ26: 1.4 | CR26: 0 | CS26: 0.00 | CT26: 0 | CU26: 3 | CV26: 1 | CW26: 8 | CX26: 66.55% | CY26: 137.43% | CZ26: 61 | DA26: 99.58% | DB26: 129.33% | DC26: 19 | DE26: 100.00% | DF26: 100.00% | DG26: 0 | DH26: 3 | DI26: 0.70% | DJ26: 5.33 | DK26: 0 | DL26: 584 | DM26: 0.82% | DN26: 5.33 | DO26: 25 | DP26: -12 | DQ26: 0.91% | DR26: 5.33 | DS26: -1 | DT26: 249 | DU26: 0.40% | DV26: 1.82 | DW26: 2 | DX26: -185 | DY26: 0.20% | DZ26: 5.37 | EA26: -2 | EB26: 10 | EC26: 0.20% | ED26: 5.37 | EE26: 0 | EF26: -23 | EG26: 0.20% | EH26: 5.37 | EI26: -0 | EJ26: -13 | EK26: 0.44% | EL26: 5.33 | EM26: -0 | EN26: 2 | EO26: 0.10% | EP26: 9.13 | EQ26: 0 | ER26: -16 | ES26: 0.20% | ET26: 9.00 | EU26: -0 | EV26: -87 | EW26: 0.00% | EX26: 8.59 | EY26: 0 | EZ26: 0 | FA26: -0.18% | FB26: 0.78 | FC26: 0 | FD26: 395 | FE26: 0.45% | FF26: 8.00 | FG26: 14 | FH26: 998 | FI26: 0.43% | FJ26: 1.00 | FK26: 4 | FL26: -32 | FM26: 0.65% | FN26: 5.00 | FO26: -1 | FP26: 10 | FQ26: 0.40% | FR26: 1.00 | FS26: 0 | FT26: -491 | FU26: 0.20% | FV26: 8.00 | FW26: -8 | FX26: 447 | FY26: 1.00% | FZ26: 5.00 | GA26: 22 | GB26: 450 | GC26: 38 | GD26: 384 | GE26: 24 | GF26: -434 | GG26: 1.00% | GH26: 5.37 | GI26: -23 | GJ26: -67 | GK26: 0 | GL26: 0 | GN26: 0 | GO26: 0.00% | GP26: 0 | GQ26: 0 | GR26: 0 | GS26: 0.45% | GT26: 8.00 | GU26: 0 | GV26: 0 | GW26: 0.43% | GX26: 1.00 | GY26: 0 | GZ26: 0 | HA26: 0.65% | HB26: 5.00 | HC26: 0 | HD26: 0 | HE26: 0.40% | HF26: 1.00 | HG26: 0 | HH26: 20 | HI26: 1.00% | HJ26: 5.00 | HK26: 1 | HL26: -18 | HM26: 181 | HO26: =IF(ISERROR(IF(VLOOKUP($C26,'Indicateurs Cumulés'!$C$3:$HN$560,186,FALSE)/(VLOOKUP($C26,objectifs!$C$3:$ZZ$559,158,FALSE))>=1.5,(VLOOKUP($C26,objectifs!$C$3:$ZZ$559,158,FALSE))*1.5,IF(VLOOKUP($C26,'Indicateurs Cumulés'!$C$3:$HN$560,186,FALSE)/(VLOOKUP($C26,objectifs!$C$3:$ZZ$559,158,FALSE))<=-0.5,(VLOOKUP($C26,objectifs!$C$3:$ZZ$559,158,FALSE))*-0.5,VLOOKUP($C26,'Indicateurs Cumulés'!$C$3:$HN$560,186,FALSE)))),VLOOKUP($C26,'Indicateurs Cumulés'!$C$3:$HN$560,186,FALSE),IF(VLOOKUP($C26,'Indicateurs Cumulés'!$C$3:$HN$560,186,FALSE)/(VLOOKUP($C26,objectifs!$C$3:$ZZ$559,158,FALSE))>=1.5,(VLOOKUP($C26,objectifs!$C$3:$ZZ$559,158,FALSE))*1.5,IF(VLOOKUP($C26,'Indicateurs Cumulés'!$C$3:$HN$560,186,FALSE)/(VLOOKUP($C26,objectifs!$C$3:$ZZ$559,158,FALSE))<=-0.5,(VLOOKUP($C26,objectifs!$C$3:$ZZ$559,158,FALSE))*-0.5,VLOOKUP($C26,'Indicateurs Cumulés'!$C$3:$HN$560,186,FALSE)))) -> -210 | HP26: 179 | HR26: 3.3 | HT26: 4.24% | HU26: 0.29% | HV26: 0.62% | HW26: 32 | HX26: 23 | HY26: 2 | HZ26: 4 | IA26: 2 | IB26: 1 | IC26: 13 | ID26: -43 | IE26: -1 | IF26: -2 | IG26: -4 | IH26: 0 | II26: 14 | IJ26: 48 | IK26: -50 | IL26: 0 | IM26: 4 | IN26: 2 | IO26: 1 | IP26: 0 | IQ26: 0 | IR26: 0 | IS26: 1 | IT26: -19 | IU26: -0 | IV26: -1 | IW26: -4 | IX26: 0 | IY26: 14 | IZ26: 31 | JA26: -11 | JB26: 0 | JC26: 86 | JD26: 11 | JE26: 0 | JF26: 0 | JG26: 0.00 | JH26: 0.00 | JI26: 0 | JJ26: 0 | JK26: 0 | JL26: 0.20% | JM26: 31 | JO26: -20 | JP26: -18 | JQ26: 90 | JR26: =IF(ISERROR(IF(VLOOKUP($C26,'Indicateurs Cumulés'!$C$3:$HN$560,190,FALSE)/(VLOOKUP($C26,objectifs!$C$3:$ZZ$559,162,FALSE))>=1.5,(VLOOKUP($C26,objectifs!$C$3:$ZZ$559,162,FALSE))*1.5,IF(VLOOKUP($C26,'Indicateurs Cumulés'!$C$3:$HN$560,190,FALSE)/(VLOOKUP($C26,objectifs!$C$3:$ZZ$559,162,FALSE))<=-0.5,(VLOOKUP($C26,objectifs!$C$3:$ZZ$559,162,FALSE))*-0.5,VLOOKUP($C26,'Indicateurs Cumulés'!$C$3:$HN$560,190,FALSE)))),VLOOKUP($C26,'Indicateurs Cumulés'!$C$3:$HN$560,190,FALSE),IF(VLOOKUP($C26,'Indicateurs Cumulés'!$C$3:$HN$560,190,FALSE)/(VLOOKUP($C26,objectifs!$C$3:$ZZ$559,162,FALSE))>=1.5,(VLOOKUP($C26,objectifs!$C$3:$ZZ$559,162,FALSE))*1.5,IF(VLOOKUP($C26,'Indicateurs Cumulés'!$C$3:$HN$560,190,FALSE)/(VLOOKUP($C26,objectifs!$C$3:$ZZ$559,162,FALSE))<=-0.5,(VLOOKUP($C26,objectifs!$C$3:$ZZ$559,162,FALSE))*-0.5,VLOOKUP($C26,'Indicateurs Cumulés'!$C$3:$HN$560,190,FALSE)))) -> -34 | JS26: 0 | JT26: 2 | JV26: -1 | JW26: -1 | JX26: 3 | JY26: -2 | JZ26: 1 | KA26: 2 | KB26: 0 | KC26: -1 | KD26: 3 | KE26: 1 | KF26: 0 | KG26: 3 | KH26: 0 | KI26: -1 | KJ26: 1 | KK26: 1 | KL26: 0 | KM26: 10 | KN26: 7 | KR26: 3.97 | KS26: 5 | KT26: 20 | KU26: 0 | KV26: 52 | KW26: 10 | KX26: 0 | KY26: 62 | KZ26: 43 | LA26: 0 | LB26: 0 | LC26: 316.3 | LD26: 23 | LE26: 0 | LF26: 0 | LG26: 0 | LH26: 0 | LI26: 6 | LJ26: 1 | LK26: 287 | LL26: 86.8 | LM26: 51 | LN26: 184 | LO26: -10 | LP26: 1 | LQ26: 95.65 | LR26: 90 | LS26: 80 | LT26: 577 | LU26: 90 | LV26: 101 | LW26: 19 | LX26: 6.8 | LY26: 0.8 | LZ26: 1.7 | MA26: 4.5 | MB26: 1.5 | MC26: 0.1 | MD26: 332
A27: 105006 | B27: 200262 | C27: 39 | D27: REICHSTETT | E27: 2019-06-30 | F27: 39 | G27: 4.32% | H27: 1.57 | I27: 2019-06-30 | J27: 589 | K27: 3.38% | L27: 2.74 | M27: 4.54 | N27: 458 | O27: 0 | P27: 0.15% | Q27: 8.01 | R27: 12.47 | S27: 35 | T27: 3.41% | U27: 2.78 | V27: 0 | W27: 0.00% | X27: 0 | Y27: 238 | Z27: 0.23% | AA27: 6.10 | AB27: 1.4 | AC27: 5.5 | AD27: 1.0 | AE27: 28.3 | AF27: 12.3 | AG27: 0.9 | AH27: 201906 | AI27: 26.00 | AJ27: 0.31 | AK27: 1.20% | AL27: 43.18 | AM27: 7.52 | AN27: 17% | AO27: 0.75 | AP27: 1.74% | AQ27: 194.02 | AR27: 16.60 | AS27: 8.6% | AT27: 0.85 | AU27: 0.44% | AV27: 38.09 | AW27: 1.47 | AX27: 3.86% | AY27: 0.26 | AZ27: 0.70% | BA27: 301.29 | BB27: 25.59 | BC27: 8.5% | BD27: 2.18 | BE27: 0.72% | BG27: 4 | BH27: 0 | BI27: 75 | BJ27: 32 | BK27: 9 | BL27: 1.48% | BM27: 0.00% | BN27: 39 | BO27: 4 | BP27: 0 | BQ27: 36 | BR27: 1 | BS27: 1 | BT27: 1 | BU27: -4 | BX27: 0 | BY27: 0 | BZ27: 0 | CA27: -1 | CB27: -0 | CC27: 1 | CD27: 1 | CE27: 5 | CF27: 1.0 | CG27: 8 | CH27: 2 | CI27: 0 | CJ27: 0 | CK27: 100.00% | CL27: 142.86% | CM27: 1 | CN27: 0.00% | CO27: 1 | CP27: 0 | CQ27: 1.0 | CR27: 0 | CS27: 0.00 | CT27: 0 | CU27: 3 | CV27: 0 | CW27: 1 | CX27: 100.00% | CY27: 180.69% | CZ27: 24 | DA27: 95.75% | DB27: 141.59% | DC27: 14 | DE27: 100.00% | DF27: 99.55% | DG27: 4 | DH27: -75 | DI27: 0.70% | DJ27: 5.33 | DK27: -3 | DL27: 271 | DM27: 0.82% | DN27: 5.33 | DO27: 12 | DP27: -23 | DQ27: 0.91% | DR27: 5.33 | DS27: -1 | DT27: -46 | DU27: 0.40% | DV27: 1.82 | DW27: -0 | DX27: -97 | DY27: 0.20% | DZ27: 5.37 | EA27: -1 | EB27: 11 | EC27: 0.20% | ED27: 5.37 | EE27: 0 | EF27: -10 | EG27: 0.20% | EH27: 5.37 | EI27: -0 | EJ27: -21 | EK27: 0.44% | EL27: 5.33 | EM27: -0 | EN27: -0 | EO27: 0.10% | EP27: 9.14 | EQ27: -0 | ER27: -2 | ES27: 0.20% | ET27: 9.00 | EU27: -0 | EV27: -9 | EW27: 0.00% | EX27: 8.59 | EY27: 0 | EZ27: 5 | FA27: -0.18% | FB27: 0.78 | FC27: -0 | FD27: -67 | FE27: 0.45% | FF27: 8.00 | FG27: -2 | FH27: 253 | FI27: 0.72% | FJ27: 1.00 | FK27: 2 | FL27: -28 | FM27: 0.65% | FN27: 5.00 | FO27: -1 | FP27: 4 | FQ27: 0.40% | FR27: 1.00 | FS27: 0 | FT27: -150 | FU27: 0.20% | FV27: 8.00 | FW27: -2 | FX27: -14 | FY27: 1.00% | FZ27: 5.00 | GA27: -1 | GB27: -123 | GC27: 4 | GD27: -45 | GE27: 2 | GF27: 152 | GG27: 1.00% | GH27: 5.37 | GI27: 8 | GJ27: -16 | GK27: 0 | GL27: 0 | GN27: 0 | GO27: 0.00% | GP27: 0 | GQ27: 0 | GR27: 0 | GS27: 0.45% | GT27: 8.00 | GU27: 0 | GV27: 0 | GW27: 0.72% | GX27: 1.00 | GY27: 0 | GZ27: 0 | HA27: 0.65% | HB27: 5.00 | HC27: 0 | HD27: 0 | HE27: 0.40% | HF27: 1.00 | HG27: 0 | HH27: 50 | HI27: 1.00% | HJ27: 5.00 | HK27: 3 | HL27: -7 | HM27: 93 | HO27: =IF(ISERROR(IF(VLOOKUP($C27,'Indicateurs Cumulés'!$C$3:$HN$560,186,FALSE)/(VLOOKUP($C27,objectifs!$C$3:$ZZ$559,158,FALSE))>=1.5,(VLOOKUP($C27,objectifs!$C$3:$ZZ$559,158,FALSE))*1.5,IF(VLOOKUP($C27,'Indicateurs Cumulés'!$C$3:$HN$560,186,FALSE)/(VLOOKUP($C27,objectifs!$C$3:$ZZ$559,158,FALSE))<=-0.5,(VLOOKUP($C27,objectifs!$C$3:$ZZ$559,158,FALSE))*-0.5,VLOOKUP($C27,'Indicateurs Cumulés'!$C$3:$HN$560,186,FALSE)))),VLOOKUP($C27,'Indicateurs Cumulés'!$C$3:$HN$560,186,FALSE),IF(VLOOKUP($C27,'Indicateurs Cumulés'!$C$3:$HN$560,186,FALSE)/(VLOOKUP($C27,objectifs!$C$3:$ZZ$559,158,FALSE))>=1.5,(VLOOKUP($C27,objectifs!$C$3:$ZZ$559,158,FALSE))*1.5,IF(VLOOKUP($C27,'Indicateurs Cumulés'!$C$3:$HN$560,186,FALSE)/(VLOOKUP($C27,objectifs!$C$3:$ZZ$559,158,FALSE))<=-0.5,(VLOOKUP($C27,objectifs!$C$3:$ZZ$559,158,FALSE))*-0.5,VLOOKUP($C27,'Indicateurs Cumulés'!$C$3:$HN$560,186,FALSE)))) -> 152 | HP27: 0 | HR27: 2.0 | HT27: 4.34% | HU27: 0.86% | HV27: 0.59% | HW27: 3 | HX27: 5 | HY27: 1 | HZ27: 2 | IA27: -6 | IB27: -1 | IC27: 4 | ID27: -12 | IE27: -1 | IF27: -1 | IG27: 0 | IH27: 0 | II27: 0 | IJ27: 16 | IK27: -40 | IL27: 0 | IM27: 0 | IN27: 0 | IO27: 0 | IP27: 0 | IQ27: -0 | IR27: -0 | IS27: 0 | IT27: -5 | IU27: -0 | IV27: -1 | IW27: 0 | IX27: 0 | IY27: 0 | IZ27: 10 | JA27: -9 | JB27: 0 | JC27: 14 | JD27: 13 | JE27: 0 | JF27: 0 | JG27: 0.00 | JH27: 0.00 | JI27: 0 | JJ27: 0 | JK27: 0 | JL27: 0.20% | JM27: 0 | JO27: 1 | JP27: 36 | JQ27: 19 | JR27: =IF(ISERROR(IF(VLOOKUP($C27,'Indicateurs Cumulés'!$C$3:$HN$560,190,FALSE)/(VLOOKUP($C27,objectifs!$C$3:$ZZ$559,162,FALSE))>=1.5,(VLOOKUP($C27,objectifs!$C$3:$ZZ$559,162,FALSE))*1.5,IF(VLOOKUP($C27,'Indicateurs Cumulés'!$C$3:$HN$560,190,FALSE)/(VLOOKUP($C27,objectifs!$C$3:$ZZ$559,162,FALSE))<=-0.5,(VLOOKUP($C27,objectifs!$C$3:$ZZ$559,162,FALSE))*-0.5,VLOOKUP($C27,'Indicateurs Cumulés'!$C$3:$HN$560,190,FALSE)))),VLOOKUP($C27,'Indicateurs Cumulés'!$C$3:$HN$560,190,FALSE),IF(VLOOKUP($C27,'Indicateurs Cumulés'!$C$3:$HN$560,190,FALSE)/(VLOOKUP($C27,objectifs!$C$3:$ZZ$559,162,FALSE))>=1.5,(VLOOKUP($C27,objectifs!$C$3:$ZZ$559,162,FALSE))*1.5,IF(VLOOKUP($C27,'Indicateurs Cumulés'!$C$3:$HN$560,190,FALSE)/(VLOOKUP($C27,objectifs!$C$3:$ZZ$559,162,FALSE))<=-0.5,(VLOOKUP($C27,objectifs!$C$3:$ZZ$559,162,FALSE))*-0.5,VLOOKUP($C27,'Indicateurs Cumulés'!$C$3:$HN$560,190,FALSE)))) -> -16 | JS27: 0 | JT27: 0 | JV27: 0 | JW27: 1 | JX27: 1 | JY27: -1 | JZ27: 1 | KA27: 0 | KB27: 0 | KC27: 0 | KD27: -4 | KE27: 0 | KF27: 0 | KG27: 0 | KH27: 0 | KI27: 0 | KJ27: -1 | KK27: 0 | KL27: 0 | KM27: 1 | KN27: 2 | KR27: 2.82 | KS27: -4 | KT27: 2 | KU27: 0 | KV27: 4 | KW27: 1 | KX27: 0 | KY27: 16 | KZ27: 11 | LA27: 0 | LB27: 0 | LC27: 135.4 | LD27: 17 | LE27: 0 | LF27: 0 | LG27: 1 | LH27: 1 | LI27: 0 | LJ27: 0 | LK27: 132 | LL27: 66.9 | LM27: 14 | LN27: 115 | LO27: -7 | LP27: 1 | LQ27: 68.67 | LR27: 53 | LS27: 43 | LT27: 71 | LU27: 30 | LV27: 3 | LW27: 10 | LX27: 4.0 | LY27: 0.4 | LZ27: 0.2 | MA27: 1.5 | MB27: 0.0 | MC27: 0.1 | MD27: 142
A28: 105006 | B28: 200262 | C28: 40 | D28: ECKBOLSHEIM | E28: 2019-06-30 | F28: 26 | G28: 4.32% | H28: 1.57 | I28: 2019-06-30 | J28: 402 | K28: 2.51% | L28: 3.33 | M28: 5.19 | N28: 1,695 | O28: 0 | P28: 0.03% | Q28: 6.36 | R28: 10.24 | S28: 163 | T28: 2.05% | U28: 4.34 | V28: 318 | W28: 0.17% | X28: 8.80 | Y28: 0 | Z28: 0.00% | AA28: 0 | AB28: 5.6 | AC28: 2.8 | AD28: 0 | AE28: 36.5 | AF28: 7.2 | AG28: 3.0 | AH28: 201906 | AI28: 0 | AJ28: 0 | AK28: 0.00% | AL28: 91.77 | AM28: 9.02 | AN28: 10% | AO28: 1.48 | AP28: 1.62% | AQ28: 593.62 | AR28: 36.60 | AS28: 6.2% | AT28: 0.16 | AU28: 0.03% | AV28: 37.53 | AW28: 0.39 | AX28: 1.04% | AY28: 0.90 | AZ28: 2.41% | BA28: 722.93 | BB28: 46.01 | BC28: 6.4% | BD28: 2.55 | BE28: 0.35% | BG28: 19 | BH28: 6 | BI28: 46 | BJ28: 42 | BK28: 1 | BL28: 1.23% | BM28: 0.00% | BN28: 40 | BO28: 97 | BP28: 2 | BQ28: 43 | BR28: 1 | BS28: 1 | BT28: 0 | BU28: -5 | BX28: 0 | BY28: 0 | BZ28: 0 | CA28: -1 | CB28: -0 | CC28: -2 | CD28: -1 | CE28: 5 | CF28: 1.0 | CG28: -9 | CH28: -2 | CI28: 2 | CJ28: 2 | CK28: 100.00% | CL28: 100.00% | CM28: 4 | CN28: 0.00% | CO28: 4 | CP28: 0 | CQ28: 0 | CR28: 1 | CS28: 0.31 | CT28: 1 | CU28: 2 | CV28: 1 | CW28: 6 | CX28: 46.82% | CY28: 119.90% | CZ28: 28 | DA28: 85.31% | DB28: 145.04% | DC28: 9 | DE28: 0.00% | DF28: 0.00% | DG28: 0 | DH28: -39 | DI28: 0.70% | DJ28: 5.33 | DK28: -1 | DL28: 73 | DM28: 0.82% | DN28: 5.33 | DO28: 3 | DP28: 29 | DQ28: 0.91% | DR28: 5.33 | DS28: 1 | DT28: 417 | DU28: 0.40% | DV28: 1.82 | DW28: 3 | DX28: -140 | DY28: 0.20% | DZ28: 5.37 | EA28: -2 | EB28: 82 | EC28: 0.20% | ED28: 5.37 | EE28: 1 | EF28: -23 | EG28: 0.20% | EH28: 5.37 | EI28: -0 | EJ28: 48 | EK28: 0.44% | EL28: 5.33 | EM28: 1 | EN28: 0 | EO28: 0.10% | EP28: 9.85 | EQ28: 0 | ER28: -147 | ES28: 0.20% | ET28: 9.00 | EU28: -3 | EV28: 17 | EW28: 0.00% | EX28: 8.59 | EY28: 0 | EZ28: 0 | FA28: -0.18% | FB28: 0.78 | FC28: 0 | FD28: 470 | FE28: 0.45% | FF28: 8.00 | FG28: 17 | FH28: 796 | FI28: 0.35% | FJ28: 1.00 | FK28: 3 | FL28: 5 | FM28: 0.65% | FN28: 5.00 | FO28: 0 | FP28: 8 | FQ28: 0.40% | FR28: 1.00 | FS28: 0 | FT28: -356 | FU28: 0.20% | FV28: 8.00 | FW28: -6 | FX28: -18 | FY28: 1.00% | FZ28: 5.00 | GA28: -1 | GB28: -56 | GC28: -3 | GD28: 666 | GE28: 31 | GF28: 194 | GG28: 1.00% | GH28: 5.37 | GI28: 10 | GJ28: 47 | GK28: 0 | GL28: 0 | GN28: 31 | GO28: 1.20% | GP28: 1.93 | GQ28: 1 | GR28: 150 | GS28: 0.45% | GT28: 8.00 | GU28: 5 | GV28: 150 | GW28: 0.35% | GX28: 1.00 | GY28: 1 | GZ28: 0 | HA28: 0.65% | HB28: 5.00 | HC28: 0 | HD28: 0 | HE28: 0.40% | HF28: 1.00 | HG28: 0 | HH28: 41 | HI28: 1.00% | HJ28: 5.00 | HK28: 2 | HL28: -6 | HM28: 101 | HO28: =IF(ISERROR(IF(VLOOKUP($C28,'Indicateurs Cumulés'!$C$3:$HN$560,186,FALSE)/(VLOOKUP($C28,objectifs!$C$3:$ZZ$559,158,FALSE))>=1.5,(VLOOKUP($C28,objectifs!$C$3:$ZZ$559,158,FALSE))*1.5,IF(VLOOKUP($C28,'Indicateurs Cumulés'!$C$3:$HN$560,186,FALSE)/(VLOOKUP($C28,objectifs!$C$3:$ZZ$559,158,FALSE))<=-0.5,(VLOOKUP($C28,objectifs!$C$3:$ZZ$559,158,FALSE))*-0.5,VLOOKUP($C28,'Indicateurs Cumulés'!$C$3:$HN$560,186,FALSE)))),VLOOKUP($C28,'Indicateurs Cumulés'!$C$3:$HN$560,186,FALSE),IF(VLOOKUP($C28,'Indicateurs Cumulés'!$C$3:$HN$560,186,FALSE)/(VLOOKUP($C28,objectifs!$C$3:$ZZ$559,158,FALSE))>=1.5,(VLOOKUP($C28,objectifs!$C$3:$ZZ$559,158,FALSE))*1.5,IF(VLOOKUP($C28,'Indicateurs Cumulés'!$C$3:$HN$560,186,FALSE)/(VLOOKUP($C28,objectifs!$C$3:$ZZ$559,158,FALSE))<=-0.5,(VLOOKUP($C28,objectifs!$C$3:$ZZ$559,158,FALSE))*-0.5,VLOOKUP($C28,'Indicateurs Cumulés'!$C$3:$HN$560,186,FALSE)))) -> 194 | HP28: 0 | HR28: 1.3 | HT28: 3.24% | HU28: 0.37% | HV28: 1.20% | HW28: 6 | HX28: 2 | HY28: 3 | HZ28: 0 | IA28: 6 | IB28: 1 | IC28: 7 | ID28: -26 | IE28: -4 | IF28: -6 | IG28: 0 | IH28: 0 | II28: 5 | IJ28: 11 | IK28: -36 | IL28: -1 | IM28: 1 | IN28: 0 | IO28: 1 | IP28: 0 | IQ28: 0 | IR28: 0 | IS28: 1 | IT28: -11 | IU28: -0 | IV28: -4 | IW28: 0 | IX28: 0 | IY28: 5 | IZ28: 7 | JA28: -8 | JB28: -0 | JC28: 6 | JD28: 26 | JE28: 0 | JF28: 0 | JG28: 0.00 | JH28: 0.00 | JI28: 0 | JJ28: 0 | JK28: 0 | JL28: 0.20% | JM28: 0 | JO28: -4 | JP28: 2 | JQ28: 24 | JR28: =IF(ISERROR(IF(VLOOKUP($C28,'Indicateurs Cumulés'!$C$3:$HN$560,190,FALSE)/(VLOOKUP($C28,objectifs!$C$3:$ZZ$559,162,FALSE))>=1.5,(VLOOKUP($C28,objectifs!$C$3:$ZZ$559,162,FALSE))*1.5,IF(VLOOKUP($C28,'Indicateurs Cumulés'!$C$3:$HN$560,190,FALSE)/(VLOOKUP($C28,objectifs!$C$3:$ZZ$559,162,FALSE))<=-0.5,(VLOOKUP($C28,objectifs!$C$3:$ZZ$559,162,FALSE))*-0.5,VLOOKUP($C28,'Indicateurs Cumulés'!$C$3:$HN$560,190,FALSE)))),VLOOKUP($C28,'Indicateurs Cumulés'!$C$3:$HN$560,190,FALSE),IF(VLOOKUP($C28,'Indicateurs Cumulés'!$C$3:$HN$560,190,FALSE)/(VLOOKUP($C28,objectifs!$C$3:$ZZ$559,162,FALSE))>=1.5,(VLOOKUP($C28,objectifs!$C$3:$ZZ$559,162,FALSE))*1.5,IF(VLOOKUP($C28,'Indicateurs Cumulés'!$C$3:$HN$560,190,FALSE)/(VLOOKUP($C28,objectifs!$C$3:$ZZ$559,162,FALSE))<=-0.5,(VLOOKUP($C28,objectifs!$C$3:$ZZ$559,162,FALSE))*-0.5,VLOOKUP($C28,'Indicateurs Cumulés'!$C$3:$HN$560,190,FALSE)))) -> 47 | JS28: 0 | JT28: 0 | JV28: -0 | JW28: 0 | JX28: 1 | JY28: 3 | JZ28: 3 | KA28: 1 | KB28: 0 | KC28: 0 | KD28: 1 | KE28: 0 | KF28: 0 | KG28: 1 | KH28: 0 | KI28: 0 | KJ28: 0 | KK28: 0 | KL28: 0 | KM28: 2 | KN28: 2 | KR28: 4.90 | KS28: 2 | KT28: 2 | KU28: 0 | KV28: 14 | KW28: 3 | KX28: 0 | KY28: 16 | KZ28: 11 | LA28: 0 | LB28: 0 | LC28: 125.5 | LD28: 31 | LE28: 0 | LF28: 0 | LG28: 0 | LH28: 0 | LI28: 0 | LJ28: 0 | LK28: 118 | LL28: 94.0 | LM28: 39 | LN28: 89 | LO28: -6 | LP28: 0 | LQ28: 99.89 | LR28: 71 | LS28: 34 | LT28: 329 | LU28: 56 | LV28: 27 | LW28: 26 | LX28: 5.3 | LY28: 0.3 | LZ28: 1.0 | MA28: 2.8 | MB28: 0.4 | MC28: 0.1 | MD28: 135
A29: 105060 | B29: 200262 | C29: 41 | D29: HOERDT | E29: 2019-06-30 | F29: 70 | G29: 4.32% | H29: 1.57 | I29: 2019-06-30 | J29: 462 | K29: 3.36% | L29: 2.61 | M29: 4.36 | N29: 2,290 | O29: 0 | P29: 0.01% | Q29: 6.63 | R29: 10.20 | S29: 26 | T29: 4.26% | U29: 1.34 | V29: 0 | W29: 0.00% | X29: 0 | Y29: 262 | Z29: 1.09% | AA29: 2.94 | AB29: 5.2 | AC29: 3.8 | AD29: 1.0 | AE29: 62.4 | AF29: 7.0 | AG29: 3.9 | AH29: 201906 | AI29: 23.00 | AJ29: 0.55 | AK29: 2.40% | AL29: 66.80 | AM29: 9.76 | AN29: 15% | AO29: 0.81 | AP29: 1.21% | AQ29: 732.03 | AR29: 14.97 | AS29: 2.0% | AT29: 0.54 | AU29: 0.07% | AV29: 17.50 | AW29: 0.51 | AX29: 2.90% | AY29: 0.31 | AZ29: 1.74% | BA29: 839.33 | BB29: 25.23 | BC29: 3.0% | BD29: 2.20 | BE29: 0.26% | BG29: 2 | BH29: 0 | BI29: 58 | BJ29: 77 | BK29: 11 | BL29: 1.54% | BM29: 0.00% | BN29: 41 | BO29: 23 | BP29: 0 | BQ29: 75 | BR29: 2 | BS29: 5 | BT29: 3 | BU29: -4 | BX29: 0 | BY29: 0 | BZ29: 0 | CA29: 1 | CB29: 0 | CC29: 4 | CD29: 2 | CE29: 7 | CF29: 1.4 | CG29: -3 | CH29: -1 | CI29: 0 | CJ29: 0 | CK29: 100.00% | CL29: 100.00% | CM29: 0 | CN29: 0.00% | CO29: 0 | CP29: 0 | CQ29: 1.0 | CR29: 0 | CS29: 0.00 | CT29: 0 | CU29: 2 | CV29: 0 | CW29: 5 | CX29: 62.92% | CY29: 197.10% | CZ29: 66 | DA29: 100.00% | DB29: 135.49% | DC29: 11 | DE29: 100.00% | DF29: 112.77% | DG29: 2 | DH29: 199 | DI29: 0.70% | DJ29: 5.33 | DK29: 7 | DL29: -130 | DM29: 0.82% | DN29: 5.33 | DO29: -6 | DP29: 4 | DQ29: 0.91% | DR29: 5.33 | DS29: 0 | DT29: 18 | DU29: 0.40% | DV29: 1.82 | DW29: 0 | DX29: -63 | DY29: 0.20% | DZ29: 5.37 | EA29: -1 | EB29: 70 | EC29: 0.20% | ED29: 5.37 | EE29: 1 | EF29: -11 | EG29: 0.20% | EH29: 5.37 | EI29: -0 | EJ29: 14 | EK29: 0.44% | EL29: 5.33 | EM29: 0 | EN29: -11 | EO29: 0.10% | EP29: 7.07 | EQ29: -0 | ER29: -52 | ES29: 0.20% | ET29: 9.00 | EU29: -1 | EV29: 155 | EW29: 0.00% | EX29: 8.59 | EY29: 0 | EZ29: 0 | FA29: -0.18% | FB29: 0.78 | FC29: 0 | FD29: 471 | FE29: 0.45% | FF29: 8.00 | FG29: 17 | FH29: 840 | FI29: 0.26% | FJ29: 1.00 | FK29: 2 | FL29: -12 | FM29: 0.65% | FN29: 5.00 | FO29: -0 | FP29: 5 | FQ29: 0.40% | FR29: 1.00 | FS29: 0 | FT29: -190 | FU29: 0.20% | FV29: 8.00 | FW29: -3 | FX29: -25 | FY29: 1.00% | FZ29: 5.00 | GA29: -1 | GB29: -6 | GC29: -2 | GD29: 649 | GE29: 31 | GF29: 11 | GG29: 1.00% | GH29: 5.37 | GI29: 1 | GJ29: 14 | GK29: 0 | GL29: 0 | GN29: 0 | GO29: 0.00% | GP29: 0 | GQ29: 0 | GR29: 0 | GS29: 0.45% | GT29: 8.00 | GU29: 0 | GV29: 0 | GW29: 0.26% | GX29: 1.00 | GY29: 0 | GZ29: 0 | HA29: 0.65% | HB29: 5.00 | HC29: 0 | HD29: 0 | HE29: 0.40% | HF29: 1.00 | HG29: 0 | HH29: 191 | HI29: 1.00% | HJ29: 5.00 | HK29: 10 | HL29: -7 | HM29: 104 | HO29: =IF(ISERROR(IF(VLOOKUP($C29,'Indicateurs Cumulés'!$C$3:$HN$560,186,FALSE)/(VLOOKUP($C29,objectifs!$C$3:$ZZ$559,158,FALSE))>=1.5,(VLOOKUP($C29,objectifs!$C$3:$ZZ$559,158,FALSE))*1.5,IF(VLOOKUP($C29,'Indicateurs Cumulés'!$C$3:$HN$560,186,FALSE)/(VLOOKUP($C29,objectifs!$C$3:$ZZ$559,158,FALSE))<=-0.5,(VLOOKUP($C29,objectifs!$C$3:$ZZ$559,158,FALSE))*-0.5,VLOOKUP($C29,'Indicateurs Cumulés'!$C$3:$HN$560,186,FALSE)))),VLOOKUP($C29,'Indicateurs Cumulés'!$C$3:$HN$560,186,FALSE),IF(VLOOKUP($C29,'Indicateurs Cumulés'!$C$3:$HN$560,186,FALSE)/(VLOOKUP($C29,objectifs!$C$3:$ZZ$559,158,FALSE))>=1.5,(VLOOKUP($C29,objectifs!$C$3:$ZZ$559,158,FALSE))*1.5,IF(VLOOKUP($C29,'Indicateurs Cumulés'!$C$3:$HN$560,186,FALSE)/(VLOOKUP($C29,objectifs!$C$3:$ZZ$559,158,FALSE))<=-0.5,(VLOOKUP($C29,objectifs!$C$3:$ZZ$559,158,FALSE))*-0.5,VLOOKUP($C29,'Indicateurs Cumulés'!$C$3:$HN$560,186,FALSE)))) -> 11 | HP29: 0 | HR29: 2.8 | HT29: 4.19% | HU29: 0.51% | HV29: 1.48% | HW29: 25 | HX29: 15 | HY29: 3 | HZ29: 6 | IA29: 8 | IB29: 1 | IC29: 1 | ID29: -11 | IE29: -2 | IF29: -3 | IG29: -6 | IH29: -1 | II29: 1 | IJ29: 25 | IK29: -19 | IL29: 5 | IM29: 3 | IN29: 1 | IO29: 1 | IP29: 0 | IQ29: 0 | IR29: 0 | IS29: 0 | IT29: -5 | IU29: -0 | IV29: -2 | IW29: -6 | IX29: -2 | IY29: 1 | IZ29: 16 | JA29: -4 | JB29: 0 | JC29: 31 | JD29: 13 | JE29: 0 | JF29: 0 | JG29: 0.00 | JH29: 0.00 | JI29: 0 | JJ29: 0 | JK29: -20 | JL29: 0.20% | JM29: 1 | JO29: 1 | JP29: 17 | JQ29: -18 | JR29: =IF(ISERROR(IF(VLOOKUP($C29,'Indicateurs Cumulés'!$C$3:$HN$560,190,FALSE)/(VLOOKUP($C29,objectifs!$C$3:$ZZ$559,162,FALSE))>=1.5,(VLOOKUP($C29,objectifs!$C$3:$ZZ$559,162,FALSE))*1.5,IF(VLOOKUP($C29,'Indicateurs Cumulés'!$C$3:$HN$560,190,FALSE)/(VLOOKUP($C29,objectifs!$C$3:$ZZ$559,162,FALSE))<=-0.5,(VLOOKUP($C29,objectifs!$C$3:$ZZ$559,162,FALSE))*-0.5,VLOOKUP($C29,'Indicateurs Cumulés'!$C$3:$HN$560,190,FALSE)))),VLOOKUP($C29,'Indicateurs Cumulés'!$C$3:$HN$560,190,FALSE),IF(VLOOKUP($C29,'Indicateurs Cumulés'!$C$3:$HN$560,190,FALSE)/(VLOOKUP($C29,objectifs!$C$3:$ZZ$559,162,FALSE))>=1.5,(VLOOKUP($C29,objectifs!$C$3:$ZZ$559,162,FALSE))*1.5,IF(VLOOKUP($C29,'Indicateurs Cumulés'!$C$3:$HN$560,190,FALSE)/(VLOOKUP($C29,objectifs!$C$3:$ZZ$559,162,FALSE))<=-0.5,(VLOOKUP($C29,objectifs!$C$3:$ZZ$559,162,FALSE))*-0.5,VLOOKUP($C29,'Indicateurs Cumulés'!$C$3:$HN$560,190,FALSE)))) -> 14 | JS29: -0 | JT29: 0 | JV29: 0 | JW29: 1 | JX29: -1 | JY29: 1 | JZ29: 0 | KA29: 2 | KB29: 0 | KC29: 2 | KD29: 5 | KE29: 0 | KF29: 0 | KG29: 3 | KH29: 0 | KI29: 1 | KJ29: 1 | KK29: 0 | KL29: 0 | KM29: 11 | KN29: 3 | KR29: 3.98 | KS29: 9 | KT29: 2 | KU29: 0 | KV29: 1 | KW29: 0 | KX29: 0 | KY29: 25 | KZ29: 17 | LA29: 0 | LB29: 0 | LC29: 209.0 | LD29: 27 | LE29: 1 | LF29: 1 | LG29: 1 | LH29: 1 | LI29: 1 | LJ29: 0 | LK29: 199 | LL29: 72.4 | LM29: 29 | LN29: 147 | LO29: -7 | LP29: 2 | LQ29: 75.85 | LR29: 89 | LS29: 55 | LT29: 318 | LU29: 71 | LV29: 14 | LW29: 11 | LX29: 6.7 | LY29: 0.6 | LZ29: 1.0 | MA29: 3.6 | MB29: 0.2 | MC29: 0.1 | MD29: 221
A30: 105006 | B30: 200262 | C30: 43 | D30: STRASBOURG HALLES (yc Mésange) | E30: 2019-06-30 | F30: 122 | G30: 4.32% | H30: 1.57 | I30: 2019-06-30 | J30: 2,246 | K30: 2.43% | L30: 1.92 | M30: 3.01 | N30: 9,675 | O30: 0 | P30: 0.00% | Q30: 6.98 | R30: 10.75 | S30: 366 | T30: 2.25% | U30: 2.20 | V30: 854 | W30: -0.06% | X30: 7.03 | Y30: 4,118 | Z30: 0.62% | AA30: 4.76 | AB30: 28.5 | AC30: 16.7 | AD30: 20.4 | AE30: 898.1 | AF30: 22.7 | AG30: 14.1 | AH30: 201906 | AI30: 0 | AJ30: 0 | AK30: 0.00% | AL30: 318.99 | AM30: 45.74 | AN30: 14% | AO30: 4.85 | AP30: 1.52% | AQ30: 1,518.32 | AR30: 173.02 | AS30: 11.4% | AT30: 2.77 | AU30: 0.18% | AV30: 59.47 | AW30: 4.18 | AX30: 7.04% | AY30: 1.11 | AZ30: 1.87% | BA30: 1,896.78 | BB30: 222.94 | BC30: 11.8% | BD30: 8.72 | BE30: 0.46% | BG30: 25 | BH30: 3 | BI30: 150 | BJ30: 149 | BK30: 174 | BL30: 0.00% | BM30: 0.00% | BN30: 43 | BO30: 57 | BP30: 1 | BQ30: 201 | BR30: 6 | BS30: 2 | BT30: 1 | BU30: -2 | BX30: 0 | BY30: 8 | BZ30: 2 | CA30: 6 | CB30: 1 | CC30: 6 | CD30: 3 | CE30: 23 | CF30: 4.6 | CG30: 40 | CH30: 9 | CI30: 10 | CJ30: 10 | CK30: 100.00% | CL30: 100.00% | CM30: 5 | CN30: 100.00% | CO30: 5 | CP30: 4 | CQ30: 20.4 | CR30: 1 | CS30: 1.07 | CT30: 1 | CU30: 8 | CV30: 2 | CW30: 28 | CX30: 50.54% | CY30: 135.90% | CZ30: 94 | DA30: 59.93% | DB30: 123.72% | DC30: 28 | DE30: 85.24% | DF30: 100.00% | DG30: 27 | DH30: -338 | DI30: 0.70% | DJ30: 5.33 | DK30: -13 | DL30: 194 | DM30: 0.82% | DN30: 5.33 | DO30: 8 | DP30: 7 | DQ30: 0.91% | DR30: 5.33 | DS30: 0 | DT30: 452 | DU30: 0.40% | DV30: 1.82 | DW30: 3 | DX30: -139 | DY30: 0.20% | DZ30: 5.37 | EA30: -1 | EB30: -14 | EC30: 0.20% | ED30: 5.37 | EE30: -0 | EF30: -40 | EG30: 0.20% | EH30: 5.37 | EI30: -0 | EJ30: 28 | EK30: 0.44% | EL30: 5.33 | EM30: 1 | EN30: 1 | EO30: 0.10% | EP30: 7.75 | EQ30: 0 | ER30: -513 | ES30: 0.20% | ET30: 9.00 | EU30: -9 | EV30: -499 | EW30: 0.00% | EX30: 8.59 | EY30: 0 | EZ30: 0 | FA30: -0.18% | FB30: 0.78 | FC30: 0 | FD30: -327 | FE30: 0.45% | FF30: 8.00 | FG30: -12 | FH30: 1,816 | FI30: 0.46% | FJ30: 1.00 | FK30: 8 | FL30: -130 | FM30: 0.65% | FN30: 5.00 | FO30: -4 | FP30: 154 | FQ30: 0.40% | FR30: 1.00 | FS30: 1 | FT30: -864 | FU30: 0.20% | FV30: 8.00 | FW30: -14 | FX30: -282 | FY30: 1.00% | FZ30: 5.00 | GA30: -14 | GB30: -1,214 | GC30: -14 | GD30: 16 | GE30: 22 | GF30: -8,721 | GG30: 1.00% | GH30: 5.37 | GI30: -468 | GJ30: -50 | GK30: 0 | GL30: 0 | GN30: 150 | GO30: 1.00% | GP30: 2.20 | GQ30: 3 | GR30: 289 | GS30: 0.45% | GT30: 8.00 | GU30: 10 | GV30: 326 | GW30: 0.46% | GX30: 1.00 | GY30: 1 | GZ30: -89 | HA30: 0.65% | HB30: 5.00 | HC30: -3 | HD30: 10 | HE30: 0.40% | HF30: 1.00 | HG30: 0 | HH30: 273 | HI30: 1.00% | HJ30: 5.00 | HK30: 14 | HL30: -27 | HM30: 505 | HO30: =IF(ISERROR(IF(VLOOKUP($C30,'Indicateurs Cumulés'!$C$3:$HN$560,186,FALSE)/(VLOOKUP($C30,objectifs!$C$3:$ZZ$559,158,FALSE))>=1.5,(VLOOKUP($C30,objectifs!$C$3:$ZZ$559,158,FALSE))*1.5,IF(VLOOKUP($C30,'Indicateurs Cumulés'!$C$3:$HN$560,186,FALSE)/(VLOOKUP($C30,objectifs!$C$3:$ZZ$559,158,FALSE))<=-0.5,(VLOOKUP($C30,objectifs!$C$3:$ZZ$559,158,FALSE))*-0.5,VLOOKUP($C30,'Indicateurs Cumulés'!$C$3:$HN$560,186,FALSE)))),VLOOKUP($C30,'Indicateurs Cumulés'!$C$3:$HN$560,186,FALSE),IF(VLOOKUP($C30,'Indicateurs Cumulés'!$C$3:$HN$560,186,FALSE)/(VLOOKUP($C30,objectifs!$C$3:$ZZ$559,158,FALSE))>=1.5,(VLOOKUP($C30,objectifs!$C$3:$ZZ$559,158,FALSE))*1.5,IF(VLOOKUP($C30,'Indicateurs Cumulés'!$C$3:$HN$560,186,FALSE)/(VLOOKUP($C30,objectifs!$C$3:$ZZ$559,158,FALSE))<=-0.5,(VLOOKUP($C30,objectifs!$C$3:$ZZ$559,158,FALSE))*-0.5,VLOOKUP($C30,'Indicateurs Cumulés'!$C$3:$HN$560,186,FALSE)))) -> -312 | HP30: 436 | HR30: 8.9 | HT30: 3.29% | HU30: 0.21% | HV30: 0.87% | HW30: 10 | HX30: 6 | HY30: -2 | HZ30: 23 | IA30: 22 | IB30: -1 | IC30: 41 | ID30: -3 | IE30: 43 | IF30: -9 | IG30: -6 | IH30: 1 | II30: 12 | IJ30: 36 | IK30: -24 | IL30: -3 | IM30: 1 | IN30: 1 | IO30: -1 | IP30: 2 | IQ30: 0 | IR30: -0 | IS30: 5 | IT30: -1 | IU30: 3 | IV30: -6 | IW30: -6 | IX30: 2 | IY30: 12 | IZ30: 23 | JA30: -5 | JB30: -0 | JC30: 88 | JD30: 201 | JE30: 0 | JF30: 0 | JG30: 0.00 | JH30: 0.00 | JI30: 0 | JJ30: 0 | JK30: -120 | JL30: 0.20% | JM30: -189 | JO30: 217 | JP30: 794 | JQ30: 75 | JR30: =IF(ISERROR(IF(VLOOKUP($C30,'Indicateurs Cumulés'!$C$3:$HN$560,190,FALSE)/(VLOOKUP($C30,objectifs!$C$3:$ZZ$559,162,FALSE))>=1.5,(VLOOKUP($C30,objectifs!$C$3:$ZZ$559,162,FALSE))*1.5,IF(VLOOKUP($C30,'Indicateurs Cumulés'!$C$3:$HN$560,190,FALSE)/(VLOOKUP($C30,objectifs!$C$3:$ZZ$559,162,FALSE))<=-0.5,(VLOOKUP($C30,objectifs!$C$3:$ZZ$559,162,FALSE))*-0.5,VLOOKUP($C30,'Indicateurs Cumulés'!$C$3:$HN$560,190,FALSE)))),VLOOKUP($C30,'Indicateurs Cumulés'!$C$3:$HN$560,190,FALSE),IF(VLOOKUP($C30,'Indicateurs Cumulés'!$C$3:$HN$560,190,FALSE)/(VLOOKUP($C30,objectifs!$C$3:$ZZ$559,162,FALSE))>=1.5,(VLOOKUP($C30,objectifs!$C$3:$ZZ$559,162,FALSE))*1.5,IF(VLOOKUP($C30,'Indicateurs Cumulés'!$C$3:$HN$560,190,FALSE)/(VLOOKUP($C30,objectifs!$C$3:$ZZ$559,162,FALSE))<=-0.5,(VLOOKUP($C30,objectifs!$C$3:$ZZ$559,162,FALSE))*-0.5,VLOOKUP($C30,'Indicateurs Cumulés'!$C$3:$HN$560,190,FALSE)))) -> -50 | JS30: -2 | JT30: -9 | JV30: 8 | JW30: 26 | JX30: 2 | JY30: -3 | JZ30: 22 | KA30: 39 | KB30: 1 | KC30: 0 | KD30: 15 | KE30: 3 | KF30: 7 | KG30: 56 | KH30: 1 | KI30: 0 | KJ30: 3 | KK30: 2 | KL30: 1 | KM30: 106 | KN30: 37 | KR30: 5.48 | KS30: 65 | KT30: -43 | KU30: 0 | KV30: 43 | KW30: 9 | KX30: 0 | KY30: 49 | KZ30: 34 | LA30: -1 | LB30: -0 | LC30: 655.0 | LD30: 337 | LE30: 2 | LF30: 1 | LG30: 4 | LH30: 6 | LI30: 4 | LJ30: 0 | LK30: 629 | LL30: 71.0 | LM30: -8 | LN30: 473 | LO30: -10 | LP30: 8 | LQ30: 74.00 | LR30: 239 | LS30: 137 | LT30: 617 | LU30: 216 | LV30: 46 | LW30: 56 | LX30: 17.9 | LY30: 1.4 | LZ30: 1.9 | MA30: 10.8 | MB30: 0.7 | MC30: 0.3 | MD30: 688
A31: 105006 | B31: 200262 | C31: 45 | D31: STRASBOURG FRANCS BOURGEOIS | E31: 2019-06-30 | F31: 88 | G31: 4.32% | H31: 1.57 | I31: 2019-06-30 | J31: 1,105 | K31: 3.34% | L31: 2.43 | M31: 4.11 | N31: 4,920 | O31: 0 | P31: -0.10% | Q31: 7.93 | R31: 12.32 | S31: 111 | T31: 3.07% | U31: 2.39 | V31: 1,344 | W31: -0.10% | X31: 8.03 | Y31: 543 | Z31: 0.55% | AA31: 4.24 | AB31: 15.5 | AC31: 20.4 | AD31: 2.2 | AE31: 241.9 | AF31: 21.1 | AG31: 8.0 | AH31: 201906 | AI31: 44.81 | AJ31: 0 | AK31: 0.00% | AL31: 395.09 | AM31: 99.35 | AN31: 25% | AO31: 5.10 | AP31: 1.29% | AQ31: 1,215.42 | AR31: 99.65 | AS31: 8.2% | AT31: 2.83 | AU31: 0.23% | AV31: 69.43 | AW31: 18.57 | AX31: 26.75% | AY31: 1.17 | AZ31: 1.68% | BA31: 1,724.76 | BB31: 217.56 | BC31: 12.6% | BD31: 9.10 | BE31: 0.53% | BG31: 11 | BH31: 3 | BI31: 128 | BJ31: 68 | BK31: 18 | BL31: 1.45% | BM31: 0.00% | BN31: 45 | BO31: 71 | BP31: 1 | BQ31: 130 | BR31: 4 | BS31: 3 | BT31: 4 | BU31: -3 | BX31: 0 | BY31: -1 | BZ31: -0 | CA31: 2 | CB31: 0 | CC31: 3 | CD31: 2 | CE31: 12 | CF31: 2.4 | CG31: 9 | CH31: 2 | CI31: 5 | CJ31: 5 | CK31: 86.49% | CL31: 150.00% | CM31: 3 | CN31: 100.00% | CO31: 3 | CP31: 9 | CQ31: 2.2 | CR31: 3 | CS31: 0.00 | CT31: 0 | CU31: 7 | CV31: 3 | CW31: 15 | CX31: 36.88% | CY31: 168.16% | CZ31: 77 | DA31: 93.32% | DB31: 155.60% | DC31: 26 | DE31: 96.13% | DF31: 100.00% | DG31: 3 | DH31: 256 | DI31: 0.70% | DJ31: 5.33 | DK31: 10 | DL31: 321 | DM31: 0.82% | DN31: 5.33 | DO31: 14 | DP31: 21 | DQ31: 0.91% | DR31: 5.33 | DS31: 1 | DT31: 68 | DU31: 0.40% | DV31: 1.82 | DW31: 0 | DX31: -170 | DY31: 0.20% | DZ31: 5.37 | EA31: -2 | EB31: 45 | EC31: 0.20% | ED31: 5.37 | EE31: 0 | EF31: -48 | EG31: 0.20% | EH31: 5.37 | EI31: -1 | EJ31: 52 | EK31: 0.44% | EL31: 5.33 | EM31: 1 | EN31: -5 | EO31: 0.10% | EP31: 9.29 | EQ31: -0 | ER31: -665 | ES31: 0.20% | ET31: 9.00 | EU31: -12 | EV31: -355 | EW31: 0.00% | EX31: 8.59 | EY31: 0 | EZ31: -6 | FA31: -0.18% | FB31: 0.78 | FC31: 0 | FD31: 522 | FE31: 0.45% | FF31: 8.00 | FG31: 19 | FH31: 1,561 | FI31: 0.53% | FJ31: 1.00 | FK31: 8 | FL31: -17 | FM31: 0.65% | FN31: 5.00 | FO31: -1 | FP31: 18 | FQ31: 0.40% | FR31: 1.00 | FS31: 0 | FT31: -469 | FU31: 0.20% | FV31: 8.00 | FW31: -7 | FX31: 131 | FY31: 1.00% | FZ31: 5.00 | GA31: 7 | GB31: -869 | GC31: 10 | GD31: 747 | GE31: 44 | GF31: -517 | GG31: 1.00% | GH31: 5.37 | GI31: -28 | GJ31: -550 | GK31: 0 | GL31: 0 | GN31: 0 | GO31: 0.00% | GP31: 0 | GQ31: 0 | GR31: 58 | GS31: 0.45% | GT31: 8.00 | GU31: 2 | GV31: 200 | GW31: 0.53% | GX31: 1.00 | GY31: 1 | GZ31: 0 | HA31: 0.65% | HB31: 5.00 | HC31: 0 | HD31: 0 | HE31: 0.40% | HF31: 1.00 | HG31: 0 | HH31: 184 | HI31: 1.00% | HJ31: 5.00 | HK31: 9 | HL31: -20 | HM31: 380 | HO31: =IF(ISERROR(IF(VLOOKUP($C31,'Indicateurs Cumulés'!$C$3:$HN$560,186,FALSE)/(VLOOKUP($C31,objectifs!$C$3:$ZZ$559,158,FALSE))>=1.5,(VLOOKUP($C31,objectifs!$C$3:$ZZ$559,158,FALSE))*1.5,IF(VLOOKUP($C31,'Indicateurs Cumulés'!$C$3:$HN$560,186,FALSE)/(VLOOKUP($C31,objectifs!$C$3:$ZZ$559,158,FALSE))<=-0.5,(VLOOKUP($C31,objectifs!$C$3:$ZZ$559,158,FALSE))*-0.5,VLOOKUP($C31,'Indicateurs Cumulés'!$C$3:$HN$560,186,FALSE)))),VLOOKUP($C31,'Indicateurs Cumulés'!$C$3:$HN$560,186,FALSE),IF(VLOOKUP($C31,'Indicateurs Cumulés'!$C$3:$HN$560,186,FALSE)/(VLOOKUP($C31,objectifs!$C$3:$ZZ$559,158,FALSE))>=1.5,(VLOOKUP($C31,objectifs!$C$3:$ZZ$559,158,FALSE))*1.5,IF(VLOOKUP($C31,'Indicateurs Cumulés'!$C$3:$HN$560,186,FALSE)/(VLOOKUP($C31,objectifs!$C$3:$ZZ$559,158,FALSE))<=-0.5,(VLOOKUP($C31,objectifs!$C$3:$ZZ$559,158,FALSE))*-0.5,VLOOKUP($C31,'Indicateurs Cumulés'!$C$3:$HN$560,186,FALSE)))) -> -317 | HP31: 327 | HR31: 6.8 | HT31: 4.44% | HU31: 0.16% | HV31: 0.76% | HW31: 16 | HX31: 18 | HY31: 2 | HZ31: 19 | IA31: 6 | IB31: 9 | IC31: 13 | ID31: 5 | IE31: 14 | IF31: -11 | IG31: -4 | IH31: -1 | II31: -3 | IJ31: 28 | IK31: -26 | IL31: -1 | IM31: 2 | IN31: 2 | IO31: 1 | IP31: 2 | IQ31: 0 | IR31: 1 | IS31: 1 | IT31: 2 | IU31: 1 | IV31: -7 | IW31: -4 | IX31: -2 | IY31: -3 | IZ31: 18 | JA31: -6 | JB31: -0 | JC31: 40 | JD31: 32 | JE31: 0 | JF31: 0 | JG31: 0.00 | JH31: 0.00 | JI31: 0 | JJ31: 0 | JK31: -500 | JL31: 0.20% | JM31: -0 | JO31: 41 | JP31: -44 | JQ31: 148 | JR31: =IF(ISERROR(IF(VLOOKUP($C31,'Indicateurs Cumulés'!$C$3:$HN$560,190,FALSE)/(VLOOKUP($C31,objectifs!$C$3:$ZZ$559,162,FALSE))>=1.5,(VLOOKUP($C31,objectifs!$C$3:$ZZ$559,162,FALSE))*1.5,IF(VLOOKUP($C31,'Indicateurs Cumulés'!$C$3:$HN$560,190,FALSE)/(VLOOKUP($C31,objectifs!$C$3:$ZZ$559,162,FALSE))<=-0.5,(VLOOKUP($C31,objectifs!$C$3:$ZZ$559,162,FALSE))*-0.5,VLOOKUP($C31,'Indicateurs Cumulés'!$C$3:$HN$560,190,FALSE)))),VLOOKUP($C31,'Indicateurs Cumulés'!$C$3:$HN$560,190,FALSE),IF(VLOOKUP($C31,'Indicateurs Cumulés'!$C$3:$HN$560,190,FALSE)/(VLOOKUP($C31,objectifs!$C$3:$ZZ$559,162,FALSE))>=1.5,(VLOOKUP($C31,objectifs!$C$3:$ZZ$559,162,FALSE))*1.5,IF(VLOOKUP($C31,'Indicateurs Cumulés'!$C$3:$HN$560,190,FALSE)/(VLOOKUP($C31,objectifs!$C$3:$ZZ$559,162,FALSE))<=-0.5,(VLOOKUP($C31,objectifs!$C$3:$ZZ$559,162,FALSE))*-0.5,VLOOKUP($C31,'Indicateurs Cumulés'!$C$3:$HN$560,190,FALSE)))) -> -55 | JS31: -9 | JT31: -0 | JV31: 1 | JW31: -1 | JX31: 5 | JY31: -3 | JZ31: -7 | KA31: 6 | KB31: 0 | KC31: 0 | KD31: 0 | KE31: 1 | KF31: 0 | KG31: 9 | KH31: 0 | KI31: 0 | KJ31: 0 | KK31: 1 | KL31: 0 | KM31: 33 | KN31: 23 | KR31: 4.86 | KS31: 7 | KT31: -92 | KU31: 0 | KV31: 18 | KW31: 4 | KX31: 0 | KY31: 24 | KZ31: 17 | LA31: 1 | LB31: 0 | LC31: 319.4 | LD31: 64 | LE31: 2 | LF31: 1 | LG31: 3 | LH31: 4 | LI31: 3 | LJ31: 0 | LK31: 302 | LL31: 44.3 | LM31: 37 | LN31: 214 | LO31: -7 | LP31: 6 | LQ31: 46.92 | LR31: 227 | LS31: 144 | LT31: 590 | LU31: 171 | LV31: -29 | LW31: 20 | LX31: 17.0 | LY31: 1.4 | LZ31: 1.8 | MA31: 8.6 | MB31: 0.0 | MC31: 0.1 | MD31: 348
